Workbook

Sheet Cover
A1: RIIO Financial Model
B2: Electricity Distribution
C3: =MID(CELL("filename"),SEARCH("[",CELL("filename"))+1,SEARCH("]",CELL("filename"))-SEARCH("[",CELL("filename"))-1) -> price-control-financial-model-17-03-2014.xlsm
C4: RIIO ED1 Price Control Financial Model for the Annual Iteration Process that will take place by 30 November 2015-16
C6: DISCLAIMER: The purpose of this model is used to calculate Base Revenue (PU)and MOD terms in subsequent years for Licensees on the basis of Financial Handbook and Licence conditions of the relevant Network Operator
C8: Note: Calculations of the regulatory financial position in financial statements are done on a notional basis, in line with the assumptions in this model and in Final Proposals. These may be different from the financial position stated in operator's accounts.
B10: Model key
E12: Sample | G12: Information and interface
E13: Sample | G13: Fixed input value
E14: Sample | G14: Annual update input
E15: Sample | G15: Input linked from annual update
E16: Sample | G16: Notes and instructions
E17: Sample | G17: Sheet or calculation used only to inform assessment
B19: Contents
E21: INTERFACE >
E22: Cover | G22: Model key and content directory
E23: UserInterface | G23: Model operation
E24: TaxTrigger | G24: Tax trigger calculations
E25: MOD | G25: MOD Summary
E26: INPUT SELECTION >
E27: Input | G27: Inputs for selected licensee
E28: CALCULATION >
E29: Totex | G29: Totex allowance and actuals
E30: TIM | G30: Totex Incentive Mechanism and capitalisation
E31: DARTs | G31: Direct Allowance Revenue Terms
E32: Depn | G32: Gas distribution regulatory depreciation
E33: Return&RAV | G33: RAV and return calculations
E34: TaxPools | G34: Tax pools and capital allowances
E35: Finance&Tax | G35: Net debt, equity issuance, financing costs and tax
E36: Revenue | G36: Revenue and MOD
E37: Revenue Profiling | G37: Revenue Profiling tool
E38: OUTPUT >
E39: LiveResults | G39: Results for selected company
E40: SavedResults | G40: Saved results for all companies
E41: FinancialStatements | G41: Financial statements for selected company
E42: FinancialRatios | G42: Financial ratios for selected company
E43: Bill impact | G43: Bill impact for all companies
E44: RoRE | G44: Return on Regulatory Equity calculations for selected company
E45: COMPANY SPECIFIC INPUT SHEETS >
E46: ENWL
E47: NPgN
E48: NPgY
E49: WMID
E50: EMID
E51: SWALES
E52: SWEST
E53: LPN
E54: SPN
E55: EPN
E56: SPD
E57: SPMW
E58: SSEH
E59: SSES

Sheet UserInterface
A1: User Interface
B3: Model operation
C5: Scenario
E7: Scenario selection
E9: Selected Scenario: | G9: =INDEX(E79:E80,E81) -> Base (M1b)
C12: PCFM year t
C13: Instruction: Use the following drop-down list to identify year t in the model. Year t is identified here by its end date.
E15: Year t selection:
E17: Year t selected: | G17: =EOMONTH(42094,E75*12) -> 2016-03-31
C19: Active company
C20: Instruction: Use the following drop-down list to select the active company in the model.
E22: Company selection:
E24: Selected company: | G24: =INDEX(E49:E62, E63) -> ENWL
C26: Model state
C27: Below shows the state of the model selected in the Tax Trigger sheet
E29: Selected model status: | G29: =INDEX(TaxTrigger!E30:E31,m_tax_trigger_state,1) -> Licence Model
C31: Run model for all licensees
C32: Instruction: Click on the left button to save results for the selected company only. Click the right button to save results for all.
C33: Note: Annual iterations must have been completed for all prior years before running the model to generate MOD.
C34: The macros save results and values required for future years which cannot be recreated once inputs are revised.
C35: Running the macro saves the output from year t's iteration for use in future iterations.
C36: Results for the selected company can be found on the "LiveResults" sheet and also on the "SavedResults" sheet once saved by a macro.
B42: User selection lists
B43: Note: The lists below drive the drop-down lists above.
B44: Using the drop-down lists above returns an integer in the "cell link" positioned below their "source list."
B45: The number returned in the cell link corresponds to the position of the selected item in the source list.
B46: The company selection output is set as a "named range." This gives a stable anchor point for the "RunForAll" macro to change the company.
E48: ="Source for ''"&C19&"'' drop-down list" -> Source for ''Active company'' drop-down list
E49: ENWL
E50: NPgN
E51: NPgY
E52: WMID
E53: EMID
E54: SWALES
E55: SWEST
E56: LPN
E57: SPN
E58: EPN
E59: SPD
E60: SPMW
E61: SSEH
E62: SSES
E63: 1
E64: Adjacent named range: m_identity
E66: ="Source for ''"&C12&"'' drop-down list" -> Source for ''PCFM year t'' drop-down list
E67: 2016-03-31
E68: 2017-03-31
E69: 2018-03-31
E70: 2019-03-31
E71: 2020-03-31
E72: 2021-03-31
E73: 2022-03-31
E74: 2023-03-31
E75: 1
E76: Adjacent named range: m_PCFM_year_t
E78: ="Source for ''"&C5&"'' drop-down list" -> Source for ''Scenario'' drop-down list
E79: Best (M1a)
E80: Base (M1b)
E81: 2

Sheet Change Control
B1: Details of change | D1: Links to changes in model
B487: From here is post 25Oct 2013 model
B488: Updated guarunteed standards from value to -160bps | D488: =RoRE!D57:E60 -> 
B491: Tree Cutting is shown as seperately line (as opposed to added to pensions) so that it can have its own tax pool allocation and feed into the model separately.
B494: Re-allocation (see comment box for further detail) | D494: =Input!I74,Input!AJ464:AQ464 -> 
B497: Correction of RPEs for high values projects in BPDT for re-opener only
B512: Seperation of rail electrification from diversions. The BPDTs and the model have been amended so rail electrification (where relevant) will come through as a variant costs separately.
B518: Note in the M1/T tabs in the BPDTs the model input for QofS amended so its split between exante and DNO funded (with only the ex-ante component going through to the model inputs. This is to capture information on QoS expenditure that is funded via the price control (ex ante) compared with funded by the DNO.
B524: Removal of scenarios which are no longer used (ie OWN/Reference and DECC scenarios) | D524: =SUM(UserInterface!C78:C80) -> 0
B527: Updated legacy workbook (now split between RavRollingIncentive, RRI, and other legacy adjustments)
B530: Removal of compensation payment from non activity costs.
B551: Updated RPI forcast from 2.8 to 3.1%

Sheet TaxTrigger
A1: Tax Trigger
B2: =UserInterface!G24 -> ENWL | AJ2: Done
E7: Parameter | G7: Units | I7: Constant | AJ7: Annual values
E8: PCFM year ending | I8: =UserInterface!$G$17 -> 2016-03-31 | K8: 1991-03-31 | L8: 1992-03-31 | M8: 1993-03-31 | N8: 1994-03-31 | O8: 1995-03-31 | P8: 1996-03-31 | Q8: 1997-03-31 | R8: 1998-03-31 | S8: 1999-03-31 | T8: 2000-03-31 | U8: 2001-03-31 | V8: 2002-03-31 | W8: 2003-03-31 | X8: 2004-03-31 | Y8: 2005-03-31 | Z8: 2006-03-31 | AA8: 2007-03-31 | AB8: 2008-03-31 | AC8: 2009-03-31 | AD8: 2010-03-31 | AE8: 2011-03-31 | AF8: 2012-03-31 | AG8: 2013-03-31 | AH8: 2014-03-31 | AI8: 2015-03-31 | AJ8: 2016-03-31 | AK8: 2017-03-31 | AL8: 2018-03-31 | AM8: 2019-03-31 | AN8: 2020-03-31 | AO8: 2021-03-31 | AP8: 2022-03-31 | AQ8: 2023-03-31
B10: Tax trigger calculation
C12: Test operation
C13: Instruction: To run the model as the Tax Trigger Tool, The model state selected below should be Tax Trigger Calculation
C14: Clicking the macro button below runs the "TaxTrigger" macro, performing the Tax Trigger adjustment calculation for the selected licensee for year t.
C15: The output generated by the macro can be replicated manually using the following steps:
C16: 1. Clear any values from previous tests in the "Test state output" section below (named range "m_saved_original_results")
C17: 2. Set testing state to "Licence Model"
C18: 3. Copy the cells marked as the "m_calculated_tax" named range and paste them at the named range "m_saved_original_test."
C19: 4. Set testing state to "Tax Trigger Calculation"
C20: Note: The Tax Trigger Tool is disabled if the "Model state" below reads "Licence Model."
E26: State selection
E29: State options
E30: Licence Model
E31: Tax Trigger Calculation
E32: 1
E33: Adjacent named range: m_tax_trigger_state
E38: Run macro
C44: Tax calculation
E46: Tax Allowance when tax losses are not taken into account
E48: Profits attributable to corporation tax | G48: £m 12/13 prices | AJ48: ='Finance&Tax'!AJ169 * Input!$AG$57 / Input!AJ$57 -> 82.85929338 | AK48: ='Finance&Tax'!AK169 * Input!$AG$57 / Input!AK$57 -> 82.85229218 | AL48: ='Finance&Tax'!AL169 * Input!$AG$57 / Input!AL$57 -> 76.23735249 | AM48: ='Finance&Tax'!AM169 * Input!$AG$57 / Input!AM$57 -> 75.38869791 | AN48: ='Finance&Tax'!AN169 * Input!$AG$57 / Input!AN$57 -> 73.26576053 | AO48: ='Finance&Tax'!AO169 * Input!$AG$57 / Input!AO$57 -> 71.25646008 | AP48: ='Finance&Tax'!AP169 * Input!$AG$57 / Input!AP$57 -> 71.02408456 | AQ48: ='Finance&Tax'!AQ169 * Input!$AG$57 / Input!AQ$57 -> 67.06905951
E49: Corporation tax rate | AJ49: ='Finance&Tax'!AJ186 -> 0.2 | AK49: ='Finance&Tax'!AK186 -> 0.2 | AL49: ='Finance&Tax'!AL186 -> 0.2 | AM49: ='Finance&Tax'!AM186 -> 0.2 | AN49: ='Finance&Tax'!AN186 -> 0.2 | AO49: ='Finance&Tax'!AO186 -> 0.2 | AP49: ='Finance&Tax'!AP186 -> 0.2 | AQ49: ='Finance&Tax'!AQ186 -> 0.2
E50: Grossing-up factor for tax on tax charge | AJ50: ='Finance&Tax'!AJ189 -> 1.25 | AK50: ='Finance&Tax'!AK189 -> 1.25 | AL50: ='Finance&Tax'!AL189 -> 1.25 | AM50: ='Finance&Tax'!AM189 -> 1.25 | AN50: ='Finance&Tax'!AN189 -> 1.25 | AO50: ='Finance&Tax'!AO189 -> 1.25 | AP50: ='Finance&Tax'!AP189 -> 1.25 | AQ50: ='Finance&Tax'!AQ189 -> 1.25
E51: Corporation tax charge beforre losses | AJ51: =AJ49*AJ48*AJ50 -> 20.71482334 | AK51: =AK49*AK48*AK50 -> 20.71307305 | AL51: 19.05933812 | AM51: 18.84717448 | AN51: 18.31644013 | AO51: 17.81411502 | AP51: 17.75602114 | AQ51: 16.76726488
E53: Tax allowance without taking into account losses | AJ53: =AJ51 -> 20.71482334 | AK53: =AK51 -> 20.71307305 | AL53: 19.05933812 | AM53: 18.84717448 | AN53: 18.31644013 | AO53: 17.81411502 | AP53: 17.75602114 | AQ53: 16.76726488
I55: Instruction
E56: Tax allowance before tax trigger | G56: £m 12/13 prices | AJ56: =AJ53 -> 20.71482334 | AK56: =AK53 -> 20.71307305 | AL56: 19.05933812 | AM56: 18.84717448 | AN56: 18.31644013 | AO56: 17.81411502 | AP56: 17.75602114 | AQ56: 16.76726488
E57: B event value | G57: £m 12/13 prices | AJ57: =AJ135 -> 0 | AK57: =AK135 -> 0 | AL57: 0 | AM57: 0 | AN57: 0 | AO57: 0 | AP57: 0 | AQ57: 0
E58: Threshold value adjustment | G58: £m 12/13 prices | AJ58: =AJ86 -> 0 | AK58: =AK86 -> 0 | AL58: 0 | AM58: 0 | AN58: 0 | AO58: 0 | AP58: 0 | AQ58: 0
E59: Tax allowance | G59: £m 12/13 prices | I59: =IF(m_tax_trigger_state = 1, "Copy cells -->", "-") -> Copy cells --> | AJ59: =SUM(AJ56:AJ58) -> 20.71482334 | AK59: 20.71307305 | AL59: 19.05933812 | AM59: 18.84717448 | AN59: 18.31644013 | AO59: 17.81411502 | AP59: 17.75602114 | AQ59: 16.76726488
AJ60: Adjacent named range: m_calculated_tax
C61: Test state output
C62: Note: The formula determines whether the recalculated tax is above or below the threshold and sets the adjustment accordingly
I64: Instruction
E65: Value with original settings | G65: £m 12/13 prices | I65: =IF( m_tax_trigger_state = 1, "Paste cells -->","-") -> Paste cells --> | AI65: m_tax_trigger_results
AJ66: Named ranges above: m_saved_original_test
E67: Value with new settings and threshold adjustment | G67: £m 12/13 prices | AJ67: =AJ59 -> 20.71482334 | AK67: =AK59 -> 20.71307305 | AL67: 19.05933812 | AM67: 18.84717448 | AN67: 18.31644013 | AO67: 17.81411502 | AP67: 17.75602114 | AQ67: 16.76726488
C69: Result and output
C70: Note: Once the test is complete, the "Tax Trigger adjustment" below can be taken from below and inputted to the PCFM set to run as the Licence Model, rather than the Tax Trigger Tool.
E72: Tax trigger adjustment | G72: £m 12/13 prices | AJ72: =IF(m_tax_trigger_state=2,IF(ABS((AJ56+AJ57)-AJ65)> ABS(AJ86), AJ67 - AJ65, 0),0) -> 0 | AK72: 0 | AL72: 0 | AM72: 0 | AN72: 0 | AO72: 0 | AP72: 0 | AQ72: 0
B74: Tax trigger parameters
B75: Instruction: Enter values in the yellow cells below for use in the Tax Trigger test.
B76: Note: Flags are used throughout to indicate whether the original or Tax Trigger value is being used. The live values below are exported for use throughout the model.
C78: Active policy
E80: Tax trigger tax settings are used | G80: flag | AJ80: =IF(AND(AJ$8 <= $I8, m_tax_trigger_state = 2), TRUE, FALSE) -> FALSE | AK80: FALSE | AL80: FALSE | AM80: FALSE | AN80: FALSE | AO80: FALSE | AP80: FALSE | AQ80: FALSE
C82: Threshold
E84: Threshold value | G84: £m 12/13 prices | AJ84: =CHOOSE(m_identity,AJ139,AJ140,AJ141,AJ142,AJ143,AJ144,AJ145,AJ146,AJ147,AJ148,AJ149,AJ150,AJ151,AJ152) -> 0 | AK84: 0 | AL84: 0 | AM84: 0 | AN84: 0 | AO84: 0 | AP84: 0 | AQ84: 0
E86: Threshold value applied | G86: £m 12/13 prices | AJ86: =IF(OR((AJ56+AJ57) = AJ65, AJ65 = ""), 0, IF(AJ65 < (AJ56+AJ57), -AJ84, +AJ84)) -> 0 | AK86: =IF(OR((AK56+AK57) = AK65, AK65 = ""), 0, IF(AK65 < (AK56+AK57), -AK84, +AK84)) -> 0 | AL86: 0 | AM86: 0 | AN86: 0 | AO86: 0 | AP86: 0 | AQ86: 0
C88: Corporation tax rate
E90: Active | G90: text | AJ90: =AJ$80 = FALSE() -> TRUE | AK90: TRUE | AL90: TRUE | AM90: TRUE | AN90: TRUE | AO90: TRUE | AP90: TRUE | AQ90: TRUE
E91: RIIO | G91: % | J91: > | AJ91: =Input!AJ343 -> 0.2 | AK91: =Input!AK343 -> 0.2 | AL91: =Input!AL343 -> 0.2 | AM91: =Input!AM343 -> 0.2 | AN91: =Input!AN343 -> 0.2 | AO91: =Input!AO343 -> 0.2 | AP91: =Input!AP343 -> 0.2 | AQ91: =Input!AQ343 -> 0.2
E93: Active | G93: text | AJ93: =AJ$80 -> FALSE | AK93: FALSE | AL93: FALSE | AM93: FALSE | AN93: FALSE | AO93: FALSE | AP93: FALSE | AQ93: FALSE
E94: Tax trigger | G94: % | AJ94: =AJ91 -> 0.2 | AK94: 0.2 | AL94: 0.2 | AM94: 0.2 | AN94: 0.2 | AO94: 0.2 | AP94: 0.2 | AQ94: 0.2
E96: Applied | G96: % | J96: > | AJ96: =(AJ90 * AJ91) + (AJ93 * AJ94) -> 0.2 | AK96: =(AK90 * AK91) + (AK93 * AK94) -> 0.2 | AL96: 0.2 | AM96: 0.2 | AN96: 0.2 | AO96: 0.2 | AP96: 0.2 | AQ96: 0.2
C98: Capital allowance rate
D100: General pool
E102: Active | G102: text | AJ102: =AJ$80 = FALSE() -> TRUE | AK102: TRUE | AL102: TRUE | AM102: TRUE | AN102: TRUE | AO102: TRUE | AP102: TRUE | AQ102: TRUE
E103: RIIO | G103: % | AJ103: =Input!AJ345 -> 0.18 | AK103: =Input!AK345 -> 0.18 | AL103: =Input!AL345 -> 0.18 | AM103: =Input!AM345 -> 0.18 | AN103: =Input!AN345 -> 0.18 | AO103: =Input!AO345 -> 0.18 | AP103: =Input!AP345 -> 0.18 | AQ103: =Input!AQ345 -> 0.18
E105: Active | G105: text | AJ105: =AJ$80 -> FALSE | AK105: FALSE | AL105: FALSE | AM105: FALSE | AN105: FALSE | AO105: FALSE | AP105: FALSE | AQ105: FALSE
E106: Tax trigger | G106: % | AJ106: =AJ103 -> 0.18 | AK106: =AK103 -> 0.18 | AL106: 0.18 | AM106: 0.18 | AN106: 0.18 | AO106: 0.18 | AP106: 0.18 | AQ106: 0.18
E108: Applied | G108: % | AJ108: =(AJ102 * AJ103) + (AJ105 * AJ106) -> 0.18 | AK108: 0.18 | AL108: 0.18 | AM108: 0.18 | AN108: 0.18 | AO108: 0.18 | AP108: 0.18 | AQ108: 0.18
D110: Special Rate pool
E112: Active | G112: text | AJ112: =AJ$80 = FALSE() -> TRUE | AK112: TRUE | AL112: TRUE | AM112: TRUE | AN112: TRUE | AO112: TRUE | AP112: TRUE | AQ112: TRUE
E113: RIIO | G113: % | J113: > | AJ113: =Input!AJ346 -> 0.08 | AK113: =Input!AK346 -> 0.08 | AL113: =Input!AL346 -> 0.08 | AM113: =Input!AM346 -> 0.08 | AN113: =Input!AN346 -> 0.08 | AO113: =Input!AO346 -> 0.08 | AP113: =Input!AP346 -> 0.08 | AQ113: =Input!AQ346 -> 0.08
E115: Active | G115: text | AJ115: =AJ$80 -> FALSE | AK115: FALSE | AL115: FALSE | AM115: FALSE | AN115: FALSE | AO115: FALSE | AP115: FALSE | AQ115: FALSE
E116: Tax trigger | G116: % | AJ116: =AJ113 -> 0.08 | AK116: =AK113 -> 0.08 | AL116: 0.08 | AM116: 0.08 | AN116: 0.08 | AO116: 0.08 | AP116: 0.08 | AQ116: 0.08
E118: Applied | G118: % | J118: > | AJ118: =(AJ112 * AJ113) + (AJ115 * AJ116) -> 0.08 | AK118: 0.08 | AL118: 0.08 | AM118: 0.08 | AN118: 0.08 | AO118: 0.08 | AP118: 0.08 | AQ118: 0.08
D120: Deferred revenue writing down allowance rate
E122: Active | G122: text | AJ122: =AJ$80 = FALSE() -> TRUE | AK122: TRUE | AL122: TRUE | AM122: TRUE | AN122: TRUE | AO122: TRUE | AP122: TRUE | AQ122: TRUE
E123: RIIO | G123: % | J123: > | AJ123: =Input!AJ347 -> 0.0222 | AK123: =Input!AK347 -> 0.0222 | AL123: =Input!AL347 -> 0.0222 | AM123: =Input!AM347 -> 0.0222 | AN123: =Input!AN347 -> 0.0222 | AO123: =Input!AO347 -> 0.0222 | AP123: =Input!AP347 -> 0.0222 | AQ123: =Input!AQ347 -> 0.0222
E125: Active | G125: text | AJ125: =AJ$80 -> FALSE | AK125: FALSE | AL125: FALSE | AM125: FALSE | AN125: FALSE | AO125: FALSE | AP125: FALSE | AQ125: FALSE
E126: Tax trigger | G126: % | AJ126: =AJ123 -> 0.0222 | AK126: =AK123 -> 0.0222 | AL126: 0.0222 | AM126: 0.0222 | AN126: 0.0222 | AO126: 0.0222 | AP126: 0.0222 | AQ126: 0.0222
E128: Applied | G128: % | J128: > | AJ128: =(AJ122 * AJ123) + (AJ125 * AJ126) -> 0.0222 | AK128: 0.0222 | AL128: 0.0222 | AM128: 0.0222 | AN128: 0.0222 | AO128: 0.0222 | AP128: 0.0222 | AQ128: 0.0222
C130: B event value
E132: Active | G132: text | AJ132: =AJ$80 -> FALSE | AK132: FALSE | AL132: FALSE | AM132: FALSE | AN132: FALSE | AO132: FALSE | AP132: FALSE | AQ132: FALSE
E133: Tax trigger | G133: £m 12/13 prices | AJ133: 0 | AK133: 0 | AL133: 0 | AM133: 0 | AN133: 0 | AO133: 0 | AP133: 0 | AQ133: 0
E135: Applied | G135: £m 12/13 prices | AJ135: =AJ132 * AJ133 -> 0 | AK135: =AK132 * AK133 -> 0 | AL135: 0 | AM135: 0 | AN135: 0 | AO135: 0 | AP135: 0 | AQ135: 0
C137: Tax Trigger Deadbands
E139: ENWL | AJ139: =ENWL!AJ$442 -> 0 | AK139: =ENWL!AK$442 -> 0 | AL139: =ENWL!AL$442 -> 0 | AM139: =ENWL!AM$442 -> 0 | AN139: =ENWL!AN$442 -> 0 | AO139: =ENWL!AO$442 -> 0 | AP139: =ENWL!AP$442 -> 0 | AQ139: =ENWL!AQ$442 -> 0
E140: NPgN | AJ140: =NPgN!AJ$442 -> 0 | AK140: =NPgN!AK$442 -> 0 | AL140: =NPgN!AL$442 -> 0 | AM140: =NPgN!AM$442 -> 0 | AN140: =NPgN!AN$442 -> 0 | AO140: =NPgN!AO$442 -> 0 | AP140: =NPgN!AP$442 -> 0 | AQ140: =NPgN!AQ$442 -> 0
E141: NPgY | AJ141: =NPgY!AJ$442 -> 0 | AK141: =NPgY!AK$442 -> 0 | AL141: =NPgY!AL$442 -> 0 | AM141: =NPgY!AM$442 -> 0 | AN141: =NPgY!AN$442 -> 0 | AO141: =NPgY!AO$442 -> 0 | AP141: =NPgY!AP$442 -> 0 | AQ141: =NPgY!AQ$442 -> 0
E142: WMID | AJ142: =WMID!AJ$442 -> 0 | AK142: =WMID!AK$442 -> 0 | AL142: =WMID!AL$442 -> 0 | AM142: =WMID!AM$442 -> 0 | AN142: =WMID!AN$442 -> 0 | AO142: =WMID!AO$442 -> 0 | AP142: =WMID!AP$442 -> 0 | AQ142: =WMID!AQ$442 -> 0
E143: EMID | AJ143: =EMID!AJ$442 -> 0 | AK143: =EMID!AK$442 -> 0 | AL143: =EMID!AL$442 -> 0 | AM143: =EMID!AM$442 -> 0 | AN143: =EMID!AN$442 -> 0 | AO143: =EMID!AO$442 -> 0 | AP143: =EMID!AP$442 -> 0 | AQ143: =EMID!AQ$442 -> 0
E144: SWALES | AJ144: =SWALES!AJ$442 -> 0 | AK144: =SWALES!AK$442 -> 0 | AL144: =SWALES!AL$442 -> 0 | AM144: =SWALES!AM$442 -> 0 | AN144: =SWALES!AN$442 -> 0 | AO144: =SWALES!AO$442 -> 0 | AP144: =SWALES!AP$442 -> 0 | AQ144: =SWALES!AQ$442 -> 0
E145: SWEST | AJ145: =SWEST!AJ$442 -> 0 | AK145: =SWEST!AK$442 -> 0 | AL145: =SWEST!AL$442 -> 0 | AM145: =SWEST!AM$442 -> 0 | AN145: =SWEST!AN$442 -> 0 | AO145: =SWEST!AO$442 -> 0 | AP145: =SWEST!AP$442 -> 0 | AQ145: =SWEST!AQ$442 -> 0
E146: LPN | AJ146: =LPN!AJ$442 -> 0 | AK146: =LPN!AK$442 -> 0 | AL146: =LPN!AL$442 -> 0 | AM146: =LPN!AM$442 -> 0 | AN146: =LPN!AN$442 -> 0 | AO146: =LPN!AO$442 -> 0 | AP146: =LPN!AP$442 -> 0 | AQ146: =LPN!AQ$442 -> 0
E147: SPN | AJ147: =SPN!AJ$442 -> 0 | AK147: =SPN!AK$442 -> 0 | AL147: =SPN!AL$442 -> 0 | AM147: =SPN!AM$442 -> 0 | AN147: =SPN!AN$442 -> 0 | AO147: =SPN!AO$442 -> 0 | AP147: =SPN!AP$442 -> 0 | AQ147: =SPN!AQ$442 -> 0
E148: EPN | AJ148: =EPN!AJ$442 -> 0 | AK148: =EPN!AK$442 -> 0 | AL148: =EPN!AL$442 -> 0 | AM148: =EPN!AM$442 -> 0 | AN148: =EPN!AN$442 -> 0 | AO148: =EPN!AO$442 -> 0 | AP148: =EPN!AP$442 -> 0 | AQ148: =EPN!AQ$442 -> 0
E149: SPD | AJ149: =SPD!AJ$442 -> 0 | AK149: =SPD!AK$442 -> 0 | AL149: =SPD!AL$442 -> 0 | AM149: =SPD!AM$442 -> 0 | AN149: =SPD!AN$442 -> 0 | AO149: =SPD!AO$442 -> 0 | AP149: =SPD!AP$442 -> 0 | AQ149: =SPD!AQ$442 -> 0
E150: SPMW | AJ150: =SPMW!AJ$442 -> 0 | AK150: =SPMW!AK$442 -> 0 | AL150: =SPMW!AL$442 -> 0 | AM150: =SPMW!AM$442 -> 0 | AN150: =SPMW!AN$442 -> 0 | AO150: =SPMW!AO$442 -> 0 | AP150: =SPMW!AP$442 -> 0 | AQ150: =SPMW!AQ$442 -> 0
E151: SSEH | AJ151: =SSEH!AJ$442 -> 0 | AK151: =SSEH!AK$442 -> 0 | AL151: =SSEH!AL$442 -> 0 | AM151: =SSEH!AM$442 -> 0 | AN151: =SSEH!AN$442 -> 0 | AO151: =SSEH!AO$442 -> 0 | AP151: =SSEH!AP$442 -> 0 | AQ151: =SSEH!AQ$442 -> 0
E152: SSES | AJ152: =SSES!AJ$442 -> 0 | AK152: =SSES!AK$442 -> 0 | AL152: =SSES!AL$442 -> 0 | AM152: =SSES!AM$442 -> 0 | AN152: =SSES!AN$442 -> 0 | AO152: =SSES!AO$442 -> 0 | AP152: =SSES!AP$442 -> 0 | AQ152: =SSES!AQ$442 -> 0

Sheet MOD
A1: MOD
B2: =UserInterface!G24 -> ENWL | AJ2: Done
E6: Parameter | G6: Units | I6: Constant | AJ6: Annual values
E7: PCFM year ending | I7: =UserInterface!$G$17 -> 2016-03-31 | K7: 1991-03-31 | L7: 1992-03-31 | M7: 1993-03-31 | N7: 1994-03-31 | O7: 1995-03-31 | P7: 1996-03-31 | Q7: 1997-03-31 | R7: 1998-03-31 | S7: 1999-03-31 | T7: 2000-03-31 | U7: 2001-03-31 | V7: 2002-03-31 | W7: 2003-03-31 | X7: 2004-03-31 | Y7: 2005-03-31 | Z7: 2006-03-31 | AA7: 2007-03-31 | AB7: 2008-03-31 | AC7: 2009-03-31 | AD7: 2010-03-31 | AE7: 2011-03-31 | AF7: 2012-03-31 | AG7: 2013-03-31 | AH7: 2014-03-31 | AI7: 2015-03-31 | AJ7: 2016-03-31 | AK7: 2017-03-31 | AL7: 2018-03-31 | AM7: 2019-03-31 | AN7: 2020-03-31 | AO7: 2021-03-31 | AP7: 2022-03-31 | AQ7: 2023-03-31
E9: =UserInterface!E17 -> Year t selected: | G9: =UserInterface!G17 -> 2016-03-31
E11: =Revenue!E67 -> Final Proposals base revenue | AJ11: =Revenue!AJ67 -> 370.2813583 | AK11: =Revenue!AK67 -> 360.0557882 | AL11: =Revenue!AL67 -> 351.5593054 | AM11: =Revenue!AM67 -> 351.1649542 | AN11: =Revenue!AN67 -> 350.0806753 | AO11: =Revenue!AO67 -> 348.9557118 | AP11: =Revenue!AP67 -> 353.1764226 | AQ11: =Revenue!AQ67 -> 354.633382
E12: =Revenue!E68 -> MOD | AK12: =Revenue!AK68 -> 0 | AL12: =Revenue!AL68 -> 0 | AM12: =Revenue!AM68 -> 0 | AN12: =Revenue!AN68 -> 0 | AO12: =Revenue!AO68 -> 0 | AP12: =Revenue!AP68 -> 0 | AQ12: =Revenue!AQ68 -> 0
E13: =Revenue!E69 -> Base revenue | AJ13: =Revenue!AJ69 -> 370.2813583 | AK13: =Revenue!AK69 -> 360.0557882 | AL13: =Revenue!AL69 -> 351.5593054 | AM13: =Revenue!AM69 -> 351.1649542 | AN13: =Revenue!AN69 -> 350.0806753 | AO13: =Revenue!AO69 -> 348.9557118 | AP13: =Revenue!AP69 -> 353.1764226 | AQ13: =Revenue!AQ69 -> 354.633382

Sheet Input
A1: Input
B2: =UserInterface!G24 -> ENWL | AJ2: Done
E6: Parameter | F6: Licence condition | G6: Units | H6: Term | I6: Constant | AJ6: Annual values
E7: PCFM year ending | F7: =Cover!C3 -> price-control-financial-model-17-03-2014.xlsm | I7: =UserInterface!$G$17 -> 2016-03-31 | K7: 1991-03-31 | L7: 1992-03-31 | M7: 1993-03-31 | N7: 1994-03-31 | O7: 1995-03-31 | P7: 1996-03-31 | Q7: 1997-03-31 | R7: 1998-03-31 | S7: 1999-03-31 | T7: 2000-03-31 | U7: 2001-03-31 | V7: 2002-03-31 | W7: 2003-03-31 | X7: 2004-03-31 | Y7: 2005-03-31 | Z7: 2006-03-31 | AA7: 2007-03-31 | AB7: 2008-03-31 | AC7: 2009-03-31 | AD7: 2010-03-31 | AE7: 2011-03-31 | AF7: 2012-03-31 | AG7: 2013-03-31 | AH7: 2014-03-31 | AI7: 2015-03-31 | AJ7: 2016-03-31 | AK7: 2017-03-31 | AL7: 2018-03-31 | AM7: 2019-03-31 | AN7: 2020-03-31 | AO7: 2021-03-31 | AP7: 2022-03-31 | AQ7: 2023-03-31
B9: PCFM Variable Values Table
E11: Allowed percentage cost of corporate debt | F11: CRC3C | G11: annual real % | H11: CDE | AJ11: =CHOOSE(m_identity,ENWL!AJ11, NPgN!AJ11, NPgY!AJ11, WMID!AJ11, EMID!AJ11, SWALES!AJ11, SWEST!AJ11, LPN!AJ11,SPN!AJ11,EPN!AJ11,SPD!AJ11,SPMW!AJ11,SSEH!AJ11,SSES!AJ11) -> 0.0272 | AK11: =CHOOSE(m_identity,ENWL!AK11, NPgN!AK11, NPgY!AK11, WMID!AK11, EMID!AK11, SWALES!AK11, SWEST!AK11, LPN!AK11,SPN!AK11,EPN!AK11,SPD!AK11,SPMW!AK11,SSEH!AK11,SSES!AK11) -> 0.0272 | AL11: =CHOOSE(m_identity,ENWL!AL11, NPgN!AL11, NPgY!AL11, WMID!AL11, EMID!AL11, SWALES!AL11, SWEST!AL11, LPN!AL11,SPN!AL11,EPN!AL11,SPD!AL11,SPMW!AL11,SSEH!AL11,SSES!AL11) -> 0.0272 | AM11: =CHOOSE(m_identity,ENWL!AM11, NPgN!AM11, NPgY!AM11, WMID!AM11, EMID!AM11, SWALES!AM11, SWEST!AM11, LPN!AM11,SPN!AM11,EPN!AM11,SPD!AM11,SPMW!AM11,SSEH!AM11,SSES!AM11) -> 0.0272 | AN11: =CHOOSE(m_identity,ENWL!AN11, NPgN!AN11, NPgY!AN11, WMID!AN11, EMID!AN11, SWALES!AN11, SWEST!AN11, LPN!AN11,SPN!AN11,EPN!AN11,SPD!AN11,SPMW!AN11,SSEH!AN11,SSES!AN11) -> 0.0272 | AO11: =CHOOSE(m_identity,ENWL!AO11, NPgN!AO11, NPgY!AO11, WMID!AO11, EMID!AO11, SWALES!AO11, SWEST!AO11, LPN!AO11,SPN!AO11,EPN!AO11,SPD!AO11,SPMW!AO11,SSEH!AO11,SSES!AO11) -> 0.0272 | AP11: =CHOOSE(m_identity,ENWL!AP11, NPgN!AP11, NPgY!AP11, WMID!AP11, EMID!AP11, SWALES!AP11, SWEST!AP11, LPN!AP11,SPN!AP11,EPN!AP11,SPD!AP11,SPMW!AP11,SSEH!AP11,SSES!AP11) -> 0.0272 | AQ11: =CHOOSE(m_identity,ENWL!AQ11, NPgN!AQ11, NPgY!AQ11, WMID!AQ11, EMID!AQ11, SWALES!AQ11, SWEST!AQ11, LPN!AQ11,SPN!AQ11,EPN!AQ11,SPD!AQ11,SPMW!AQ11,SSEH!AQ11,SSES!AQ11) -> 0.0272
E12: Actual load related capex | F12: CRC3B | G12: £m 12/13 prices | H12: ALC | AJ12: =CHOOSE(m_identity,ENWL!AJ12, NPgN!AJ12, NPgY!AJ12, WMID!AJ12, EMID!AJ12, SWALES!AJ12, SWEST!AJ12, LPN!AJ12,SPN!AJ12,EPN!AJ12,SPD!AJ12,SPMW!AJ12,SSEH!AJ12,SSES!AJ12) -> 0 | AK12: =CHOOSE(m_identity,ENWL!AK12, NPgN!AK12, NPgY!AK12, WMID!AK12, EMID!AK12, SWALES!AK12, SWEST!AK12, LPN!AK12,SPN!AK12,EPN!AK12,SPD!AK12,SPMW!AK12,SSEH!AK12,SSES!AK12) -> 0 | AL12: =CHOOSE(m_identity,ENWL!AL12, NPgN!AL12, NPgY!AL12, WMID!AL12, EMID!AL12, SWALES!AL12, SWEST!AL12, LPN!AL12,SPN!AL12,EPN!AL12,SPD!AL12,SPMW!AL12,SSEH!AL12,SSES!AL12) -> 0 | AM12: =CHOOSE(m_identity,ENWL!AM12, NPgN!AM12, NPgY!AM12, WMID!AM12, EMID!AM12, SWALES!AM12, SWEST!AM12, LPN!AM12,SPN!AM12,EPN!AM12,SPD!AM12,SPMW!AM12,SSEH!AM12,SSES!AM12) -> 0 | AN12: =CHOOSE(m_identity,ENWL!AN12, NPgN!AN12, NPgY!AN12, WMID!AN12, EMID!AN12, SWALES!AN12, SWEST!AN12, LPN!AN12,SPN!AN12,EPN!AN12,SPD!AN12,SPMW!AN12,SSEH!AN12,SSES!AN12) -> 0 | AO12: =CHOOSE(m_identity,ENWL!AO12, NPgN!AO12, NPgY!AO12, WMID!AO12, EMID!AO12, SWALES!AO12, SWEST!AO12, LPN!AO12,SPN!AO12,EPN!AO12,SPD!AO12,SPMW!AO12,SSEH!AO12,SSES!AO12) -> 0 | AP12: =CHOOSE(m_identity,ENWL!AP12, NPgN!AP12, NPgY!AP12, WMID!AP12, EMID!AP12, SWALES!AP12, SWEST!AP12, LPN!AP12,SPN!AP12,EPN!AP12,SPD!AP12,SPMW!AP12,SSEH!AP12,SSES!AP12) -> 0 | AQ12: =CHOOSE(m_identity,ENWL!AQ12, NPgN!AQ12, NPgY!AQ12, WMID!AQ12, EMID!AQ12, SWALES!AQ12, SWEST!AQ12, LPN!AQ12,SPN!AQ12,EPN!AQ12,SPD!AQ12,SPMW!AQ12,SSEH!AQ12,SSES!AQ12) -> 0
E13: Actual non-load related capex - asset replacement | F13: CRC3B | G13: £m 12/13 prices | H13: ARE | AJ13: =CHOOSE(m_identity,ENWL!AJ13, NPgN!AJ13, NPgY!AJ13, WMID!AJ13, EMID!AJ13, SWALES!AJ13, SWEST!AJ13, LPN!AJ13,SPN!AJ13,EPN!AJ13,SPD!AJ13,SPMW!AJ13,SSEH!AJ13,SSES!AJ13) -> 0 | AK13: =CHOOSE(m_identity,ENWL!AK13, NPgN!AK13, NPgY!AK13, WMID!AK13, EMID!AK13, SWALES!AK13, SWEST!AK13, LPN!AK13,SPN!AK13,EPN!AK13,SPD!AK13,SPMW!AK13,SSEH!AK13,SSES!AK13) -> 0 | AL13: =CHOOSE(m_identity,ENWL!AL13, NPgN!AL13, NPgY!AL13, WMID!AL13, EMID!AL13, SWALES!AL13, SWEST!AL13, LPN!AL13,SPN!AL13,EPN!AL13,SPD!AL13,SPMW!AL13,SSEH!AL13,SSES!AL13) -> 0 | AM13: =CHOOSE(m_identity,ENWL!AM13, NPgN!AM13, NPgY!AM13, WMID!AM13, EMID!AM13, SWALES!AM13, SWEST!AM13, LPN!AM13,SPN!AM13,EPN!AM13,SPD!AM13,SPMW!AM13,SSEH!AM13,SSES!AM13) -> 0 | AN13: =CHOOSE(m_identity,ENWL!AN13, NPgN!AN13, NPgY!AN13, WMID!AN13, EMID!AN13, SWALES!AN13, SWEST!AN13, LPN!AN13,SPN!AN13,EPN!AN13,SPD!AN13,SPMW!AN13,SSEH!AN13,SSES!AN13) -> 0 | AO13: =CHOOSE(m_identity,ENWL!AO13, NPgN!AO13, NPgY!AO13, WMID!AO13, EMID!AO13, SWALES!AO13, SWEST!AO13, LPN!AO13,SPN!AO13,EPN!AO13,SPD!AO13,SPMW!AO13,SSEH!AO13,SSES!AO13) -> 0 | AP13: =CHOOSE(m_identity,ENWL!AP13, NPgN!AP13, NPgY!AP13, WMID!AP13, EMID!AP13, SWALES!AP13, SWEST!AP13, LPN!AP13,SPN!AP13,EPN!AP13,SPD!AP13,SPMW!AP13,SSEH!AP13,SSES!AP13) -> 0 | AQ13: =CHOOSE(m_identity,ENWL!AQ13, NPgN!AQ13, NPgY!AQ13, WMID!AQ13, EMID!AQ13, SWALES!AQ13, SWEST!AQ13, LPN!AQ13,SPN!AQ13,EPN!AQ13,SPD!AQ13,SPMW!AQ13,SSEH!AQ13,SSES!AQ13) -> 0
E14: Actual non-load related capex - other | F14: CRC3B | G14: £m 12/13 prices | H14: AOC | AJ14: =CHOOSE(m_identity,ENWL!AJ14, NPgN!AJ14, NPgY!AJ14, WMID!AJ14, EMID!AJ14, SWALES!AJ14, SWEST!AJ14, LPN!AJ14,SPN!AJ14,EPN!AJ14,SPD!AJ14,SPMW!AJ14,SSEH!AJ14,SSES!AJ14) -> 0 | AK14: =CHOOSE(m_identity,ENWL!AK14, NPgN!AK14, NPgY!AK14, WMID!AK14, EMID!AK14, SWALES!AK14, SWEST!AK14, LPN!AK14,SPN!AK14,EPN!AK14,SPD!AK14,SPMW!AK14,SSEH!AK14,SSES!AK14) -> 0 | AL14: =CHOOSE(m_identity,ENWL!AL14, NPgN!AL14, NPgY!AL14, WMID!AL14, EMID!AL14, SWALES!AL14, SWEST!AL14, LPN!AL14,SPN!AL14,EPN!AL14,SPD!AL14,SPMW!AL14,SSEH!AL14,SSES!AL14) -> 0 | AM14: =CHOOSE(m_identity,ENWL!AM14, NPgN!AM14, NPgY!AM14, WMID!AM14, EMID!AM14, SWALES!AM14, SWEST!AM14, LPN!AM14,SPN!AM14,EPN!AM14,SPD!AM14,SPMW!AM14,SSEH!AM14,SSES!AM14) -> 0 | AN14: =CHOOSE(m_identity,ENWL!AN14, NPgN!AN14, NPgY!AN14, WMID!AN14, EMID!AN14, SWALES!AN14, SWEST!AN14, LPN!AN14,SPN!AN14,EPN!AN14,SPD!AN14,SPMW!AN14,SSEH!AN14,SSES!AN14) -> 0 | AO14: =CHOOSE(m_identity,ENWL!AO14, NPgN!AO14, NPgY!AO14, WMID!AO14, EMID!AO14, SWALES!AO14, SWEST!AO14, LPN!AO14,SPN!AO14,EPN!AO14,SPD!AO14,SPMW!AO14,SSEH!AO14,SSES!AO14) -> 0 | AP14: =CHOOSE(m_identity,ENWL!AP14, NPgN!AP14, NPgY!AP14, WMID!AP14, EMID!AP14, SWALES!AP14, SWEST!AP14, LPN!AP14,SPN!AP14,EPN!AP14,SPD!AP14,SPMW!AP14,SSEH!AP14,SSES!AP14) -> 0 | AQ14: =CHOOSE(m_identity,ENWL!AQ14, NPgN!AQ14, NPgY!AQ14, WMID!AQ14, EMID!AQ14, SWALES!AQ14, SWEST!AQ14, LPN!AQ14,SPN!AQ14,EPN!AQ14,SPD!AQ14,SPMW!AQ14,SSEH!AQ14,SSES!AQ14) -> 0
E15: Actual faults | F15: CRC3B | G15: £m 12/13 prices | H15: AFE | AJ15: =CHOOSE(m_identity,ENWL!AJ15, NPgN!AJ15, NPgY!AJ15, WMID!AJ15, EMID!AJ15, SWALES!AJ15, SWEST!AJ15, LPN!AJ15,SPN!AJ15,EPN!AJ15,SPD!AJ15,SPMW!AJ15,SSEH!AJ15,SSES!AJ15) -> 0 | AK15: =CHOOSE(m_identity,ENWL!AK15, NPgN!AK15, NPgY!AK15, WMID!AK15, EMID!AK15, SWALES!AK15, SWEST!AK15, LPN!AK15,SPN!AK15,EPN!AK15,SPD!AK15,SPMW!AK15,SSEH!AK15,SSES!AK15) -> 0 | AL15: =CHOOSE(m_identity,ENWL!AL15, NPgN!AL15, NPgY!AL15, WMID!AL15, EMID!AL15, SWALES!AL15, SWEST!AL15, LPN!AL15,SPN!AL15,EPN!AL15,SPD!AL15,SPMW!AL15,SSEH!AL15,SSES!AL15) -> 0 | AM15: =CHOOSE(m_identity,ENWL!AM15, NPgN!AM15, NPgY!AM15, WMID!AM15, EMID!AM15, SWALES!AM15, SWEST!AM15, LPN!AM15,SPN!AM15,EPN!AM15,SPD!AM15,SPMW!AM15,SSEH!AM15,SSES!AM15) -> 0 | AN15: =CHOOSE(m_identity,ENWL!AN15, NPgN!AN15, NPgY!AN15, WMID!AN15, EMID!AN15, SWALES!AN15, SWEST!AN15, LPN!AN15,SPN!AN15,EPN!AN15,SPD!AN15,SPMW!AN15,SSEH!AN15,SSES!AN15) -> 0 | AO15: =CHOOSE(m_identity,ENWL!AO15, NPgN!AO15, NPgY!AO15, WMID!AO15, EMID!AO15, SWALES!AO15, SWEST!AO15, LPN!AO15,SPN!AO15,EPN!AO15,SPD!AO15,SPMW!AO15,SSEH!AO15,SSES!AO15) -> 0 | AP15: =CHOOSE(m_identity,ENWL!AP15, NPgN!AP15, NPgY!AP15, WMID!AP15, EMID!AP15, SWALES!AP15, SWEST!AP15, LPN!AP15,SPN!AP15,EPN!AP15,SPD!AP15,SPMW!AP15,SSEH!AP15,SSES!AP15) -> 0 | AQ15: =CHOOSE(m_identity,ENWL!AQ15, NPgN!AQ15, NPgY!AQ15, WMID!AQ15, EMID!AQ15, SWALES!AQ15, SWEST!AQ15, LPN!AQ15,SPN!AQ15,EPN!AQ15,SPD!AQ15,SPMW!AQ15,SSEH!AQ15,SSES!AQ15) -> 0
E16: Actual tree cutting | AJ16: =CHOOSE(m_identity,ENWL!AJ16, NPgN!AJ16, NPgY!AJ16, WMID!AJ16, EMID!AJ16, SWALES!AJ16, SWEST!AJ16, LPN!AJ16,SPN!AJ16,EPN!AJ16,SPD!AJ16,SPMW!AJ16,SSEH!AJ16,SSES!AJ16) -> 0 | AK16: =CHOOSE(m_identity,ENWL!AK16, NPgN!AK16, NPgY!AK16, WMID!AK16, EMID!AK16, SWALES!AK16, SWEST!AK16, LPN!AK16,SPN!AK16,EPN!AK16,SPD!AK16,SPMW!AK16,SSEH!AK16,SSES!AK16) -> 0 | AL16: =CHOOSE(m_identity,ENWL!AL16, NPgN!AL16, NPgY!AL16, WMID!AL16, EMID!AL16, SWALES!AL16, SWEST!AL16, LPN!AL16,SPN!AL16,EPN!AL16,SPD!AL16,SPMW!AL16,SSEH!AL16,SSES!AL16) -> 0 | AM16: =CHOOSE(m_identity,ENWL!AM16, NPgN!AM16, NPgY!AM16, WMID!AM16, EMID!AM16, SWALES!AM16, SWEST!AM16, LPN!AM16,SPN!AM16,EPN!AM16,SPD!AM16,SPMW!AM16,SSEH!AM16,SSES!AM16) -> 0 | AN16: =CHOOSE(m_identity,ENWL!AN16, NPgN!AN16, NPgY!AN16, WMID!AN16, EMID!AN16, SWALES!AN16, SWEST!AN16, LPN!AN16,SPN!AN16,EPN!AN16,SPD!AN16,SPMW!AN16,SSEH!AN16,SSES!AN16) -> 0 | AO16: =CHOOSE(m_identity,ENWL!AO16, NPgN!AO16, NPgY!AO16, WMID!AO16, EMID!AO16, SWALES!AO16, SWEST!AO16, LPN!AO16,SPN!AO16,EPN!AO16,SPD!AO16,SPMW!AO16,SSEH!AO16,SSES!AO16) -> 0 | AP16: =CHOOSE(m_identity,ENWL!AP16, NPgN!AP16, NPgY!AP16, WMID!AP16, EMID!AP16, SWALES!AP16, SWEST!AP16, LPN!AP16,SPN!AP16,EPN!AP16,SPD!AP16,SPMW!AP16,SSEH!AP16,SSES!AP16) -> 0 | AQ16: =CHOOSE(m_identity,ENWL!AQ16, NPgN!AQ16, NPgY!AQ16, WMID!AQ16, EMID!AQ16, SWALES!AQ16, SWEST!AQ16, LPN!AQ16,SPN!AQ16,EPN!AQ16,SPD!AQ16,SPMW!AQ16,SSEH!AQ16,SSES!AQ16) -> 0
E17: Actual 100% ‘revenue pool’ expenditure | F17: CRC3B | G17: £m 12/13 prices | H17: ATC | AJ17: =CHOOSE(m_identity,ENWL!AJ17, NPgN!AJ17, NPgY!AJ17, WMID!AJ17, EMID!AJ17, SWALES!AJ17, SWEST!AJ17, LPN!AJ17,SPN!AJ17,EPN!AJ17,SPD!AJ17,SPMW!AJ17,SSEH!AJ17,SSES!AJ17) -> 0 | AK17: =CHOOSE(m_identity,ENWL!AK17, NPgN!AK17, NPgY!AK17, WMID!AK17, EMID!AK17, SWALES!AK17, SWEST!AK17, LPN!AK17,SPN!AK17,EPN!AK17,SPD!AK17,SPMW!AK17,SSEH!AK17,SSES!AK17) -> 0 | AL17: =CHOOSE(m_identity,ENWL!AL17, NPgN!AL17, NPgY!AL17, WMID!AL17, EMID!AL17, SWALES!AL17, SWEST!AL17, LPN!AL17,SPN!AL17,EPN!AL17,SPD!AL17,SPMW!AL17,SSEH!AL17,SSES!AL17) -> 0 | AM17: =CHOOSE(m_identity,ENWL!AM17, NPgN!AM17, NPgY!AM17, WMID!AM17, EMID!AM17, SWALES!AM17, SWEST!AM17, LPN!AM17,SPN!AM17,EPN!AM17,SPD!AM17,SPMW!AM17,SSEH!AM17,SSES!AM17) -> 0 | AN17: =CHOOSE(m_identity,ENWL!AN17, NPgN!AN17, NPgY!AN17, WMID!AN17, EMID!AN17, SWALES!AN17, SWEST!AN17, LPN!AN17,SPN!AN17,EPN!AN17,SPD!AN17,SPMW!AN17,SSEH!AN17,SSES!AN17) -> 0 | AO17: =CHOOSE(m_identity,ENWL!AO17, NPgN!AO17, NPgY!AO17, WMID!AO17, EMID!AO17, SWALES!AO17, SWEST!AO17, LPN!AO17,SPN!AO17,EPN!AO17,SPD!AO17,SPMW!AO17,SSEH!AO17,SSES!AO17) -> 0 | AP17: =CHOOSE(m_identity,ENWL!AP17, NPgN!AP17, NPgY!AP17, WMID!AP17, EMID!AP17, SWALES!AP17, SWEST!AP17, LPN!AP17,SPN!AP17,EPN!AP17,SPD!AP17,SPMW!AP17,SSEH!AP17,SSES!AP17) -> 0 | AQ17: =CHOOSE(m_identity,ENWL!AQ17, NPgN!AQ17, NPgY!AQ17, WMID!AQ17, EMID!AQ17, SWALES!AQ17, SWEST!AQ17, LPN!AQ17,SPN!AQ17,EPN!AQ17,SPD!AQ17,SPMW!AQ17,SSEH!AQ17,SSES!AQ17) -> 0
E18: Actual controllable opex | F18: CRC3B | G18: £m 12/13 prices | H18: ACONO | AJ18: =CHOOSE(m_identity,ENWL!AJ18, NPgN!AJ18, NPgY!AJ18, WMID!AJ18, EMID!AJ18, SWALES!AJ18, SWEST!AJ18, LPN!AJ18,SPN!AJ18,EPN!AJ18,SPD!AJ18,SPMW!AJ18,SSEH!AJ18,SSES!AJ18) -> 0 | AK18: =CHOOSE(m_identity,ENWL!AK18, NPgN!AK18, NPgY!AK18, WMID!AK18, EMID!AK18, SWALES!AK18, SWEST!AK18, LPN!AK18,SPN!AK18,EPN!AK18,SPD!AK18,SPMW!AK18,SSEH!AK18,SSES!AK18) -> 0 | AL18: =CHOOSE(m_identity,ENWL!AL18, NPgN!AL18, NPgY!AL18, WMID!AL18, EMID!AL18, SWALES!AL18, SWEST!AL18, LPN!AL18,SPN!AL18,EPN!AL18,SPD!AL18,SPMW!AL18,SSEH!AL18,SSES!AL18) -> 0 | AM18: =CHOOSE(m_identity,ENWL!AM18, NPgN!AM18, NPgY!AM18, WMID!AM18, EMID!AM18, SWALES!AM18, SWEST!AM18, LPN!AM18,SPN!AM18,EPN!AM18,SPD!AM18,SPMW!AM18,SSEH!AM18,SSES!AM18) -> 0 | AN18: =CHOOSE(m_identity,ENWL!AN18, NPgN!AN18, NPgY!AN18, WMID!AN18, EMID!AN18, SWALES!AN18, SWEST!AN18, LPN!AN18,SPN!AN18,EPN!AN18,SPD!AN18,SPMW!AN18,SSEH!AN18,SSES!AN18) -> 0 | AO18: =CHOOSE(m_identity,ENWL!AO18, NPgN!AO18, NPgY!AO18, WMID!AO18, EMID!AO18, SWALES!AO18, SWEST!AO18, LPN!AO18,SPN!AO18,EPN!AO18,SPD!AO18,SPMW!AO18,SSEH!AO18,SSES!AO18) -> 0 | AP18: =CHOOSE(m_identity,ENWL!AP18, NPgN!AP18, NPgY!AP18, WMID!AP18, EMID!AP18, SWALES!AP18, SWEST!AP18, LPN!AP18,SPN!AP18,EPN!AP18,SPD!AP18,SPMW!AP18,SSEH!AP18,SSES!AP18) -> 0 | AQ18: =CHOOSE(m_identity,ENWL!AQ18, NPgN!AQ18, NPgY!AQ18, WMID!AQ18, EMID!AQ18, SWALES!AQ18, SWEST!AQ18, LPN!AQ18,SPN!AQ18,EPN!AQ18,SPD!AQ18,SPMW!AQ18,SSEH!AQ18,SSES!AQ18) -> 0
E19: Allowed Expenditure - Enhanced Physical Site Security | F19: CRC3F | G19: £m 12/13 prices | H19: UCEPD | AJ19: =CHOOSE(m_identity,ENWL!AJ19, NPgN!AJ19, NPgY!AJ19, WMID!AJ19, EMID!AJ19, SWALES!AJ19, SWEST!AJ19, LPN!AJ19,SPN!AJ19,EPN!AJ19,SPD!AJ19,SPMW!AJ19,SSEH!AJ19,SSES!AJ19) -> 2.619407623 | AK19: =CHOOSE(m_identity,ENWL!AK19, NPgN!AK19, NPgY!AK19, WMID!AK19, EMID!AK19, SWALES!AK19, SWEST!AK19, LPN!AK19,SPN!AK19,EPN!AK19,SPD!AK19,SPMW!AK19,SSEH!AK19,SSES!AK19) -> 0 | AL19: =CHOOSE(m_identity,ENWL!AL19, NPgN!AL19, NPgY!AL19, WMID!AL19, EMID!AL19, SWALES!AL19, SWEST!AL19, LPN!AL19,SPN!AL19,EPN!AL19,SPD!AL19,SPMW!AL19,SSEH!AL19,SSES!AL19) -> 0 | AM19: =CHOOSE(m_identity,ENWL!AM19, NPgN!AM19, NPgY!AM19, WMID!AM19, EMID!AM19, SWALES!AM19, SWEST!AM19, LPN!AM19,SPN!AM19,EPN!AM19,SPD!AM19,SPMW!AM19,SSEH!AM19,SSES!AM19) -> 0 | AN19: =CHOOSE(m_identity,ENWL!AN19, NPgN!AN19, NPgY!AN19, WMID!AN19, EMID!AN19, SWALES!AN19, SWEST!AN19, LPN!AN19,SPN!AN19,EPN!AN19,SPD!AN19,SPMW!AN19,SSEH!AN19,SSES!AN19) -> 0 | AO19: =CHOOSE(m_identity,ENWL!AO19, NPgN!AO19, NPgY!AO19, WMID!AO19, EMID!AO19, SWALES!AO19, SWEST!AO19, LPN!AO19,SPN!AO19,EPN!AO19,SPD!AO19,SPMW!AO19,SSEH!AO19,SSES!AO19) -> 0 | AP19: =CHOOSE(m_identity,ENWL!AP19, NPgN!AP19, NPgY!AP19, WMID!AP19, EMID!AP19, SWALES!AP19, SWEST!AP19, LPN!AP19,SPN!AP19,EPN!AP19,SPD!AP19,SPMW!AP19,SSEH!AP19,SSES!AP19) -> 0 | AQ19: =CHOOSE(m_identity,ENWL!AQ19, NPgN!AQ19, NPgY!AQ19, WMID!AQ19, EMID!AQ19, SWALES!AQ19, SWEST!AQ19, LPN!AQ19,SPN!AQ19,EPN!AQ19,SPD!AQ19,SPMW!AQ19,SSEH!AQ19,SSES!AQ19) -> 0
E20: Allowed Expenditure - High Value Projects | F20: CRC3F | G20: £m 12/13 prices | H20: UCHVP | AJ20: =CHOOSE(m_identity,ENWL!AJ20, NPgN!AJ20, NPgY!AJ20, WMID!AJ20, EMID!AJ20, SWALES!AJ20, SWEST!AJ20, LPN!AJ20,SPN!AJ20,EPN!AJ20,SPD!AJ20,SPMW!AJ20,SSEH!AJ20,SSES!AJ20) -> 0 | AK20: =CHOOSE(m_identity,ENWL!AK20, NPgN!AK20, NPgY!AK20, WMID!AK20, EMID!AK20, SWALES!AK20, SWEST!AK20, LPN!AK20,SPN!AK20,EPN!AK20,SPD!AK20,SPMW!AK20,SSEH!AK20,SSES!AK20) -> 0 | AL20: =CHOOSE(m_identity,ENWL!AL20, NPgN!AL20, NPgY!AL20, WMID!AL20, EMID!AL20, SWALES!AL20, SWEST!AL20, LPN!AL20,SPN!AL20,EPN!AL20,SPD!AL20,SPMW!AL20,SSEH!AL20,SSES!AL20) -> 0 | AM20: =CHOOSE(m_identity,ENWL!AM20, NPgN!AM20, NPgY!AM20, WMID!AM20, EMID!AM20, SWALES!AM20, SWEST!AM20, LPN!AM20,SPN!AM20,EPN!AM20,SPD!AM20,SPMW!AM20,SSEH!AM20,SSES!AM20) -> 0 | AN20: =CHOOSE(m_identity,ENWL!AN20, NPgN!AN20, NPgY!AN20, WMID!AN20, EMID!AN20, SWALES!AN20, SWEST!AN20, LPN!AN20,SPN!AN20,EPN!AN20,SPD!AN20,SPMW!AN20,SSEH!AN20,SSES!AN20) -> 0 | AO20: =CHOOSE(m_identity,ENWL!AO20, NPgN!AO20, NPgY!AO20, WMID!AO20, EMID!AO20, SWALES!AO20, SWEST!AO20, LPN!AO20,SPN!AO20,EPN!AO20,SPD!AO20,SPMW!AO20,SSEH!AO20,SSES!AO20) -> 0 | AP20: =CHOOSE(m_identity,ENWL!AP20, NPgN!AP20, NPgY!AP20, WMID!AP20, EMID!AP20, SWALES!AP20, SWEST!AP20, LPN!AP20,SPN!AP20,EPN!AP20,SPD!AP20,SPMW!AP20,SSEH!AP20,SSES!AP20) -> 0 | AQ20: =CHOOSE(m_identity,ENWL!AQ20, NPgN!AQ20, NPgY!AQ20, WMID!AQ20, EMID!AQ20, SWALES!AQ20, SWEST!AQ20, LPN!AQ20,SPN!AQ20,EPN!AQ20,SPD!AQ20,SPMW!AQ20,SSEH!AQ20,SSES!AQ20) -> 0
E21: Allowed Expenditure - Visual Amenity Allowed (TIM neutral) | F21: CRC3I | G21: £m 12/13 prices | H21: VAA | AJ21: =CHOOSE(m_identity,ENWL!AJ21, NPgN!AJ21, NPgY!AJ21, WMID!AJ21, EMID!AJ21, SWALES!AJ21, SWEST!AJ21, LPN!AJ21,SPN!AJ21,EPN!AJ21,SPD!AJ21,SPMW!AJ21,SSEH!AJ21,SSES!AJ21) -> 0 | AK21: =CHOOSE(m_identity,ENWL!AK21, NPgN!AK21, NPgY!AK21, WMID!AK21, EMID!AK21, SWALES!AK21, SWEST!AK21, LPN!AK21,SPN!AK21,EPN!AK21,SPD!AK21,SPMW!AK21,SSEH!AK21,SSES!AK21) -> 0 | AL21: =CHOOSE(m_identity,ENWL!AL21, NPgN!AL21, NPgY!AL21, WMID!AL21, EMID!AL21, SWALES!AL21, SWEST!AL21, LPN!AL21,SPN!AL21,EPN!AL21,SPD!AL21,SPMW!AL21,SSEH!AL21,SSES!AL21) -> 0 | AM21: =CHOOSE(m_identity,ENWL!AM21, NPgN!AM21, NPgY!AM21, WMID!AM21, EMID!AM21, SWALES!AM21, SWEST!AM21, LPN!AM21,SPN!AM21,EPN!AM21,SPD!AM21,SPMW!AM21,SSEH!AM21,SSES!AM21) -> 0 | AN21: =CHOOSE(m_identity,ENWL!AN21, NPgN!AN21, NPgY!AN21, WMID!AN21, EMID!AN21, SWALES!AN21, SWEST!AN21, LPN!AN21,SPN!AN21,EPN!AN21,SPD!AN21,SPMW!AN21,SSEH!AN21,SSES!AN21) -> 0 | AO21: =CHOOSE(m_identity,ENWL!AO21, NPgN!AO21, NPgY!AO21, WMID!AO21, EMID!AO21, SWALES!AO21, SWEST!AO21, LPN!AO21,SPN!AO21,EPN!AO21,SPD!AO21,SPMW!AO21,SSEH!AO21,SSES!AO21) -> 0 | AP21: =CHOOSE(m_identity,ENWL!AP21, NPgN!AP21, NPgY!AP21, WMID!AP21, EMID!AP21, SWALES!AP21, SWEST!AP21, LPN!AP21,SPN!AP21,EPN!AP21,SPD!AP21,SPMW!AP21,SSEH!AP21,SSES!AP21) -> 0 | AQ21: =CHOOSE(m_identity,ENWL!AQ21, NPgN!AQ21, NPgY!AQ21, WMID!AQ21, EMID!AQ21, SWALES!AQ21, SWEST!AQ21, LPN!AQ21,SPN!AQ21,EPN!AQ21,SPD!AQ21,SPMW!AQ21,SSEH!AQ21,SSES!AQ21) -> 0
E22: Allowed Expenditure - Worst Served Customers Allowed (TIM neutral) | F22: CRC3H | G22: £m 12/13 prices | H22: WSCC | AJ22: =CHOOSE(m_identity,ENWL!AJ22, NPgN!AJ22, NPgY!AJ22, WMID!AJ22, EMID!AJ22, SWALES!AJ22, SWEST!AJ22, LPN!AJ22,SPN!AJ22,EPN!AJ22,SPD!AJ22,SPMW!AJ22,SSEH!AJ22,SSES!AJ22) -> 0 | AK22: =CHOOSE(m_identity,ENWL!AK22, NPgN!AK22, NPgY!AK22, WMID!AK22, EMID!AK22, SWALES!AK22, SWEST!AK22, LPN!AK22,SPN!AK22,EPN!AK22,SPD!AK22,SPMW!AK22,SSEH!AK22,SSES!AK22) -> 0 | AL22: =CHOOSE(m_identity,ENWL!AL22, NPgN!AL22, NPgY!AL22, WMID!AL22, EMID!AL22, SWALES!AL22, SWEST!AL22, LPN!AL22,SPN!AL22,EPN!AL22,SPD!AL22,SPMW!AL22,SSEH!AL22,SSES!AL22) -> 0 | AM22: =CHOOSE(m_identity,ENWL!AM22, NPgN!AM22, NPgY!AM22, WMID!AM22, EMID!AM22, SWALES!AM22, SWEST!AM22, LPN!AM22,SPN!AM22,EPN!AM22,SPD!AM22,SPMW!AM22,SSEH!AM22,SSES!AM22) -> 0 | AN22: =CHOOSE(m_identity,ENWL!AN22, NPgN!AN22, NPgY!AN22, WMID!AN22, EMID!AN22, SWALES!AN22, SWEST!AN22, LPN!AN22,SPN!AN22,EPN!AN22,SPD!AN22,SPMW!AN22,SSEH!AN22,SSES!AN22) -> 0 | AO22: =CHOOSE(m_identity,ENWL!AO22, NPgN!AO22, NPgY!AO22, WMID!AO22, EMID!AO22, SWALES!AO22, SWEST!AO22, LPN!AO22,SPN!AO22,EPN!AO22,SPD!AO22,SPMW!AO22,SSEH!AO22,SSES!AO22) -> 0 | AP22: =CHOOSE(m_identity,ENWL!AP22, NPgN!AP22, NPgY!AP22, WMID!AP22, EMID!AP22, SWALES!AP22, SWEST!AP22, LPN!AP22,SPN!AP22,EPN!AP22,SPD!AP22,SPMW!AP22,SSEH!AP22,SSES!AP22) -> 0 | AQ22: =CHOOSE(m_identity,ENWL!AQ22, NPgN!AQ22, NPgY!AQ22, WMID!AQ22, EMID!AQ22, SWALES!AQ22, SWEST!AQ22, LPN!AQ22,SPN!AQ22,EPN!AQ22,SPD!AQ22,SPMW!AQ22,SSEH!AQ22,SSES!AQ22) -> 0
E23: Allowed Expenditure - Smart Meter Allowed Expenditure | F23: CRC3E | G23: £m 12/13 prices | H23: SAME | AJ23: =CHOOSE(m_identity,ENWL!AJ23, NPgN!AJ23, NPgY!AJ23, WMID!AJ23, EMID!AJ23, SWALES!AJ23, SWEST!AJ23, LPN!AJ23,SPN!AJ23,EPN!AJ23,SPD!AJ23,SPMW!AJ23,SSEH!AJ23,SSES!AJ23) -> 1.801875299 | AK23: =CHOOSE(m_identity,ENWL!AK23, NPgN!AK23, NPgY!AK23, WMID!AK23, EMID!AK23, SWALES!AK23, SWEST!AK23, LPN!AK23,SPN!AK23,EPN!AK23,SPD!AK23,SPMW!AK23,SSEH!AK23,SSES!AK23) -> 2.481399778 | AL23: =CHOOSE(m_identity,ENWL!AL23, NPgN!AL23, NPgY!AL23, WMID!AL23, EMID!AL23, SWALES!AL23, SWEST!AL23, LPN!AL23,SPN!AL23,EPN!AL23,SPD!AL23,SPMW!AL23,SSEH!AL23,SSES!AL23) -> 3.002343348 | AM23: =CHOOSE(m_identity,ENWL!AM23, NPgN!AM23, NPgY!AM23, WMID!AM23, EMID!AM23, SWALES!AM23, SWEST!AM23, LPN!AM23,SPN!AM23,EPN!AM23,SPD!AM23,SPMW!AM23,SSEH!AM23,SSES!AM23) -> 2.736764835 | AN23: =CHOOSE(m_identity,ENWL!AN23, NPgN!AN23, NPgY!AN23, WMID!AN23, EMID!AN23, SWALES!AN23, SWEST!AN23, LPN!AN23,SPN!AN23,EPN!AN23,SPD!AN23,SPMW!AN23,SSEH!AN23,SSES!AN23) -> 2.611049291 | AO23: =CHOOSE(m_identity,ENWL!AO23, NPgN!AO23, NPgY!AO23, WMID!AO23, EMID!AO23, SWALES!AO23, SWEST!AO23, LPN!AO23,SPN!AO23,EPN!AO23,SPD!AO23,SPMW!AO23,SSEH!AO23,SSES!AO23) -> 0 | AP23: =CHOOSE(m_identity,ENWL!AP23, NPgN!AP23, NPgY!AP23, WMID!AP23, EMID!AP23, SWALES!AP23, SWEST!AP23, LPN!AP23,SPN!AP23,EPN!AP23,SPD!AP23,SPMW!AP23,SSEH!AP23,SSES!AP23) -> 0 | AQ23: =CHOOSE(m_identity,ENWL!AQ23, NPgN!AQ23, NPgY!AQ23, WMID!AQ23, EMID!AQ23, SWALES!AQ23, SWEST!AQ23, LPN!AQ23,SPN!AQ23,EPN!AQ23,SPD!AQ23,SPMW!AQ23,SSEH!AQ23,SSES!AQ23) -> 0
E24: Allowed Expenditure - Specified Street Works | F24: CRC3F | G24: £m 12/13 prices | H24: UCSSW | AJ24: =CHOOSE(m_identity,ENWL!AJ24, NPgN!AJ24, NPgY!AJ24, WMID!AJ24, EMID!AJ24, SWALES!AJ24, SWEST!AJ24, LPN!AJ24,SPN!AJ24,EPN!AJ24,SPD!AJ24,SPMW!AJ24,SSEH!AJ24,SSES!AJ24) -> 0 | AK24: =CHOOSE(m_identity,ENWL!AK24, NPgN!AK24, NPgY!AK24, WMID!AK24, EMID!AK24, SWALES!AK24, SWEST!AK24, LPN!AK24,SPN!AK24,EPN!AK24,SPD!AK24,SPMW!AK24,SSEH!AK24,SSES!AK24) -> 0 | AL24: =CHOOSE(m_identity,ENWL!AL24, NPgN!AL24, NPgY!AL24, WMID!AL24, EMID!AL24, SWALES!AL24, SWEST!AL24, LPN!AL24,SPN!AL24,EPN!AL24,SPD!AL24,SPMW!AL24,SSEH!AL24,SSES!AL24) -> 0 | AM24: =CHOOSE(m_identity,ENWL!AM24, NPgN!AM24, NPgY!AM24, WMID!AM24, EMID!AM24, SWALES!AM24, SWEST!AM24, LPN!AM24,SPN!AM24,EPN!AM24,SPD!AM24,SPMW!AM24,SSEH!AM24,SSES!AM24) -> 0 | AN24: =CHOOSE(m_identity,ENWL!AN24, NPgN!AN24, NPgY!AN24, WMID!AN24, EMID!AN24, SWALES!AN24, SWEST!AN24, LPN!AN24,SPN!AN24,EPN!AN24,SPD!AN24,SPMW!AN24,SSEH!AN24,SSES!AN24) -> 0 | AO24: =CHOOSE(m_identity,ENWL!AO24, NPgN!AO24, NPgY!AO24, WMID!AO24, EMID!AO24, SWALES!AO24, SWEST!AO24, LPN!AO24,SPN!AO24,EPN!AO24,SPD!AO24,SPMW!AO24,SSEH!AO24,SSES!AO24) -> 0 | AP24: =CHOOSE(m_identity,ENWL!AP24, NPgN!AP24, NPgY!AP24, WMID!AP24, EMID!AP24, SWALES!AP24, SWEST!AP24, LPN!AP24,SPN!AP24,EPN!AP24,SPD!AP24,SPMW!AP24,SSEH!AP24,SSES!AP24) -> 0 | AQ24: =CHOOSE(m_identity,ENWL!AQ24, NPgN!AQ24, NPgY!AQ24, WMID!AQ24, EMID!AQ24, SWALES!AQ24, SWEST!AQ24, LPN!AQ24,SPN!AQ24,EPN!AQ24,SPD!AQ24,SPMW!AQ24,SSEH!AQ24,SSES!AQ24) -> 0
E25: Allowed Expenditure - Load Related | F25: CRC3G | G25: £m 12/13 prices | H25: LRRC | AJ25: =CHOOSE(m_identity,ENWL!AJ25, NPgN!AJ25, NPgY!AJ25, WMID!AJ25, EMID!AJ25, SWALES!AJ25, SWEST!AJ25, LPN!AJ25,SPN!AJ25,EPN!AJ25,SPD!AJ25,SPMW!AJ25,SSEH!AJ25,SSES!AJ25) -> 15.42672964 | AK25: =CHOOSE(m_identity,ENWL!AK25, NPgN!AK25, NPgY!AK25, WMID!AK25, EMID!AK25, SWALES!AK25, SWEST!AK25, LPN!AK25,SPN!AK25,EPN!AK25,SPD!AK25,SPMW!AK25,SSEH!AK25,SSES!AK25) -> 19.5395194 | AL25: =CHOOSE(m_identity,ENWL!AL25, NPgN!AL25, NPgY!AL25, WMID!AL25, EMID!AL25, SWALES!AL25, SWEST!AL25, LPN!AL25,SPN!AL25,EPN!AL25,SPD!AL25,SPMW!AL25,SSEH!AL25,SSES!AL25) -> 13.44013014 | AM25: =CHOOSE(m_identity,ENWL!AM25, NPgN!AM25, NPgY!AM25, WMID!AM25, EMID!AM25, SWALES!AM25, SWEST!AM25, LPN!AM25,SPN!AM25,EPN!AM25,SPD!AM25,SPMW!AM25,SSEH!AM25,SSES!AM25) -> 17.56782735 | AN25: =CHOOSE(m_identity,ENWL!AN25, NPgN!AN25, NPgY!AN25, WMID!AN25, EMID!AN25, SWALES!AN25, SWEST!AN25, LPN!AN25,SPN!AN25,EPN!AN25,SPD!AN25,SPMW!AN25,SSEH!AN25,SSES!AN25) -> 16.96089302 | AO25: =CHOOSE(m_identity,ENWL!AO25, NPgN!AO25, NPgY!AO25, WMID!AO25, EMID!AO25, SWALES!AO25, SWEST!AO25, LPN!AO25,SPN!AO25,EPN!AO25,SPD!AO25,SPMW!AO25,SSEH!AO25,SSES!AO25) -> 18.71534463 | AP25: =CHOOSE(m_identity,ENWL!AP25, NPgN!AP25, NPgY!AP25, WMID!AP25, EMID!AP25, SWALES!AP25, SWEST!AP25, LPN!AP25,SPN!AP25,EPN!AP25,SPD!AP25,SPMW!AP25,SSEH!AP25,SSES!AP25) -> 25.19613331 | AQ25: =CHOOSE(m_identity,ENWL!AQ25, NPgN!AQ25, NPgY!AQ25, WMID!AQ25, EMID!AQ25, SWALES!AQ25, SWEST!AQ25, LPN!AQ25,SPN!AQ25,EPN!AQ25,SPD!AQ25,SPMW!AQ25,SSEH!AQ25,SSES!AQ25) -> 22.52501884
E26: Allowed Expenditure - Rail Electrification | G26: £m 12/13 prices | H26: RE | AJ26: =CHOOSE(m_identity,ENWL!AJ26, NPgN!AJ26, NPgY!AJ26, WMID!AJ26, EMID!AJ26, SWALES!AJ26, SWEST!AJ26, LPN!AJ26,SPN!AJ26,EPN!AJ26,SPD!AJ26,SPMW!AJ26,SSEH!AJ26,SSES!AJ26) -> 0 | AK26: =CHOOSE(m_identity,ENWL!AK26, NPgN!AK26, NPgY!AK26, WMID!AK26, EMID!AK26, SWALES!AK26, SWEST!AK26, LPN!AK26,SPN!AK26,EPN!AK26,SPD!AK26,SPMW!AK26,SSEH!AK26,SSES!AK26) -> 0 | AL26: =CHOOSE(m_identity,ENWL!AL26, NPgN!AL26, NPgY!AL26, WMID!AL26, EMID!AL26, SWALES!AL26, SWEST!AL26, LPN!AL26,SPN!AL26,EPN!AL26,SPD!AL26,SPMW!AL26,SSEH!AL26,SSES!AL26) -> 0 | AM26: =CHOOSE(m_identity,ENWL!AM26, NPgN!AM26, NPgY!AM26, WMID!AM26, EMID!AM26, SWALES!AM26, SWEST!AM26, LPN!AM26,SPN!AM26,EPN!AM26,SPD!AM26,SPMW!AM26,SSEH!AM26,SSES!AM26) -> 0 | AN26: =CHOOSE(m_identity,ENWL!AN26, NPgN!AN26, NPgY!AN26, WMID!AN26, EMID!AN26, SWALES!AN26, SWEST!AN26, LPN!AN26,SPN!AN26,EPN!AN26,SPD!AN26,SPMW!AN26,SSEH!AN26,SSES!AN26) -> 0 | AO26: =CHOOSE(m_identity,ENWL!AO26, NPgN!AO26, NPgY!AO26, WMID!AO26, EMID!AO26, SWALES!AO26, SWEST!AO26, LPN!AO26,SPN!AO26,EPN!AO26,SPD!AO26,SPMW!AO26,SSEH!AO26,SSES!AO26) -> 0 | AP26: =CHOOSE(m_identity,ENWL!AP26, NPgN!AP26, NPgY!AP26, WMID!AP26, EMID!AP26, SWALES!AP26, SWEST!AP26, LPN!AP26,SPN!AP26,EPN!AP26,SPD!AP26,SPMW!AP26,SSEH!AP26,SSES!AP26) -> 0 | AQ26: =CHOOSE(m_identity,ENWL!AQ26, NPgN!AQ26, NPgY!AQ26, WMID!AQ26, EMID!AQ26, SWALES!AQ26, SWEST!AQ26, LPN!AQ26,SPN!AQ26,EPN!AQ26,SPD!AQ26,SPMW!AQ26,SSEH!AQ26,SSES!AQ26) -> 0
E27: Spare 1 | F27: XX | G27: £m 12/13 prices | H27: YY | AJ27: =CHOOSE(m_identity,ENWL!AJ27, NPgN!AJ27, NPgY!AJ27, WMID!AJ27, EMID!AJ27, SWALES!AJ27, SWEST!AJ27, LPN!AJ27,SPN!AJ27,EPN!AJ27,SPD!AJ27,SPMW!AJ27,SSEH!AJ27,SSES!AJ27) -> 0 | AK27: =CHOOSE(m_identity,ENWL!AK27, NPgN!AK27, NPgY!AK27, WMID!AK27, EMID!AK27, SWALES!AK27, SWEST!AK27, LPN!AK27,SPN!AK27,EPN!AK27,SPD!AK27,SPMW!AK27,SSEH!AK27,SSES!AK27) -> 0 | AL27: =CHOOSE(m_identity,ENWL!AL27, NPgN!AL27, NPgY!AL27, WMID!AL27, EMID!AL27, SWALES!AL27, SWEST!AL27, LPN!AL27,SPN!AL27,EPN!AL27,SPD!AL27,SPMW!AL27,SSEH!AL27,SSES!AL27) -> 0 | AM27: =CHOOSE(m_identity,ENWL!AM27, NPgN!AM27, NPgY!AM27, WMID!AM27, EMID!AM27, SWALES!AM27, SWEST!AM27, LPN!AM27,SPN!AM27,EPN!AM27,SPD!AM27,SPMW!AM27,SSEH!AM27,SSES!AM27) -> 0 | AN27: =CHOOSE(m_identity,ENWL!AN27, NPgN!AN27, NPgY!AN27, WMID!AN27, EMID!AN27, SWALES!AN27, SWEST!AN27, LPN!AN27,SPN!AN27,EPN!AN27,SPD!AN27,SPMW!AN27,SSEH!AN27,SSES!AN27) -> 0 | AO27: =CHOOSE(m_identity,ENWL!AO27, NPgN!AO27, NPgY!AO27, WMID!AO27, EMID!AO27, SWALES!AO27, SWEST!AO27, LPN!AO27,SPN!AO27,EPN!AO27,SPD!AO27,SPMW!AO27,SSEH!AO27,SSES!AO27) -> 0 | AP27: =CHOOSE(m_identity,ENWL!AP27, NPgN!AP27, NPgY!AP27, WMID!AP27, EMID!AP27, SWALES!AP27, SWEST!AP27, LPN!AP27,SPN!AP27,EPN!AP27,SPD!AP27,SPMW!AP27,SSEH!AP27,SSES!AP27) -> 0 | AQ27: =CHOOSE(m_identity,ENWL!AQ27, NPgN!AQ27, NPgY!AQ27, WMID!AQ27, EMID!AQ27, SWALES!AQ27, SWEST!AQ27, LPN!AQ27,SPN!AQ27,EPN!AQ27,SPD!AQ27,SPMW!AQ27,SSEH!AQ27,SSES!AQ27) -> 0
E28: Spare 2 | F28: XX | G28: £m 12/13 prices | H28: YY | AJ28: =CHOOSE(m_identity,ENWL!AJ28, NPgN!AJ28, NPgY!AJ28, WMID!AJ28, EMID!AJ28, SWALES!AJ28, SWEST!AJ28, LPN!AJ28,SPN!AJ28,EPN!AJ28,SPD!AJ28,SPMW!AJ28,SSEH!AJ28,SSES!AJ28) -> 0 | AK28: =CHOOSE(m_identity,ENWL!AK28, NPgN!AK28, NPgY!AK28, WMID!AK28, EMID!AK28, SWALES!AK28, SWEST!AK28, LPN!AK28,SPN!AK28,EPN!AK28,SPD!AK28,SPMW!AK28,SSEH!AK28,SSES!AK28) -> 0 | AL28: =CHOOSE(m_identity,ENWL!AL28, NPgN!AL28, NPgY!AL28, WMID!AL28, EMID!AL28, SWALES!AL28, SWEST!AL28, LPN!AL28,SPN!AL28,EPN!AL28,SPD!AL28,SPMW!AL28,SSEH!AL28,SSES!AL28) -> 0 | AM28: =CHOOSE(m_identity,ENWL!AM28, NPgN!AM28, NPgY!AM28, WMID!AM28, EMID!AM28, SWALES!AM28, SWEST!AM28, LPN!AM28,SPN!AM28,EPN!AM28,SPD!AM28,SPMW!AM28,SSEH!AM28,SSES!AM28) -> 0 | AN28: =CHOOSE(m_identity,ENWL!AN28, NPgN!AN28, NPgY!AN28, WMID!AN28, EMID!AN28, SWALES!AN28, SWEST!AN28, LPN!AN28,SPN!AN28,EPN!AN28,SPD!AN28,SPMW!AN28,SSEH!AN28,SSES!AN28) -> 0 | AO28: =CHOOSE(m_identity,ENWL!AO28, NPgN!AO28, NPgY!AO28, WMID!AO28, EMID!AO28, SWALES!AO28, SWEST!AO28, LPN!AO28,SPN!AO28,EPN!AO28,SPD!AO28,SPMW!AO28,SSEH!AO28,SSES!AO28) -> 0 | AP28: =CHOOSE(m_identity,ENWL!AP28, NPgN!AP28, NPgY!AP28, WMID!AP28, EMID!AP28, SWALES!AP28, SWEST!AP28, LPN!AP28,SPN!AP28,EPN!AP28,SPD!AP28,SPMW!AP28,SSEH!AP28,SSES!AP28) -> 0 | AQ28: =CHOOSE(m_identity,ENWL!AQ28, NPgN!AQ28, NPgY!AQ28, WMID!AQ28, EMID!AQ28, SWALES!AQ28, SWEST!AQ28, LPN!AQ28,SPN!AQ28,EPN!AQ28,SPD!AQ28,SPMW!AQ28,SSEH!AQ28,SSES!AQ28) -> 0
E29: Spare 3 | F29: XX | G29: £m 12/13 prices | H29: YY | AJ29: =CHOOSE(m_identity,ENWL!AJ29, NPgN!AJ29, NPgY!AJ29, WMID!AJ29, EMID!AJ29, SWALES!AJ29, SWEST!AJ29, LPN!AJ29,SPN!AJ29,EPN!AJ29,SPD!AJ29,SPMW!AJ29,SSEH!AJ29,SSES!AJ29) -> 0 | AK29: =CHOOSE(m_identity,ENWL!AK29, NPgN!AK29, NPgY!AK29, WMID!AK29, EMID!AK29, SWALES!AK29, SWEST!AK29, LPN!AK29,SPN!AK29,EPN!AK29,SPD!AK29,SPMW!AK29,SSEH!AK29,SSES!AK29) -> 0 | AL29: =CHOOSE(m_identity,ENWL!AL29, NPgN!AL29, NPgY!AL29, WMID!AL29, EMID!AL29, SWALES!AL29, SWEST!AL29, LPN!AL29,SPN!AL29,EPN!AL29,SPD!AL29,SPMW!AL29,SSEH!AL29,SSES!AL29) -> 0 | AM29: =CHOOSE(m_identity,ENWL!AM29, NPgN!AM29, NPgY!AM29, WMID!AM29, EMID!AM29, SWALES!AM29, SWEST!AM29, LPN!AM29,SPN!AM29,EPN!AM29,SPD!AM29,SPMW!AM29,SSEH!AM29,SSES!AM29) -> 0 | AN29: =CHOOSE(m_identity,ENWL!AN29, NPgN!AN29, NPgY!AN29, WMID!AN29, EMID!AN29, SWALES!AN29, SWEST!AN29, LPN!AN29,SPN!AN29,EPN!AN29,SPD!AN29,SPMW!AN29,SSEH!AN29,SSES!AN29) -> 0 | AO29: =CHOOSE(m_identity,ENWL!AO29, NPgN!AO29, NPgY!AO29, WMID!AO29, EMID!AO29, SWALES!AO29, SWEST!AO29, LPN!AO29,SPN!AO29,EPN!AO29,SPD!AO29,SPMW!AO29,SSEH!AO29,SSES!AO29) -> 0 | AP29: =CHOOSE(m_identity,ENWL!AP29, NPgN!AP29, NPgY!AP29, WMID!AP29, EMID!AP29, SWALES!AP29, SWEST!AP29, LPN!AP29,SPN!AP29,EPN!AP29,SPD!AP29,SPMW!AP29,SSEH!AP29,SSES!AP29) -> 0 | AQ29: =CHOOSE(m_identity,ENWL!AQ29, NPgN!AQ29, NPgY!AQ29, WMID!AQ29, EMID!AQ29, SWALES!AQ29, SWEST!AQ29, LPN!AQ29,SPN!AQ29,EPN!AQ29,SPD!AQ29,SPMW!AQ29,SSEH!AQ29,SSES!AQ29) -> 0
E30: Allowed Expenditure - Innovation Roll-out | F30: CRC3D | G30: £m 12/13 prices | H30: IRM | AJ30: =CHOOSE(m_identity,ENWL!AJ30, NPgN!AJ30, NPgY!AJ30, WMID!AJ30, EMID!AJ30, SWALES!AJ30, SWEST!AJ30, LPN!AJ30,SPN!AJ30,EPN!AJ30,SPD!AJ30,SPMW!AJ30,SSEH!AJ30,SSES!AJ30) -> 0 | AK30: =CHOOSE(m_identity,ENWL!AK30, NPgN!AK30, NPgY!AK30, WMID!AK30, EMID!AK30, SWALES!AK30, SWEST!AK30, LPN!AK30,SPN!AK30,EPN!AK30,SPD!AK30,SPMW!AK30,SSEH!AK30,SSES!AK30) -> 0 | AL30: =CHOOSE(m_identity,ENWL!AL30, NPgN!AL30, NPgY!AL30, WMID!AL30, EMID!AL30, SWALES!AL30, SWEST!AL30, LPN!AL30,SPN!AL30,EPN!AL30,SPD!AL30,SPMW!AL30,SSEH!AL30,SSES!AL30) -> 0 | AM30: =CHOOSE(m_identity,ENWL!AM30, NPgN!AM30, NPgY!AM30, WMID!AM30, EMID!AM30, SWALES!AM30, SWEST!AM30, LPN!AM30,SPN!AM30,EPN!AM30,SPD!AM30,SPMW!AM30,SSEH!AM30,SSES!AM30) -> 0 | AN30: =CHOOSE(m_identity,ENWL!AN30, NPgN!AN30, NPgY!AN30, WMID!AN30, EMID!AN30, SWALES!AN30, SWEST!AN30, LPN!AN30,SPN!AN30,EPN!AN30,SPD!AN30,SPMW!AN30,SSEH!AN30,SSES!AN30) -> 0 | AO30: =CHOOSE(m_identity,ENWL!AO30, NPgN!AO30, NPgY!AO30, WMID!AO30, EMID!AO30, SWALES!AO30, SWEST!AO30, LPN!AO30,SPN!AO30,EPN!AO30,SPD!AO30,SPMW!AO30,SSEH!AO30,SSES!AO30) -> 0 | AP30: =CHOOSE(m_identity,ENWL!AP30, NPgN!AP30, NPgY!AP30, WMID!AP30, EMID!AP30, SWALES!AP30, SWEST!AP30, LPN!AP30,SPN!AP30,EPN!AP30,SPD!AP30,SPMW!AP30,SSEH!AP30,SSES!AP30) -> 0 | AQ30: =CHOOSE(m_identity,ENWL!AQ30, NPgN!AQ30, NPgY!AQ30, WMID!AQ30, EMID!AQ30, SWALES!AQ30, SWEST!AQ30, LPN!AQ30,SPN!AQ30,EPN!AQ30,SPD!AQ30,SPMW!AQ30,SSEH!AQ30,SSES!AQ30) -> 0
E31: Pension Scheme Established Deficit revenue allowances | F31: CRC3C | G31: £m 12/13 prices | H31: EDE | AJ31: =CHOOSE(m_identity,ENWL!AJ31, NPgN!AJ31, NPgY!AJ31, WMID!AJ31, EMID!AJ31, SWALES!AJ31, SWEST!AJ31, LPN!AJ31,SPN!AJ31,EPN!AJ31,SPD!AJ31,SPMW!AJ31,SSEH!AJ31,SSES!AJ31) -> 11.08181712 | AK31: =CHOOSE(m_identity,ENWL!AK31, NPgN!AK31, NPgY!AK31, WMID!AK31, EMID!AK31, SWALES!AK31, SWEST!AK31, LPN!AK31,SPN!AK31,EPN!AK31,SPD!AK31,SPMW!AK31,SSEH!AK31,SSES!AK31) -> 11.08181712 | AL31: =CHOOSE(m_identity,ENWL!AL31, NPgN!AL31, NPgY!AL31, WMID!AL31, EMID!AL31, SWALES!AL31, SWEST!AL31, LPN!AL31,SPN!AL31,EPN!AL31,SPD!AL31,SPMW!AL31,SSEH!AL31,SSES!AL31) -> 11.08181712 | AM31: =CHOOSE(m_identity,ENWL!AM31, NPgN!AM31, NPgY!AM31, WMID!AM31, EMID!AM31, SWALES!AM31, SWEST!AM31, LPN!AM31,SPN!AM31,EPN!AM31,SPD!AM31,SPMW!AM31,SSEH!AM31,SSES!AM31) -> 11.08181712 | AN31: =CHOOSE(m_identity,ENWL!AN31, NPgN!AN31, NPgY!AN31, WMID!AN31, EMID!AN31, SWALES!AN31, SWEST!AN31, LPN!AN31,SPN!AN31,EPN!AN31,SPD!AN31,SPMW!AN31,SSEH!AN31,SSES!AN31) -> 11.08181712 | AO31: =CHOOSE(m_identity,ENWL!AO31, NPgN!AO31, NPgY!AO31, WMID!AO31, EMID!AO31, SWALES!AO31, SWEST!AO31, LPN!AO31,SPN!AO31,EPN!AO31,SPD!AO31,SPMW!AO31,SSEH!AO31,SSES!AO31) -> 11.08181712 | AP31: =CHOOSE(m_identity,ENWL!AP31, NPgN!AP31, NPgY!AP31, WMID!AP31, EMID!AP31, SWALES!AP31, SWEST!AP31, LPN!AP31,SPN!AP31,EPN!AP31,SPD!AP31,SPMW!AP31,SSEH!AP31,SSES!AP31) -> 11.08181712 | AQ31: =CHOOSE(m_identity,ENWL!AQ31, NPgN!AQ31, NPgY!AQ31, WMID!AQ31, EMID!AQ31, SWALES!AQ31, SWEST!AQ31, LPN!AQ31,SPN!AQ31,EPN!AQ31,SPD!AQ31,SPMW!AQ31,SSEH!AQ31,SSES!AQ31) -> 11.08181712
E32: Other legacy adjustments' price control allowed revenue adjustment | F32: CRC3A | G32: £m 12/13 prices | H32: OLREV | AJ32: =CHOOSE(m_identity,ENWL!AJ32, NPgN!AJ32, NPgY!AJ32, WMID!AJ32, EMID!AJ32, SWALES!AJ32, SWEST!AJ32, LPN!AJ32,SPN!AJ32,EPN!AJ32,SPD!AJ32,SPMW!AJ32,SSEH!AJ32,SSES!AJ32) -> 0
E33: Other legacy adjustments' price control RAV additions adjustment | F33: CRC3A | G33: £m 12/13 prices | H33: OLRAV | AH33: =CHOOSE(m_identity,ENWL!AH33, NPgN!AH33, NPgY!AH33, WMID!AH33, EMID!AH33, SWALES!AH33, SWEST!AH33, LPN!AH33,SPN!AH33,EPN!AH33,SPD!AH33,SPMW!AH33,SSEH!AH33,SSES!AH33) -> 0 | AI33: =CHOOSE(m_identity,ENWL!AI33, NPgN!AI33, NPgY!AI33, WMID!AI33, EMID!AI33, SWALES!AI33, SWEST!AI33, LPN!AI33,SPN!AI33,EPN!AI33,SPD!AI33,SPMW!AI33,SSEH!AI33,SSES!AI33) -> 0
E34: RAV Rolling Incentive legacy adjustments' price control allowed revenue adjustment | F34: CRC3A | G34: £m 12/13 prices | H34: RIREV | AJ34: =CHOOSE(m_identity,ENWL!AJ34, NPgN!AJ34, NPgY!AJ34, WMID!AJ34, EMID!AJ34, SWALES!AJ34, SWEST!AJ34, LPN!AJ34,SPN!AJ34,EPN!AJ34,SPD!AJ34,SPMW!AJ34,SSEH!AJ34,SSES!AJ34) -> 0
E35: RAV Rolling Incentive legacy adjustments' price control RAV additions adjustment | F35: CRC3A | G35: £m 12/13 prices | H35: RIRAV | AH35: =CHOOSE(m_identity,ENWL!AH35, NPgN!AH35, NPgY!AH35, WMID!AH35, EMID!AH35, SWALES!AH35, SWEST!AH35, LPN!AH35,SPN!AH35,EPN!AH35,SPD!AH35,SPMW!AH35,SSEH!AH35,SSES!AH35) -> 0 | AI35: =CHOOSE(m_identity,ENWL!AI35, NPgN!AI35, NPgY!AI35, WMID!AI35, EMID!AI35, SWALES!AI35, SWEST!AI35, LPN!AI35,SPN!AI35,EPN!AI35,SPD!AI35,SPMW!AI35,SSEH!AI35,SSES!AI35) -> 0
E36: Tax liability revenue allowance adjustments - gearing / debt interest costs | F36: CRC3C | G36: £m nominal | H36: TGIE | AJ36: =CHOOSE(m_identity,ENWL!AJ36, NPgN!AJ36, NPgY!AJ36, WMID!AJ36, EMID!AJ36, SWALES!AJ36, SWEST!AJ36, LPN!AJ36,SPN!AJ36,EPN!AJ36,SPD!AJ36,SPMW!AJ36,SSEH!AJ36,SSES!AJ36) -> 0 | AK36: =CHOOSE(m_identity,ENWL!AK36, NPgN!AK36, NPgY!AK36, WMID!AK36, EMID!AK36, SWALES!AK36, SWEST!AK36, LPN!AK36,SPN!AK36,EPN!AK36,SPD!AK36,SPMW!AK36,SSEH!AK36,SSES!AK36) -> 0 | AL36: =CHOOSE(m_identity,ENWL!AL36, NPgN!AL36, NPgY!AL36, WMID!AL36, EMID!AL36, SWALES!AL36, SWEST!AL36, LPN!AL36,SPN!AL36,EPN!AL36,SPD!AL36,SPMW!AL36,SSEH!AL36,SSES!AL36) -> 0 | AM36: =CHOOSE(m_identity,ENWL!AM36, NPgN!AM36, NPgY!AM36, WMID!AM36, EMID!AM36, SWALES!AM36, SWEST!AM36, LPN!AM36,SPN!AM36,EPN!AM36,SPD!AM36,SPMW!AM36,SSEH!AM36,SSES!AM36) -> 0 | AN36: =CHOOSE(m_identity,ENWL!AN36, NPgN!AN36, NPgY!AN36, WMID!AN36, EMID!AN36, SWALES!AN36, SWEST!AN36, LPN!AN36,SPN!AN36,EPN!AN36,SPD!AN36,SPMW!AN36,SSEH!AN36,SSES!AN36) -> 0 | AO36: =CHOOSE(m_identity,ENWL!AO36, NPgN!AO36, NPgY!AO36, WMID!AO36, EMID!AO36, SWALES!AO36, SWEST!AO36, LPN!AO36,SPN!AO36,EPN!AO36,SPD!AO36,SPMW!AO36,SSEH!AO36,SSES!AO36) -> 0 | AP36: =CHOOSE(m_identity,ENWL!AP36, NPgN!AP36, NPgY!AP36, WMID!AP36, EMID!AP36, SWALES!AP36, SWEST!AP36, LPN!AP36,SPN!AP36,EPN!AP36,SPD!AP36,SPMW!AP36,SSEH!AP36,SSES!AP36) -> 0 | AQ36: =CHOOSE(m_identity,ENWL!AQ36, NPgN!AQ36, NPgY!AQ36, WMID!AQ36, EMID!AQ36, SWALES!AQ36, SWEST!AQ36, LPN!AQ36,SPN!AQ36,EPN!AQ36,SPD!AQ36,SPMW!AQ36,SSEH!AQ36,SSES!AQ36) -> 0
E37: Tax liability revenue allowance adjustments in respect of tax trigger events | F37: CRC3C | G37: £m 12/13 prices | H37: TTE | AJ37: =CHOOSE(m_identity,ENWL!AJ37, NPgN!AJ37, NPgY!AJ37, WMID!AJ37, EMID!AJ37, SWALES!AJ37, SWEST!AJ37, LPN!AJ37,SPN!AJ37,EPN!AJ37,SPD!AJ37,SPMW!AJ37,SSEH!AJ37,SSES!AJ37) -> 0 | AK37: =CHOOSE(m_identity,ENWL!AK37, NPgN!AK37, NPgY!AK37, WMID!AK37, EMID!AK37, SWALES!AK37, SWEST!AK37, LPN!AK37,SPN!AK37,EPN!AK37,SPD!AK37,SPMW!AK37,SSEH!AK37,SSES!AK37) -> 0 | AL37: =CHOOSE(m_identity,ENWL!AL37, NPgN!AL37, NPgY!AL37, WMID!AL37, EMID!AL37, SWALES!AL37, SWEST!AL37, LPN!AL37,SPN!AL37,EPN!AL37,SPD!AL37,SPMW!AL37,SSEH!AL37,SSES!AL37) -> 0 | AM37: =CHOOSE(m_identity,ENWL!AM37, NPgN!AM37, NPgY!AM37, WMID!AM37, EMID!AM37, SWALES!AM37, SWEST!AM37, LPN!AM37,SPN!AM37,EPN!AM37,SPD!AM37,SPMW!AM37,SSEH!AM37,SSES!AM37) -> 0 | AN37: =CHOOSE(m_identity,ENWL!AN37, NPgN!AN37, NPgY!AN37, WMID!AN37, EMID!AN37, SWALES!AN37, SWEST!AN37, LPN!AN37,SPN!AN37,EPN!AN37,SPD!AN37,SPMW!AN37,SSEH!AN37,SSES!AN37) -> 0 | AO37: =CHOOSE(m_identity,ENWL!AO37, NPgN!AO37, NPgY!AO37, WMID!AO37, EMID!AO37, SWALES!AO37, SWEST!AO37, LPN!AO37,SPN!AO37,EPN!AO37,SPD!AO37,SPMW!AO37,SSEH!AO37,SSES!AO37) -> 0 | AP37: =CHOOSE(m_identity,ENWL!AP37, NPgN!AP37, NPgY!AP37, WMID!AP37, EMID!AP37, SWALES!AP37, SWEST!AP37, LPN!AP37,SPN!AP37,EPN!AP37,SPD!AP37,SPMW!AP37,SSEH!AP37,SSES!AP37) -> 0 | AQ37: =CHOOSE(m_identity,ENWL!AQ37, NPgN!AQ37, NPgY!AQ37, WMID!AQ37, EMID!AQ37, SWALES!AQ37, SWEST!AQ37, LPN!AQ37,SPN!AQ37,EPN!AQ37,SPD!AQ37,SPMW!AQ37,SSEH!AQ37,SSES!AQ37) -> 0
E38: Legacy general tax pool adjustment | F38: CRC3A | G38: Nominal | H38: LTPG | AH38: =CHOOSE(m_identity,ENWL!AH38, NPgN!AH38, NPgY!AH38, WMID!AH38, EMID!AH38, SWALES!AH38, SWEST!AH38, LPN!AH38,SPN!AH38,EPN!AH38,SPD!AH38,SPMW!AH38,SSEH!AH38,SSES!AH38) -> 0 | AI38: =CHOOSE(m_identity,ENWL!AI38, NPgN!AI38, NPgY!AI38, WMID!AI38, EMID!AI38, SWALES!AI38, SWEST!AI38, LPN!AI38,SPN!AI38,EPN!AI38,SPD!AI38,SPMW!AI38,SSEH!AI38,SSES!AI38) -> 0
E39: Legacy special tax pool adjustment | F39: CRC3A | G39: Nominal | H39: LTPS | AH39: =CHOOSE(m_identity,ENWL!AH39, NPgN!AH39, NPgY!AH39, WMID!AH39, EMID!AH39, SWALES!AH39, SWEST!AH39, LPN!AH39,SPN!AH39,EPN!AH39,SPD!AH39,SPMW!AH39,SSEH!AH39,SSES!AH39) -> 0 | AI39: =CHOOSE(m_identity,ENWL!AI39, NPgN!AI39, NPgY!AI39, WMID!AI39, EMID!AI39, SWALES!AI39, SWEST!AI39, LPN!AI39,SPN!AI39,EPN!AI39,SPD!AI39,SPMW!AI39,SSEH!AI39,SSES!AI39) -> 0
E40: Deferred Revenue Expenditure pre-RIIO movement adjustment | F40: CRC3A | G40: Nominal | H40: LTPD | AH40: =CHOOSE(m_identity,ENWL!AH40, NPgN!AH40, NPgY!AH40, WMID!AH40, EMID!AH40, SWALES!AH40, SWEST!AH40, LPN!AH40,SPN!AH40,EPN!AH40,SPD!AH40,SPMW!AH40,SSEH!AH40,SSES!AH40) -> 0 | AI40: =CHOOSE(m_identity,ENWL!AI40, NPgN!AI40, NPgY!AI40, WMID!AI40, EMID!AI40, SWALES!AI40, SWEST!AI40, LPN!AI40,SPN!AI40,EPN!AI40,SPD!AI40,SPMW!AI40,SSEH!AI40,SSES!AI40) -> 0
E41: DRE: Gross capex adjustment | F41: CRC3A | G41: Nominal | H41: LTPC | AH41: =CHOOSE(m_identity,ENWL!AH41, NPgN!AH41, NPgY!AH41, WMID!AH41, EMID!AH41, SWALES!AH41, SWEST!AH41, LPN!AH41,SPN!AH41,EPN!AH41,SPD!AH41,SPMW!AH41,SSEH!AH41,SSES!AH41) -> 0 | AI41: =CHOOSE(m_identity,ENWL!AI41, NPgN!AI41, NPgY!AI41, WMID!AI41, EMID!AI41, SWALES!AI41, SWEST!AI41, LPN!AI41,SPN!AI41,EPN!AI41,SPD!AI41,SPMW!AI41,SSEH!AI41,SSES!AI41) -> 0
B43: Policy
C45: Cost of capital
E47: Cost of debt | G47: annual real % | AJ47: =AJ11 -> 0.0272 | AK47: 0.0272 | AL47: 0.0272 | AM47: 0.0272 | AN47: 0.0272 | AO47: 0.0272 | AP47: 0.0272 | AQ47: 0.0272
E48: Cost of equity | G48: annual real % | AJ48: =CHOOSE(m_identity,ENWL!AJ48, NPgN!AJ48, NPgY!AJ48, WMID!AJ48, EMID!AJ48, SWALES!AJ48, SWEST!AJ48, LPN!AJ48,SPN!AJ48,EPN!AJ48,SPD!AJ48,SPMW!AJ48,SSEH!AJ48,SSES!AJ48) -> 0.063 | AK48: =CHOOSE(m_identity,ENWL!AK48, NPgN!AK48, NPgY!AK48, WMID!AK48, EMID!AK48, SWALES!AK48, SWEST!AK48, LPN!AK48,SPN!AK48,EPN!AK48,SPD!AK48,SPMW!AK48,SSEH!AK48,SSES!AK48) -> 0.063 | AL48: =CHOOSE(m_identity,ENWL!AL48, NPgN!AL48, NPgY!AL48, WMID!AL48, EMID!AL48, SWALES!AL48, SWEST!AL48, LPN!AL48,SPN!AL48,EPN!AL48,SPD!AL48,SPMW!AL48,SSEH!AL48,SSES!AL48) -> 0.063 | AM48: =CHOOSE(m_identity,ENWL!AM48, NPgN!AM48, NPgY!AM48, WMID!AM48, EMID!AM48, SWALES!AM48, SWEST!AM48, LPN!AM48,SPN!AM48,EPN!AM48,SPD!AM48,SPMW!AM48,SSEH!AM48,SSES!AM48) -> 0.063 | AN48: =CHOOSE(m_identity,ENWL!AN48, NPgN!AN48, NPgY!AN48, WMID!AN48, EMID!AN48, SWALES!AN48, SWEST!AN48, LPN!AN48,SPN!AN48,EPN!AN48,SPD!AN48,SPMW!AN48,SSEH!AN48,SSES!AN48) -> 0.063 | AO48: =CHOOSE(m_identity,ENWL!AO48, NPgN!AO48, NPgY!AO48, WMID!AO48, EMID!AO48, SWALES!AO48, SWEST!AO48, LPN!AO48,SPN!AO48,EPN!AO48,SPD!AO48,SPMW!AO48,SSEH!AO48,SSES!AO48) -> 0.063 | AP48: =CHOOSE(m_identity,ENWL!AP48, NPgN!AP48, NPgY!AP48, WMID!AP48, EMID!AP48, SWALES!AP48, SWEST!AP48, LPN!AP48,SPN!AP48,EPN!AP48,SPD!AP48,SPMW!AP48,SSEH!AP48,SSES!AP48) -> 0.063 | AQ48: =CHOOSE(m_identity,ENWL!AQ48, NPgN!AQ48, NPgY!AQ48, WMID!AQ48, EMID!AQ48, SWALES!AQ48, SWEST!AQ48, LPN!AQ48,SPN!AQ48,EPN!AQ48,SPD!AQ48,SPMW!AQ48,SSEH!AQ48,SSES!AQ48) -> 0.063
E49: Notional gearing | G49: % | J49: > | AI49: =CHOOSE(m_identity,ENWL!AI49, NPgN!AI49, NPgY!AI49, WMID!AI49, EMID!AI49, SWALES!AI49, SWEST!AI49, LPN!AI49,SPN!AI49,EPN!AI49,SPD!AI49,SPMW!AI49,SSEH!AI49,SSES!AI49) -> 0.65 | AJ49: =CHOOSE(m_identity,ENWL!AJ49, NPgN!AJ49, NPgY!AJ49, WMID!AJ49, EMID!AJ49, SWALES!AJ49, SWEST!AJ49, LPN!AJ49,SPN!AJ49,EPN!AJ49,SPD!AJ49,SPMW!AJ49,SSEH!AJ49,SSES!AJ49) -> 0.65 | AK49: =CHOOSE(m_identity,ENWL!AK49, NPgN!AK49, NPgY!AK49, WMID!AK49, EMID!AK49, SWALES!AK49, SWEST!AK49, LPN!AK49,SPN!AK49,EPN!AK49,SPD!AK49,SPMW!AK49,SSEH!AK49,SSES!AK49) -> 0.65 | AL49: =CHOOSE(m_identity,ENWL!AL49, NPgN!AL49, NPgY!AL49, WMID!AL49, EMID!AL49, SWALES!AL49, SWEST!AL49, LPN!AL49,SPN!AL49,EPN!AL49,SPD!AL49,SPMW!AL49,SSEH!AL49,SSES!AL49) -> 0.65 | AM49: =CHOOSE(m_identity,ENWL!AM49, NPgN!AM49, NPgY!AM49, WMID!AM49, EMID!AM49, SWALES!AM49, SWEST!AM49, LPN!AM49,SPN!AM49,EPN!AM49,SPD!AM49,SPMW!AM49,SSEH!AM49,SSES!AM49) -> 0.65 | AN49: =CHOOSE(m_identity,ENWL!AN49, NPgN!AN49, NPgY!AN49, WMID!AN49, EMID!AN49, SWALES!AN49, SWEST!AN49, LPN!AN49,SPN!AN49,EPN!AN49,SPD!AN49,SPMW!AN49,SSEH!AN49,SSES!AN49) -> 0.65 | AO49: =CHOOSE(m_identity,ENWL!AO49, NPgN!AO49, NPgY!AO49, WMID!AO49, EMID!AO49, SWALES!AO49, SWEST!AO49, LPN!AO49,SPN!AO49,EPN!AO49,SPD!AO49,SPMW!AO49,SSEH!AO49,SSES!AO49) -> 0.65 | AP49: =CHOOSE(m_identity,ENWL!AP49, NPgN!AP49, NPgY!AP49, WMID!AP49, EMID!AP49, SWALES!AP49, SWEST!AP49, LPN!AP49,SPN!AP49,EPN!AP49,SPD!AP49,SPMW!AP49,SSEH!AP49,SSES!AP49) -> 0.65 | AQ49: =CHOOSE(m_identity,ENWL!AQ49, NPgN!AQ49, NPgY!AQ49, WMID!AQ49, EMID!AQ49, SWALES!AQ49, SWEST!AQ49, LPN!AQ49,SPN!AQ49,EPN!AQ49,SPD!AQ49,SPMW!AQ49,SSEH!AQ49,SSES!AQ49) -> 0.65
E51: Vanilla WACC | G51: annual real % | AJ51: =(AJ47 * AJ49) + (AJ48 * (1 - AJ49)) -> 0.03973 | AK51: 0.03973 | AL51: 0.03973 | AM51: 0.03973 | AN51: 0.03973 | AO51: 0.03973 | AP51: 0.03973 | AQ51: 0.03973
C55: Indexation
E57: Forecast RPI (simple average year to March) | G57: index value | J57: > | AG57: =CHOOSE(m_identity,ENWL!AG57, NPgN!AG57, NPgY!AG57, WMID!AG57, EMID!AG57, SWALES!AG57, SWEST!AG57, LPN!AG57,SPN!AG57,EPN!AG57,SPD!AG57,SPMW!AG57,SSEH!AG57,SSES!AG57) -> 244.675 | AH57: =CHOOSE(m_identity,ENWL!AH57, NPgN!AH57, NPgY!AH57, WMID!AH57, EMID!AH57, SWALES!AH57, SWEST!AH57, LPN!AH57,SPN!AH57,EPN!AH57,SPD!AH57,SPMW!AH57,SSEH!AH57,SSES!AH57) -> 252.26 | AI57: =CHOOSE(m_identity,ENWL!AI57, NPgN!AI57, NPgY!AI57, WMID!AI57, EMID!AI57, SWALES!AI57, SWEST!AI57, LPN!AI57,SPN!AI57,EPN!AI57,SPD!AI57,SPMW!AI57,SSEH!AI57,SSES!AI57) -> 260.08 | AJ57: =CHOOSE(m_identity,ENWL!AJ57, NPgN!AJ57, NPgY!AJ57, WMID!AJ57, EMID!AJ57, SWALES!AJ57, SWEST!AJ57, LPN!AJ57,SPN!AJ57,EPN!AJ57,SPD!AJ57,SPMW!AJ57,SSEH!AJ57,SSES!AJ57) -> 268.142 | AK57: =CHOOSE(m_identity,ENWL!AK57, NPgN!AK57, NPgY!AK57, WMID!AK57, EMID!AK57, SWALES!AK57, SWEST!AK57, LPN!AK57,SPN!AK57,EPN!AK57,SPD!AK57,SPMW!AK57,SSEH!AK57,SSES!AK57) -> 276.454 | AL57: =CHOOSE(m_identity,ENWL!AL57, NPgN!AL57, NPgY!AL57, WMID!AL57, EMID!AL57, SWALES!AL57, SWEST!AL57, LPN!AL57,SPN!AL57,EPN!AL57,SPD!AL57,SPMW!AL57,SSEH!AL57,SSES!AL57) -> 285.024 | AM57: =CHOOSE(m_identity,ENWL!AM57, NPgN!AM57, NPgY!AM57, WMID!AM57, EMID!AM57, SWALES!AM57, SWEST!AM57, LPN!AM57,SPN!AM57,EPN!AM57,SPD!AM57,SPMW!AM57,SSEH!AM57,SSES!AM57) -> 293.86 | AN57: =CHOOSE(m_identity,ENWL!AN57, NPgN!AN57, NPgY!AN57, WMID!AN57, EMID!AN57, SWALES!AN57, SWEST!AN57, LPN!AN57,SPN!AN57,EPN!AN57,SPD!AN57,SPMW!AN57,SSEH!AN57,SSES!AN57) -> 302.97 | AO57: =CHOOSE(m_identity,ENWL!AO57, NPgN!AO57, NPgY!AO57, WMID!AO57, EMID!AO57, SWALES!AO57, SWEST!AO57, LPN!AO57,SPN!AO57,EPN!AO57,SPD!AO57,SPMW!AO57,SSEH!AO57,SSES!AO57) -> 312.362 | AP57: =CHOOSE(m_identity,ENWL!AP57, NPgN!AP57, NPgY!AP57, WMID!AP57, EMID!AP57, SWALES!AP57, SWEST!AP57, LPN!AP57,SPN!AP57,EPN!AP57,SPD!AP57,SPMW!AP57,SSEH!AP57,SSES!AP57) -> 322.045 | AQ57: =CHOOSE(m_identity,ENWL!AQ57, NPgN!AQ57, NPgY!AQ57, WMID!AQ57, EMID!AQ57, SWALES!AQ57, SWEST!AQ57, LPN!AQ57,SPN!AQ57,EPN!AQ57,SPD!AQ57,SPMW!AQ57,SSEH!AQ57,SSES!AQ57) -> 332.028
E58: RPI assumption for interest costs | G58: index value | J58: > | AG58: =CHOOSE(m_identity,ENWL!AG58, NPgN!AG58, NPgY!AG58, WMID!AG58, EMID!AG58, SWALES!AG58, SWEST!AG58, LPN!AG58,SPN!AG58,EPN!AG58,SPD!AG58,SPMW!AG58,SSEH!AG58,SSES!AG58) -> 244.675 | AH58: =CHOOSE(m_identity,ENWL!AH58, NPgN!AH58, NPgY!AH58, WMID!AH58, EMID!AH58, SWALES!AH58, SWEST!AH58, LPN!AH58,SPN!AH58,EPN!AH58,SPD!AH58,SPMW!AH58,SSEH!AH58,SSES!AH58) -> 252.26 | AI58: =CHOOSE(m_identity,ENWL!AI58, NPgN!AI58, NPgY!AI58, WMID!AI58, EMID!AI58, SWALES!AI58, SWEST!AI58, LPN!AI58,SPN!AI58,EPN!AI58,SPD!AI58,SPMW!AI58,SSEH!AI58,SSES!AI58) -> 260.08 | AJ58: =CHOOSE(m_identity,ENWL!AJ58, NPgN!AJ58, NPgY!AJ58, WMID!AJ58, EMID!AJ58, SWALES!AJ58, SWEST!AJ58, LPN!AJ58,SPN!AJ58,EPN!AJ58,SPD!AJ58,SPMW!AJ58,SSEH!AJ58,SSES!AJ58) -> 268.142 | AK58: =CHOOSE(m_identity,ENWL!AK58, NPgN!AK58, NPgY!AK58, WMID!AK58, EMID!AK58, SWALES!AK58, SWEST!AK58, LPN!AK58,SPN!AK58,EPN!AK58,SPD!AK58,SPMW!AK58,SSEH!AK58,SSES!AK58) -> 276.454 | AL58: =CHOOSE(m_identity,ENWL!AL58, NPgN!AL58, NPgY!AL58, WMID!AL58, EMID!AL58, SWALES!AL58, SWEST!AL58, LPN!AL58,SPN!AL58,EPN!AL58,SPD!AL58,SPMW!AL58,SSEH!AL58,SSES!AL58) -> 285.024 | AM58: =CHOOSE(m_identity,ENWL!AM58, NPgN!AM58, NPgY!AM58, WMID!AM58, EMID!AM58, SWALES!AM58, SWEST!AM58, LPN!AM58,SPN!AM58,EPN!AM58,SPD!AM58,SPMW!AM58,SSEH!AM58,SSES!AM58) -> 293.86 | AN58: =CHOOSE(m_identity,ENWL!AN58, NPgN!AN58, NPgY!AN58, WMID!AN58, EMID!AN58, SWALES!AN58, SWEST!AN58, LPN!AN58,SPN!AN58,EPN!AN58,SPD!AN58,SPMW!AN58,SSEH!AN58,SSES!AN58) -> 302.97 | AO58: =CHOOSE(m_identity,ENWL!AO58, NPgN!AO58, NPgY!AO58, WMID!AO58, EMID!AO58, SWALES!AO58, SWEST!AO58, LPN!AO58,SPN!AO58,EPN!AO58,SPD!AO58,SPMW!AO58,SSEH!AO58,SSES!AO58) -> 312.362 | AP58: =CHOOSE(m_identity,ENWL!AP58, NPgN!AP58, NPgY!AP58, WMID!AP58, EMID!AP58, SWALES!AP58, SWEST!AP58, LPN!AP58,SPN!AP58,EPN!AP58,SPD!AP58,SPMW!AP58,SSEH!AP58,SSES!AP58) -> 322.045 | AQ58: =CHOOSE(m_identity,ENWL!AQ58, NPgN!AQ58, NPgY!AQ58, WMID!AQ58, EMID!AQ58, SWALES!AQ58, SWEST!AQ58, LPN!AQ58,SPN!AQ58,EPN!AQ58,SPD!AQ58,SPMW!AQ58,SSEH!AQ58,SSES!AQ58) -> 332.028
C60: TIM and capitalisation
E62: Years from t until normal reporting of actual costs | G62: years | I62: =CHOOSE(m_identity,ENWL!I62, NPgN!I62, NPgY!I62, WMID!I62, EMID!I62, SWALES!I62, SWEST!I62, LPN!I62,SPN!I62,EPN!I62,SPD!I62,SPMW!I62,SSEH!I62,SSES!I62) -> 2
E64: Capitalised share of totex | G64: % | AJ64: =CHOOSE(m_identity,ENWL!AJ64, NPgN!AJ64, NPgY!AJ64, WMID!AJ64, EMID!AJ64, SWALES!AJ64, SWEST!AJ64, LPN!AJ64,SPN!AJ64,EPN!AJ64,SPD!AJ64,SPMW!AJ64,SSEH!AJ64,SSES!AJ64) -> 0.72 | AK64: =CHOOSE(m_identity,ENWL!AK64, NPgN!AK64, NPgY!AK64, WMID!AK64, EMID!AK64, SWALES!AK64, SWEST!AK64, LPN!AK64,SPN!AK64,EPN!AK64,SPD!AK64,SPMW!AK64,SSEH!AK64,SSES!AK64) -> 0.72 | AL64: =CHOOSE(m_identity,ENWL!AL64, NPgN!AL64, NPgY!AL64, WMID!AL64, EMID!AL64, SWALES!AL64, SWEST!AL64, LPN!AL64,SPN!AL64,EPN!AL64,SPD!AL64,SPMW!AL64,SSEH!AL64,SSES!AL64) -> 0.72 | AM64: =CHOOSE(m_identity,ENWL!AM64, NPgN!AM64, NPgY!AM64, WMID!AM64, EMID!AM64, SWALES!AM64, SWEST!AM64, LPN!AM64,SPN!AM64,EPN!AM64,SPD!AM64,SPMW!AM64,SSEH!AM64,SSES!AM64) -> 0.72 | AN64: =CHOOSE(m_identity,ENWL!AN64, NPgN!AN64, NPgY!AN64, WMID!AN64, EMID!AN64, SWALES!AN64, SWEST!AN64, LPN!AN64,SPN!AN64,EPN!AN64,SPD!AN64,SPMW!AN64,SSEH!AN64,SSES!AN64) -> 0.72 | AO64: =CHOOSE(m_identity,ENWL!AO64, NPgN!AO64, NPgY!AO64, WMID!AO64, EMID!AO64, SWALES!AO64, SWEST!AO64, LPN!AO64,SPN!AO64,EPN!AO64,SPD!AO64,SPMW!AO64,SSEH!AO64,SSES!AO64) -> 0.72 | AP64: =CHOOSE(m_identity,ENWL!AP64, NPgN!AP64, NPgY!AP64, WMID!AP64, EMID!AP64, SWALES!AP64, SWEST!AP64, LPN!AP64,SPN!AP64,EPN!AP64,SPD!AP64,SPMW!AP64,SSEH!AP64,SSES!AP64) -> 0.72 | AQ64: =CHOOSE(m_identity,ENWL!AQ64, NPgN!AQ64, NPgY!AQ64, WMID!AQ64, EMID!AQ64, SWALES!AQ64, SWEST!AQ64, LPN!AQ64,SPN!AQ64,EPN!AQ64,SPD!AQ64,SPMW!AQ64,SSEH!AQ64,SSES!AQ64) -> 0.72
E66: Additional income % | G66: % | I66: =CHOOSE(m_identity,ENWL!I66, NPgN!I66, NPgY!I66, WMID!I66, EMID!I66, SWALES!I66, SWEST!I66, LPN!I66,SPN!I66,EPN!I66,SPD!I66,SPMW!I66,SSEH!I66,SSES!I66) -> 0
E68: Incentive Strength | G68: % | I68: =CHOOSE(m_identity,ENWL!I68, NPgN!I68, NPgY!I68, WMID!I68, EMID!I68, SWALES!I68, SWEST!I68, LPN!I68,SPN!I68,EPN!I68,SPD!I68,SPMW!I68,SSEH!I68,SSES!I68) -> 0.6
E70: Weight of Ofgem's view on price control totex | G70: % | I70: =CHOOSE(m_identity,ENWL!I70, NPgN!I70, NPgY!I70, WMID!I70, EMID!I70, SWALES!I70, SWEST!I70, LPN!I70,SPN!I70,EPN!I70,SPD!I70,SPMW!I70,SSEH!I70,SSES!I70) -> 0.75
E71: Weight of operator's view on price control totex | G71: % | I71: =CHOOSE(m_identity,ENWL!I71, NPgN!I71, NPgY!I71, WMID!I71, EMID!I71, SWALES!I71, SWEST!I71, LPN!I71,SPN!I71,EPN!I71,SPD!I71,SPMW!I71,SSEH!I71,SSES!I71) -> 0.25
E73: Ofgem's view of licensee totex | G73: £m 12/13 prices | I73: =CHOOSE(m_identity,ENWL!I73, NPgN!I73, NPgY!I73, WMID!I73, EMID!I73, SWALES!I73, SWEST!I73, LPN!I73,SPN!I73,EPN!I73,SPD!I73,SPMW!I73,SSEH!I73,SSES!I73) -> 1881.847534
E74: Operator's view of licensee totex | G74: £m 12/13 prices | I74: =CHOOSE(m_identity,ENWL!I74, NPgN!I74, NPgY!I74, WMID!I74, EMID!I74, SWALES!I74, SWEST!I74, LPN!I74,SPN!I74,EPN!I74,SPD!I74,SPMW!I74,SSEH!I74,SSES!I74) -> 1881.847534
E76: Ofgem's view of group price control totex | G76: £m 12/13 prices | I76: =CHOOSE(m_identity,ENWL!I76, NPgN!I76, NPgY!I76, WMID!I76, EMID!I76, SWALES!I76, SWEST!I76, LPN!I76,SPN!I76,EPN!I76,SPD!I76,SPMW!I76,SSEH!I76,SSES!I76) -> 1881.847534
E77: Operator's view of group price control totex | G77: £m 12/13 prices | I77: =CHOOSE(m_identity,ENWL!I77, NPgN!I77, NPgY!I77, WMID!I77, EMID!I77, SWALES!I77, SWEST!I77, LPN!I77,SPN!I77,EPN!I77,SPD!I77,SPMW!I77,SSEH!I77,SSES!I77) -> 1881.847534
C79: Finance
E81: Minimum equity issuance threshold | G81: % | I81: =CHOOSE(m_identity,ENWL!I81, NPgN!I81, NPgY!I81, WMID!I81, EMID!I81, SWALES!I81, SWEST!I81, LPN!I81,SPN!I81,EPN!I81,SPD!I81,SPMW!I81,SSEH!I81,SSES!I81) -> 0.05
E82: Equity issuance costs | G82: % | I82: =CHOOSE(m_identity,ENWL!I82, NPgN!I82, NPgY!I82, WMID!I82, EMID!I82, SWALES!I82, SWEST!I82, LPN!I82,SPN!I82,EPN!I82,SPD!I82,SPMW!I82,SSEH!I82,SSES!I82) -> 0.05
E83: Assumed dividends as % of notional equity portion of RAV | G83: % | I83: =CHOOSE(m_identity,ENWL!I83, NPgN!I83, NPgY!I83, WMID!I83, EMID!I83, SWALES!I83, SWEST!I83, LPN!I83,SPN!I83,EPN!I83,SPD!I83,SPMW!I83,SSEH!I83,SSES!I83) -> 0.05
E85: Equity issuance gearing target | G85: % | AJ85: =CHOOSE(m_identity,ENWL!AJ85, NPgN!AJ85, NPgY!AJ85, WMID!AJ85, EMID!AJ85, SWALES!AJ85, SWEST!AJ85, LPN!AJ85,SPN!AJ85,EPN!AJ85,SPD!AJ85,SPMW!AJ85,SSEH!AJ85,SSES!AJ85) -> 0.65 | AK85: =CHOOSE(m_identity,ENWL!AK85, NPgN!AK85, NPgY!AK85, WMID!AK85, EMID!AK85, SWALES!AK85, SWEST!AK85, LPN!AK85,SPN!AK85,EPN!AK85,SPD!AK85,SPMW!AK85,SSEH!AK85,SSES!AK85) -> 0.65 | AL85: =CHOOSE(m_identity,ENWL!AL85, NPgN!AL85, NPgY!AL85, WMID!AL85, EMID!AL85, SWALES!AL85, SWEST!AL85, LPN!AL85,SPN!AL85,EPN!AL85,SPD!AL85,SPMW!AL85,SSEH!AL85,SSES!AL85) -> 0.65 | AM85: =CHOOSE(m_identity,ENWL!AM85, NPgN!AM85, NPgY!AM85, WMID!AM85, EMID!AM85, SWALES!AM85, SWEST!AM85, LPN!AM85,SPN!AM85,EPN!AM85,SPD!AM85,SPMW!AM85,SSEH!AM85,SSES!AM85) -> 0.65 | AN85: =CHOOSE(m_identity,ENWL!AN85, NPgN!AN85, NPgY!AN85, WMID!AN85, EMID!AN85, SWALES!AN85, SWEST!AN85, LPN!AN85,SPN!AN85,EPN!AN85,SPD!AN85,SPMW!AN85,SSEH!AN85,SSES!AN85) -> 0.65 | AO85: =CHOOSE(m_identity,ENWL!AO85, NPgN!AO85, NPgY!AO85, WMID!AO85, EMID!AO85, SWALES!AO85, SWEST!AO85, LPN!AO85,SPN!AO85,EPN!AO85,SPD!AO85,SPMW!AO85,SSEH!AO85,SSES!AO85) -> 0.65 | AP85: =CHOOSE(m_identity,ENWL!AP85, NPgN!AP85, NPgY!AP85, WMID!AP85, EMID!AP85, SWALES!AP85, SWEST!AP85, LPN!AP85,SPN!AP85,EPN!AP85,SPD!AP85,SPMW!AP85,SSEH!AP85,SSES!AP85) -> 0.65 | AQ85: =CHOOSE(m_identity,ENWL!AQ85, NPgN!AQ85, NPgY!AQ85, WMID!AQ85, EMID!AQ85, SWALES!AQ85, SWEST!AQ85, LPN!AQ85,SPN!AQ85,EPN!AQ85,SPD!AQ85,SPMW!AQ85,SSEH!AQ85,SSES!AQ85) -> 0.65
E87: Index-linked debt as a percentage of net debt | G87: % | AJ87: =CHOOSE(m_identity,ENWL!AJ87, NPgN!AJ87, NPgY!AJ87, WMID!AJ87, EMID!AJ87, SWALES!AJ87, SWEST!AJ87, LPN!AJ87,SPN!AJ87,EPN!AJ87,SPD!AJ87,SPMW!AJ87,SSEH!AJ87,SSES!AJ87) -> 0.25 | AK87: =CHOOSE(m_identity,ENWL!AK87, NPgN!AK87, NPgY!AK87, WMID!AK87, EMID!AK87, SWALES!AK87, SWEST!AK87, LPN!AK87,SPN!AK87,EPN!AK87,SPD!AK87,SPMW!AK87,SSEH!AK87,SSES!AK87) -> 0.25 | AL87: =CHOOSE(m_identity,ENWL!AL87, NPgN!AL87, NPgY!AL87, WMID!AL87, EMID!AL87, SWALES!AL87, SWEST!AL87, LPN!AL87,SPN!AL87,EPN!AL87,SPD!AL87,SPMW!AL87,SSEH!AL87,SSES!AL87) -> 0.25 | AM87: =CHOOSE(m_identity,ENWL!AM87, NPgN!AM87, NPgY!AM87, WMID!AM87, EMID!AM87, SWALES!AM87, SWEST!AM87, LPN!AM87,SPN!AM87,EPN!AM87,SPD!AM87,SPMW!AM87,SSEH!AM87,SSES!AM87) -> 0.25 | AN87: =CHOOSE(m_identity,ENWL!AN87, NPgN!AN87, NPgY!AN87, WMID!AN87, EMID!AN87, SWALES!AN87, SWEST!AN87, LPN!AN87,SPN!AN87,EPN!AN87,SPD!AN87,SPMW!AN87,SSEH!AN87,SSES!AN87) -> 0.25 | AO87: =CHOOSE(m_identity,ENWL!AO87, NPgN!AO87, NPgY!AO87, WMID!AO87, EMID!AO87, SWALES!AO87, SWEST!AO87, LPN!AO87,SPN!AO87,EPN!AO87,SPD!AO87,SPMW!AO87,SSEH!AO87,SSES!AO87) -> 0.25 | AP87: =CHOOSE(m_identity,ENWL!AP87, NPgN!AP87, NPgY!AP87, WMID!AP87, EMID!AP87, SWALES!AP87, SWEST!AP87, LPN!AP87,SPN!AP87,EPN!AP87,SPD!AP87,SPMW!AP87,SSEH!AP87,SSES!AP87) -> 0.25 | AQ87: =CHOOSE(m_identity,ENWL!AQ87, NPgN!AQ87, NPgY!AQ87, WMID!AQ87, EMID!AQ87, SWALES!AQ87, SWEST!AQ87, LPN!AQ87,SPN!AQ87,EPN!AQ87,SPD!AQ87,SPMW!AQ87,SSEH!AQ87,SSES!AQ87) -> 0.25
B89: Expenditure
C91: Totex
D93: Non-variant allowances
E95: Non-variant allowed load related capex | G95: £m 12/13 prices | AJ95: =CHOOSE(m_identity,ENWL!AJ95, NPgN!AJ95, NPgY!AJ95, WMID!AJ95, EMID!AJ95, SWALES!AJ95, SWEST!AJ95, LPN!AJ95,SPN!AJ95,EPN!AJ95,SPD!AJ95,SPMW!AJ95,SSEH!AJ95,SSES!AJ95) -> 0 | AK95: =CHOOSE(m_identity,ENWL!AK95, NPgN!AK95, NPgY!AK95, WMID!AK95, EMID!AK95, SWALES!AK95, SWEST!AK95, LPN!AK95,SPN!AK95,EPN!AK95,SPD!AK95,SPMW!AK95,SSEH!AK95,SSES!AK95) -> 0 | AL95: =CHOOSE(m_identity,ENWL!AL95, NPgN!AL95, NPgY!AL95, WMID!AL95, EMID!AL95, SWALES!AL95, SWEST!AL95, LPN!AL95,SPN!AL95,EPN!AL95,SPD!AL95,SPMW!AL95,SSEH!AL95,SSES!AL95) -> 0 | AM95: =CHOOSE(m_identity,ENWL!AM95, NPgN!AM95, NPgY!AM95, WMID!AM95, EMID!AM95, SWALES!AM95, SWEST!AM95, LPN!AM95,SPN!AM95,EPN!AM95,SPD!AM95,SPMW!AM95,SSEH!AM95,SSES!AM95) -> 0 | AN95: =CHOOSE(m_identity,ENWL!AN95, NPgN!AN95, NPgY!AN95, WMID!AN95, EMID!AN95, SWALES!AN95, SWEST!AN95, LPN!AN95,SPN!AN95,EPN!AN95,SPD!AN95,SPMW!AN95,SSEH!AN95,SSES!AN95) -> 0 | AO95: =CHOOSE(m_identity,ENWL!AO95, NPgN!AO95, NPgY!AO95, WMID!AO95, EMID!AO95, SWALES!AO95, SWEST!AO95, LPN!AO95,SPN!AO95,EPN!AO95,SPD!AO95,SPMW!AO95,SSEH!AO95,SSES!AO95) -> 0 | AP95: =CHOOSE(m_identity,ENWL!AP95, NPgN!AP95, NPgY!AP95, WMID!AP95, EMID!AP95, SWALES!AP95, SWEST!AP95, LPN!AP95,SPN!AP95,EPN!AP95,SPD!AP95,SPMW!AP95,SSEH!AP95,SSES!AP95) -> 0 | AQ95: =CHOOSE(m_identity,ENWL!AQ95, NPgN!AQ95, NPgY!AQ95, WMID!AQ95, EMID!AQ95, SWALES!AQ95, SWEST!AQ95, LPN!AQ95,SPN!AQ95,EPN!AQ95,SPD!AQ95,SPMW!AQ95,SSEH!AQ95,SSES!AQ95) -> 0
E96: Non-variant allowed non-load related capex - asset replacement | G96: £m 12/13 prices | AJ96: =CHOOSE(m_identity,ENWL!AJ96, NPgN!AJ96, NPgY!AJ96, WMID!AJ96, EMID!AJ96, SWALES!AJ96, SWEST!AJ96, LPN!AJ96,SPN!AJ96,EPN!AJ96,SPD!AJ96,SPMW!AJ96,SSEH!AJ96,SSES!AJ96) -> 89.04110204 | AK96: =CHOOSE(m_identity,ENWL!AK96, NPgN!AK96, NPgY!AK96, WMID!AK96, EMID!AK96, SWALES!AK96, SWEST!AK96, LPN!AK96,SPN!AK96,EPN!AK96,SPD!AK96,SPMW!AK96,SSEH!AK96,SSES!AK96) -> 78.83948168 | AL96: =CHOOSE(m_identity,ENWL!AL96, NPgN!AL96, NPgY!AL96, WMID!AL96, EMID!AL96, SWALES!AL96, SWEST!AL96, LPN!AL96,SPN!AL96,EPN!AL96,SPD!AL96,SPMW!AL96,SSEH!AL96,SSES!AL96) -> 85.834165 | AM96: =CHOOSE(m_identity,ENWL!AM96, NPgN!AM96, NPgY!AM96, WMID!AM96, EMID!AM96, SWALES!AM96, SWEST!AM96, LPN!AM96,SPN!AM96,EPN!AM96,SPD!AM96,SPMW!AM96,SSEH!AM96,SSES!AM96) -> 82.00782699 | AN96: =CHOOSE(m_identity,ENWL!AN96, NPgN!AN96, NPgY!AN96, WMID!AN96, EMID!AN96, SWALES!AN96, SWEST!AN96, LPN!AN96,SPN!AN96,EPN!AN96,SPD!AN96,SPMW!AN96,SSEH!AN96,SSES!AN96) -> 85.87468425 | AO96: =CHOOSE(m_identity,ENWL!AO96, NPgN!AO96, NPgY!AO96, WMID!AO96, EMID!AO96, SWALES!AO96, SWEST!AO96, LPN!AO96,SPN!AO96,EPN!AO96,SPD!AO96,SPMW!AO96,SSEH!AO96,SSES!AO96) -> 86.92106044 | AP96: =CHOOSE(m_identity,ENWL!AP96, NPgN!AP96, NPgY!AP96, WMID!AP96, EMID!AP96, SWALES!AP96, SWEST!AP96, LPN!AP96,SPN!AP96,EPN!AP96,SPD!AP96,SPMW!AP96,SSEH!AP96,SSES!AP96) -> 86.36967257 | AQ96: =CHOOSE(m_identity,ENWL!AQ96, NPgN!AQ96, NPgY!AQ96, WMID!AQ96, EMID!AQ96, SWALES!AQ96, SWEST!AQ96, LPN!AQ96,SPN!AQ96,EPN!AQ96,SPD!AQ96,SPMW!AQ96,SSEH!AQ96,SSES!AQ96) -> 83.94801394
E97: Non-variant allowed non-load related capex - other | G97: £m 12/13 prices | AJ97: =CHOOSE(m_identity,ENWL!AJ97, NPgN!AJ97, NPgY!AJ97, WMID!AJ97, EMID!AJ97, SWALES!AJ97, SWEST!AJ97, LPN!AJ97,SPN!AJ97,EPN!AJ97,SPD!AJ97,SPMW!AJ97,SSEH!AJ97,SSES!AJ97) -> 12.9949592 | AK97: =CHOOSE(m_identity,ENWL!AK97, NPgN!AK97, NPgY!AK97, WMID!AK97, EMID!AK97, SWALES!AK97, SWEST!AK97, LPN!AK97,SPN!AK97,EPN!AK97,SPD!AK97,SPMW!AK97,SSEH!AK97,SSES!AK97) -> 10.40763249 | AL97: =CHOOSE(m_identity,ENWL!AL97, NPgN!AL97, NPgY!AL97, WMID!AL97, EMID!AL97, SWALES!AL97, SWEST!AL97, LPN!AL97,SPN!AL97,EPN!AL97,SPD!AL97,SPMW!AL97,SSEH!AL97,SSES!AL97) -> 11.0327098 | AM97: =CHOOSE(m_identity,ENWL!AM97, NPgN!AM97, NPgY!AM97, WMID!AM97, EMID!AM97, SWALES!AM97, SWEST!AM97, LPN!AM97,SPN!AM97,EPN!AM97,SPD!AM97,SPMW!AM97,SSEH!AM97,SSES!AM97) -> 13.35621216 | AN97: =CHOOSE(m_identity,ENWL!AN97, NPgN!AN97, NPgY!AN97, WMID!AN97, EMID!AN97, SWALES!AN97, SWEST!AN97, LPN!AN97,SPN!AN97,EPN!AN97,SPD!AN97,SPMW!AN97,SSEH!AN97,SSES!AN97) -> 12.96602318 | AO97: =CHOOSE(m_identity,ENWL!AO97, NPgN!AO97, NPgY!AO97, WMID!AO97, EMID!AO97, SWALES!AO97, SWEST!AO97, LPN!AO97,SPN!AO97,EPN!AO97,SPD!AO97,SPMW!AO97,SSEH!AO97,SSES!AO97) -> 12.41106172 | AP97: =CHOOSE(m_identity,ENWL!AP97, NPgN!AP97, NPgY!AP97, WMID!AP97, EMID!AP97, SWALES!AP97, SWEST!AP97, LPN!AP97,SPN!AP97,EPN!AP97,SPD!AP97,SPMW!AP97,SSEH!AP97,SSES!AP97) -> 17.64775404 | AQ97: =CHOOSE(m_identity,ENWL!AQ97, NPgN!AQ97, NPgY!AQ97, WMID!AQ97, EMID!AQ97, SWALES!AQ97, SWEST!AQ97, LPN!AQ97,SPN!AQ97,EPN!AQ97,SPD!AQ97,SPMW!AQ97,SSEH!AQ97,SSES!AQ97) -> 17.76591483
E98: Non-variant allowed faults | G98: £m 12/13 prices | AJ98: =CHOOSE(m_identity,ENWL!AJ98, NPgN!AJ98, NPgY!AJ98, WMID!AJ98, EMID!AJ98, SWALES!AJ98, SWEST!AJ98, LPN!AJ98,SPN!AJ98,EPN!AJ98,SPD!AJ98,SPMW!AJ98,SSEH!AJ98,SSES!AJ98) -> 23.32954518 | AK98: =CHOOSE(m_identity,ENWL!AK98, NPgN!AK98, NPgY!AK98, WMID!AK98, EMID!AK98, SWALES!AK98, SWEST!AK98, LPN!AK98,SPN!AK98,EPN!AK98,SPD!AK98,SPMW!AK98,SSEH!AK98,SSES!AK98) -> 23.56042404 | AL98: =CHOOSE(m_identity,ENWL!AL98, NPgN!AL98, NPgY!AL98, WMID!AL98, EMID!AL98, SWALES!AL98, SWEST!AL98, LPN!AL98,SPN!AL98,EPN!AL98,SPD!AL98,SPMW!AL98,SSEH!AL98,SSES!AL98) -> 23.47693717 | AM98: =CHOOSE(m_identity,ENWL!AM98, NPgN!AM98, NPgY!AM98, WMID!AM98, EMID!AM98, SWALES!AM98, SWEST!AM98, LPN!AM98,SPN!AM98,EPN!AM98,SPD!AM98,SPMW!AM98,SSEH!AM98,SSES!AM98) -> 23.51491919 | AN98: =CHOOSE(m_identity,ENWL!AN98, NPgN!AN98, NPgY!AN98, WMID!AN98, EMID!AN98, SWALES!AN98, SWEST!AN98, LPN!AN98,SPN!AN98,EPN!AN98,SPD!AN98,SPMW!AN98,SSEH!AN98,SSES!AN98) -> 23.54357202 | AO98: =CHOOSE(m_identity,ENWL!AO98, NPgN!AO98, NPgY!AO98, WMID!AO98, EMID!AO98, SWALES!AO98, SWEST!AO98, LPN!AO98,SPN!AO98,EPN!AO98,SPD!AO98,SPMW!AO98,SSEH!AO98,SSES!AO98) -> 23.75815577 | AP98: =CHOOSE(m_identity,ENWL!AP98, NPgN!AP98, NPgY!AP98, WMID!AP98, EMID!AP98, SWALES!AP98, SWEST!AP98, LPN!AP98,SPN!AP98,EPN!AP98,SPD!AP98,SPMW!AP98,SSEH!AP98,SSES!AP98) -> 23.82748381 | AQ98: =CHOOSE(m_identity,ENWL!AQ98, NPgN!AQ98, NPgY!AQ98, WMID!AQ98, EMID!AQ98, SWALES!AQ98, SWEST!AQ98, LPN!AQ98,SPN!AQ98,EPN!AQ98,SPD!AQ98,SPMW!AQ98,SSEH!AQ98,SSES!AQ98) -> 23.89414501
E99: Non-variant tree cutting | G99: £m 12/13 prices | AJ99: =CHOOSE(m_identity,ENWL!AJ99, NPgN!AJ99, NPgY!AJ99, WMID!AJ99, EMID!AJ99, SWALES!AJ99, SWEST!AJ99, LPN!AJ99,SPN!AJ99,EPN!AJ99,SPD!AJ99,SPMW!AJ99,SSEH!AJ99,SSES!AJ99) -> 3.339354549 | AK99: =CHOOSE(m_identity,ENWL!AK99, NPgN!AK99, NPgY!AK99, WMID!AK99, EMID!AK99, SWALES!AK99, SWEST!AK99, LPN!AK99,SPN!AK99,EPN!AK99,SPD!AK99,SPMW!AK99,SSEH!AK99,SSES!AK99) -> 3.36255162 | AL99: =CHOOSE(m_identity,ENWL!AL99, NPgN!AL99, NPgY!AL99, WMID!AL99, EMID!AL99, SWALES!AL99, SWEST!AL99, LPN!AL99,SPN!AL99,EPN!AL99,SPD!AL99,SPMW!AL99,SSEH!AL99,SSES!AL99) -> 3.365365438 | AM99: =CHOOSE(m_identity,ENWL!AM99, NPgN!AM99, NPgY!AM99, WMID!AM99, EMID!AM99, SWALES!AM99, SWEST!AM99, LPN!AM99,SPN!AM99,EPN!AM99,SPD!AM99,SPMW!AM99,SSEH!AM99,SSES!AM99) -> 3.368519596 | AN99: =CHOOSE(m_identity,ENWL!AN99, NPgN!AN99, NPgY!AN99, WMID!AN99, EMID!AN99, SWALES!AN99, SWEST!AN99, LPN!AN99,SPN!AN99,EPN!AN99,SPD!AN99,SPMW!AN99,SSEH!AN99,SSES!AN99) -> 3.371004093 | AO99: =CHOOSE(m_identity,ENWL!AO99, NPgN!AO99, NPgY!AO99, WMID!AO99, EMID!AO99, SWALES!AO99, SWEST!AO99, LPN!AO99,SPN!AO99,EPN!AO99,SPD!AO99,SPMW!AO99,SSEH!AO99,SSES!AO99) -> 3.377325578 | AP99: =CHOOSE(m_identity,ENWL!AP99, NPgN!AP99, NPgY!AP99, WMID!AP99, EMID!AP99, SWALES!AP99, SWEST!AP99, LPN!AP99,SPN!AP99,EPN!AP99,SPD!AP99,SPMW!AP99,SSEH!AP99,SSES!AP99) -> 3.380046575 | AQ99: =CHOOSE(m_identity,ENWL!AQ99, NPgN!AQ99, NPgY!AQ99, WMID!AQ99, EMID!AQ99, SWALES!AQ99, SWEST!AQ99, LPN!AQ99,SPN!AQ99,EPN!AQ99,SPD!AQ99,SPMW!AQ99,SSEH!AQ99,SSES!AQ99) -> 3.383449286
E100: Non-variant allowed 100% ‘revenue pool’ expenditure | G100: £m 12/13 prices | AJ100: =CHOOSE(m_identity,ENWL!AJ100, NPgN!AJ100, NPgY!AJ100, WMID!AJ100, EMID!AJ100, SWALES!AJ100, SWEST!AJ100, LPN!AJ100,SPN!AJ100,EPN!AJ100,SPD!AJ100,SPMW!AJ100,SSEH!AJ100,SSES!AJ100) -> 16.1550384 | AK100: =CHOOSE(m_identity,ENWL!AK100, NPgN!AK100, NPgY!AK100, WMID!AK100, EMID!AK100, SWALES!AK100, SWEST!AK100, LPN!AK100,SPN!AK100,EPN!AK100,SPD!AK100,SPMW!AK100,SSEH!AK100,SSES!AK100) -> 16.03899862 | AL100: =CHOOSE(m_identity,ENWL!AL100, NPgN!AL100, NPgY!AL100, WMID!AL100, EMID!AL100, SWALES!AL100, SWEST!AL100, LPN!AL100,SPN!AL100,EPN!AL100,SPD!AL100,SPMW!AL100,SSEH!AL100,SSES!AL100) -> 15.76702932 | AM100: =CHOOSE(m_identity,ENWL!AM100, NPgN!AM100, NPgY!AM100, WMID!AM100, EMID!AM100, SWALES!AM100, SWEST!AM100, LPN!AM100,SPN!AM100,EPN!AM100,SPD!AM100,SPMW!AM100,SSEH!AM100,SSES!AM100) -> 15.24185171 | AN100: =CHOOSE(m_identity,ENWL!AN100, NPgN!AN100, NPgY!AN100, WMID!AN100, EMID!AN100, SWALES!AN100, SWEST!AN100, LPN!AN100,SPN!AN100,EPN!AN100,SPD!AN100,SPMW!AN100,SSEH!AN100,SSES!AN100) -> 15.38665162 | AO100: =CHOOSE(m_identity,ENWL!AO100, NPgN!AO100, NPgY!AO100, WMID!AO100, EMID!AO100, SWALES!AO100, SWEST!AO100, LPN!AO100,SPN!AO100,EPN!AO100,SPD!AO100,SPMW!AO100,SSEH!AO100,SSES!AO100) -> 15.09141681 | AP100: =CHOOSE(m_identity,ENWL!AP100, NPgN!AP100, NPgY!AP100, WMID!AP100, EMID!AP100, SWALES!AP100, SWEST!AP100, LPN!AP100,SPN!AP100,EPN!AP100,SPD!AP100,SPMW!AP100,SSEH!AP100,SSES!AP100) -> 14.40758262 | AQ100: =CHOOSE(m_identity,ENWL!AQ100, NPgN!AQ100, NPgY!AQ100, WMID!AQ100, EMID!AQ100, SWALES!AQ100, SWEST!AQ100, LPN!AQ100,SPN!AQ100,EPN!AQ100,SPD!AQ100,SPMW!AQ100,SSEH!AQ100,SSES!AQ100) -> 14.1742158
E101: Non-variant allowed controllable opex | G101: £m 12/13 prices | AJ101: =CHOOSE(m_identity,ENWL!AJ101, NPgN!AJ101, NPgY!AJ101, WMID!AJ101, EMID!AJ101, SWALES!AJ101, SWEST!AJ101, LPN!AJ101,SPN!AJ101,EPN!AJ101,SPD!AJ101,SPMW!AJ101,SSEH!AJ101,SSES!AJ101) -> 76.68922155 | AK101: =CHOOSE(m_identity,ENWL!AK101, NPgN!AK101, NPgY!AK101, WMID!AK101, EMID!AK101, SWALES!AK101, SWEST!AK101, LPN!AK101,SPN!AK101,EPN!AK101,SPD!AK101,SPMW!AK101,SSEH!AK101,SSES!AK101) -> 73.86119988 | AL101: =CHOOSE(m_identity,ENWL!AL101, NPgN!AL101, NPgY!AL101, WMID!AL101, EMID!AL101, SWALES!AL101, SWEST!AL101, LPN!AL101,SPN!AL101,EPN!AL101,SPD!AL101,SPMW!AL101,SSEH!AL101,SSES!AL101) -> 73.12137146 | AM101: =CHOOSE(m_identity,ENWL!AM101, NPgN!AM101, NPgY!AM101, WMID!AM101, EMID!AM101, SWALES!AM101, SWEST!AM101, LPN!AM101,SPN!AM101,EPN!AM101,SPD!AM101,SPMW!AM101,SSEH!AM101,SSES!AM101) -> 73.69172699 | AN101: =CHOOSE(m_identity,ENWL!AN101, NPgN!AN101, NPgY!AN101, WMID!AN101, EMID!AN101, SWALES!AN101, SWEST!AN101, LPN!AN101,SPN!AN101,EPN!AN101,SPD!AN101,SPMW!AN101,SSEH!AN101,SSES!AN101) -> 72.69076413 | AO101: =CHOOSE(m_identity,ENWL!AO101, NPgN!AO101, NPgY!AO101, WMID!AO101, EMID!AO101, SWALES!AO101, SWEST!AO101, LPN!AO101,SPN!AO101,EPN!AO101,SPD!AO101,SPMW!AO101,SSEH!AO101,SSES!AO101) -> 74.4048048 | AP101: =CHOOSE(m_identity,ENWL!AP101, NPgN!AP101, NPgY!AP101, WMID!AP101, EMID!AP101, SWALES!AP101, SWEST!AP101, LPN!AP101,SPN!AP101,EPN!AP101,SPD!AP101,SPMW!AP101,SSEH!AP101,SSES!AP101) -> 74.22158542 | AQ101: =CHOOSE(m_identity,ENWL!AQ101, NPgN!AQ101, NPgY!AQ101, WMID!AQ101, EMID!AQ101, SWALES!AQ101, SWEST!AQ101, LPN!AQ101,SPN!AQ101,EPN!AQ101,SPD!AQ101,SPMW!AQ101,SSEH!AQ101,SSES!AQ101) -> 73.00856478
D103: Variant allowances
E105: =E19 -> Allowed Expenditure - Enhanced Physical Site Security | G105: £m 12/13 prices | AJ105: =AJ19 -> 2.619407623 | AK105: =AK19 -> 0 | AL105: 0 | AM105: 0 | AN105: 0 | AO105: 0 | AP105: 0 | AQ105: 0
E106: Allocation to load related capex | G106: % | AJ106: =CHOOSE(m_identity,ENWL!AJ106, NPgN!AJ106, NPgY!AJ106, WMID!AJ106, EMID!AJ106, SWALES!AJ106, SWEST!AJ106, LPN!AJ106,SPN!AJ106,EPN!AJ106,SPD!AJ106,SPMW!AJ106,SSEH!AJ106,SSES!AJ106) -> 0 | AK106: =CHOOSE(m_identity,ENWL!AK106, NPgN!AK106, NPgY!AK106, WMID!AK106, EMID!AK106, SWALES!AK106, SWEST!AK106, LPN!AK106,SPN!AK106,EPN!AK106,SPD!AK106,SPMW!AK106,SSEH!AK106,SSES!AK106) -> 0 | AL106: =CHOOSE(m_identity,ENWL!AL106, NPgN!AL106, NPgY!AL106, WMID!AL106, EMID!AL106, SWALES!AL106, SWEST!AL106, LPN!AL106,SPN!AL106,EPN!AL106,SPD!AL106,SPMW!AL106,SSEH!AL106,SSES!AL106) -> 0 | AM106: =CHOOSE(m_identity,ENWL!AM106, NPgN!AM106, NPgY!AM106, WMID!AM106, EMID!AM106, SWALES!AM106, SWEST!AM106, LPN!AM106,SPN!AM106,EPN!AM106,SPD!AM106,SPMW!AM106,SSEH!AM106,SSES!AM106) -> 0 | AN106: =CHOOSE(m_identity,ENWL!AN106, NPgN!AN106, NPgY!AN106, WMID!AN106, EMID!AN106, SWALES!AN106, SWEST!AN106, LPN!AN106,SPN!AN106,EPN!AN106,SPD!AN106,SPMW!AN106,SSEH!AN106,SSES!AN106) -> 0 | AO106: =CHOOSE(m_identity,ENWL!AO106, NPgN!AO106, NPgY!AO106, WMID!AO106, EMID!AO106, SWALES!AO106, SWEST!AO106, LPN!AO106,SPN!AO106,EPN!AO106,SPD!AO106,SPMW!AO106,SSEH!AO106,SSES!AO106) -> 0 | AP106: =CHOOSE(m_identity,ENWL!AP106, NPgN!AP106, NPgY!AP106, WMID!AP106, EMID!AP106, SWALES!AP106, SWEST!AP106, LPN!AP106,SPN!AP106,EPN!AP106,SPD!AP106,SPMW!AP106,SSEH!AP106,SSES!AP106) -> 0 | AQ106: =CHOOSE(m_identity,ENWL!AQ106, NPgN!AQ106, NPgY!AQ106, WMID!AQ106, EMID!AQ106, SWALES!AQ106, SWEST!AQ106, LPN!AQ106,SPN!AQ106,EPN!AQ106,SPD!AQ106,SPMW!AQ106,SSEH!AQ106,SSES!AQ106) -> 0
E107: Allocation to non-load related capex - asset replacement | G107: % | AJ107: =CHOOSE(m_identity,ENWL!AJ107, NPgN!AJ107, NPgY!AJ107, WMID!AJ107, EMID!AJ107, SWALES!AJ107, SWEST!AJ107, LPN!AJ107,SPN!AJ107,EPN!AJ107,SPD!AJ107,SPMW!AJ107,SSEH!AJ107,SSES!AJ107) -> 1 | AK107: =CHOOSE(m_identity,ENWL!AK107, NPgN!AK107, NPgY!AK107, WMID!AK107, EMID!AK107, SWALES!AK107, SWEST!AK107, LPN!AK107,SPN!AK107,EPN!AK107,SPD!AK107,SPMW!AK107,SSEH!AK107,SSES!AK107) -> 0.8771058978 | AL107: =CHOOSE(m_identity,ENWL!AL107, NPgN!AL107, NPgY!AL107, WMID!AL107, EMID!AL107, SWALES!AL107, SWEST!AL107, LPN!AL107,SPN!AL107,EPN!AL107,SPD!AL107,SPMW!AL107,SSEH!AL107,SSES!AL107) -> 0.8791673879 | AM107: =CHOOSE(m_identity,ENWL!AM107, NPgN!AM107, NPgY!AM107, WMID!AM107, EMID!AM107, SWALES!AM107, SWEST!AM107, LPN!AM107,SPN!AM107,EPN!AM107,SPD!AM107,SPMW!AM107,SSEH!AM107,SSES!AM107) -> 0.8812344105 | AN107: =CHOOSE(m_identity,ENWL!AN107, NPgN!AN107, NPgY!AN107, WMID!AN107, EMID!AN107, SWALES!AN107, SWEST!AN107, LPN!AN107,SPN!AN107,EPN!AN107,SPD!AN107,SPMW!AN107,SSEH!AN107,SSES!AN107) -> 0.8816334904 | AO107: =CHOOSE(m_identity,ENWL!AO107, NPgN!AO107, NPgY!AO107, WMID!AO107, EMID!AO107, SWALES!AO107, SWEST!AO107, LPN!AO107,SPN!AO107,EPN!AO107,SPD!AO107,SPMW!AO107,SSEH!AO107,SSES!AO107) -> 0.8842436085 | AP107: =CHOOSE(m_identity,ENWL!AP107, NPgN!AP107, NPgY!AP107, WMID!AP107, EMID!AP107, SWALES!AP107, SWEST!AP107, LPN!AP107,SPN!AP107,EPN!AP107,SPD!AP107,SPMW!AP107,SSEH!AP107,SSES!AP107) -> 0.8889092326 | AQ107: =CHOOSE(m_identity,ENWL!AQ107, NPgN!AQ107, NPgY!AQ107, WMID!AQ107, EMID!AQ107, SWALES!AQ107, SWEST!AQ107, LPN!AQ107,SPN!AQ107,EPN!AQ107,SPD!AQ107,SPMW!AQ107,SSEH!AQ107,SSES!AQ107) -> 0.8899003809
E108: Allocation to non-load related capex - other | G108: % | AJ108: =CHOOSE(m_identity,ENWL!AJ108, NPgN!AJ108, NPgY!AJ108, WMID!AJ108, EMID!AJ108, SWALES!AJ108, SWEST!AJ108, LPN!AJ108,SPN!AJ108,EPN!AJ108,SPD!AJ108,SPMW!AJ108,SSEH!AJ108,SSES!AJ108) -> 0 | AK108: =CHOOSE(m_identity,ENWL!AK108, NPgN!AK108, NPgY!AK108, WMID!AK108, EMID!AK108, SWALES!AK108, SWEST!AK108, LPN!AK108,SPN!AK108,EPN!AK108,SPD!AK108,SPMW!AK108,SSEH!AK108,SSES!AK108) -> 0 | AL108: =CHOOSE(m_identity,ENWL!AL108, NPgN!AL108, NPgY!AL108, WMID!AL108, EMID!AL108, SWALES!AL108, SWEST!AL108, LPN!AL108,SPN!AL108,EPN!AL108,SPD!AL108,SPMW!AL108,SSEH!AL108,SSES!AL108) -> 0 | AM108: =CHOOSE(m_identity,ENWL!AM108, NPgN!AM108, NPgY!AM108, WMID!AM108, EMID!AM108, SWALES!AM108, SWEST!AM108, LPN!AM108,SPN!AM108,EPN!AM108,SPD!AM108,SPMW!AM108,SSEH!AM108,SSES!AM108) -> 0 | AN108: =CHOOSE(m_identity,ENWL!AN108, NPgN!AN108, NPgY!AN108, WMID!AN108, EMID!AN108, SWALES!AN108, SWEST!AN108, LPN!AN108,SPN!AN108,EPN!AN108,SPD!AN108,SPMW!AN108,SSEH!AN108,SSES!AN108) -> 0 | AO108: =CHOOSE(m_identity,ENWL!AO108, NPgN!AO108, NPgY!AO108, WMID!AO108, EMID!AO108, SWALES!AO108, SWEST!AO108, LPN!AO108,SPN!AO108,EPN!AO108,SPD!AO108,SPMW!AO108,SSEH!AO108,SSES!AO108) -> 0 | AP108: =CHOOSE(m_identity,ENWL!AP108, NPgN!AP108, NPgY!AP108, WMID!AP108, EMID!AP108, SWALES!AP108, SWEST!AP108, LPN!AP108,SPN!AP108,EPN!AP108,SPD!AP108,SPMW!AP108,SSEH!AP108,SSES!AP108) -> 0 | AQ108: =CHOOSE(m_identity,ENWL!AQ108, NPgN!AQ108, NPgY!AQ108, WMID!AQ108, EMID!AQ108, SWALES!AQ108, SWEST!AQ108, LPN!AQ108,SPN!AQ108,EPN!AQ108,SPD!AQ108,SPMW!AQ108,SSEH!AQ108,SSES!AQ108) -> 0
E109: Allocation to faults | G109: % | AJ109: =CHOOSE(m_identity,ENWL!AJ109, NPgN!AJ109, NPgY!AJ109, WMID!AJ109, EMID!AJ109, SWALES!AJ109, SWEST!AJ109, LPN!AJ109,SPN!AJ109,EPN!AJ109,SPD!AJ109,SPMW!AJ109,SSEH!AJ109,SSES!AJ109) -> 0 | AK109: =CHOOSE(m_identity,ENWL!AK109, NPgN!AK109, NPgY!AK109, WMID!AK109, EMID!AK109, SWALES!AK109, SWEST!AK109, LPN!AK109,SPN!AK109,EPN!AK109,SPD!AK109,SPMW!AK109,SSEH!AK109,SSES!AK109) -> 0 | AL109: =CHOOSE(m_identity,ENWL!AL109, NPgN!AL109, NPgY!AL109, WMID!AL109, EMID!AL109, SWALES!AL109, SWEST!AL109, LPN!AL109,SPN!AL109,EPN!AL109,SPD!AL109,SPMW!AL109,SSEH!AL109,SSES!AL109) -> 0 | AM109: =CHOOSE(m_identity,ENWL!AM109, NPgN!AM109, NPgY!AM109, WMID!AM109, EMID!AM109, SWALES!AM109, SWEST!AM109, LPN!AM109,SPN!AM109,EPN!AM109,SPD!AM109,SPMW!AM109,SSEH!AM109,SSES!AM109) -> 0 | AN109: =CHOOSE(m_identity,ENWL!AN109, NPgN!AN109, NPgY!AN109, WMID!AN109, EMID!AN109, SWALES!AN109, SWEST!AN109, LPN!AN109,SPN!AN109,EPN!AN109,SPD!AN109,SPMW!AN109,SSEH!AN109,SSES!AN109) -> 0 | AO109: =CHOOSE(m_identity,ENWL!AO109, NPgN!AO109, NPgY!AO109, WMID!AO109, EMID!AO109, SWALES!AO109, SWEST!AO109, LPN!AO109,SPN!AO109,EPN!AO109,SPD!AO109,SPMW!AO109,SSEH!AO109,SSES!AO109) -> 0 | AP109: =CHOOSE(m_identity,ENWL!AP109, NPgN!AP109, NPgY!AP109, WMID!AP109, EMID!AP109, SWALES!AP109, SWEST!AP109, LPN!AP109,SPN!AP109,EPN!AP109,SPD!AP109,SPMW!AP109,SSEH!AP109,SSES!AP109) -> 0 | AQ109: =CHOOSE(m_identity,ENWL!AQ109, NPgN!AQ109, NPgY!AQ109, WMID!AQ109, EMID!AQ109, SWALES!AQ109, SWEST!AQ109, LPN!AQ109,SPN!AQ109,EPN!AQ109,SPD!AQ109,SPMW!AQ109,SSEH!AQ109,SSES!AQ109) -> 0
E110: Allocation to tree cutting | G110: % | AJ110: =CHOOSE(m_identity,ENWL!AJ110, NPgN!AJ110, NPgY!AJ110, WMID!AJ110, EMID!AJ110, SWALES!AJ110, SWEST!AJ110, LPN!AJ110,SPN!AJ110,EPN!AJ110,SPD!AJ110,SPMW!AJ110,SSEH!AJ110,SSES!AJ110) -> 0 | AK110: =CHOOSE(m_identity,ENWL!AK110, NPgN!AK110, NPgY!AK110, WMID!AK110, EMID!AK110, SWALES!AK110, SWEST!AK110, LPN!AK110,SPN!AK110,EPN!AK110,SPD!AK110,SPMW!AK110,SSEH!AK110,SSES!AK110) -> 0 | AL110: =CHOOSE(m_identity,ENWL!AL110, NPgN!AL110, NPgY!AL110, WMID!AL110, EMID!AL110, SWALES!AL110, SWEST!AL110, LPN!AL110,SPN!AL110,EPN!AL110,SPD!AL110,SPMW!AL110,SSEH!AL110,SSES!AL110) -> 0 | AM110: =CHOOSE(m_identity,ENWL!AM110, NPgN!AM110, NPgY!AM110, WMID!AM110, EMID!AM110, SWALES!AM110, SWEST!AM110, LPN!AM110,SPN!AM110,EPN!AM110,SPD!AM110,SPMW!AM110,SSEH!AM110,SSES!AM110) -> 0 | AN110: =CHOOSE(m_identity,ENWL!AN110, NPgN!AN110, NPgY!AN110, WMID!AN110, EMID!AN110, SWALES!AN110, SWEST!AN110, LPN!AN110,SPN!AN110,EPN!AN110,SPD!AN110,SPMW!AN110,SSEH!AN110,SSES!AN110) -> 0 | AO110: =CHOOSE(m_identity,ENWL!AO110, NPgN!AO110, NPgY!AO110, WMID!AO110, EMID!AO110, SWALES!AO110, SWEST!AO110, LPN!AO110,SPN!AO110,EPN!AO110,SPD!AO110,SPMW!AO110,SSEH!AO110,SSES!AO110) -> 0 | AP110: =CHOOSE(m_identity,ENWL!AP110, NPgN!AP110, NPgY!AP110, WMID!AP110, EMID!AP110, SWALES!AP110, SWEST!AP110, LPN!AP110,SPN!AP110,EPN!AP110,SPD!AP110,SPMW!AP110,SSEH!AP110,SSES!AP110) -> 0 | AQ110: =CHOOSE(m_identity,ENWL!AQ110, NPgN!AQ110, NPgY!AQ110, WMID!AQ110, EMID!AQ110, SWALES!AQ110, SWEST!AQ110, LPN!AQ110,SPN!AQ110,EPN!AQ110,SPD!AQ110,SPMW!AQ110,SSEH!AQ110,SSES!AQ110) -> 0
E111: Allocation to 100% ‘revenue pool’ expenditure | G111: % | AJ111: =CHOOSE(m_identity,ENWL!AJ111, NPgN!AJ111, NPgY!AJ111, WMID!AJ111, EMID!AJ111, SWALES!AJ111, SWEST!AJ111, LPN!AJ111,SPN!AJ111,EPN!AJ111,SPD!AJ111,SPMW!AJ111,SSEH!AJ111,SSES!AJ111) -> 0 | AK111: =CHOOSE(m_identity,ENWL!AK111, NPgN!AK111, NPgY!AK111, WMID!AK111, EMID!AK111, SWALES!AK111, SWEST!AK111, LPN!AK111,SPN!AK111,EPN!AK111,SPD!AK111,SPMW!AK111,SSEH!AK111,SSES!AK111) -> 0.1228941022 | AL111: =CHOOSE(m_identity,ENWL!AL111, NPgN!AL111, NPgY!AL111, WMID!AL111, EMID!AL111, SWALES!AL111, SWEST!AL111, LPN!AL111,SPN!AL111,EPN!AL111,SPD!AL111,SPMW!AL111,SSEH!AL111,SSES!AL111) -> 0.1208326121 | AM111: =CHOOSE(m_identity,ENWL!AM111, NPgN!AM111, NPgY!AM111, WMID!AM111, EMID!AM111, SWALES!AM111, SWEST!AM111, LPN!AM111,SPN!AM111,EPN!AM111,SPD!AM111,SPMW!AM111,SSEH!AM111,SSES!AM111) -> 0.1187655895 | AN111: =CHOOSE(m_identity,ENWL!AN111, NPgN!AN111, NPgY!AN111, WMID!AN111, EMID!AN111, SWALES!AN111, SWEST!AN111, LPN!AN111,SPN!AN111,EPN!AN111,SPD!AN111,SPMW!AN111,SSEH!AN111,SSES!AN111) -> 0.1183665096 | AO111: =CHOOSE(m_identity,ENWL!AO111, NPgN!AO111, NPgY!AO111, WMID!AO111, EMID!AO111, SWALES!AO111, SWEST!AO111, LPN!AO111,SPN!AO111,EPN!AO111,SPD!AO111,SPMW!AO111,SSEH!AO111,SSES!AO111) -> 0.1157563915 | AP111: =CHOOSE(m_identity,ENWL!AP111, NPgN!AP111, NPgY!AP111, WMID!AP111, EMID!AP111, SWALES!AP111, SWEST!AP111, LPN!AP111,SPN!AP111,EPN!AP111,SPD!AP111,SPMW!AP111,SSEH!AP111,SSES!AP111) -> 0.1110907674 | AQ111: =CHOOSE(m_identity,ENWL!AQ111, NPgN!AQ111, NPgY!AQ111, WMID!AQ111, EMID!AQ111, SWALES!AQ111, SWEST!AQ111, LPN!AQ111,SPN!AQ111,EPN!AQ111,SPD!AQ111,SPMW!AQ111,SSEH!AQ111,SSES!AQ111) -> 0.1100996191
E112: Allocation to controllable opex | G112: % | AJ112: =CHOOSE(m_identity,ENWL!AJ112, NPgN!AJ112, NPgY!AJ112, WMID!AJ112, EMID!AJ112, SWALES!AJ112, SWEST!AJ112, LPN!AJ112,SPN!AJ112,EPN!AJ112,SPD!AJ112,SPMW!AJ112,SSEH!AJ112,SSES!AJ112) -> 0 | AK112: =CHOOSE(m_identity,ENWL!AK112, NPgN!AK112, NPgY!AK112, WMID!AK112, EMID!AK112, SWALES!AK112, SWEST!AK112, LPN!AK112,SPN!AK112,EPN!AK112,SPD!AK112,SPMW!AK112,SSEH!AK112,SSES!AK112) -> 0 | AL112: =CHOOSE(m_identity,ENWL!AL112, NPgN!AL112, NPgY!AL112, WMID!AL112, EMID!AL112, SWALES!AL112, SWEST!AL112, LPN!AL112,SPN!AL112,EPN!AL112,SPD!AL112,SPMW!AL112,SSEH!AL112,SSES!AL112) -> 0 | AM112: =CHOOSE(m_identity,ENWL!AM112, NPgN!AM112, NPgY!AM112, WMID!AM112, EMID!AM112, SWALES!AM112, SWEST!AM112, LPN!AM112,SPN!AM112,EPN!AM112,SPD!AM112,SPMW!AM112,SSEH!AM112,SSES!AM112) -> 0 | AN112: =CHOOSE(m_identity,ENWL!AN112, NPgN!AN112, NPgY!AN112, WMID!AN112, EMID!AN112, SWALES!AN112, SWEST!AN112, LPN!AN112,SPN!AN112,EPN!AN112,SPD!AN112,SPMW!AN112,SSEH!AN112,SSES!AN112) -> 0 | AO112: =CHOOSE(m_identity,ENWL!AO112, NPgN!AO112, NPgY!AO112, WMID!AO112, EMID!AO112, SWALES!AO112, SWEST!AO112, LPN!AO112,SPN!AO112,EPN!AO112,SPD!AO112,SPMW!AO112,SSEH!AO112,SSES!AO112) -> 0 | AP112: =CHOOSE(m_identity,ENWL!AP112, NPgN!AP112, NPgY!AP112, WMID!AP112, EMID!AP112, SWALES!AP112, SWEST!AP112, LPN!AP112,SPN!AP112,EPN!AP112,SPD!AP112,SPMW!AP112,SSEH!AP112,SSES!AP112) -> 0 | AQ112: =CHOOSE(m_identity,ENWL!AQ112, NPgN!AQ112, NPgY!AQ112, WMID!AQ112, EMID!AQ112, SWALES!AQ112, SWEST!AQ112, LPN!AQ112,SPN!AQ112,EPN!AQ112,SPD!AQ112,SPMW!AQ112,SSEH!AQ112,SSES!AQ112) -> 0
E114: =E20 -> Allowed Expenditure - High Value Projects | G114: £m 12/13 prices | AJ114: =AJ20 -> 0 | AK114: 0 | AL114: 0 | AM114: 0 | AN114: 0 | AO114: 0 | AP114: 0 | AQ114: 0
E115: Allocation to load related capex | G115: % | AJ115: =CHOOSE(m_identity,ENWL!AJ115, NPgN!AJ115, NPgY!AJ115, WMID!AJ115, EMID!AJ115, SWALES!AJ115, SWEST!AJ115, LPN!AJ115,SPN!AJ115,EPN!AJ115,SPD!AJ115,SPMW!AJ115,SSEH!AJ115,SSES!AJ115) -> 0 | AK115: =CHOOSE(m_identity,ENWL!AK115, NPgN!AK115, NPgY!AK115, WMID!AK115, EMID!AK115, SWALES!AK115, SWEST!AK115, LPN!AK115,SPN!AK115,EPN!AK115,SPD!AK115,SPMW!AK115,SSEH!AK115,SSES!AK115) -> 0 | AL115: =CHOOSE(m_identity,ENWL!AL115, NPgN!AL115, NPgY!AL115, WMID!AL115, EMID!AL115, SWALES!AL115, SWEST!AL115, LPN!AL115,SPN!AL115,EPN!AL115,SPD!AL115,SPMW!AL115,SSEH!AL115,SSES!AL115) -> 0 | AM115: =CHOOSE(m_identity,ENWL!AM115, NPgN!AM115, NPgY!AM115, WMID!AM115, EMID!AM115, SWALES!AM115, SWEST!AM115, LPN!AM115,SPN!AM115,EPN!AM115,SPD!AM115,SPMW!AM115,SSEH!AM115,SSES!AM115) -> 0 | AN115: =CHOOSE(m_identity,ENWL!AN115, NPgN!AN115, NPgY!AN115, WMID!AN115, EMID!AN115, SWALES!AN115, SWEST!AN115, LPN!AN115,SPN!AN115,EPN!AN115,SPD!AN115,SPMW!AN115,SSEH!AN115,SSES!AN115) -> 0 | AO115: =CHOOSE(m_identity,ENWL!AO115, NPgN!AO115, NPgY!AO115, WMID!AO115, EMID!AO115, SWALES!AO115, SWEST!AO115, LPN!AO115,SPN!AO115,EPN!AO115,SPD!AO115,SPMW!AO115,SSEH!AO115,SSES!AO115) -> 0 | AP115: =CHOOSE(m_identity,ENWL!AP115, NPgN!AP115, NPgY!AP115, WMID!AP115, EMID!AP115, SWALES!AP115, SWEST!AP115, LPN!AP115,SPN!AP115,EPN!AP115,SPD!AP115,SPMW!AP115,SSEH!AP115,SSES!AP115) -> 0 | AQ115: =CHOOSE(m_identity,ENWL!AQ115, NPgN!AQ115, NPgY!AQ115, WMID!AQ115, EMID!AQ115, SWALES!AQ115, SWEST!AQ115, LPN!AQ115,SPN!AQ115,EPN!AQ115,SPD!AQ115,SPMW!AQ115,SSEH!AQ115,SSES!AQ115) -> 0
E116: Allocation to non-load related capex - asset replacement | G116: % | AJ116: =CHOOSE(m_identity,ENWL!AJ116, NPgN!AJ116, NPgY!AJ116, WMID!AJ116, EMID!AJ116, SWALES!AJ116, SWEST!AJ116, LPN!AJ116,SPN!AJ116,EPN!AJ116,SPD!AJ116,SPMW!AJ116,SSEH!AJ116,SSES!AJ116) -> 0 | AK116: =CHOOSE(m_identity,ENWL!AK116, NPgN!AK116, NPgY!AK116, WMID!AK116, EMID!AK116, SWALES!AK116, SWEST!AK116, LPN!AK116,SPN!AK116,EPN!AK116,SPD!AK116,SPMW!AK116,SSEH!AK116,SSES!AK116) -> 1 | AL116: =CHOOSE(m_identity,ENWL!AL116, NPgN!AL116, NPgY!AL116, WMID!AL116, EMID!AL116, SWALES!AL116, SWEST!AL116, LPN!AL116,SPN!AL116,EPN!AL116,SPD!AL116,SPMW!AL116,SSEH!AL116,SSES!AL116) -> 0.9912120849 | AM116: =CHOOSE(m_identity,ENWL!AM116, NPgN!AM116, NPgY!AM116, WMID!AM116, EMID!AM116, SWALES!AM116, SWEST!AM116, LPN!AM116,SPN!AM116,EPN!AM116,SPD!AM116,SPMW!AM116,SSEH!AM116,SSES!AM116) -> 0.9908827513 | AN116: =CHOOSE(m_identity,ENWL!AN116, NPgN!AN116, NPgY!AN116, WMID!AN116, EMID!AN116, SWALES!AN116, SWEST!AN116, LPN!AN116,SPN!AN116,EPN!AN116,SPD!AN116,SPMW!AN116,SSEH!AN116,SSES!AN116) -> 0.9055151844 | AO116: =CHOOSE(m_identity,ENWL!AO116, NPgN!AO116, NPgY!AO116, WMID!AO116, EMID!AO116, SWALES!AO116, SWEST!AO116, LPN!AO116,SPN!AO116,EPN!AO116,SPD!AO116,SPMW!AO116,SSEH!AO116,SSES!AO116) -> 0 | AP116: =CHOOSE(m_identity,ENWL!AP116, NPgN!AP116, NPgY!AP116, WMID!AP116, EMID!AP116, SWALES!AP116, SWEST!AP116, LPN!AP116,SPN!AP116,EPN!AP116,SPD!AP116,SPMW!AP116,SSEH!AP116,SSES!AP116) -> 0 | AQ116: =CHOOSE(m_identity,ENWL!AQ116, NPgN!AQ116, NPgY!AQ116, WMID!AQ116, EMID!AQ116, SWALES!AQ116, SWEST!AQ116, LPN!AQ116,SPN!AQ116,EPN!AQ116,SPD!AQ116,SPMW!AQ116,SSEH!AQ116,SSES!AQ116) -> 0
E117: Allocation to non-load related capex - other | G117: % | AJ117: =CHOOSE(m_identity,ENWL!AJ117, NPgN!AJ117, NPgY!AJ117, WMID!AJ117, EMID!AJ117, SWALES!AJ117, SWEST!AJ117, LPN!AJ117,SPN!AJ117,EPN!AJ117,SPD!AJ117,SPMW!AJ117,SSEH!AJ117,SSES!AJ117) -> 0 | AK117: =CHOOSE(m_identity,ENWL!AK117, NPgN!AK117, NPgY!AK117, WMID!AK117, EMID!AK117, SWALES!AK117, SWEST!AK117, LPN!AK117,SPN!AK117,EPN!AK117,SPD!AK117,SPMW!AK117,SSEH!AK117,SSES!AK117) -> 0 | AL117: =CHOOSE(m_identity,ENWL!AL117, NPgN!AL117, NPgY!AL117, WMID!AL117, EMID!AL117, SWALES!AL117, SWEST!AL117, LPN!AL117,SPN!AL117,EPN!AL117,SPD!AL117,SPMW!AL117,SSEH!AL117,SSES!AL117) -> 0 | AM117: =CHOOSE(m_identity,ENWL!AM117, NPgN!AM117, NPgY!AM117, WMID!AM117, EMID!AM117, SWALES!AM117, SWEST!AM117, LPN!AM117,SPN!AM117,EPN!AM117,SPD!AM117,SPMW!AM117,SSEH!AM117,SSES!AM117) -> 0 | AN117: =CHOOSE(m_identity,ENWL!AN117, NPgN!AN117, NPgY!AN117, WMID!AN117, EMID!AN117, SWALES!AN117, SWEST!AN117, LPN!AN117,SPN!AN117,EPN!AN117,SPD!AN117,SPMW!AN117,SSEH!AN117,SSES!AN117) -> 0 | AO117: =CHOOSE(m_identity,ENWL!AO117, NPgN!AO117, NPgY!AO117, WMID!AO117, EMID!AO117, SWALES!AO117, SWEST!AO117, LPN!AO117,SPN!AO117,EPN!AO117,SPD!AO117,SPMW!AO117,SSEH!AO117,SSES!AO117) -> 0 | AP117: =CHOOSE(m_identity,ENWL!AP117, NPgN!AP117, NPgY!AP117, WMID!AP117, EMID!AP117, SWALES!AP117, SWEST!AP117, LPN!AP117,SPN!AP117,EPN!AP117,SPD!AP117,SPMW!AP117,SSEH!AP117,SSES!AP117) -> 0 | AQ117: =CHOOSE(m_identity,ENWL!AQ117, NPgN!AQ117, NPgY!AQ117, WMID!AQ117, EMID!AQ117, SWALES!AQ117, SWEST!AQ117, LPN!AQ117,SPN!AQ117,EPN!AQ117,SPD!AQ117,SPMW!AQ117,SSEH!AQ117,SSES!AQ117) -> 0
E118: Allocation to faults | G118: % | AJ118: =CHOOSE(m_identity,ENWL!AJ118, NPgN!AJ118, NPgY!AJ118, WMID!AJ118, EMID!AJ118, SWALES!AJ118, SWEST!AJ118, LPN!AJ118,SPN!AJ118,EPN!AJ118,SPD!AJ118,SPMW!AJ118,SSEH!AJ118,SSES!AJ118) -> 0 | AK118: =CHOOSE(m_identity,ENWL!AK118, NPgN!AK118, NPgY!AK118, WMID!AK118, EMID!AK118, SWALES!AK118, SWEST!AK118, LPN!AK118,SPN!AK118,EPN!AK118,SPD!AK118,SPMW!AK118,SSEH!AK118,SSES!AK118) -> 0 | AL118: =CHOOSE(m_identity,ENWL!AL118, NPgN!AL118, NPgY!AL118, WMID!AL118, EMID!AL118, SWALES!AL118, SWEST!AL118, LPN!AL118,SPN!AL118,EPN!AL118,SPD!AL118,SPMW!AL118,SSEH!AL118,SSES!AL118) -> 0 | AM118: =CHOOSE(m_identity,ENWL!AM118, NPgN!AM118, NPgY!AM118, WMID!AM118, EMID!AM118, SWALES!AM118, SWEST!AM118, LPN!AM118,SPN!AM118,EPN!AM118,SPD!AM118,SPMW!AM118,SSEH!AM118,SSES!AM118) -> 0 | AN118: =CHOOSE(m_identity,ENWL!AN118, NPgN!AN118, NPgY!AN118, WMID!AN118, EMID!AN118, SWALES!AN118, SWEST!AN118, LPN!AN118,SPN!AN118,EPN!AN118,SPD!AN118,SPMW!AN118,SSEH!AN118,SSES!AN118) -> 0 | AO118: =CHOOSE(m_identity,ENWL!AO118, NPgN!AO118, NPgY!AO118, WMID!AO118, EMID!AO118, SWALES!AO118, SWEST!AO118, LPN!AO118,SPN!AO118,EPN!AO118,SPD!AO118,SPMW!AO118,SSEH!AO118,SSES!AO118) -> 0 | AP118: =CHOOSE(m_identity,ENWL!AP118, NPgN!AP118, NPgY!AP118, WMID!AP118, EMID!AP118, SWALES!AP118, SWEST!AP118, LPN!AP118,SPN!AP118,EPN!AP118,SPD!AP118,SPMW!AP118,SSEH!AP118,SSES!AP118) -> 0 | AQ118: =CHOOSE(m_identity,ENWL!AQ118, NPgN!AQ118, NPgY!AQ118, WMID!AQ118, EMID!AQ118, SWALES!AQ118, SWEST!AQ118, LPN!AQ118,SPN!AQ118,EPN!AQ118,SPD!AQ118,SPMW!AQ118,SSEH!AQ118,SSES!AQ118) -> 0
E119: Allocation to tree cutting | G119: % | AJ119: =CHOOSE(m_identity,ENWL!AJ119, NPgN!AJ119, NPgY!AJ119, WMID!AJ119, EMID!AJ119, SWALES!AJ119, SWEST!AJ119, LPN!AJ119,SPN!AJ119,EPN!AJ119,SPD!AJ119,SPMW!AJ119,SSEH!AJ119,SSES!AJ119) -> 0 | AK119: =CHOOSE(m_identity,ENWL!AK119, NPgN!AK119, NPgY!AK119, WMID!AK119, EMID!AK119, SWALES!AK119, SWEST!AK119, LPN!AK119,SPN!AK119,EPN!AK119,SPD!AK119,SPMW!AK119,SSEH!AK119,SSES!AK119) -> 0 | AL119: =CHOOSE(m_identity,ENWL!AL119, NPgN!AL119, NPgY!AL119, WMID!AL119, EMID!AL119, SWALES!AL119, SWEST!AL119, LPN!AL119,SPN!AL119,EPN!AL119,SPD!AL119,SPMW!AL119,SSEH!AL119,SSES!AL119) -> 0 | AM119: =CHOOSE(m_identity,ENWL!AM119, NPgN!AM119, NPgY!AM119, WMID!AM119, EMID!AM119, SWALES!AM119, SWEST!AM119, LPN!AM119,SPN!AM119,EPN!AM119,SPD!AM119,SPMW!AM119,SSEH!AM119,SSES!AM119) -> 0 | AN119: =CHOOSE(m_identity,ENWL!AN119, NPgN!AN119, NPgY!AN119, WMID!AN119, EMID!AN119, SWALES!AN119, SWEST!AN119, LPN!AN119,SPN!AN119,EPN!AN119,SPD!AN119,SPMW!AN119,SSEH!AN119,SSES!AN119) -> 0 | AO119: =CHOOSE(m_identity,ENWL!AO119, NPgN!AO119, NPgY!AO119, WMID!AO119, EMID!AO119, SWALES!AO119, SWEST!AO119, LPN!AO119,SPN!AO119,EPN!AO119,SPD!AO119,SPMW!AO119,SSEH!AO119,SSES!AO119) -> 0 | AP119: =CHOOSE(m_identity,ENWL!AP119, NPgN!AP119, NPgY!AP119, WMID!AP119, EMID!AP119, SWALES!AP119, SWEST!AP119, LPN!AP119,SPN!AP119,EPN!AP119,SPD!AP119,SPMW!AP119,SSEH!AP119,SSES!AP119) -> 0 | AQ119: =CHOOSE(m_identity,ENWL!AQ119, NPgN!AQ119, NPgY!AQ119, WMID!AQ119, EMID!AQ119, SWALES!AQ119, SWEST!AQ119, LPN!AQ119,SPN!AQ119,EPN!AQ119,SPD!AQ119,SPMW!AQ119,SSEH!AQ119,SSES!AQ119) -> 0
E120: Allocation to 100% ‘revenue pool’ expenditure | G120: % | AJ120: =CHOOSE(m_identity,ENWL!AJ120, NPgN!AJ120, NPgY!AJ120, WMID!AJ120, EMID!AJ120, SWALES!AJ120, SWEST!AJ120, LPN!AJ120,SPN!AJ120,EPN!AJ120,SPD!AJ120,SPMW!AJ120,SSEH!AJ120,SSES!AJ120) -> 0 | AK120: =CHOOSE(m_identity,ENWL!AK120, NPgN!AK120, NPgY!AK120, WMID!AK120, EMID!AK120, SWALES!AK120, SWEST!AK120, LPN!AK120,SPN!AK120,EPN!AK120,SPD!AK120,SPMW!AK120,SSEH!AK120,SSES!AK120) -> 0 | AL120: =CHOOSE(m_identity,ENWL!AL120, NPgN!AL120, NPgY!AL120, WMID!AL120, EMID!AL120, SWALES!AL120, SWEST!AL120, LPN!AL120,SPN!AL120,EPN!AL120,SPD!AL120,SPMW!AL120,SSEH!AL120,SSES!AL120) -> 0.008787915095 | AM120: =CHOOSE(m_identity,ENWL!AM120, NPgN!AM120, NPgY!AM120, WMID!AM120, EMID!AM120, SWALES!AM120, SWEST!AM120, LPN!AM120,SPN!AM120,EPN!AM120,SPD!AM120,SPMW!AM120,SSEH!AM120,SSES!AM120) -> 0.009117248681 | AN120: =CHOOSE(m_identity,ENWL!AN120, NPgN!AN120, NPgY!AN120, WMID!AN120, EMID!AN120, SWALES!AN120, SWEST!AN120, LPN!AN120,SPN!AN120,EPN!AN120,SPD!AN120,SPMW!AN120,SSEH!AN120,SSES!AN120) -> 0.09448481559 | AO120: =CHOOSE(m_identity,ENWL!AO120, NPgN!AO120, NPgY!AO120, WMID!AO120, EMID!AO120, SWALES!AO120, SWEST!AO120, LPN!AO120,SPN!AO120,EPN!AO120,SPD!AO120,SPMW!AO120,SSEH!AO120,SSES!AO120) -> 0 | AP120: =CHOOSE(m_identity,ENWL!AP120, NPgN!AP120, NPgY!AP120, WMID!AP120, EMID!AP120, SWALES!AP120, SWEST!AP120, LPN!AP120,SPN!AP120,EPN!AP120,SPD!AP120,SPMW!AP120,SSEH!AP120,SSES!AP120) -> 0 | AQ120: =CHOOSE(m_identity,ENWL!AQ120, NPgN!AQ120, NPgY!AQ120, WMID!AQ120, EMID!AQ120, SWALES!AQ120, SWEST!AQ120, LPN!AQ120,SPN!AQ120,EPN!AQ120,SPD!AQ120,SPMW!AQ120,SSEH!AQ120,SSES!AQ120) -> 0
E121: Allocation to controllable opex | G121: % | AJ121: =CHOOSE(m_identity,ENWL!AJ121, NPgN!AJ121, NPgY!AJ121, WMID!AJ121, EMID!AJ121, SWALES!AJ121, SWEST!AJ121, LPN!AJ121,SPN!AJ121,EPN!AJ121,SPD!AJ121,SPMW!AJ121,SSEH!AJ121,SSES!AJ121) -> 0 | AK121: =CHOOSE(m_identity,ENWL!AK121, NPgN!AK121, NPgY!AK121, WMID!AK121, EMID!AK121, SWALES!AK121, SWEST!AK121, LPN!AK121,SPN!AK121,EPN!AK121,SPD!AK121,SPMW!AK121,SSEH!AK121,SSES!AK121) -> 0 | AL121: =CHOOSE(m_identity,ENWL!AL121, NPgN!AL121, NPgY!AL121, WMID!AL121, EMID!AL121, SWALES!AL121, SWEST!AL121, LPN!AL121,SPN!AL121,EPN!AL121,SPD!AL121,SPMW!AL121,SSEH!AL121,SSES!AL121) -> 0 | AM121: =CHOOSE(m_identity,ENWL!AM121, NPgN!AM121, NPgY!AM121, WMID!AM121, EMID!AM121, SWALES!AM121, SWEST!AM121, LPN!AM121,SPN!AM121,EPN!AM121,SPD!AM121,SPMW!AM121,SSEH!AM121,SSES!AM121) -> 0 | AN121: =CHOOSE(m_identity,ENWL!AN121, NPgN!AN121, NPgY!AN121, WMID!AN121, EMID!AN121, SWALES!AN121, SWEST!AN121, LPN!AN121,SPN!AN121,EPN!AN121,SPD!AN121,SPMW!AN121,SSEH!AN121,SSES!AN121) -> 0 | AO121: =CHOOSE(m_identity,ENWL!AO121, NPgN!AO121, NPgY!AO121, WMID!AO121, EMID!AO121, SWALES!AO121, SWEST!AO121, LPN!AO121,SPN!AO121,EPN!AO121,SPD!AO121,SPMW!AO121,SSEH!AO121,SSES!AO121) -> 0 | AP121: =CHOOSE(m_identity,ENWL!AP121, NPgN!AP121, NPgY!AP121, WMID!AP121, EMID!AP121, SWALES!AP121, SWEST!AP121, LPN!AP121,SPN!AP121,EPN!AP121,SPD!AP121,SPMW!AP121,SSEH!AP121,SSES!AP121) -> 0 | AQ121: =CHOOSE(m_identity,ENWL!AQ121, NPgN!AQ121, NPgY!AQ121, WMID!AQ121, EMID!AQ121, SWALES!AQ121, SWEST!AQ121, LPN!AQ121,SPN!AQ121,EPN!AQ121,SPD!AQ121,SPMW!AQ121,SSEH!AQ121,SSES!AQ121) -> 0
E123: =E21 -> Allowed Expenditure - Visual Amenity Allowed (TIM neutral) | G123: £m 12/13 prices | AJ123: =AJ21 -> 0 | AK123: =AK21 -> 0 | AL123: 0 | AM123: 0 | AN123: 0 | AO123: 0 | AP123: 0 | AQ123: 0
E124: Allocation to load related capex | G124: % | AJ124: =CHOOSE(m_identity,ENWL!AJ124, NPgN!AJ124, NPgY!AJ124, WMID!AJ124, EMID!AJ124, SWALES!AJ124, SWEST!AJ124, LPN!AJ124,SPN!AJ124,EPN!AJ124,SPD!AJ124,SPMW!AJ124,SSEH!AJ124,SSES!AJ124) -> 0 | AK124: =CHOOSE(m_identity,ENWL!AK124, NPgN!AK124, NPgY!AK124, WMID!AK124, EMID!AK124, SWALES!AK124, SWEST!AK124, LPN!AK124,SPN!AK124,EPN!AK124,SPD!AK124,SPMW!AK124,SSEH!AK124,SSES!AK124) -> 0 | AL124: =CHOOSE(m_identity,ENWL!AL124, NPgN!AL124, NPgY!AL124, WMID!AL124, EMID!AL124, SWALES!AL124, SWEST!AL124, LPN!AL124,SPN!AL124,EPN!AL124,SPD!AL124,SPMW!AL124,SSEH!AL124,SSES!AL124) -> 0 | AM124: =CHOOSE(m_identity,ENWL!AM124, NPgN!AM124, NPgY!AM124, WMID!AM124, EMID!AM124, SWALES!AM124, SWEST!AM124, LPN!AM124,SPN!AM124,EPN!AM124,SPD!AM124,SPMW!AM124,SSEH!AM124,SSES!AM124) -> 0 | AN124: =CHOOSE(m_identity,ENWL!AN124, NPgN!AN124, NPgY!AN124, WMID!AN124, EMID!AN124, SWALES!AN124, SWEST!AN124, LPN!AN124,SPN!AN124,EPN!AN124,SPD!AN124,SPMW!AN124,SSEH!AN124,SSES!AN124) -> 0 | AO124: =CHOOSE(m_identity,ENWL!AO124, NPgN!AO124, NPgY!AO124, WMID!AO124, EMID!AO124, SWALES!AO124, SWEST!AO124, LPN!AO124,SPN!AO124,EPN!AO124,SPD!AO124,SPMW!AO124,SSEH!AO124,SSES!AO124) -> 0 | AP124: =CHOOSE(m_identity,ENWL!AP124, NPgN!AP124, NPgY!AP124, WMID!AP124, EMID!AP124, SWALES!AP124, SWEST!AP124, LPN!AP124,SPN!AP124,EPN!AP124,SPD!AP124,SPMW!AP124,SSEH!AP124,SSES!AP124) -> 0 | AQ124: =CHOOSE(m_identity,ENWL!AQ124, NPgN!AQ124, NPgY!AQ124, WMID!AQ124, EMID!AQ124, SWALES!AQ124, SWEST!AQ124, LPN!AQ124,SPN!AQ124,EPN!AQ124,SPD!AQ124,SPMW!AQ124,SSEH!AQ124,SSES!AQ124) -> 0
E125: Allocation to non-load related capex - asset replacement | G125: % | AJ125: =CHOOSE(m_identity,ENWL!AJ125, NPgN!AJ125, NPgY!AJ125, WMID!AJ125, EMID!AJ125, SWALES!AJ125, SWEST!AJ125, LPN!AJ125,SPN!AJ125,EPN!AJ125,SPD!AJ125,SPMW!AJ125,SSEH!AJ125,SSES!AJ125) -> 0 | AK125: =CHOOSE(m_identity,ENWL!AK125, NPgN!AK125, NPgY!AK125, WMID!AK125, EMID!AK125, SWALES!AK125, SWEST!AK125, LPN!AK125,SPN!AK125,EPN!AK125,SPD!AK125,SPMW!AK125,SSEH!AK125,SSES!AK125) -> 0 | AL125: =CHOOSE(m_identity,ENWL!AL125, NPgN!AL125, NPgY!AL125, WMID!AL125, EMID!AL125, SWALES!AL125, SWEST!AL125, LPN!AL125,SPN!AL125,EPN!AL125,SPD!AL125,SPMW!AL125,SSEH!AL125,SSES!AL125) -> 0 | AM125: =CHOOSE(m_identity,ENWL!AM125, NPgN!AM125, NPgY!AM125, WMID!AM125, EMID!AM125, SWALES!AM125, SWEST!AM125, LPN!AM125,SPN!AM125,EPN!AM125,SPD!AM125,SPMW!AM125,SSEH!AM125,SSES!AM125) -> 0 | AN125: =CHOOSE(m_identity,ENWL!AN125, NPgN!AN125, NPgY!AN125, WMID!AN125, EMID!AN125, SWALES!AN125, SWEST!AN125, LPN!AN125,SPN!AN125,EPN!AN125,SPD!AN125,SPMW!AN125,SSEH!AN125,SSES!AN125) -> 0 | AO125: =CHOOSE(m_identity,ENWL!AO125, NPgN!AO125, NPgY!AO125, WMID!AO125, EMID!AO125, SWALES!AO125, SWEST!AO125, LPN!AO125,SPN!AO125,EPN!AO125,SPD!AO125,SPMW!AO125,SSEH!AO125,SSES!AO125) -> 0 | AP125: =CHOOSE(m_identity,ENWL!AP125, NPgN!AP125, NPgY!AP125, WMID!AP125, EMID!AP125, SWALES!AP125, SWEST!AP125, LPN!AP125,SPN!AP125,EPN!AP125,SPD!AP125,SPMW!AP125,SSEH!AP125,SSES!AP125) -> 0 | AQ125: =CHOOSE(m_identity,ENWL!AQ125, NPgN!AQ125, NPgY!AQ125, WMID!AQ125, EMID!AQ125, SWALES!AQ125, SWEST!AQ125, LPN!AQ125,SPN!AQ125,EPN!AQ125,SPD!AQ125,SPMW!AQ125,SSEH!AQ125,SSES!AQ125) -> 0
E126: Allocation to non-load related capex - other | G126: % | AJ126: =CHOOSE(m_identity,ENWL!AJ126, NPgN!AJ126, NPgY!AJ126, WMID!AJ126, EMID!AJ126, SWALES!AJ126, SWEST!AJ126, LPN!AJ126,SPN!AJ126,EPN!AJ126,SPD!AJ126,SPMW!AJ126,SSEH!AJ126,SSES!AJ126) -> 0.9614422704 | AK126: =CHOOSE(m_identity,ENWL!AK126, NPgN!AK126, NPgY!AK126, WMID!AK126, EMID!AK126, SWALES!AK126, SWEST!AK126, LPN!AK126,SPN!AK126,EPN!AK126,SPD!AK126,SPMW!AK126,SSEH!AK126,SSES!AK126) -> 0.9602654699 | AL126: =CHOOSE(m_identity,ENWL!AL126, NPgN!AL126, NPgY!AL126, WMID!AL126, EMID!AL126, SWALES!AL126, SWEST!AL126, LPN!AL126,SPN!AL126,EPN!AL126,SPD!AL126,SPMW!AL126,SSEH!AL126,SSES!AL126) -> 0.961230924 | AM126: =CHOOSE(m_identity,ENWL!AM126, NPgN!AM126, NPgY!AM126, WMID!AM126, EMID!AM126, SWALES!AM126, SWEST!AM126, LPN!AM126,SPN!AM126,EPN!AM126,SPD!AM126,SPMW!AM126,SSEH!AM126,SSES!AM126) -> 0.9619988323 | AN126: =CHOOSE(m_identity,ENWL!AN126, NPgN!AN126, NPgY!AN126, WMID!AN126, EMID!AN126, SWALES!AN126, SWEST!AN126, LPN!AN126,SPN!AN126,EPN!AN126,SPD!AN126,SPMW!AN126,SSEH!AN126,SSES!AN126) -> 0.962194438 | AO126: =CHOOSE(m_identity,ENWL!AO126, NPgN!AO126, NPgY!AO126, WMID!AO126, EMID!AO126, SWALES!AO126, SWEST!AO126, LPN!AO126,SPN!AO126,EPN!AO126,SPD!AO126,SPMW!AO126,SSEH!AO126,SSES!AO126) -> 0.9631540864 | AP126: =CHOOSE(m_identity,ENWL!AP126, NPgN!AP126, NPgY!AP126, WMID!AP126, EMID!AP126, SWALES!AP126, SWEST!AP126, LPN!AP126,SPN!AP126,EPN!AP126,SPD!AP126,SPMW!AP126,SSEH!AP126,SSES!AP126) -> 0.9648243525 | AQ126: =CHOOSE(m_identity,ENWL!AQ126, NPgN!AQ126, NPgY!AQ126, WMID!AQ126, EMID!AQ126, SWALES!AQ126, SWEST!AQ126, LPN!AQ126,SPN!AQ126,EPN!AQ126,SPD!AQ126,SPMW!AQ126,SSEH!AQ126,SSES!AQ126) -> 0.9652206093
E127: Allocation to faults | G127: % | AJ127: =CHOOSE(m_identity,ENWL!AJ127, NPgN!AJ127, NPgY!AJ127, WMID!AJ127, EMID!AJ127, SWALES!AJ127, SWEST!AJ127, LPN!AJ127,SPN!AJ127,EPN!AJ127,SPD!AJ127,SPMW!AJ127,SSEH!AJ127,SSES!AJ127) -> 0 | AK127: =CHOOSE(m_identity,ENWL!AK127, NPgN!AK127, NPgY!AK127, WMID!AK127, EMID!AK127, SWALES!AK127, SWEST!AK127, LPN!AK127,SPN!AK127,EPN!AK127,SPD!AK127,SPMW!AK127,SSEH!AK127,SSES!AK127) -> 0 | AL127: =CHOOSE(m_identity,ENWL!AL127, NPgN!AL127, NPgY!AL127, WMID!AL127, EMID!AL127, SWALES!AL127, SWEST!AL127, LPN!AL127,SPN!AL127,EPN!AL127,SPD!AL127,SPMW!AL127,SSEH!AL127,SSES!AL127) -> 0 | AM127: =CHOOSE(m_identity,ENWL!AM127, NPgN!AM127, NPgY!AM127, WMID!AM127, EMID!AM127, SWALES!AM127, SWEST!AM127, LPN!AM127,SPN!AM127,EPN!AM127,SPD!AM127,SPMW!AM127,SSEH!AM127,SSES!AM127) -> 0 | AN127: =CHOOSE(m_identity,ENWL!AN127, NPgN!AN127, NPgY!AN127, WMID!AN127, EMID!AN127, SWALES!AN127, SWEST!AN127, LPN!AN127,SPN!AN127,EPN!AN127,SPD!AN127,SPMW!AN127,SSEH!AN127,SSES!AN127) -> 0 | AO127: =CHOOSE(m_identity,ENWL!AO127, NPgN!AO127, NPgY!AO127, WMID!AO127, EMID!AO127, SWALES!AO127, SWEST!AO127, LPN!AO127,SPN!AO127,EPN!AO127,SPD!AO127,SPMW!AO127,SSEH!AO127,SSES!AO127) -> 0 | AP127: =CHOOSE(m_identity,ENWL!AP127, NPgN!AP127, NPgY!AP127, WMID!AP127, EMID!AP127, SWALES!AP127, SWEST!AP127, LPN!AP127,SPN!AP127,EPN!AP127,SPD!AP127,SPMW!AP127,SSEH!AP127,SSES!AP127) -> 0 | AQ127: =CHOOSE(m_identity,ENWL!AQ127, NPgN!AQ127, NPgY!AQ127, WMID!AQ127, EMID!AQ127, SWALES!AQ127, SWEST!AQ127, LPN!AQ127,SPN!AQ127,EPN!AQ127,SPD!AQ127,SPMW!AQ127,SSEH!AQ127,SSES!AQ127) -> 0
E128: Allocation to tree cutting | G128: % | AJ128: =CHOOSE(m_identity,ENWL!AJ128, NPgN!AJ128, NPgY!AJ128, WMID!AJ128, EMID!AJ128, SWALES!AJ128, SWEST!AJ128, LPN!AJ128,SPN!AJ128,EPN!AJ128,SPD!AJ128,SPMW!AJ128,SSEH!AJ128,SSES!AJ128) -> 0 | AK128: =CHOOSE(m_identity,ENWL!AK128, NPgN!AK128, NPgY!AK128, WMID!AK128, EMID!AK128, SWALES!AK128, SWEST!AK128, LPN!AK128,SPN!AK128,EPN!AK128,SPD!AK128,SPMW!AK128,SSEH!AK128,SSES!AK128) -> 0 | AL128: =CHOOSE(m_identity,ENWL!AL128, NPgN!AL128, NPgY!AL128, WMID!AL128, EMID!AL128, SWALES!AL128, SWEST!AL128, LPN!AL128,SPN!AL128,EPN!AL128,SPD!AL128,SPMW!AL128,SSEH!AL128,SSES!AL128) -> 0 | AM128: =CHOOSE(m_identity,ENWL!AM128, NPgN!AM128, NPgY!AM128, WMID!AM128, EMID!AM128, SWALES!AM128, SWEST!AM128, LPN!AM128,SPN!AM128,EPN!AM128,SPD!AM128,SPMW!AM128,SSEH!AM128,SSES!AM128) -> 0 | AN128: =CHOOSE(m_identity,ENWL!AN128, NPgN!AN128, NPgY!AN128, WMID!AN128, EMID!AN128, SWALES!AN128, SWEST!AN128, LPN!AN128,SPN!AN128,EPN!AN128,SPD!AN128,SPMW!AN128,SSEH!AN128,SSES!AN128) -> 0 | AO128: =CHOOSE(m_identity,ENWL!AO128, NPgN!AO128, NPgY!AO128, WMID!AO128, EMID!AO128, SWALES!AO128, SWEST!AO128, LPN!AO128,SPN!AO128,EPN!AO128,SPD!AO128,SPMW!AO128,SSEH!AO128,SSES!AO128) -> 0 | AP128: =CHOOSE(m_identity,ENWL!AP128, NPgN!AP128, NPgY!AP128, WMID!AP128, EMID!AP128, SWALES!AP128, SWEST!AP128, LPN!AP128,SPN!AP128,EPN!AP128,SPD!AP128,SPMW!AP128,SSEH!AP128,SSES!AP128) -> 0 | AQ128: =CHOOSE(m_identity,ENWL!AQ128, NPgN!AQ128, NPgY!AQ128, WMID!AQ128, EMID!AQ128, SWALES!AQ128, SWEST!AQ128, LPN!AQ128,SPN!AQ128,EPN!AQ128,SPD!AQ128,SPMW!AQ128,SSEH!AQ128,SSES!AQ128) -> 0
E129: Allocation to 100% ‘revenue pool’ expenditure | G129: % | AJ129: =CHOOSE(m_identity,ENWL!AJ129, NPgN!AJ129, NPgY!AJ129, WMID!AJ129, EMID!AJ129, SWALES!AJ129, SWEST!AJ129, LPN!AJ129,SPN!AJ129,EPN!AJ129,SPD!AJ129,SPMW!AJ129,SSEH!AJ129,SSES!AJ129) -> 0.03855772957 | AK129: =CHOOSE(m_identity,ENWL!AK129, NPgN!AK129, NPgY!AK129, WMID!AK129, EMID!AK129, SWALES!AK129, SWEST!AK129, LPN!AK129,SPN!AK129,EPN!AK129,SPD!AK129,SPMW!AK129,SSEH!AK129,SSES!AK129) -> 0.03973453007 | AL129: =CHOOSE(m_identity,ENWL!AL129, NPgN!AL129, NPgY!AL129, WMID!AL129, EMID!AL129, SWALES!AL129, SWEST!AL129, LPN!AL129,SPN!AL129,EPN!AL129,SPD!AL129,SPMW!AL129,SSEH!AL129,SSES!AL129) -> 0.03876907597 | AM129: =CHOOSE(m_identity,ENWL!AM129, NPgN!AM129, NPgY!AM129, WMID!AM129, EMID!AM129, SWALES!AM129, SWEST!AM129, LPN!AM129,SPN!AM129,EPN!AM129,SPD!AM129,SPMW!AM129,SSEH!AM129,SSES!AM129) -> 0.03800116766 | AN129: =CHOOSE(m_identity,ENWL!AN129, NPgN!AN129, NPgY!AN129, WMID!AN129, EMID!AN129, SWALES!AN129, SWEST!AN129, LPN!AN129,SPN!AN129,EPN!AN129,SPD!AN129,SPMW!AN129,SSEH!AN129,SSES!AN129) -> 0.03780556199 | AO129: =CHOOSE(m_identity,ENWL!AO129, NPgN!AO129, NPgY!AO129, WMID!AO129, EMID!AO129, SWALES!AO129, SWEST!AO129, LPN!AO129,SPN!AO129,EPN!AO129,SPD!AO129,SPMW!AO129,SSEH!AO129,SSES!AO129) -> 0.03684591362 | AP129: =CHOOSE(m_identity,ENWL!AP129, NPgN!AP129, NPgY!AP129, WMID!AP129, EMID!AP129, SWALES!AP129, SWEST!AP129, LPN!AP129,SPN!AP129,EPN!AP129,SPD!AP129,SPMW!AP129,SSEH!AP129,SSES!AP129) -> 0.03517564748 | AQ129: =CHOOSE(m_identity,ENWL!AQ129, NPgN!AQ129, NPgY!AQ129, WMID!AQ129, EMID!AQ129, SWALES!AQ129, SWEST!AQ129, LPN!AQ129,SPN!AQ129,EPN!AQ129,SPD!AQ129,SPMW!AQ129,SSEH!AQ129,SSES!AQ129) -> 0.03477939074
E130: Allocation to controllable opex | G130: % | AJ130: =CHOOSE(m_identity,ENWL!AJ130, NPgN!AJ130, NPgY!AJ130, WMID!AJ130, EMID!AJ130, SWALES!AJ130, SWEST!AJ130, LPN!AJ130,SPN!AJ130,EPN!AJ130,SPD!AJ130,SPMW!AJ130,SSEH!AJ130,SSES!AJ130) -> 0 | AK130: =CHOOSE(m_identity,ENWL!AK130, NPgN!AK130, NPgY!AK130, WMID!AK130, EMID!AK130, SWALES!AK130, SWEST!AK130, LPN!AK130,SPN!AK130,EPN!AK130,SPD!AK130,SPMW!AK130,SSEH!AK130,SSES!AK130) -> 0 | AL130: =CHOOSE(m_identity,ENWL!AL130, NPgN!AL130, NPgY!AL130, WMID!AL130, EMID!AL130, SWALES!AL130, SWEST!AL130, LPN!AL130,SPN!AL130,EPN!AL130,SPD!AL130,SPMW!AL130,SSEH!AL130,SSES!AL130) -> 0 | AM130: =CHOOSE(m_identity,ENWL!AM130, NPgN!AM130, NPgY!AM130, WMID!AM130, EMID!AM130, SWALES!AM130, SWEST!AM130, LPN!AM130,SPN!AM130,EPN!AM130,SPD!AM130,SPMW!AM130,SSEH!AM130,SSES!AM130) -> 0 | AN130: =CHOOSE(m_identity,ENWL!AN130, NPgN!AN130, NPgY!AN130, WMID!AN130, EMID!AN130, SWALES!AN130, SWEST!AN130, LPN!AN130,SPN!AN130,EPN!AN130,SPD!AN130,SPMW!AN130,SSEH!AN130,SSES!AN130) -> 0 | AO130: =CHOOSE(m_identity,ENWL!AO130, NPgN!AO130, NPgY!AO130, WMID!AO130, EMID!AO130, SWALES!AO130, SWEST!AO130, LPN!AO130,SPN!AO130,EPN!AO130,SPD!AO130,SPMW!AO130,SSEH!AO130,SSES!AO130) -> 0 | AP130: =CHOOSE(m_identity,ENWL!AP130, NPgN!AP130, NPgY!AP130, WMID!AP130, EMID!AP130, SWALES!AP130, SWEST!AP130, LPN!AP130,SPN!AP130,EPN!AP130,SPD!AP130,SPMW!AP130,SSEH!AP130,SSES!AP130) -> 0 | AQ130: =CHOOSE(m_identity,ENWL!AQ130, NPgN!AQ130, NPgY!AQ130, WMID!AQ130, EMID!AQ130, SWALES!AQ130, SWEST!AQ130, LPN!AQ130,SPN!AQ130,EPN!AQ130,SPD!AQ130,SPMW!AQ130,SSEH!AQ130,SSES!AQ130) -> 0
E132: =E22 -> Allowed Expenditure - Worst Served Customers Allowed (TIM neutral) | G132: £m 12/13 prices | AJ132: =AJ22 -> 0 | AK132: =AK22 -> 0 | AL132: 0 | AM132: 0 | AN132: 0 | AO132: 0 | AP132: 0 | AQ132: 0
E133: Allocation to load related capex | G133: % | AJ133: =CHOOSE(m_identity,ENWL!AJ133, NPgN!AJ133, NPgY!AJ133, WMID!AJ133, EMID!AJ133, SWALES!AJ133, SWEST!AJ133, LPN!AJ133,SPN!AJ133,EPN!AJ133,SPD!AJ133,SPMW!AJ133,SSEH!AJ133,SSES!AJ133) -> 0 | AK133: =CHOOSE(m_identity,ENWL!AK133, NPgN!AK133, NPgY!AK133, WMID!AK133, EMID!AK133, SWALES!AK133, SWEST!AK133, LPN!AK133,SPN!AK133,EPN!AK133,SPD!AK133,SPMW!AK133,SSEH!AK133,SSES!AK133) -> 0 | AL133: =CHOOSE(m_identity,ENWL!AL133, NPgN!AL133, NPgY!AL133, WMID!AL133, EMID!AL133, SWALES!AL133, SWEST!AL133, LPN!AL133,SPN!AL133,EPN!AL133,SPD!AL133,SPMW!AL133,SSEH!AL133,SSES!AL133) -> 0 | AM133: =CHOOSE(m_identity,ENWL!AM133, NPgN!AM133, NPgY!AM133, WMID!AM133, EMID!AM133, SWALES!AM133, SWEST!AM133, LPN!AM133,SPN!AM133,EPN!AM133,SPD!AM133,SPMW!AM133,SSEH!AM133,SSES!AM133) -> 0 | AN133: =CHOOSE(m_identity,ENWL!AN133, NPgN!AN133, NPgY!AN133, WMID!AN133, EMID!AN133, SWALES!AN133, SWEST!AN133, LPN!AN133,SPN!AN133,EPN!AN133,SPD!AN133,SPMW!AN133,SSEH!AN133,SSES!AN133) -> 0 | AO133: =CHOOSE(m_identity,ENWL!AO133, NPgN!AO133, NPgY!AO133, WMID!AO133, EMID!AO133, SWALES!AO133, SWEST!AO133, LPN!AO133,SPN!AO133,EPN!AO133,SPD!AO133,SPMW!AO133,SSEH!AO133,SSES!AO133) -> 0 | AP133: =CHOOSE(m_identity,ENWL!AP133, NPgN!AP133, NPgY!AP133, WMID!AP133, EMID!AP133, SWALES!AP133, SWEST!AP133, LPN!AP133,SPN!AP133,EPN!AP133,SPD!AP133,SPMW!AP133,SSEH!AP133,SSES!AP133) -> 0 | AQ133: =CHOOSE(m_identity,ENWL!AQ133, NPgN!AQ133, NPgY!AQ133, WMID!AQ133, EMID!AQ133, SWALES!AQ133, SWEST!AQ133, LPN!AQ133,SPN!AQ133,EPN!AQ133,SPD!AQ133,SPMW!AQ133,SSEH!AQ133,SSES!AQ133) -> 0
E134: Allocation to non-load related capex - asset replacement | G134: % | AJ134: =CHOOSE(m_identity,ENWL!AJ134, NPgN!AJ134, NPgY!AJ134, WMID!AJ134, EMID!AJ134, SWALES!AJ134, SWEST!AJ134, LPN!AJ134,SPN!AJ134,EPN!AJ134,SPD!AJ134,SPMW!AJ134,SSEH!AJ134,SSES!AJ134) -> 0 | AK134: =CHOOSE(m_identity,ENWL!AK134, NPgN!AK134, NPgY!AK134, WMID!AK134, EMID!AK134, SWALES!AK134, SWEST!AK134, LPN!AK134,SPN!AK134,EPN!AK134,SPD!AK134,SPMW!AK134,SSEH!AK134,SSES!AK134) -> 0 | AL134: =CHOOSE(m_identity,ENWL!AL134, NPgN!AL134, NPgY!AL134, WMID!AL134, EMID!AL134, SWALES!AL134, SWEST!AL134, LPN!AL134,SPN!AL134,EPN!AL134,SPD!AL134,SPMW!AL134,SSEH!AL134,SSES!AL134) -> 0 | AM134: =CHOOSE(m_identity,ENWL!AM134, NPgN!AM134, NPgY!AM134, WMID!AM134, EMID!AM134, SWALES!AM134, SWEST!AM134, LPN!AM134,SPN!AM134,EPN!AM134,SPD!AM134,SPMW!AM134,SSEH!AM134,SSES!AM134) -> 0 | AN134: =CHOOSE(m_identity,ENWL!AN134, NPgN!AN134, NPgY!AN134, WMID!AN134, EMID!AN134, SWALES!AN134, SWEST!AN134, LPN!AN134,SPN!AN134,EPN!AN134,SPD!AN134,SPMW!AN134,SSEH!AN134,SSES!AN134) -> 0 | AO134: =CHOOSE(m_identity,ENWL!AO134, NPgN!AO134, NPgY!AO134, WMID!AO134, EMID!AO134, SWALES!AO134, SWEST!AO134, LPN!AO134,SPN!AO134,EPN!AO134,SPD!AO134,SPMW!AO134,SSEH!AO134,SSES!AO134) -> 0 | AP134: =CHOOSE(m_identity,ENWL!AP134, NPgN!AP134, NPgY!AP134, WMID!AP134, EMID!AP134, SWALES!AP134, SWEST!AP134, LPN!AP134,SPN!AP134,EPN!AP134,SPD!AP134,SPMW!AP134,SSEH!AP134,SSES!AP134) -> 0 | AQ134: =CHOOSE(m_identity,ENWL!AQ134, NPgN!AQ134, NPgY!AQ134, WMID!AQ134, EMID!AQ134, SWALES!AQ134, SWEST!AQ134, LPN!AQ134,SPN!AQ134,EPN!AQ134,SPD!AQ134,SPMW!AQ134,SSEH!AQ134,SSES!AQ134) -> 0
E135: Allocation to non-load related capex - other | G135: % | AJ135: =CHOOSE(m_identity,ENWL!AJ135, NPgN!AJ135, NPgY!AJ135, WMID!AJ135, EMID!AJ135, SWALES!AJ135, SWEST!AJ135, LPN!AJ135,SPN!AJ135,EPN!AJ135,SPD!AJ135,SPMW!AJ135,SSEH!AJ135,SSES!AJ135) -> 1 | AK135: =CHOOSE(m_identity,ENWL!AK135, NPgN!AK135, NPgY!AK135, WMID!AK135, EMID!AK135, SWALES!AK135, SWEST!AK135, LPN!AK135,SPN!AK135,EPN!AK135,SPD!AK135,SPMW!AK135,SSEH!AK135,SSES!AK135) -> 1 | AL135: =CHOOSE(m_identity,ENWL!AL135, NPgN!AL135, NPgY!AL135, WMID!AL135, EMID!AL135, SWALES!AL135, SWEST!AL135, LPN!AL135,SPN!AL135,EPN!AL135,SPD!AL135,SPMW!AL135,SSEH!AL135,SSES!AL135) -> 1 | AM135: =CHOOSE(m_identity,ENWL!AM135, NPgN!AM135, NPgY!AM135, WMID!AM135, EMID!AM135, SWALES!AM135, SWEST!AM135, LPN!AM135,SPN!AM135,EPN!AM135,SPD!AM135,SPMW!AM135,SSEH!AM135,SSES!AM135) -> 1 | AN135: =CHOOSE(m_identity,ENWL!AN135, NPgN!AN135, NPgY!AN135, WMID!AN135, EMID!AN135, SWALES!AN135, SWEST!AN135, LPN!AN135,SPN!AN135,EPN!AN135,SPD!AN135,SPMW!AN135,SSEH!AN135,SSES!AN135) -> 1 | AO135: =CHOOSE(m_identity,ENWL!AO135, NPgN!AO135, NPgY!AO135, WMID!AO135, EMID!AO135, SWALES!AO135, SWEST!AO135, LPN!AO135,SPN!AO135,EPN!AO135,SPD!AO135,SPMW!AO135,SSEH!AO135,SSES!AO135) -> 1 | AP135: =CHOOSE(m_identity,ENWL!AP135, NPgN!AP135, NPgY!AP135, WMID!AP135, EMID!AP135, SWALES!AP135, SWEST!AP135, LPN!AP135,SPN!AP135,EPN!AP135,SPD!AP135,SPMW!AP135,SSEH!AP135,SSES!AP135) -> 1 | AQ135: =CHOOSE(m_identity,ENWL!AQ135, NPgN!AQ135, NPgY!AQ135, WMID!AQ135, EMID!AQ135, SWALES!AQ135, SWEST!AQ135, LPN!AQ135,SPN!AQ135,EPN!AQ135,SPD!AQ135,SPMW!AQ135,SSEH!AQ135,SSES!AQ135) -> 1
E136: Allocation to faults | G136: % | AJ136: =CHOOSE(m_identity,ENWL!AJ136, NPgN!AJ136, NPgY!AJ136, WMID!AJ136, EMID!AJ136, SWALES!AJ136, SWEST!AJ136, LPN!AJ136,SPN!AJ136,EPN!AJ136,SPD!AJ136,SPMW!AJ136,SSEH!AJ136,SSES!AJ136) -> 0 | AK136: =CHOOSE(m_identity,ENWL!AK136, NPgN!AK136, NPgY!AK136, WMID!AK136, EMID!AK136, SWALES!AK136, SWEST!AK136, LPN!AK136,SPN!AK136,EPN!AK136,SPD!AK136,SPMW!AK136,SSEH!AK136,SSES!AK136) -> 0 | AL136: =CHOOSE(m_identity,ENWL!AL136, NPgN!AL136, NPgY!AL136, WMID!AL136, EMID!AL136, SWALES!AL136, SWEST!AL136, LPN!AL136,SPN!AL136,EPN!AL136,SPD!AL136,SPMW!AL136,SSEH!AL136,SSES!AL136) -> 0 | AM136: =CHOOSE(m_identity,ENWL!AM136, NPgN!AM136, NPgY!AM136, WMID!AM136, EMID!AM136, SWALES!AM136, SWEST!AM136, LPN!AM136,SPN!AM136,EPN!AM136,SPD!AM136,SPMW!AM136,SSEH!AM136,SSES!AM136) -> 0 | AN136: =CHOOSE(m_identity,ENWL!AN136, NPgN!AN136, NPgY!AN136, WMID!AN136, EMID!AN136, SWALES!AN136, SWEST!AN136, LPN!AN136,SPN!AN136,EPN!AN136,SPD!AN136,SPMW!AN136,SSEH!AN136,SSES!AN136) -> 0 | AO136: =CHOOSE(m_identity,ENWL!AO136, NPgN!AO136, NPgY!AO136, WMID!AO136, EMID!AO136, SWALES!AO136, SWEST!AO136, LPN!AO136,SPN!AO136,EPN!AO136,SPD!AO136,SPMW!AO136,SSEH!AO136,SSES!AO136) -> 0 | AP136: =CHOOSE(m_identity,ENWL!AP136, NPgN!AP136, NPgY!AP136, WMID!AP136, EMID!AP136, SWALES!AP136, SWEST!AP136, LPN!AP136,SPN!AP136,EPN!AP136,SPD!AP136,SPMW!AP136,SSEH!AP136,SSES!AP136) -> 0 | AQ136: =CHOOSE(m_identity,ENWL!AQ136, NPgN!AQ136, NPgY!AQ136, WMID!AQ136, EMID!AQ136, SWALES!AQ136, SWEST!AQ136, LPN!AQ136,SPN!AQ136,EPN!AQ136,SPD!AQ136,SPMW!AQ136,SSEH!AQ136,SSES!AQ136) -> 0
E137: Allocation to tree cutting | G137: % | AJ137: =CHOOSE(m_identity,ENWL!AJ137, NPgN!AJ137, NPgY!AJ137, WMID!AJ137, EMID!AJ137, SWALES!AJ137, SWEST!AJ137, LPN!AJ137,SPN!AJ137,EPN!AJ137,SPD!AJ137,SPMW!AJ137,SSEH!AJ137,SSES!AJ137) -> 0 | AK137: =CHOOSE(m_identity,ENWL!AK137, NPgN!AK137, NPgY!AK137, WMID!AK137, EMID!AK137, SWALES!AK137, SWEST!AK137, LPN!AK137,SPN!AK137,EPN!AK137,SPD!AK137,SPMW!AK137,SSEH!AK137,SSES!AK137) -> 0 | AL137: =CHOOSE(m_identity,ENWL!AL137, NPgN!AL137, NPgY!AL137, WMID!AL137, EMID!AL137, SWALES!AL137, SWEST!AL137, LPN!AL137,SPN!AL137,EPN!AL137,SPD!AL137,SPMW!AL137,SSEH!AL137,SSES!AL137) -> 0 | AM137: =CHOOSE(m_identity,ENWL!AM137, NPgN!AM137, NPgY!AM137, WMID!AM137, EMID!AM137, SWALES!AM137, SWEST!AM137, LPN!AM137,SPN!AM137,EPN!AM137,SPD!AM137,SPMW!AM137,SSEH!AM137,SSES!AM137) -> 0 | AN137: =CHOOSE(m_identity,ENWL!AN137, NPgN!AN137, NPgY!AN137, WMID!AN137, EMID!AN137, SWALES!AN137, SWEST!AN137, LPN!AN137,SPN!AN137,EPN!AN137,SPD!AN137,SPMW!AN137,SSEH!AN137,SSES!AN137) -> 0 | AO137: =CHOOSE(m_identity,ENWL!AO137, NPgN!AO137, NPgY!AO137, WMID!AO137, EMID!AO137, SWALES!AO137, SWEST!AO137, LPN!AO137,SPN!AO137,EPN!AO137,SPD!AO137,SPMW!AO137,SSEH!AO137,SSES!AO137) -> 0 | AP137: =CHOOSE(m_identity,ENWL!AP137, NPgN!AP137, NPgY!AP137, WMID!AP137, EMID!AP137, SWALES!AP137, SWEST!AP137, LPN!AP137,SPN!AP137,EPN!AP137,SPD!AP137,SPMW!AP137,SSEH!AP137,SSES!AP137) -> 0 | AQ137: =CHOOSE(m_identity,ENWL!AQ137, NPgN!AQ137, NPgY!AQ137, WMID!AQ137, EMID!AQ137, SWALES!AQ137, SWEST!AQ137, LPN!AQ137,SPN!AQ137,EPN!AQ137,SPD!AQ137,SPMW!AQ137,SSEH!AQ137,SSES!AQ137) -> 0
E138: Allocation to 100% ‘revenue pool’ expenditure | G138: % | AJ138: =CHOOSE(m_identity,ENWL!AJ138, NPgN!AJ138, NPgY!AJ138, WMID!AJ138, EMID!AJ138, SWALES!AJ138, SWEST!AJ138, LPN!AJ138,SPN!AJ138,EPN!AJ138,SPD!AJ138,SPMW!AJ138,SSEH!AJ138,SSES!AJ138) -> 0 | AK138: =CHOOSE(m_identity,ENWL!AK138, NPgN!AK138, NPgY!AK138, WMID!AK138, EMID!AK138, SWALES!AK138, SWEST!AK138, LPN!AK138,SPN!AK138,EPN!AK138,SPD!AK138,SPMW!AK138,SSEH!AK138,SSES!AK138) -> 0 | AL138: =CHOOSE(m_identity,ENWL!AL138, NPgN!AL138, NPgY!AL138, WMID!AL138, EMID!AL138, SWALES!AL138, SWEST!AL138, LPN!AL138,SPN!AL138,EPN!AL138,SPD!AL138,SPMW!AL138,SSEH!AL138,SSES!AL138) -> 0 | AM138: =CHOOSE(m_identity,ENWL!AM138, NPgN!AM138, NPgY!AM138, WMID!AM138, EMID!AM138, SWALES!AM138, SWEST!AM138, LPN!AM138,SPN!AM138,EPN!AM138,SPD!AM138,SPMW!AM138,SSEH!AM138,SSES!AM138) -> 0 | AN138: =CHOOSE(m_identity,ENWL!AN138, NPgN!AN138, NPgY!AN138, WMID!AN138, EMID!AN138, SWALES!AN138, SWEST!AN138, LPN!AN138,SPN!AN138,EPN!AN138,SPD!AN138,SPMW!AN138,SSEH!AN138,SSES!AN138) -> 0 | AO138: =CHOOSE(m_identity,ENWL!AO138, NPgN!AO138, NPgY!AO138, WMID!AO138, EMID!AO138, SWALES!AO138, SWEST!AO138, LPN!AO138,SPN!AO138,EPN!AO138,SPD!AO138,SPMW!AO138,SSEH!AO138,SSES!AO138) -> 0 | AP138: =CHOOSE(m_identity,ENWL!AP138, NPgN!AP138, NPgY!AP138, WMID!AP138, EMID!AP138, SWALES!AP138, SWEST!AP138, LPN!AP138,SPN!AP138,EPN!AP138,SPD!AP138,SPMW!AP138,SSEH!AP138,SSES!AP138) -> 0 | AQ138: =CHOOSE(m_identity,ENWL!AQ138, NPgN!AQ138, NPgY!AQ138, WMID!AQ138, EMID!AQ138, SWALES!AQ138, SWEST!AQ138, LPN!AQ138,SPN!AQ138,EPN!AQ138,SPD!AQ138,SPMW!AQ138,SSEH!AQ138,SSES!AQ138) -> 0
E139: Allocation to controllable opex | G139: % | AJ139: =CHOOSE(m_identity,ENWL!AJ139, NPgN!AJ139, NPgY!AJ139, WMID!AJ139, EMID!AJ139, SWALES!AJ139, SWEST!AJ139, LPN!AJ139,SPN!AJ139,EPN!AJ139,SPD!AJ139,SPMW!AJ139,SSEH!AJ139,SSES!AJ139) -> 0 | AK139: =CHOOSE(m_identity,ENWL!AK139, NPgN!AK139, NPgY!AK139, WMID!AK139, EMID!AK139, SWALES!AK139, SWEST!AK139, LPN!AK139,SPN!AK139,EPN!AK139,SPD!AK139,SPMW!AK139,SSEH!AK139,SSES!AK139) -> 0 | AL139: =CHOOSE(m_identity,ENWL!AL139, NPgN!AL139, NPgY!AL139, WMID!AL139, EMID!AL139, SWALES!AL139, SWEST!AL139, LPN!AL139,SPN!AL139,EPN!AL139,SPD!AL139,SPMW!AL139,SSEH!AL139,SSES!AL139) -> 0 | AM139: =CHOOSE(m_identity,ENWL!AM139, NPgN!AM139, NPgY!AM139, WMID!AM139, EMID!AM139, SWALES!AM139, SWEST!AM139, LPN!AM139,SPN!AM139,EPN!AM139,SPD!AM139,SPMW!AM139,SSEH!AM139,SSES!AM139) -> 0 | AN139: =CHOOSE(m_identity,ENWL!AN139, NPgN!AN139, NPgY!AN139, WMID!AN139, EMID!AN139, SWALES!AN139, SWEST!AN139, LPN!AN139,SPN!AN139,EPN!AN139,SPD!AN139,SPMW!AN139,SSEH!AN139,SSES!AN139) -> 0 | AO139: =CHOOSE(m_identity,ENWL!AO139, NPgN!AO139, NPgY!AO139, WMID!AO139, EMID!AO139, SWALES!AO139, SWEST!AO139, LPN!AO139,SPN!AO139,EPN!AO139,SPD!AO139,SPMW!AO139,SSEH!AO139,SSES!AO139) -> 0 | AP139: =CHOOSE(m_identity,ENWL!AP139, NPgN!AP139, NPgY!AP139, WMID!AP139, EMID!AP139, SWALES!AP139, SWEST!AP139, LPN!AP139,SPN!AP139,EPN!AP139,SPD!AP139,SPMW!AP139,SSEH!AP139,SSES!AP139) -> 0 | AQ139: =CHOOSE(m_identity,ENWL!AQ139, NPgN!AQ139, NPgY!AQ139, WMID!AQ139, EMID!AQ139, SWALES!AQ139, SWEST!AQ139, LPN!AQ139,SPN!AQ139,EPN!AQ139,SPD!AQ139,SPMW!AQ139,SSEH!AQ139,SSES!AQ139) -> 0
E141: =E23 -> Allowed Expenditure - Smart Meter Allowed Expenditure | G141: £m 12/13 prices | AJ141: =AJ23 -> 1.801875299 | AK141: 2.481399778 | AL141: 3.002343348 | AM141: 2.736764835 | AN141: 2.611049291 | AO141: 0 | AP141: 0 | AQ141: 0
E142: Allocation to load related capex | G142: % | AJ142: =CHOOSE(m_identity,ENWL!AJ142, NPgN!AJ142, NPgY!AJ142, WMID!AJ142, EMID!AJ142, SWALES!AJ142, SWEST!AJ142, LPN!AJ142,SPN!AJ142,EPN!AJ142,SPD!AJ142,SPMW!AJ142,SSEH!AJ142,SSES!AJ142) -> 0 | AK142: =CHOOSE(m_identity,ENWL!AK142, NPgN!AK142, NPgY!AK142, WMID!AK142, EMID!AK142, SWALES!AK142, SWEST!AK142, LPN!AK142,SPN!AK142,EPN!AK142,SPD!AK142,SPMW!AK142,SSEH!AK142,SSES!AK142) -> 0 | AL142: =CHOOSE(m_identity,ENWL!AL142, NPgN!AL142, NPgY!AL142, WMID!AL142, EMID!AL142, SWALES!AL142, SWEST!AL142, LPN!AL142,SPN!AL142,EPN!AL142,SPD!AL142,SPMW!AL142,SSEH!AL142,SSES!AL142) -> 0 | AM142: =CHOOSE(m_identity,ENWL!AM142, NPgN!AM142, NPgY!AM142, WMID!AM142, EMID!AM142, SWALES!AM142, SWEST!AM142, LPN!AM142,SPN!AM142,EPN!AM142,SPD!AM142,SPMW!AM142,SSEH!AM142,SSES!AM142) -> 0 | AN142: =CHOOSE(m_identity,ENWL!AN142, NPgN!AN142, NPgY!AN142, WMID!AN142, EMID!AN142, SWALES!AN142, SWEST!AN142, LPN!AN142,SPN!AN142,EPN!AN142,SPD!AN142,SPMW!AN142,SSEH!AN142,SSES!AN142) -> 0 | AO142: =CHOOSE(m_identity,ENWL!AO142, NPgN!AO142, NPgY!AO142, WMID!AO142, EMID!AO142, SWALES!AO142, SWEST!AO142, LPN!AO142,SPN!AO142,EPN!AO142,SPD!AO142,SPMW!AO142,SSEH!AO142,SSES!AO142) -> 0 | AP142: =CHOOSE(m_identity,ENWL!AP142, NPgN!AP142, NPgY!AP142, WMID!AP142, EMID!AP142, SWALES!AP142, SWEST!AP142, LPN!AP142,SPN!AP142,EPN!AP142,SPD!AP142,SPMW!AP142,SSEH!AP142,SSES!AP142) -> 0 | AQ142: =CHOOSE(m_identity,ENWL!AQ142, NPgN!AQ142, NPgY!AQ142, WMID!AQ142, EMID!AQ142, SWALES!AQ142, SWEST!AQ142, LPN!AQ142,SPN!AQ142,EPN!AQ142,SPD!AQ142,SPMW!AQ142,SSEH!AQ142,SSES!AQ142) -> 0
E143: Allocation to non-load related capex - asset replacement | G143: % | AJ143: =CHOOSE(m_identity,ENWL!AJ143, NPgN!AJ143, NPgY!AJ143, WMID!AJ143, EMID!AJ143, SWALES!AJ143, SWEST!AJ143, LPN!AJ143,SPN!AJ143,EPN!AJ143,SPD!AJ143,SPMW!AJ143,SSEH!AJ143,SSES!AJ143) -> 0 | AK143: =CHOOSE(m_identity,ENWL!AK143, NPgN!AK143, NPgY!AK143, WMID!AK143, EMID!AK143, SWALES!AK143, SWEST!AK143, LPN!AK143,SPN!AK143,EPN!AK143,SPD!AK143,SPMW!AK143,SSEH!AK143,SSES!AK143) -> 0 | AL143: =CHOOSE(m_identity,ENWL!AL143, NPgN!AL143, NPgY!AL143, WMID!AL143, EMID!AL143, SWALES!AL143, SWEST!AL143, LPN!AL143,SPN!AL143,EPN!AL143,SPD!AL143,SPMW!AL143,SSEH!AL143,SSES!AL143) -> 0 | AM143: =CHOOSE(m_identity,ENWL!AM143, NPgN!AM143, NPgY!AM143, WMID!AM143, EMID!AM143, SWALES!AM143, SWEST!AM143, LPN!AM143,SPN!AM143,EPN!AM143,SPD!AM143,SPMW!AM143,SSEH!AM143,SSES!AM143) -> 0 | AN143: =CHOOSE(m_identity,ENWL!AN143, NPgN!AN143, NPgY!AN143, WMID!AN143, EMID!AN143, SWALES!AN143, SWEST!AN143, LPN!AN143,SPN!AN143,EPN!AN143,SPD!AN143,SPMW!AN143,SSEH!AN143,SSES!AN143) -> 0 | AO143: =CHOOSE(m_identity,ENWL!AO143, NPgN!AO143, NPgY!AO143, WMID!AO143, EMID!AO143, SWALES!AO143, SWEST!AO143, LPN!AO143,SPN!AO143,EPN!AO143,SPD!AO143,SPMW!AO143,SSEH!AO143,SSES!AO143) -> 0 | AP143: =CHOOSE(m_identity,ENWL!AP143, NPgN!AP143, NPgY!AP143, WMID!AP143, EMID!AP143, SWALES!AP143, SWEST!AP143, LPN!AP143,SPN!AP143,EPN!AP143,SPD!AP143,SPMW!AP143,SSEH!AP143,SSES!AP143) -> 0 | AQ143: =CHOOSE(m_identity,ENWL!AQ143, NPgN!AQ143, NPgY!AQ143, WMID!AQ143, EMID!AQ143, SWALES!AQ143, SWEST!AQ143, LPN!AQ143,SPN!AQ143,EPN!AQ143,SPD!AQ143,SPMW!AQ143,SSEH!AQ143,SSES!AQ143) -> 0
E144: Allocation to non-load related capex - other | G144: % | AJ144: =CHOOSE(m_identity,ENWL!AJ144, NPgN!AJ144, NPgY!AJ144, WMID!AJ144, EMID!AJ144, SWALES!AJ144, SWEST!AJ144, LPN!AJ144,SPN!AJ144,EPN!AJ144,SPD!AJ144,SPMW!AJ144,SSEH!AJ144,SSES!AJ144) -> 0 | AK144: =CHOOSE(m_identity,ENWL!AK144, NPgN!AK144, NPgY!AK144, WMID!AK144, EMID!AK144, SWALES!AK144, SWEST!AK144, LPN!AK144,SPN!AK144,EPN!AK144,SPD!AK144,SPMW!AK144,SSEH!AK144,SSES!AK144) -> 0 | AL144: =CHOOSE(m_identity,ENWL!AL144, NPgN!AL144, NPgY!AL144, WMID!AL144, EMID!AL144, SWALES!AL144, SWEST!AL144, LPN!AL144,SPN!AL144,EPN!AL144,SPD!AL144,SPMW!AL144,SSEH!AL144,SSES!AL144) -> 0 | AM144: =CHOOSE(m_identity,ENWL!AM144, NPgN!AM144, NPgY!AM144, WMID!AM144, EMID!AM144, SWALES!AM144, SWEST!AM144, LPN!AM144,SPN!AM144,EPN!AM144,SPD!AM144,SPMW!AM144,SSEH!AM144,SSES!AM144) -> 0 | AN144: =CHOOSE(m_identity,ENWL!AN144, NPgN!AN144, NPgY!AN144, WMID!AN144, EMID!AN144, SWALES!AN144, SWEST!AN144, LPN!AN144,SPN!AN144,EPN!AN144,SPD!AN144,SPMW!AN144,SSEH!AN144,SSES!AN144) -> 0 | AO144: =CHOOSE(m_identity,ENWL!AO144, NPgN!AO144, NPgY!AO144, WMID!AO144, EMID!AO144, SWALES!AO144, SWEST!AO144, LPN!AO144,SPN!AO144,EPN!AO144,SPD!AO144,SPMW!AO144,SSEH!AO144,SSES!AO144) -> 0 | AP144: =CHOOSE(m_identity,ENWL!AP144, NPgN!AP144, NPgY!AP144, WMID!AP144, EMID!AP144, SWALES!AP144, SWEST!AP144, LPN!AP144,SPN!AP144,EPN!AP144,SPD!AP144,SPMW!AP144,SSEH!AP144,SSES!AP144) -> 0 | AQ144: =CHOOSE(m_identity,ENWL!AQ144, NPgN!AQ144, NPgY!AQ144, WMID!AQ144, EMID!AQ144, SWALES!AQ144, SWEST!AQ144, LPN!AQ144,SPN!AQ144,EPN!AQ144,SPD!AQ144,SPMW!AQ144,SSEH!AQ144,SSES!AQ144) -> 0
E145: Allocation to faults | G145: % | AJ145: =CHOOSE(m_identity,ENWL!AJ145, NPgN!AJ145, NPgY!AJ145, WMID!AJ145, EMID!AJ145, SWALES!AJ145, SWEST!AJ145, LPN!AJ145,SPN!AJ145,EPN!AJ145,SPD!AJ145,SPMW!AJ145,SSEH!AJ145,SSES!AJ145) -> 0 | AK145: =CHOOSE(m_identity,ENWL!AK145, NPgN!AK145, NPgY!AK145, WMID!AK145, EMID!AK145, SWALES!AK145, SWEST!AK145, LPN!AK145,SPN!AK145,EPN!AK145,SPD!AK145,SPMW!AK145,SSEH!AK145,SSES!AK145) -> 0 | AL145: =CHOOSE(m_identity,ENWL!AL145, NPgN!AL145, NPgY!AL145, WMID!AL145, EMID!AL145, SWALES!AL145, SWEST!AL145, LPN!AL145,SPN!AL145,EPN!AL145,SPD!AL145,SPMW!AL145,SSEH!AL145,SSES!AL145) -> 0 | AM145: =CHOOSE(m_identity,ENWL!AM145, NPgN!AM145, NPgY!AM145, WMID!AM145, EMID!AM145, SWALES!AM145, SWEST!AM145, LPN!AM145,SPN!AM145,EPN!AM145,SPD!AM145,SPMW!AM145,SSEH!AM145,SSES!AM145) -> 0 | AN145: =CHOOSE(m_identity,ENWL!AN145, NPgN!AN145, NPgY!AN145, WMID!AN145, EMID!AN145, SWALES!AN145, SWEST!AN145, LPN!AN145,SPN!AN145,EPN!AN145,SPD!AN145,SPMW!AN145,SSEH!AN145,SSES!AN145) -> 0 | AO145: =CHOOSE(m_identity,ENWL!AO145, NPgN!AO145, NPgY!AO145, WMID!AO145, EMID!AO145, SWALES!AO145, SWEST!AO145, LPN!AO145,SPN!AO145,EPN!AO145,SPD!AO145,SPMW!AO145,SSEH!AO145,SSES!AO145) -> 0 | AP145: =CHOOSE(m_identity,ENWL!AP145, NPgN!AP145, NPgY!AP145, WMID!AP145, EMID!AP145, SWALES!AP145, SWEST!AP145, LPN!AP145,SPN!AP145,EPN!AP145,SPD!AP145,SPMW!AP145,SSEH!AP145,SSES!AP145) -> 0 | AQ145: =CHOOSE(m_identity,ENWL!AQ145, NPgN!AQ145, NPgY!AQ145, WMID!AQ145, EMID!AQ145, SWALES!AQ145, SWEST!AQ145, LPN!AQ145,SPN!AQ145,EPN!AQ145,SPD!AQ145,SPMW!AQ145,SSEH!AQ145,SSES!AQ145) -> 0
E146: Allocation to tree cutting | G146: % | AJ146: =CHOOSE(m_identity,ENWL!AJ146, NPgN!AJ146, NPgY!AJ146, WMID!AJ146, EMID!AJ146, SWALES!AJ146, SWEST!AJ146, LPN!AJ146,SPN!AJ146,EPN!AJ146,SPD!AJ146,SPMW!AJ146,SSEH!AJ146,SSES!AJ146) -> 0 | AK146: =CHOOSE(m_identity,ENWL!AK146, NPgN!AK146, NPgY!AK146, WMID!AK146, EMID!AK146, SWALES!AK146, SWEST!AK146, LPN!AK146,SPN!AK146,EPN!AK146,SPD!AK146,SPMW!AK146,SSEH!AK146,SSES!AK146) -> 0 | AL146: =CHOOSE(m_identity,ENWL!AL146, NPgN!AL146, NPgY!AL146, WMID!AL146, EMID!AL146, SWALES!AL146, SWEST!AL146, LPN!AL146,SPN!AL146,EPN!AL146,SPD!AL146,SPMW!AL146,SSEH!AL146,SSES!AL146) -> 0 | AM146: =CHOOSE(m_identity,ENWL!AM146, NPgN!AM146, NPgY!AM146, WMID!AM146, EMID!AM146, SWALES!AM146, SWEST!AM146, LPN!AM146,SPN!AM146,EPN!AM146,SPD!AM146,SPMW!AM146,SSEH!AM146,SSES!AM146) -> 0 | AN146: =CHOOSE(m_identity,ENWL!AN146, NPgN!AN146, NPgY!AN146, WMID!AN146, EMID!AN146, SWALES!AN146, SWEST!AN146, LPN!AN146,SPN!AN146,EPN!AN146,SPD!AN146,SPMW!AN146,SSEH!AN146,SSES!AN146) -> 0 | AO146: =CHOOSE(m_identity,ENWL!AO146, NPgN!AO146, NPgY!AO146, WMID!AO146, EMID!AO146, SWALES!AO146, SWEST!AO146, LPN!AO146,SPN!AO146,EPN!AO146,SPD!AO146,SPMW!AO146,SSEH!AO146,SSES!AO146) -> 0 | AP146: =CHOOSE(m_identity,ENWL!AP146, NPgN!AP146, NPgY!AP146, WMID!AP146, EMID!AP146, SWALES!AP146, SWEST!AP146, LPN!AP146,SPN!AP146,EPN!AP146,SPD!AP146,SPMW!AP146,SSEH!AP146,SSES!AP146) -> 0 | AQ146: =CHOOSE(m_identity,ENWL!AQ146, NPgN!AQ146, NPgY!AQ146, WMID!AQ146, EMID!AQ146, SWALES!AQ146, SWEST!AQ146, LPN!AQ146,SPN!AQ146,EPN!AQ146,SPD!AQ146,SPMW!AQ146,SSEH!AQ146,SSES!AQ146) -> 0
E147: Allocation to 100% ‘revenue pool’ expenditure | G147: % | AJ147: =CHOOSE(m_identity,ENWL!AJ147, NPgN!AJ147, NPgY!AJ147, WMID!AJ147, EMID!AJ147, SWALES!AJ147, SWEST!AJ147, LPN!AJ147,SPN!AJ147,EPN!AJ147,SPD!AJ147,SPMW!AJ147,SSEH!AJ147,SSES!AJ147) -> 0.005068047465 | AK147: =CHOOSE(m_identity,ENWL!AK147, NPgN!AK147, NPgY!AK147, WMID!AK147, EMID!AK147, SWALES!AK147, SWEST!AK147, LPN!AK147,SPN!AK147,EPN!AK147,SPD!AK147,SPMW!AK147,SSEH!AK147,SSES!AK147) -> 0.003698952603 | AL147: =CHOOSE(m_identity,ENWL!AL147, NPgN!AL147, NPgY!AL147, WMID!AL147, EMID!AL147, SWALES!AL147, SWEST!AL147, LPN!AL147,SPN!AL147,EPN!AL147,SPD!AL147,SPMW!AL147,SSEH!AL147,SSES!AL147) -> 0.00307286831 | AM147: =CHOOSE(m_identity,ENWL!AM147, NPgN!AM147, NPgY!AM147, WMID!AM147, EMID!AM147, SWALES!AM147, SWEST!AM147, LPN!AM147,SPN!AM147,EPN!AM147,SPD!AM147,SPMW!AM147,SSEH!AM147,SSES!AM147) -> 0.003388553298 | AN147: =CHOOSE(m_identity,ENWL!AN147, NPgN!AN147, NPgY!AN147, WMID!AN147, EMID!AN147, SWALES!AN147, SWEST!AN147, LPN!AN147,SPN!AN147,EPN!AN147,SPD!AN147,SPMW!AN147,SSEH!AN147,SSES!AN147) -> 0.003570285292 | AO147: =CHOOSE(m_identity,ENWL!AO147, NPgN!AO147, NPgY!AO147, WMID!AO147, EMID!AO147, SWALES!AO147, SWEST!AO147, LPN!AO147,SPN!AO147,EPN!AO147,SPD!AO147,SPMW!AO147,SSEH!AO147,SSES!AO147) -> 0.1039739189 | AP147: =CHOOSE(m_identity,ENWL!AP147, NPgN!AP147, NPgY!AP147, WMID!AP147, EMID!AP147, SWALES!AP147, SWEST!AP147, LPN!AP147,SPN!AP147,EPN!AP147,SPD!AP147,SPMW!AP147,SSEH!AP147,SSES!AP147) -> 0 | AQ147: =CHOOSE(m_identity,ENWL!AQ147, NPgN!AQ147, NPgY!AQ147, WMID!AQ147, EMID!AQ147, SWALES!AQ147, SWEST!AQ147, LPN!AQ147,SPN!AQ147,EPN!AQ147,SPD!AQ147,SPMW!AQ147,SSEH!AQ147,SSES!AQ147) -> 0
E148: Allocation to controllable opex | G148: % | AJ148: =CHOOSE(m_identity,ENWL!AJ148, NPgN!AJ148, NPgY!AJ148, WMID!AJ148, EMID!AJ148, SWALES!AJ148, SWEST!AJ148, LPN!AJ148,SPN!AJ148,EPN!AJ148,SPD!AJ148,SPMW!AJ148,SSEH!AJ148,SSES!AJ148) -> 0.9949319525 | AK148: =CHOOSE(m_identity,ENWL!AK148, NPgN!AK148, NPgY!AK148, WMID!AK148, EMID!AK148, SWALES!AK148, SWEST!AK148, LPN!AK148,SPN!AK148,EPN!AK148,SPD!AK148,SPMW!AK148,SSEH!AK148,SSES!AK148) -> 0.9963010474 | AL148: =CHOOSE(m_identity,ENWL!AL148, NPgN!AL148, NPgY!AL148, WMID!AL148, EMID!AL148, SWALES!AL148, SWEST!AL148, LPN!AL148,SPN!AL148,EPN!AL148,SPD!AL148,SPMW!AL148,SSEH!AL148,SSES!AL148) -> 0.9969271317 | AM148: =CHOOSE(m_identity,ENWL!AM148, NPgN!AM148, NPgY!AM148, WMID!AM148, EMID!AM148, SWALES!AM148, SWEST!AM148, LPN!AM148,SPN!AM148,EPN!AM148,SPD!AM148,SPMW!AM148,SSEH!AM148,SSES!AM148) -> 0.9966114467 | AN148: =CHOOSE(m_identity,ENWL!AN148, NPgN!AN148, NPgY!AN148, WMID!AN148, EMID!AN148, SWALES!AN148, SWEST!AN148, LPN!AN148,SPN!AN148,EPN!AN148,SPD!AN148,SPMW!AN148,SSEH!AN148,SSES!AN148) -> 0.9964297147 | AO148: =CHOOSE(m_identity,ENWL!AO148, NPgN!AO148, NPgY!AO148, WMID!AO148, EMID!AO148, SWALES!AO148, SWEST!AO148, LPN!AO148,SPN!AO148,EPN!AO148,SPD!AO148,SPMW!AO148,SSEH!AO148,SSES!AO148) -> 0.8960260811 | AP148: =CHOOSE(m_identity,ENWL!AP148, NPgN!AP148, NPgY!AP148, WMID!AP148, EMID!AP148, SWALES!AP148, SWEST!AP148, LPN!AP148,SPN!AP148,EPN!AP148,SPD!AP148,SPMW!AP148,SSEH!AP148,SSES!AP148) -> 0 | AQ148: =CHOOSE(m_identity,ENWL!AQ148, NPgN!AQ148, NPgY!AQ148, WMID!AQ148, EMID!AQ148, SWALES!AQ148, SWEST!AQ148, LPN!AQ148,SPN!AQ148,EPN!AQ148,SPD!AQ148,SPMW!AQ148,SSEH!AQ148,SSES!AQ148) -> 0
E150: =E24 -> Allowed Expenditure - Specified Street Works | G150: £m 12/13 prices | AJ150: =AJ24 -> 0 | AK150: 0 | AL150: 0 | AM150: 0 | AN150: 0 | AO150: 0 | AP150: 0 | AQ150: 0
E151: Allocation to load related capex | G151: % | AJ151: =CHOOSE(m_identity,ENWL!AJ151, NPgN!AJ151, NPgY!AJ151, WMID!AJ151, EMID!AJ151, SWALES!AJ151, SWEST!AJ151, LPN!AJ151,SPN!AJ151,EPN!AJ151,SPD!AJ151,SPMW!AJ151,SSEH!AJ151,SSES!AJ151) -> -0.6059965236 | AK151: =CHOOSE(m_identity,ENWL!AK151, NPgN!AK151, NPgY!AK151, WMID!AK151, EMID!AK151, SWALES!AK151, SWEST!AK151, LPN!AK151,SPN!AK151,EPN!AK151,SPD!AK151,SPMW!AK151,SSEH!AK151,SSES!AK151) -> -0.796376973 | AL151: =CHOOSE(m_identity,ENWL!AL151, NPgN!AL151, NPgY!AL151, WMID!AL151, EMID!AL151, SWALES!AL151, SWEST!AL151, LPN!AL151,SPN!AL151,EPN!AL151,SPD!AL151,SPMW!AL151,SSEH!AL151,SSES!AL151) -> -0.8811369806 | AM151: =CHOOSE(m_identity,ENWL!AM151, NPgN!AM151, NPgY!AM151, WMID!AM151, EMID!AM151, SWALES!AM151, SWEST!AM151, LPN!AM151,SPN!AM151,EPN!AM151,SPD!AM151,SPMW!AM151,SSEH!AM151,SSES!AM151) -> -0.9600538368 | AN151: =CHOOSE(m_identity,ENWL!AN151, NPgN!AN151, NPgY!AN151, WMID!AN151, EMID!AN151, SWALES!AN151, SWEST!AN151, LPN!AN151,SPN!AN151,EPN!AN151,SPD!AN151,SPMW!AN151,SSEH!AN151,SSES!AN151) -> -1.052836113 | AO151: =CHOOSE(m_identity,ENWL!AO151, NPgN!AO151, NPgY!AO151, WMID!AO151, EMID!AO151, SWALES!AO151, SWEST!AO151, LPN!AO151,SPN!AO151,EPN!AO151,SPD!AO151,SPMW!AO151,SSEH!AO151,SSES!AO151) -> -1.058321414 | AP151: =CHOOSE(m_identity,ENWL!AP151, NPgN!AP151, NPgY!AP151, WMID!AP151, EMID!AP151, SWALES!AP151, SWEST!AP151, LPN!AP151,SPN!AP151,EPN!AP151,SPD!AP151,SPMW!AP151,SSEH!AP151,SSES!AP151) -> -1.057820968 | AQ151: =CHOOSE(m_identity,ENWL!AQ151, NPgN!AQ151, NPgY!AQ151, WMID!AQ151, EMID!AQ151, SWALES!AQ151, SWEST!AQ151, LPN!AQ151,SPN!AQ151,EPN!AQ151,SPD!AQ151,SPMW!AQ151,SSEH!AQ151,SSES!AQ151) -> -1.057387677
E152: Allocation to non-load related capex - asset replacement | G152: % | AJ152: =CHOOSE(m_identity,ENWL!AJ152, NPgN!AJ152, NPgY!AJ152, WMID!AJ152, EMID!AJ152, SWALES!AJ152, SWEST!AJ152, LPN!AJ152,SPN!AJ152,EPN!AJ152,SPD!AJ152,SPMW!AJ152,SSEH!AJ152,SSES!AJ152) -> 0.2457913973 | AK152: =CHOOSE(m_identity,ENWL!AK152, NPgN!AK152, NPgY!AK152, WMID!AK152, EMID!AK152, SWALES!AK152, SWEST!AK152, LPN!AK152,SPN!AK152,EPN!AK152,SPD!AK152,SPMW!AK152,SSEH!AK152,SSES!AK152) -> 0.4259728739 | AL152: =CHOOSE(m_identity,ENWL!AL152, NPgN!AL152, NPgY!AL152, WMID!AL152, EMID!AL152, SWALES!AL152, SWEST!AL152, LPN!AL152,SPN!AL152,EPN!AL152,SPD!AL152,SPMW!AL152,SSEH!AL152,SSES!AL152) -> 0.5109336557 | AM152: =CHOOSE(m_identity,ENWL!AM152, NPgN!AM152, NPgY!AM152, WMID!AM152, EMID!AM152, SWALES!AM152, SWEST!AM152, LPN!AM152,SPN!AM152,EPN!AM152,SPD!AM152,SPMW!AM152,SSEH!AM152,SSES!AM152) -> 0.5920664332 | AN152: =CHOOSE(m_identity,ENWL!AN152, NPgN!AN152, NPgY!AN152, WMID!AN152, EMID!AN152, SWALES!AN152, SWEST!AN152, LPN!AN152,SPN!AN152,EPN!AN152,SPD!AN152,SPMW!AN152,SSEH!AN152,SSES!AN152) -> 0.6880777157 | AO152: =CHOOSE(m_identity,ENWL!AO152, NPgN!AO152, NPgY!AO152, WMID!AO152, EMID!AO152, SWALES!AO152, SWEST!AO152, LPN!AO152,SPN!AO152,EPN!AO152,SPD!AO152,SPMW!AO152,SSEH!AO152,SSES!AO152) -> 0.6924082617 | AP152: =CHOOSE(m_identity,ENWL!AP152, NPgN!AP152, NPgY!AP152, WMID!AP152, EMID!AP152, SWALES!AP152, SWEST!AP152, LPN!AP152,SPN!AP152,EPN!AP152,SPD!AP152,SPMW!AP152,SSEH!AP152,SSES!AP152) -> 0.692887431 | AQ152: =CHOOSE(m_identity,ENWL!AQ152, NPgN!AQ152, NPgY!AQ152, WMID!AQ152, EMID!AQ152, SWALES!AQ152, SWEST!AQ152, LPN!AQ152,SPN!AQ152,EPN!AQ152,SPD!AQ152,SPMW!AQ152,SSEH!AQ152,SSES!AQ152) -> 0.6934218198
E153: Allocation to non-load related capex - other | G153: % | AJ153: =CHOOSE(m_identity,ENWL!AJ153, NPgN!AJ153, NPgY!AJ153, WMID!AJ153, EMID!AJ153, SWALES!AJ153, SWEST!AJ153, LPN!AJ153,SPN!AJ153,EPN!AJ153,SPD!AJ153,SPMW!AJ153,SSEH!AJ153,SSES!AJ153) -> 0 | AK153: =CHOOSE(m_identity,ENWL!AK153, NPgN!AK153, NPgY!AK153, WMID!AK153, EMID!AK153, SWALES!AK153, SWEST!AK153, LPN!AK153,SPN!AK153,EPN!AK153,SPD!AK153,SPMW!AK153,SSEH!AK153,SSES!AK153) -> 0 | AL153: =CHOOSE(m_identity,ENWL!AL153, NPgN!AL153, NPgY!AL153, WMID!AL153, EMID!AL153, SWALES!AL153, SWEST!AL153, LPN!AL153,SPN!AL153,EPN!AL153,SPD!AL153,SPMW!AL153,SSEH!AL153,SSES!AL153) -> 0 | AM153: =CHOOSE(m_identity,ENWL!AM153, NPgN!AM153, NPgY!AM153, WMID!AM153, EMID!AM153, SWALES!AM153, SWEST!AM153, LPN!AM153,SPN!AM153,EPN!AM153,SPD!AM153,SPMW!AM153,SSEH!AM153,SSES!AM153) -> 0 | AN153: =CHOOSE(m_identity,ENWL!AN153, NPgN!AN153, NPgY!AN153, WMID!AN153, EMID!AN153, SWALES!AN153, SWEST!AN153, LPN!AN153,SPN!AN153,EPN!AN153,SPD!AN153,SPMW!AN153,SSEH!AN153,SSES!AN153) -> 0 | AO153: =CHOOSE(m_identity,ENWL!AO153, NPgN!AO153, NPgY!AO153, WMID!AO153, EMID!AO153, SWALES!AO153, SWEST!AO153, LPN!AO153,SPN!AO153,EPN!AO153,SPD!AO153,SPMW!AO153,SSEH!AO153,SSES!AO153) -> 0 | AP153: =CHOOSE(m_identity,ENWL!AP153, NPgN!AP153, NPgY!AP153, WMID!AP153, EMID!AP153, SWALES!AP153, SWEST!AP153, LPN!AP153,SPN!AP153,EPN!AP153,SPD!AP153,SPMW!AP153,SSEH!AP153,SSES!AP153) -> 0 | AQ153: =CHOOSE(m_identity,ENWL!AQ153, NPgN!AQ153, NPgY!AQ153, WMID!AQ153, EMID!AQ153, SWALES!AQ153, SWEST!AQ153, LPN!AQ153,SPN!AQ153,EPN!AQ153,SPD!AQ153,SPMW!AQ153,SSEH!AQ153,SSES!AQ153) -> 0
E154: Allocation to faults | G154: % | AJ154: =CHOOSE(m_identity,ENWL!AJ154, NPgN!AJ154, NPgY!AJ154, WMID!AJ154, EMID!AJ154, SWALES!AJ154, SWEST!AJ154, LPN!AJ154,SPN!AJ154,EPN!AJ154,SPD!AJ154,SPMW!AJ154,SSEH!AJ154,SSES!AJ154) -> 0.8738469836 | AK154: =CHOOSE(m_identity,ENWL!AK154, NPgN!AK154, NPgY!AK154, WMID!AK154, EMID!AK154, SWALES!AK154, SWEST!AK154, LPN!AK154,SPN!AK154,EPN!AK154,SPD!AK154,SPMW!AK154,SSEH!AK154,SSES!AK154) -> 0.8805645792 | AL154: =CHOOSE(m_identity,ENWL!AL154, NPgN!AL154, NPgY!AL154, WMID!AL154, EMID!AL154, SWALES!AL154, SWEST!AL154, LPN!AL154,SPN!AL154,EPN!AL154,SPD!AL154,SPMW!AL154,SSEH!AL154,SSES!AL154) -> 0.8802755006 | AM154: =CHOOSE(m_identity,ENWL!AM154, NPgN!AM154, NPgY!AM154, WMID!AM154, EMID!AM154, SWALES!AM154, SWEST!AM154, LPN!AM154,SPN!AM154,EPN!AM154,SPD!AM154,SPMW!AM154,SSEH!AM154,SSES!AM154) -> 0.8787588963 | AN154: =CHOOSE(m_identity,ENWL!AN154, NPgN!AN154, NPgY!AN154, WMID!AN154, EMID!AN154, SWALES!AN154, SWEST!AN154, LPN!AN154,SPN!AN154,EPN!AN154,SPD!AN154,SPMW!AN154,SSEH!AN154,SSES!AN154) -> 0.8767853511 | AO154: =CHOOSE(m_identity,ENWL!AO154, NPgN!AO154, NPgY!AO154, WMID!AO154, EMID!AO154, SWALES!AO154, SWEST!AO154, LPN!AO154,SPN!AO154,EPN!AO154,SPD!AO154,SPMW!AO154,SSEH!AO154,SSES!AO154) -> 0.8817294309 | AP154: =CHOOSE(m_identity,ENWL!AP154, NPgN!AP154, NPgY!AP154, WMID!AP154, EMID!AP154, SWALES!AP154, SWEST!AP154, LPN!AP154,SPN!AP154,EPN!AP154,SPD!AP154,SPMW!AP154,SSEH!AP154,SSES!AP154) -> 0.8842079017 | AQ154: =CHOOSE(m_identity,ENWL!AQ154, NPgN!AQ154, NPgY!AQ154, WMID!AQ154, EMID!AQ154, SWALES!AQ154, SWEST!AQ154, LPN!AQ154,SPN!AQ154,EPN!AQ154,SPD!AQ154,SPMW!AQ154,SSEH!AQ154,SSES!AQ154) -> 0.8867376795
E155: Allocation to tree cutting | G155: % | AJ155: =CHOOSE(m_identity,ENWL!AJ155, NPgN!AJ155, NPgY!AJ155, WMID!AJ155, EMID!AJ155, SWALES!AJ155, SWEST!AJ155, LPN!AJ155,SPN!AJ155,EPN!AJ155,SPD!AJ155,SPMW!AJ155,SSEH!AJ155,SSES!AJ155) -> 0 | AK155: =CHOOSE(m_identity,ENWL!AK155, NPgN!AK155, NPgY!AK155, WMID!AK155, EMID!AK155, SWALES!AK155, SWEST!AK155, LPN!AK155,SPN!AK155,EPN!AK155,SPD!AK155,SPMW!AK155,SSEH!AK155,SSES!AK155) -> 0 | AL155: =CHOOSE(m_identity,ENWL!AL155, NPgN!AL155, NPgY!AL155, WMID!AL155, EMID!AL155, SWALES!AL155, SWEST!AL155, LPN!AL155,SPN!AL155,EPN!AL155,SPD!AL155,SPMW!AL155,SSEH!AL155,SSES!AL155) -> 0 | AM155: =CHOOSE(m_identity,ENWL!AM155, NPgN!AM155, NPgY!AM155, WMID!AM155, EMID!AM155, SWALES!AM155, SWEST!AM155, LPN!AM155,SPN!AM155,EPN!AM155,SPD!AM155,SPMW!AM155,SSEH!AM155,SSES!AM155) -> 0 | AN155: =CHOOSE(m_identity,ENWL!AN155, NPgN!AN155, NPgY!AN155, WMID!AN155, EMID!AN155, SWALES!AN155, SWEST!AN155, LPN!AN155,SPN!AN155,EPN!AN155,SPD!AN155,SPMW!AN155,SSEH!AN155,SSES!AN155) -> 0 | AO155: =CHOOSE(m_identity,ENWL!AO155, NPgN!AO155, NPgY!AO155, WMID!AO155, EMID!AO155, SWALES!AO155, SWEST!AO155, LPN!AO155,SPN!AO155,EPN!AO155,SPD!AO155,SPMW!AO155,SSEH!AO155,SSES!AO155) -> 0 | AP155: =CHOOSE(m_identity,ENWL!AP155, NPgN!AP155, NPgY!AP155, WMID!AP155, EMID!AP155, SWALES!AP155, SWEST!AP155, LPN!AP155,SPN!AP155,EPN!AP155,SPD!AP155,SPMW!AP155,SSEH!AP155,SSES!AP155) -> 0 | AQ155: =CHOOSE(m_identity,ENWL!AQ155, NPgN!AQ155, NPgY!AQ155, WMID!AQ155, EMID!AQ155, SWALES!AQ155, SWEST!AQ155, LPN!AQ155,SPN!AQ155,EPN!AQ155,SPD!AQ155,SPMW!AQ155,SSEH!AQ155,SSES!AQ155) -> 0
E156: Allocation to 100% ‘revenue pool’ expenditure | G156: % | AJ156: =CHOOSE(m_identity,ENWL!AJ156, NPgN!AJ156, NPgY!AJ156, WMID!AJ156, EMID!AJ156, SWALES!AJ156, SWEST!AJ156, LPN!AJ156,SPN!AJ156,EPN!AJ156,SPD!AJ156,SPMW!AJ156,SSEH!AJ156,SSES!AJ156) -> 0 | AK156: =CHOOSE(m_identity,ENWL!AK156, NPgN!AK156, NPgY!AK156, WMID!AK156, EMID!AK156, SWALES!AK156, SWEST!AK156, LPN!AK156,SPN!AK156,EPN!AK156,SPD!AK156,SPMW!AK156,SSEH!AK156,SSES!AK156) -> 0 | AL156: =CHOOSE(m_identity,ENWL!AL156, NPgN!AL156, NPgY!AL156, WMID!AL156, EMID!AL156, SWALES!AL156, SWEST!AL156, LPN!AL156,SPN!AL156,EPN!AL156,SPD!AL156,SPMW!AL156,SSEH!AL156,SSES!AL156) -> 0 | AM156: =CHOOSE(m_identity,ENWL!AM156, NPgN!AM156, NPgY!AM156, WMID!AM156, EMID!AM156, SWALES!AM156, SWEST!AM156, LPN!AM156,SPN!AM156,EPN!AM156,SPD!AM156,SPMW!AM156,SSEH!AM156,SSES!AM156) -> 0 | AN156: =CHOOSE(m_identity,ENWL!AN156, NPgN!AN156, NPgY!AN156, WMID!AN156, EMID!AN156, SWALES!AN156, SWEST!AN156, LPN!AN156,SPN!AN156,EPN!AN156,SPD!AN156,SPMW!AN156,SSEH!AN156,SSES!AN156) -> 0 | AO156: =CHOOSE(m_identity,ENWL!AO156, NPgN!AO156, NPgY!AO156, WMID!AO156, EMID!AO156, SWALES!AO156, SWEST!AO156, LPN!AO156,SPN!AO156,EPN!AO156,SPD!AO156,SPMW!AO156,SSEH!AO156,SSES!AO156) -> 0 | AP156: =CHOOSE(m_identity,ENWL!AP156, NPgN!AP156, NPgY!AP156, WMID!AP156, EMID!AP156, SWALES!AP156, SWEST!AP156, LPN!AP156,SPN!AP156,EPN!AP156,SPD!AP156,SPMW!AP156,SSEH!AP156,SSES!AP156) -> 0 | AQ156: =CHOOSE(m_identity,ENWL!AQ156, NPgN!AQ156, NPgY!AQ156, WMID!AQ156, EMID!AQ156, SWALES!AQ156, SWEST!AQ156, LPN!AQ156,SPN!AQ156,EPN!AQ156,SPD!AQ156,SPMW!AQ156,SSEH!AQ156,SSES!AQ156) -> 0
E157: Allocation to controllable opex | G157: % | AJ157: =CHOOSE(m_identity,ENWL!AJ157, NPgN!AJ157, NPgY!AJ157, WMID!AJ157, EMID!AJ157, SWALES!AJ157, SWEST!AJ157, LPN!AJ157,SPN!AJ157,EPN!AJ157,SPD!AJ157,SPMW!AJ157,SSEH!AJ157,SSES!AJ157) -> 0.4863581428 | AK157: =CHOOSE(m_identity,ENWL!AK157, NPgN!AK157, NPgY!AK157, WMID!AK157, EMID!AK157, SWALES!AK157, SWEST!AK157, LPN!AK157,SPN!AK157,EPN!AK157,SPD!AK157,SPMW!AK157,SSEH!AK157,SSES!AK157) -> 0.4898395198 | AL157: =CHOOSE(m_identity,ENWL!AL157, NPgN!AL157, NPgY!AL157, WMID!AL157, EMID!AL157, SWALES!AL157, SWEST!AL157, LPN!AL157,SPN!AL157,EPN!AL157,SPD!AL157,SPMW!AL157,SSEH!AL157,SSES!AL157) -> 0.4899278242 | AM157: =CHOOSE(m_identity,ENWL!AM157, NPgN!AM157, NPgY!AM157, WMID!AM157, EMID!AM157, SWALES!AM157, SWEST!AM157, LPN!AM157,SPN!AM157,EPN!AM157,SPD!AM157,SPMW!AM157,SSEH!AM157,SSES!AM157) -> 0.4892285073 | AN157: =CHOOSE(m_identity,ENWL!AN157, NPgN!AN157, NPgY!AN157, WMID!AN157, EMID!AN157, SWALES!AN157, SWEST!AN157, LPN!AN157,SPN!AN157,EPN!AN157,SPD!AN157,SPMW!AN157,SSEH!AN157,SSES!AN157) -> 0.4879730462 | AO157: =CHOOSE(m_identity,ENWL!AO157, NPgN!AO157, NPgY!AO157, WMID!AO157, EMID!AO157, SWALES!AO157, SWEST!AO157, LPN!AO157,SPN!AO157,EPN!AO157,SPD!AO157,SPMW!AO157,SSEH!AO157,SSES!AO157) -> 0.4841837215 | AP157: =CHOOSE(m_identity,ENWL!AP157, NPgN!AP157, NPgY!AP157, WMID!AP157, EMID!AP157, SWALES!AP157, SWEST!AP157, LPN!AP157,SPN!AP157,EPN!AP157,SPD!AP157,SPMW!AP157,SSEH!AP157,SSES!AP157) -> 0.4807256355 | AQ157: =CHOOSE(m_identity,ENWL!AQ157, NPgN!AQ157, NPgY!AQ157, WMID!AQ157, EMID!AQ157, SWALES!AQ157, SWEST!AQ157, LPN!AQ157,SPN!AQ157,EPN!AQ157,SPD!AQ157,SPMW!AQ157,SSEH!AQ157,SSES!AQ157) -> 0.4772281781
E159: =E25 -> Allowed Expenditure - Load Related | G159: £m 12/13 prices | AJ159: =AJ25 -> 15.42672964 | AK159: =AK25 -> 19.5395194 | AL159: 13.44013014 | AM159: 17.56782735 | AN159: 16.96089302 | AO159: 18.71534463 | AP159: 25.19613331 | AQ159: 22.52501884
E160: Allocation to load related capex | G160: % | AJ160: =CHOOSE(m_identity,ENWL!AJ160, NPgN!AJ160, NPgY!AJ160, WMID!AJ160, EMID!AJ160, SWALES!AJ160, SWEST!AJ160, LPN!AJ160,SPN!AJ160,EPN!AJ160,SPD!AJ160,SPMW!AJ160,SSEH!AJ160,SSES!AJ160) -> 0.9875416954 | AK160: =CHOOSE(m_identity,ENWL!AK160, NPgN!AK160, NPgY!AK160, WMID!AK160, EMID!AK160, SWALES!AK160, SWEST!AK160, LPN!AK160,SPN!AK160,EPN!AK160,SPD!AK160,SPMW!AK160,SSEH!AK160,SSES!AK160) -> 0.9868922349 | AL160: =CHOOSE(m_identity,ENWL!AL160, NPgN!AL160, NPgY!AL160, WMID!AL160, EMID!AL160, SWALES!AL160, SWEST!AL160, LPN!AL160,SPN!AL160,EPN!AL160,SPD!AL160,SPMW!AL160,SSEH!AL160,SSES!AL160) -> 0.9867665588 | AM160: =CHOOSE(m_identity,ENWL!AM160, NPgN!AM160, NPgY!AM160, WMID!AM160, EMID!AM160, SWALES!AM160, SWEST!AM160, LPN!AM160,SPN!AM160,EPN!AM160,SPD!AM160,SPMW!AM160,SSEH!AM160,SSES!AM160) -> 0.9879982409 | AN160: =CHOOSE(m_identity,ENWL!AN160, NPgN!AN160, NPgY!AN160, WMID!AN160, EMID!AN160, SWALES!AN160, SWEST!AN160, LPN!AN160,SPN!AN160,EPN!AN160,SPD!AN160,SPMW!AN160,SSEH!AN160,SSES!AN160) -> 0.9866239456 | AO160: =CHOOSE(m_identity,ENWL!AO160, NPgN!AO160, NPgY!AO160, WMID!AO160, EMID!AO160, SWALES!AO160, SWEST!AO160, LPN!AO160,SPN!AO160,EPN!AO160,SPD!AO160,SPMW!AO160,SSEH!AO160,SSES!AO160) -> 0.9889529933 | AP160: =CHOOSE(m_identity,ENWL!AP160, NPgN!AP160, NPgY!AP160, WMID!AP160, EMID!AP160, SWALES!AP160, SWEST!AP160, LPN!AP160,SPN!AP160,EPN!AP160,SPD!AP160,SPMW!AP160,SSEH!AP160,SSES!AP160) -> 0.989624355 | AQ160: =CHOOSE(m_identity,ENWL!AQ160, NPgN!AQ160, NPgY!AQ160, WMID!AQ160, EMID!AQ160, SWALES!AQ160, SWEST!AQ160, LPN!AQ160,SPN!AQ160,EPN!AQ160,SPD!AQ160,SPMW!AQ160,SSEH!AQ160,SSES!AQ160) -> 0.9894519885
E161: Allocation to non-load related capex - asset replacement | G161: % | AJ161: =CHOOSE(m_identity,ENWL!AJ161, NPgN!AJ161, NPgY!AJ161, WMID!AJ161, EMID!AJ161, SWALES!AJ161, SWEST!AJ161, LPN!AJ161,SPN!AJ161,EPN!AJ161,SPD!AJ161,SPMW!AJ161,SSEH!AJ161,SSES!AJ161) -> 0 | AK161: =CHOOSE(m_identity,ENWL!AK161, NPgN!AK161, NPgY!AK161, WMID!AK161, EMID!AK161, SWALES!AK161, SWEST!AK161, LPN!AK161,SPN!AK161,EPN!AK161,SPD!AK161,SPMW!AK161,SSEH!AK161,SSES!AK161) -> 0 | AL161: =CHOOSE(m_identity,ENWL!AL161, NPgN!AL161, NPgY!AL161, WMID!AL161, EMID!AL161, SWALES!AL161, SWEST!AL161, LPN!AL161,SPN!AL161,EPN!AL161,SPD!AL161,SPMW!AL161,SSEH!AL161,SSES!AL161) -> 0 | AM161: =CHOOSE(m_identity,ENWL!AM161, NPgN!AM161, NPgY!AM161, WMID!AM161, EMID!AM161, SWALES!AM161, SWEST!AM161, LPN!AM161,SPN!AM161,EPN!AM161,SPD!AM161,SPMW!AM161,SSEH!AM161,SSES!AM161) -> 0 | AN161: =CHOOSE(m_identity,ENWL!AN161, NPgN!AN161, NPgY!AN161, WMID!AN161, EMID!AN161, SWALES!AN161, SWEST!AN161, LPN!AN161,SPN!AN161,EPN!AN161,SPD!AN161,SPMW!AN161,SSEH!AN161,SSES!AN161) -> 0 | AO161: =CHOOSE(m_identity,ENWL!AO161, NPgN!AO161, NPgY!AO161, WMID!AO161, EMID!AO161, SWALES!AO161, SWEST!AO161, LPN!AO161,SPN!AO161,EPN!AO161,SPD!AO161,SPMW!AO161,SSEH!AO161,SSES!AO161) -> 0 | AP161: =CHOOSE(m_identity,ENWL!AP161, NPgN!AP161, NPgY!AP161, WMID!AP161, EMID!AP161, SWALES!AP161, SWEST!AP161, LPN!AP161,SPN!AP161,EPN!AP161,SPD!AP161,SPMW!AP161,SSEH!AP161,SSES!AP161) -> 0 | AQ161: =CHOOSE(m_identity,ENWL!AQ161, NPgN!AQ161, NPgY!AQ161, WMID!AQ161, EMID!AQ161, SWALES!AQ161, SWEST!AQ161, LPN!AQ161,SPN!AQ161,EPN!AQ161,SPD!AQ161,SPMW!AQ161,SSEH!AQ161,SSES!AQ161) -> 0
E162: Allocation to non-load related capex - other | G162: % | AJ162: =CHOOSE(m_identity,ENWL!AJ162, NPgN!AJ162, NPgY!AJ162, WMID!AJ162, EMID!AJ162, SWALES!AJ162, SWEST!AJ162, LPN!AJ162,SPN!AJ162,EPN!AJ162,SPD!AJ162,SPMW!AJ162,SSEH!AJ162,SSES!AJ162) -> 0 | AK162: =CHOOSE(m_identity,ENWL!AK162, NPgN!AK162, NPgY!AK162, WMID!AK162, EMID!AK162, SWALES!AK162, SWEST!AK162, LPN!AK162,SPN!AK162,EPN!AK162,SPD!AK162,SPMW!AK162,SSEH!AK162,SSES!AK162) -> 0 | AL162: =CHOOSE(m_identity,ENWL!AL162, NPgN!AL162, NPgY!AL162, WMID!AL162, EMID!AL162, SWALES!AL162, SWEST!AL162, LPN!AL162,SPN!AL162,EPN!AL162,SPD!AL162,SPMW!AL162,SSEH!AL162,SSES!AL162) -> 0 | AM162: =CHOOSE(m_identity,ENWL!AM162, NPgN!AM162, NPgY!AM162, WMID!AM162, EMID!AM162, SWALES!AM162, SWEST!AM162, LPN!AM162,SPN!AM162,EPN!AM162,SPD!AM162,SPMW!AM162,SSEH!AM162,SSES!AM162) -> 0 | AN162: =CHOOSE(m_identity,ENWL!AN162, NPgN!AN162, NPgY!AN162, WMID!AN162, EMID!AN162, SWALES!AN162, SWEST!AN162, LPN!AN162,SPN!AN162,EPN!AN162,SPD!AN162,SPMW!AN162,SSEH!AN162,SSES!AN162) -> 0 | AO162: =CHOOSE(m_identity,ENWL!AO162, NPgN!AO162, NPgY!AO162, WMID!AO162, EMID!AO162, SWALES!AO162, SWEST!AO162, LPN!AO162,SPN!AO162,EPN!AO162,SPD!AO162,SPMW!AO162,SSEH!AO162,SSES!AO162) -> 0 | AP162: =CHOOSE(m_identity,ENWL!AP162, NPgN!AP162, NPgY!AP162, WMID!AP162, EMID!AP162, SWALES!AP162, SWEST!AP162, LPN!AP162,SPN!AP162,EPN!AP162,SPD!AP162,SPMW!AP162,SSEH!AP162,SSES!AP162) -> 0 | AQ162: =CHOOSE(m_identity,ENWL!AQ162, NPgN!AQ162, NPgY!AQ162, WMID!AQ162, EMID!AQ162, SWALES!AQ162, SWEST!AQ162, LPN!AQ162,SPN!AQ162,EPN!AQ162,SPD!AQ162,SPMW!AQ162,SSEH!AQ162,SSES!AQ162) -> 0
E163: Allocation to faults | G163: % | AJ163: =CHOOSE(m_identity,ENWL!AJ163, NPgN!AJ163, NPgY!AJ163, WMID!AJ163, EMID!AJ163, SWALES!AJ163, SWEST!AJ163, LPN!AJ163,SPN!AJ163,EPN!AJ163,SPD!AJ163,SPMW!AJ163,SSEH!AJ163,SSES!AJ163) -> 0 | AK163: =CHOOSE(m_identity,ENWL!AK163, NPgN!AK163, NPgY!AK163, WMID!AK163, EMID!AK163, SWALES!AK163, SWEST!AK163, LPN!AK163,SPN!AK163,EPN!AK163,SPD!AK163,SPMW!AK163,SSEH!AK163,SSES!AK163) -> 0 | AL163: =CHOOSE(m_identity,ENWL!AL163, NPgN!AL163, NPgY!AL163, WMID!AL163, EMID!AL163, SWALES!AL163, SWEST!AL163, LPN!AL163,SPN!AL163,EPN!AL163,SPD!AL163,SPMW!AL163,SSEH!AL163,SSES!AL163) -> 0 | AM163: =CHOOSE(m_identity,ENWL!AM163, NPgN!AM163, NPgY!AM163, WMID!AM163, EMID!AM163, SWALES!AM163, SWEST!AM163, LPN!AM163,SPN!AM163,EPN!AM163,SPD!AM163,SPMW!AM163,SSEH!AM163,SSES!AM163) -> 0 | AN163: =CHOOSE(m_identity,ENWL!AN163, NPgN!AN163, NPgY!AN163, WMID!AN163, EMID!AN163, SWALES!AN163, SWEST!AN163, LPN!AN163,SPN!AN163,EPN!AN163,SPD!AN163,SPMW!AN163,SSEH!AN163,SSES!AN163) -> 0 | AO163: =CHOOSE(m_identity,ENWL!AO163, NPgN!AO163, NPgY!AO163, WMID!AO163, EMID!AO163, SWALES!AO163, SWEST!AO163, LPN!AO163,SPN!AO163,EPN!AO163,SPD!AO163,SPMW!AO163,SSEH!AO163,SSES!AO163) -> 0 | AP163: =CHOOSE(m_identity,ENWL!AP163, NPgN!AP163, NPgY!AP163, WMID!AP163, EMID!AP163, SWALES!AP163, SWEST!AP163, LPN!AP163,SPN!AP163,EPN!AP163,SPD!AP163,SPMW!AP163,SSEH!AP163,SSES!AP163) -> 0 | AQ163: =CHOOSE(m_identity,ENWL!AQ163, NPgN!AQ163, NPgY!AQ163, WMID!AQ163, EMID!AQ163, SWALES!AQ163, SWEST!AQ163, LPN!AQ163,SPN!AQ163,EPN!AQ163,SPD!AQ163,SPMW!AQ163,SSEH!AQ163,SSES!AQ163) -> 0
E164: Allocation to tree cutting | G164: % | AJ164: =CHOOSE(m_identity,ENWL!AJ164, NPgN!AJ164, NPgY!AJ164, WMID!AJ164, EMID!AJ164, SWALES!AJ164, SWEST!AJ164, LPN!AJ164,SPN!AJ164,EPN!AJ164,SPD!AJ164,SPMW!AJ164,SSEH!AJ164,SSES!AJ164) -> 0 | AK164: =CHOOSE(m_identity,ENWL!AK164, NPgN!AK164, NPgY!AK164, WMID!AK164, EMID!AK164, SWALES!AK164, SWEST!AK164, LPN!AK164,SPN!AK164,EPN!AK164,SPD!AK164,SPMW!AK164,SSEH!AK164,SSES!AK164) -> 0 | AL164: =CHOOSE(m_identity,ENWL!AL164, NPgN!AL164, NPgY!AL164, WMID!AL164, EMID!AL164, SWALES!AL164, SWEST!AL164, LPN!AL164,SPN!AL164,EPN!AL164,SPD!AL164,SPMW!AL164,SSEH!AL164,SSES!AL164) -> 0 | AM164: =CHOOSE(m_identity,ENWL!AM164, NPgN!AM164, NPgY!AM164, WMID!AM164, EMID!AM164, SWALES!AM164, SWEST!AM164, LPN!AM164,SPN!AM164,EPN!AM164,SPD!AM164,SPMW!AM164,SSEH!AM164,SSES!AM164) -> 0 | AN164: =CHOOSE(m_identity,ENWL!AN164, NPgN!AN164, NPgY!AN164, WMID!AN164, EMID!AN164, SWALES!AN164, SWEST!AN164, LPN!AN164,SPN!AN164,EPN!AN164,SPD!AN164,SPMW!AN164,SSEH!AN164,SSES!AN164) -> 0 | AO164: =CHOOSE(m_identity,ENWL!AO164, NPgN!AO164, NPgY!AO164, WMID!AO164, EMID!AO164, SWALES!AO164, SWEST!AO164, LPN!AO164,SPN!AO164,EPN!AO164,SPD!AO164,SPMW!AO164,SSEH!AO164,SSES!AO164) -> 0 | AP164: =CHOOSE(m_identity,ENWL!AP164, NPgN!AP164, NPgY!AP164, WMID!AP164, EMID!AP164, SWALES!AP164, SWEST!AP164, LPN!AP164,SPN!AP164,EPN!AP164,SPD!AP164,SPMW!AP164,SSEH!AP164,SSES!AP164) -> 0 | AQ164: =CHOOSE(m_identity,ENWL!AQ164, NPgN!AQ164, NPgY!AQ164, WMID!AQ164, EMID!AQ164, SWALES!AQ164, SWEST!AQ164, LPN!AQ164,SPN!AQ164,EPN!AQ164,SPD!AQ164,SPMW!AQ164,SSEH!AQ164,SSES!AQ164) -> 0
E165: Allocation to 100% ‘revenue pool’ expenditure | G165: % | AJ165: =CHOOSE(m_identity,ENWL!AJ165, NPgN!AJ165, NPgY!AJ165, WMID!AJ165, EMID!AJ165, SWALES!AJ165, SWEST!AJ165, LPN!AJ165,SPN!AJ165,EPN!AJ165,SPD!AJ165,SPMW!AJ165,SSEH!AJ165,SSES!AJ165) -> 0.01245830459 | AK165: =CHOOSE(m_identity,ENWL!AK165, NPgN!AK165, NPgY!AK165, WMID!AK165, EMID!AK165, SWALES!AK165, SWEST!AK165, LPN!AK165,SPN!AK165,EPN!AK165,SPD!AK165,SPMW!AK165,SSEH!AK165,SSES!AK165) -> 0.01310776506 | AL165: =CHOOSE(m_identity,ENWL!AL165, NPgN!AL165, NPgY!AL165, WMID!AL165, EMID!AL165, SWALES!AL165, SWEST!AL165, LPN!AL165,SPN!AL165,EPN!AL165,SPD!AL165,SPMW!AL165,SSEH!AL165,SSES!AL165) -> 0.01323344116 | AM165: =CHOOSE(m_identity,ENWL!AM165, NPgN!AM165, NPgY!AM165, WMID!AM165, EMID!AM165, SWALES!AM165, SWEST!AM165, LPN!AM165,SPN!AM165,EPN!AM165,SPD!AM165,SPMW!AM165,SSEH!AM165,SSES!AM165) -> 0.01200175912 | AN165: =CHOOSE(m_identity,ENWL!AN165, NPgN!AN165, NPgY!AN165, WMID!AN165, EMID!AN165, SWALES!AN165, SWEST!AN165, LPN!AN165,SPN!AN165,EPN!AN165,SPD!AN165,SPMW!AN165,SSEH!AN165,SSES!AN165) -> 0.01337605436 | AO165: =CHOOSE(m_identity,ENWL!AO165, NPgN!AO165, NPgY!AO165, WMID!AO165, EMID!AO165, SWALES!AO165, SWEST!AO165, LPN!AO165,SPN!AO165,EPN!AO165,SPD!AO165,SPMW!AO165,SSEH!AO165,SSES!AO165) -> 0.01104700671 | AP165: =CHOOSE(m_identity,ENWL!AP165, NPgN!AP165, NPgY!AP165, WMID!AP165, EMID!AP165, SWALES!AP165, SWEST!AP165, LPN!AP165,SPN!AP165,EPN!AP165,SPD!AP165,SPMW!AP165,SSEH!AP165,SSES!AP165) -> 0.010375645 | AQ165: =CHOOSE(m_identity,ENWL!AQ165, NPgN!AQ165, NPgY!AQ165, WMID!AQ165, EMID!AQ165, SWALES!AQ165, SWEST!AQ165, LPN!AQ165,SPN!AQ165,EPN!AQ165,SPD!AQ165,SPMW!AQ165,SSEH!AQ165,SSES!AQ165) -> 0.01054801152
E166: Allocation to controllable opex | G166: % | AJ166: =CHOOSE(m_identity,ENWL!AJ166, NPgN!AJ166, NPgY!AJ166, WMID!AJ166, EMID!AJ166, SWALES!AJ166, SWEST!AJ166, LPN!AJ166,SPN!AJ166,EPN!AJ166,SPD!AJ166,SPMW!AJ166,SSEH!AJ166,SSES!AJ166) -> 0 | AK166: =CHOOSE(m_identity,ENWL!AK166, NPgN!AK166, NPgY!AK166, WMID!AK166, EMID!AK166, SWALES!AK166, SWEST!AK166, LPN!AK166,SPN!AK166,EPN!AK166,SPD!AK166,SPMW!AK166,SSEH!AK166,SSES!AK166) -> 0 | AL166: =CHOOSE(m_identity,ENWL!AL166, NPgN!AL166, NPgY!AL166, WMID!AL166, EMID!AL166, SWALES!AL166, SWEST!AL166, LPN!AL166,SPN!AL166,EPN!AL166,SPD!AL166,SPMW!AL166,SSEH!AL166,SSES!AL166) -> 0 | AM166: =CHOOSE(m_identity,ENWL!AM166, NPgN!AM166, NPgY!AM166, WMID!AM166, EMID!AM166, SWALES!AM166, SWEST!AM166, LPN!AM166,SPN!AM166,EPN!AM166,SPD!AM166,SPMW!AM166,SSEH!AM166,SSES!AM166) -> 0 | AN166: =CHOOSE(m_identity,ENWL!AN166, NPgN!AN166, NPgY!AN166, WMID!AN166, EMID!AN166, SWALES!AN166, SWEST!AN166, LPN!AN166,SPN!AN166,EPN!AN166,SPD!AN166,SPMW!AN166,SSEH!AN166,SSES!AN166) -> 0 | AO166: =CHOOSE(m_identity,ENWL!AO166, NPgN!AO166, NPgY!AO166, WMID!AO166, EMID!AO166, SWALES!AO166, SWEST!AO166, LPN!AO166,SPN!AO166,EPN!AO166,SPD!AO166,SPMW!AO166,SSEH!AO166,SSES!AO166) -> 0 | AP166: =CHOOSE(m_identity,ENWL!AP166, NPgN!AP166, NPgY!AP166, WMID!AP166, EMID!AP166, SWALES!AP166, SWEST!AP166, LPN!AP166,SPN!AP166,EPN!AP166,SPD!AP166,SPMW!AP166,SSEH!AP166,SSES!AP166) -> 0 | AQ166: =CHOOSE(m_identity,ENWL!AQ166, NPgN!AQ166, NPgY!AQ166, WMID!AQ166, EMID!AQ166, SWALES!AQ166, SWEST!AQ166, LPN!AQ166,SPN!AQ166,EPN!AQ166,SPD!AQ166,SPMW!AQ166,SSEH!AQ166,SSES!AQ166) -> 0
E168: =E26 -> Allowed Expenditure - Rail Electrification | G168: £m 12/13 prices | AJ168: =AJ26 -> 0 | AK168: =AK26 -> 0 | AL168: 0 | AM168: 0 | AN168: 0 | AO168: 0 | AP168: 0 | AQ168: 0
E169: Allocation to load related capex | G169: % | AJ169: =CHOOSE(m_identity,ENWL!AJ169, NPgN!AJ169, NPgY!AJ169, WMID!AJ169, EMID!AJ169, SWALES!AJ169, SWEST!AJ169, LPN!AJ169,SPN!AJ169,EPN!AJ169,SPD!AJ169,SPMW!AJ169,SSEH!AJ169,SSES!AJ169) -> 0 | AK169: =CHOOSE(m_identity,ENWL!AK169, NPgN!AK169, NPgY!AK169, WMID!AK169, EMID!AK169, SWALES!AK169, SWEST!AK169, LPN!AK169,SPN!AK169,EPN!AK169,SPD!AK169,SPMW!AK169,SSEH!AK169,SSES!AK169) -> 0 | AL169: =CHOOSE(m_identity,ENWL!AL169, NPgN!AL169, NPgY!AL169, WMID!AL169, EMID!AL169, SWALES!AL169, SWEST!AL169, LPN!AL169,SPN!AL169,EPN!AL169,SPD!AL169,SPMW!AL169,SSEH!AL169,SSES!AL169) -> 0 | AM169: =CHOOSE(m_identity,ENWL!AM169, NPgN!AM169, NPgY!AM169, WMID!AM169, EMID!AM169, SWALES!AM169, SWEST!AM169, LPN!AM169,SPN!AM169,EPN!AM169,SPD!AM169,SPMW!AM169,SSEH!AM169,SSES!AM169) -> 0 | AN169: =CHOOSE(m_identity,ENWL!AN169, NPgN!AN169, NPgY!AN169, WMID!AN169, EMID!AN169, SWALES!AN169, SWEST!AN169, LPN!AN169,SPN!AN169,EPN!AN169,SPD!AN169,SPMW!AN169,SSEH!AN169,SSES!AN169) -> 0 | AO169: =CHOOSE(m_identity,ENWL!AO169, NPgN!AO169, NPgY!AO169, WMID!AO169, EMID!AO169, SWALES!AO169, SWEST!AO169, LPN!AO169,SPN!AO169,EPN!AO169,SPD!AO169,SPMW!AO169,SSEH!AO169,SSES!AO169) -> 0 | AP169: =CHOOSE(m_identity,ENWL!AP169, NPgN!AP169, NPgY!AP169, WMID!AP169, EMID!AP169, SWALES!AP169, SWEST!AP169, LPN!AP169,SPN!AP169,EPN!AP169,SPD!AP169,SPMW!AP169,SSEH!AP169,SSES!AP169) -> 0 | AQ169: =CHOOSE(m_identity,ENWL!AQ169, NPgN!AQ169, NPgY!AQ169, WMID!AQ169, EMID!AQ169, SWALES!AQ169, SWEST!AQ169, LPN!AQ169,SPN!AQ169,EPN!AQ169,SPD!AQ169,SPMW!AQ169,SSEH!AQ169,SSES!AQ169) -> 0
E170: Allocation to non-load related capex - asset replacement | G170: % | AJ170: =CHOOSE(m_identity,ENWL!AJ170, NPgN!AJ170, NPgY!AJ170, WMID!AJ170, EMID!AJ170, SWALES!AJ170, SWEST!AJ170, LPN!AJ170,SPN!AJ170,EPN!AJ170,SPD!AJ170,SPMW!AJ170,SSEH!AJ170,SSES!AJ170) -> 0.9804732217 | AK170: =CHOOSE(m_identity,ENWL!AK170, NPgN!AK170, NPgY!AK170, WMID!AK170, EMID!AK170, SWALES!AK170, SWEST!AK170, LPN!AK170,SPN!AK170,EPN!AK170,SPD!AK170,SPMW!AK170,SSEH!AK170,SSES!AK170) -> 0.9798394316 | AL170: =CHOOSE(m_identity,ENWL!AL170, NPgN!AL170, NPgY!AL170, WMID!AL170, EMID!AL170, SWALES!AL170, SWEST!AL170, LPN!AL170,SPN!AL170,EPN!AL170,SPD!AL170,SPMW!AL170,SSEH!AL170,SSES!AL170) -> 0.9803401465 | AM170: =CHOOSE(m_identity,ENWL!AM170, NPgN!AM170, NPgY!AM170, WMID!AM170, EMID!AM170, SWALES!AM170, SWEST!AM170, LPN!AM170,SPN!AM170,EPN!AM170,SPD!AM170,SPMW!AM170,SSEH!AM170,SSES!AM170) -> 0.9807377777 | AN170: =CHOOSE(m_identity,ENWL!AN170, NPgN!AN170, NPgY!AN170, WMID!AN170, EMID!AN170, SWALES!AN170, SWEST!AN170, LPN!AN170,SPN!AN170,EPN!AN170,SPD!AN170,SPMW!AN170,SSEH!AN170,SSES!AN170) -> 0.9808402827 | AO170: =CHOOSE(m_identity,ENWL!AO170, NPgN!AO170, NPgY!AO170, WMID!AO170, EMID!AO170, SWALES!AO170, SWEST!AO170, LPN!AO170,SPN!AO170,EPN!AO170,SPD!AO170,SPMW!AO170,SSEH!AO170,SSES!AO170) -> 0.9813366526 | AP170: =CHOOSE(m_identity,ENWL!AP170, NPgN!AP170, NPgY!AP170, WMID!AP170, EMID!AP170, SWALES!AP170, SWEST!AP170, LPN!AP170,SPN!AP170,EPN!AP170,SPD!AP170,SPMW!AP170,SSEH!AP170,SSES!AP170) -> 0.9821995881 | AQ170: =CHOOSE(m_identity,ENWL!AQ170, NPgN!AQ170, NPgY!AQ170, WMID!AQ170, EMID!AQ170, SWALES!AQ170, SWEST!AQ170, LPN!AQ170,SPN!AQ170,EPN!AQ170,SPD!AQ170,SPMW!AQ170,SSEH!AQ170,SSES!AQ170) -> 0.982404512
E171: Allocation to non-load related capex - other | G171: % | AJ171: =CHOOSE(m_identity,ENWL!AJ171, NPgN!AJ171, NPgY!AJ171, WMID!AJ171, EMID!AJ171, SWALES!AJ171, SWEST!AJ171, LPN!AJ171,SPN!AJ171,EPN!AJ171,SPD!AJ171,SPMW!AJ171,SSEH!AJ171,SSES!AJ171) -> 0 | AK171: =CHOOSE(m_identity,ENWL!AK171, NPgN!AK171, NPgY!AK171, WMID!AK171, EMID!AK171, SWALES!AK171, SWEST!AK171, LPN!AK171,SPN!AK171,EPN!AK171,SPD!AK171,SPMW!AK171,SSEH!AK171,SSES!AK171) -> 0 | AL171: =CHOOSE(m_identity,ENWL!AL171, NPgN!AL171, NPgY!AL171, WMID!AL171, EMID!AL171, SWALES!AL171, SWEST!AL171, LPN!AL171,SPN!AL171,EPN!AL171,SPD!AL171,SPMW!AL171,SSEH!AL171,SSES!AL171) -> 0 | AM171: =CHOOSE(m_identity,ENWL!AM171, NPgN!AM171, NPgY!AM171, WMID!AM171, EMID!AM171, SWALES!AM171, SWEST!AM171, LPN!AM171,SPN!AM171,EPN!AM171,SPD!AM171,SPMW!AM171,SSEH!AM171,SSES!AM171) -> 0 | AN171: =CHOOSE(m_identity,ENWL!AN171, NPgN!AN171, NPgY!AN171, WMID!AN171, EMID!AN171, SWALES!AN171, SWEST!AN171, LPN!AN171,SPN!AN171,EPN!AN171,SPD!AN171,SPMW!AN171,SSEH!AN171,SSES!AN171) -> 0 | AO171: =CHOOSE(m_identity,ENWL!AO171, NPgN!AO171, NPgY!AO171, WMID!AO171, EMID!AO171, SWALES!AO171, SWEST!AO171, LPN!AO171,SPN!AO171,EPN!AO171,SPD!AO171,SPMW!AO171,SSEH!AO171,SSES!AO171) -> 0 | AP171: =CHOOSE(m_identity,ENWL!AP171, NPgN!AP171, NPgY!AP171, WMID!AP171, EMID!AP171, SWALES!AP171, SWEST!AP171, LPN!AP171,SPN!AP171,EPN!AP171,SPD!AP171,SPMW!AP171,SSEH!AP171,SSES!AP171) -> 0 | AQ171: =CHOOSE(m_identity,ENWL!AQ171, NPgN!AQ171, NPgY!AQ171, WMID!AQ171, EMID!AQ171, SWALES!AQ171, SWEST!AQ171, LPN!AQ171,SPN!AQ171,EPN!AQ171,SPD!AQ171,SPMW!AQ171,SSEH!AQ171,SSES!AQ171) -> 0
E172: Allocation to faults | G172: % | AJ172: =CHOOSE(m_identity,ENWL!AJ172, NPgN!AJ172, NPgY!AJ172, WMID!AJ172, EMID!AJ172, SWALES!AJ172, SWEST!AJ172, LPN!AJ172,SPN!AJ172,EPN!AJ172,SPD!AJ172,SPMW!AJ172,SSEH!AJ172,SSES!AJ172) -> 0 | AK172: =CHOOSE(m_identity,ENWL!AK172, NPgN!AK172, NPgY!AK172, WMID!AK172, EMID!AK172, SWALES!AK172, SWEST!AK172, LPN!AK172,SPN!AK172,EPN!AK172,SPD!AK172,SPMW!AK172,SSEH!AK172,SSES!AK172) -> 0 | AL172: =CHOOSE(m_identity,ENWL!AL172, NPgN!AL172, NPgY!AL172, WMID!AL172, EMID!AL172, SWALES!AL172, SWEST!AL172, LPN!AL172,SPN!AL172,EPN!AL172,SPD!AL172,SPMW!AL172,SSEH!AL172,SSES!AL172) -> 0 | AM172: =CHOOSE(m_identity,ENWL!AM172, NPgN!AM172, NPgY!AM172, WMID!AM172, EMID!AM172, SWALES!AM172, SWEST!AM172, LPN!AM172,SPN!AM172,EPN!AM172,SPD!AM172,SPMW!AM172,SSEH!AM172,SSES!AM172) -> 0 | AN172: =CHOOSE(m_identity,ENWL!AN172, NPgN!AN172, NPgY!AN172, WMID!AN172, EMID!AN172, SWALES!AN172, SWEST!AN172, LPN!AN172,SPN!AN172,EPN!AN172,SPD!AN172,SPMW!AN172,SSEH!AN172,SSES!AN172) -> 0 | AO172: =CHOOSE(m_identity,ENWL!AO172, NPgN!AO172, NPgY!AO172, WMID!AO172, EMID!AO172, SWALES!AO172, SWEST!AO172, LPN!AO172,SPN!AO172,EPN!AO172,SPD!AO172,SPMW!AO172,SSEH!AO172,SSES!AO172) -> 0 | AP172: =CHOOSE(m_identity,ENWL!AP172, NPgN!AP172, NPgY!AP172, WMID!AP172, EMID!AP172, SWALES!AP172, SWEST!AP172, LPN!AP172,SPN!AP172,EPN!AP172,SPD!AP172,SPMW!AP172,SSEH!AP172,SSES!AP172) -> 0 | AQ172: =CHOOSE(m_identity,ENWL!AQ172, NPgN!AQ172, NPgY!AQ172, WMID!AQ172, EMID!AQ172, SWALES!AQ172, SWEST!AQ172, LPN!AQ172,SPN!AQ172,EPN!AQ172,SPD!AQ172,SPMW!AQ172,SSEH!AQ172,SSES!AQ172) -> 0
E173: Allocation to tree cutting | G173: % | AJ173: =CHOOSE(m_identity,ENWL!AJ173, NPgN!AJ173, NPgY!AJ173, WMID!AJ173, EMID!AJ173, SWALES!AJ173, SWEST!AJ173, LPN!AJ173,SPN!AJ173,EPN!AJ173,SPD!AJ173,SPMW!AJ173,SSEH!AJ173,SSES!AJ173) -> 0 | AK173: =CHOOSE(m_identity,ENWL!AK173, NPgN!AK173, NPgY!AK173, WMID!AK173, EMID!AK173, SWALES!AK173, SWEST!AK173, LPN!AK173,SPN!AK173,EPN!AK173,SPD!AK173,SPMW!AK173,SSEH!AK173,SSES!AK173) -> 0 | AL173: =CHOOSE(m_identity,ENWL!AL173, NPgN!AL173, NPgY!AL173, WMID!AL173, EMID!AL173, SWALES!AL173, SWEST!AL173, LPN!AL173,SPN!AL173,EPN!AL173,SPD!AL173,SPMW!AL173,SSEH!AL173,SSES!AL173) -> 0 | AM173: =CHOOSE(m_identity,ENWL!AM173, NPgN!AM173, NPgY!AM173, WMID!AM173, EMID!AM173, SWALES!AM173, SWEST!AM173, LPN!AM173,SPN!AM173,EPN!AM173,SPD!AM173,SPMW!AM173,SSEH!AM173,SSES!AM173) -> 0 | AN173: =CHOOSE(m_identity,ENWL!AN173, NPgN!AN173, NPgY!AN173, WMID!AN173, EMID!AN173, SWALES!AN173, SWEST!AN173, LPN!AN173,SPN!AN173,EPN!AN173,SPD!AN173,SPMW!AN173,SSEH!AN173,SSES!AN173) -> 0 | AO173: =CHOOSE(m_identity,ENWL!AO173, NPgN!AO173, NPgY!AO173, WMID!AO173, EMID!AO173, SWALES!AO173, SWEST!AO173, LPN!AO173,SPN!AO173,EPN!AO173,SPD!AO173,SPMW!AO173,SSEH!AO173,SSES!AO173) -> 0 | AP173: =CHOOSE(m_identity,ENWL!AP173, NPgN!AP173, NPgY!AP173, WMID!AP173, EMID!AP173, SWALES!AP173, SWEST!AP173, LPN!AP173,SPN!AP173,EPN!AP173,SPD!AP173,SPMW!AP173,SSEH!AP173,SSES!AP173) -> 0 | AQ173: =CHOOSE(m_identity,ENWL!AQ173, NPgN!AQ173, NPgY!AQ173, WMID!AQ173, EMID!AQ173, SWALES!AQ173, SWEST!AQ173, LPN!AQ173,SPN!AQ173,EPN!AQ173,SPD!AQ173,SPMW!AQ173,SSEH!AQ173,SSES!AQ173) -> 0
E174: Allocation to 100% ‘revenue pool’ expenditure | G174: % | AJ174: =CHOOSE(m_identity,ENWL!AJ174, NPgN!AJ174, NPgY!AJ174, WMID!AJ174, EMID!AJ174, SWALES!AJ174, SWEST!AJ174, LPN!AJ174,SPN!AJ174,EPN!AJ174,SPD!AJ174,SPMW!AJ174,SSEH!AJ174,SSES!AJ174) -> 0.01952677828 | AK174: =CHOOSE(m_identity,ENWL!AK174, NPgN!AK174, NPgY!AK174, WMID!AK174, EMID!AK174, SWALES!AK174, SWEST!AK174, LPN!AK174,SPN!AK174,EPN!AK174,SPD!AK174,SPMW!AK174,SSEH!AK174,SSES!AK174) -> 0.02016056839 | AL174: =CHOOSE(m_identity,ENWL!AL174, NPgN!AL174, NPgY!AL174, WMID!AL174, EMID!AL174, SWALES!AL174, SWEST!AL174, LPN!AL174,SPN!AL174,EPN!AL174,SPD!AL174,SPMW!AL174,SSEH!AL174,SSES!AL174) -> 0.01965985354 | AM174: =CHOOSE(m_identity,ENWL!AM174, NPgN!AM174, NPgY!AM174, WMID!AM174, EMID!AM174, SWALES!AM174, SWEST!AM174, LPN!AM174,SPN!AM174,EPN!AM174,SPD!AM174,SPMW!AM174,SSEH!AM174,SSES!AM174) -> 0.01926222226 | AN174: =CHOOSE(m_identity,ENWL!AN174, NPgN!AN174, NPgY!AN174, WMID!AN174, EMID!AN174, SWALES!AN174, SWEST!AN174, LPN!AN174,SPN!AN174,EPN!AN174,SPD!AN174,SPMW!AN174,SSEH!AN174,SSES!AN174) -> 0.01915971726 | AO174: =CHOOSE(m_identity,ENWL!AO174, NPgN!AO174, NPgY!AO174, WMID!AO174, EMID!AO174, SWALES!AO174, SWEST!AO174, LPN!AO174,SPN!AO174,EPN!AO174,SPD!AO174,SPMW!AO174,SSEH!AO174,SSES!AO174) -> 0.01866334736 | AP174: =CHOOSE(m_identity,ENWL!AP174, NPgN!AP174, NPgY!AP174, WMID!AP174, EMID!AP174, SWALES!AP174, SWEST!AP174, LPN!AP174,SPN!AP174,EPN!AP174,SPD!AP174,SPMW!AP174,SSEH!AP174,SSES!AP174) -> 0.01780041187 | AQ174: =CHOOSE(m_identity,ENWL!AQ174, NPgN!AQ174, NPgY!AQ174, WMID!AQ174, EMID!AQ174, SWALES!AQ174, SWEST!AQ174, LPN!AQ174,SPN!AQ174,EPN!AQ174,SPD!AQ174,SPMW!AQ174,SSEH!AQ174,SSES!AQ174) -> 0.01759548797
E175: Allocation to controllable opex | G175: % | AJ175: =CHOOSE(m_identity,ENWL!AJ175, NPgN!AJ175, NPgY!AJ175, WMID!AJ175, EMID!AJ175, SWALES!AJ175, SWEST!AJ175, LPN!AJ175,SPN!AJ175,EPN!AJ175,SPD!AJ175,SPMW!AJ175,SSEH!AJ175,SSES!AJ175) -> 0 | AK175: =CHOOSE(m_identity,ENWL!AK175, NPgN!AK175, NPgY!AK175, WMID!AK175, EMID!AK175, SWALES!AK175, SWEST!AK175, LPN!AK175,SPN!AK175,EPN!AK175,SPD!AK175,SPMW!AK175,SSEH!AK175,SSES!AK175) -> 0 | AL175: =CHOOSE(m_identity,ENWL!AL175, NPgN!AL175, NPgY!AL175, WMID!AL175, EMID!AL175, SWALES!AL175, SWEST!AL175, LPN!AL175,SPN!AL175,EPN!AL175,SPD!AL175,SPMW!AL175,SSEH!AL175,SSES!AL175) -> 0 | AM175: =CHOOSE(m_identity,ENWL!AM175, NPgN!AM175, NPgY!AM175, WMID!AM175, EMID!AM175, SWALES!AM175, SWEST!AM175, LPN!AM175,SPN!AM175,EPN!AM175,SPD!AM175,SPMW!AM175,SSEH!AM175,SSES!AM175) -> 0 | AN175: =CHOOSE(m_identity,ENWL!AN175, NPgN!AN175, NPgY!AN175, WMID!AN175, EMID!AN175, SWALES!AN175, SWEST!AN175, LPN!AN175,SPN!AN175,EPN!AN175,SPD!AN175,SPMW!AN175,SSEH!AN175,SSES!AN175) -> 0 | AO175: =CHOOSE(m_identity,ENWL!AO175, NPgN!AO175, NPgY!AO175, WMID!AO175, EMID!AO175, SWALES!AO175, SWEST!AO175, LPN!AO175,SPN!AO175,EPN!AO175,SPD!AO175,SPMW!AO175,SSEH!AO175,SSES!AO175) -> 0 | AP175: =CHOOSE(m_identity,ENWL!AP175, NPgN!AP175, NPgY!AP175, WMID!AP175, EMID!AP175, SWALES!AP175, SWEST!AP175, LPN!AP175,SPN!AP175,EPN!AP175,SPD!AP175,SPMW!AP175,SSEH!AP175,SSES!AP175) -> 0 | AQ175: =CHOOSE(m_identity,ENWL!AQ175, NPgN!AQ175, NPgY!AQ175, WMID!AQ175, EMID!AQ175, SWALES!AQ175, SWEST!AQ175, LPN!AQ175,SPN!AQ175,EPN!AQ175,SPD!AQ175,SPMW!AQ175,SSEH!AQ175,SSES!AQ175) -> 0
E177: =E27 -> Spare 1 | G177: £m 12/13 prices | AJ177: =AJ27 -> 0 | AK177: =AK27 -> 0 | AL177: =AL27 -> 0 | AM177: 0 | AN177: =AN27 -> 0 | AO177: 0 | AP177: 0 | AQ177: 0
E178: Allocation to load related capex | G178: % | AJ178: =CHOOSE(m_identity,ENWL!AJ178, NPgN!AJ178, NPgY!AJ178, WMID!AJ178, EMID!AJ178, SWALES!AJ178, SWEST!AJ178, LPN!AJ178,SPN!AJ178,EPN!AJ178,SPD!AJ178,SPMW!AJ178,SSEH!AJ178,SSES!AJ178) -> 0 | AK178: =CHOOSE(m_identity,ENWL!AK178, NPgN!AK178, NPgY!AK178, WMID!AK178, EMID!AK178, SWALES!AK178, SWEST!AK178, LPN!AK178,SPN!AK178,EPN!AK178,SPD!AK178,SPMW!AK178,SSEH!AK178,SSES!AK178) -> 0 | AL178: =CHOOSE(m_identity,ENWL!AL178, NPgN!AL178, NPgY!AL178, WMID!AL178, EMID!AL178, SWALES!AL178, SWEST!AL178, LPN!AL178,SPN!AL178,EPN!AL178,SPD!AL178,SPMW!AL178,SSEH!AL178,SSES!AL178) -> 0 | AM178: =CHOOSE(m_identity,ENWL!AM178, NPgN!AM178, NPgY!AM178, WMID!AM178, EMID!AM178, SWALES!AM178, SWEST!AM178, LPN!AM178,SPN!AM178,EPN!AM178,SPD!AM178,SPMW!AM178,SSEH!AM178,SSES!AM178) -> 0 | AN178: =CHOOSE(m_identity,ENWL!AN178, NPgN!AN178, NPgY!AN178, WMID!AN178, EMID!AN178, SWALES!AN178, SWEST!AN178, LPN!AN178,SPN!AN178,EPN!AN178,SPD!AN178,SPMW!AN178,SSEH!AN178,SSES!AN178) -> 0 | AO178: =CHOOSE(m_identity,ENWL!AO178, NPgN!AO178, NPgY!AO178, WMID!AO178, EMID!AO178, SWALES!AO178, SWEST!AO178, LPN!AO178,SPN!AO178,EPN!AO178,SPD!AO178,SPMW!AO178,SSEH!AO178,SSES!AO178) -> 0 | AP178: =CHOOSE(m_identity,ENWL!AP178, NPgN!AP178, NPgY!AP178, WMID!AP178, EMID!AP178, SWALES!AP178, SWEST!AP178, LPN!AP178,SPN!AP178,EPN!AP178,SPD!AP178,SPMW!AP178,SSEH!AP178,SSES!AP178) -> 0 | AQ178: =CHOOSE(m_identity,ENWL!AQ178, NPgN!AQ178, NPgY!AQ178, WMID!AQ178, EMID!AQ178, SWALES!AQ178, SWEST!AQ178, LPN!AQ178,SPN!AQ178,EPN!AQ178,SPD!AQ178,SPMW!AQ178,SSEH!AQ178,SSES!AQ178) -> 0
E179: Allocation to non-load related capex - asset replacement | G179: % | AJ179: =CHOOSE(m_identity,ENWL!AJ179, NPgN!AJ179, NPgY!AJ179, WMID!AJ179, EMID!AJ179, SWALES!AJ179, SWEST!AJ179, LPN!AJ179,SPN!AJ179,EPN!AJ179,SPD!AJ179,SPMW!AJ179,SSEH!AJ179,SSES!AJ179) -> 0 | AK179: =CHOOSE(m_identity,ENWL!AK179, NPgN!AK179, NPgY!AK179, WMID!AK179, EMID!AK179, SWALES!AK179, SWEST!AK179, LPN!AK179,SPN!AK179,EPN!AK179,SPD!AK179,SPMW!AK179,SSEH!AK179,SSES!AK179) -> 0 | AL179: =CHOOSE(m_identity,ENWL!AL179, NPgN!AL179, NPgY!AL179, WMID!AL179, EMID!AL179, SWALES!AL179, SWEST!AL179, LPN!AL179,SPN!AL179,EPN!AL179,SPD!AL179,SPMW!AL179,SSEH!AL179,SSES!AL179) -> 0 | AM179: =CHOOSE(m_identity,ENWL!AM179, NPgN!AM179, NPgY!AM179, WMID!AM179, EMID!AM179, SWALES!AM179, SWEST!AM179, LPN!AM179,SPN!AM179,EPN!AM179,SPD!AM179,SPMW!AM179,SSEH!AM179,SSES!AM179) -> 0 | AN179: =CHOOSE(m_identity,ENWL!AN179, NPgN!AN179, NPgY!AN179, WMID!AN179, EMID!AN179, SWALES!AN179, SWEST!AN179, LPN!AN179,SPN!AN179,EPN!AN179,SPD!AN179,SPMW!AN179,SSEH!AN179,SSES!AN179) -> 0 | AO179: =CHOOSE(m_identity,ENWL!AO179, NPgN!AO179, NPgY!AO179, WMID!AO179, EMID!AO179, SWALES!AO179, SWEST!AO179, LPN!AO179,SPN!AO179,EPN!AO179,SPD!AO179,SPMW!AO179,SSEH!AO179,SSES!AO179) -> 0 | AP179: =CHOOSE(m_identity,ENWL!AP179, NPgN!AP179, NPgY!AP179, WMID!AP179, EMID!AP179, SWALES!AP179, SWEST!AP179, LPN!AP179,SPN!AP179,EPN!AP179,SPD!AP179,SPMW!AP179,SSEH!AP179,SSES!AP179) -> 0 | AQ179: =CHOOSE(m_identity,ENWL!AQ179, NPgN!AQ179, NPgY!AQ179, WMID!AQ179, EMID!AQ179, SWALES!AQ179, SWEST!AQ179, LPN!AQ179,SPN!AQ179,EPN!AQ179,SPD!AQ179,SPMW!AQ179,SSEH!AQ179,SSES!AQ179) -> 0
E180: Allocation to non-load related capex - other | G180: % | AJ180: =CHOOSE(m_identity,ENWL!AJ180, NPgN!AJ180, NPgY!AJ180, WMID!AJ180, EMID!AJ180, SWALES!AJ180, SWEST!AJ180, LPN!AJ180,SPN!AJ180,EPN!AJ180,SPD!AJ180,SPMW!AJ180,SSEH!AJ180,SSES!AJ180) -> 0 | AK180: =CHOOSE(m_identity,ENWL!AK180, NPgN!AK180, NPgY!AK180, WMID!AK180, EMID!AK180, SWALES!AK180, SWEST!AK180, LPN!AK180,SPN!AK180,EPN!AK180,SPD!AK180,SPMW!AK180,SSEH!AK180,SSES!AK180) -> 0 | AL180: =CHOOSE(m_identity,ENWL!AL180, NPgN!AL180, NPgY!AL180, WMID!AL180, EMID!AL180, SWALES!AL180, SWEST!AL180, LPN!AL180,SPN!AL180,EPN!AL180,SPD!AL180,SPMW!AL180,SSEH!AL180,SSES!AL180) -> 0 | AM180: =CHOOSE(m_identity,ENWL!AM180, NPgN!AM180, NPgY!AM180, WMID!AM180, EMID!AM180, SWALES!AM180, SWEST!AM180, LPN!AM180,SPN!AM180,EPN!AM180,SPD!AM180,SPMW!AM180,SSEH!AM180,SSES!AM180) -> 0 | AN180: =CHOOSE(m_identity,ENWL!AN180, NPgN!AN180, NPgY!AN180, WMID!AN180, EMID!AN180, SWALES!AN180, SWEST!AN180, LPN!AN180,SPN!AN180,EPN!AN180,SPD!AN180,SPMW!AN180,SSEH!AN180,SSES!AN180) -> 0 | AO180: =CHOOSE(m_identity,ENWL!AO180, NPgN!AO180, NPgY!AO180, WMID!AO180, EMID!AO180, SWALES!AO180, SWEST!AO180, LPN!AO180,SPN!AO180,EPN!AO180,SPD!AO180,SPMW!AO180,SSEH!AO180,SSES!AO180) -> 0 | AP180: =CHOOSE(m_identity,ENWL!AP180, NPgN!AP180, NPgY!AP180, WMID!AP180, EMID!AP180, SWALES!AP180, SWEST!AP180, LPN!AP180,SPN!AP180,EPN!AP180,SPD!AP180,SPMW!AP180,SSEH!AP180,SSES!AP180) -> 0 | AQ180: =CHOOSE(m_identity,ENWL!AQ180, NPgN!AQ180, NPgY!AQ180, WMID!AQ180, EMID!AQ180, SWALES!AQ180, SWEST!AQ180, LPN!AQ180,SPN!AQ180,EPN!AQ180,SPD!AQ180,SPMW!AQ180,SSEH!AQ180,SSES!AQ180) -> 0
E181: Allocation to faults | G181: % | AJ181: =CHOOSE(m_identity,ENWL!AJ181, NPgN!AJ181, NPgY!AJ181, WMID!AJ181, EMID!AJ181, SWALES!AJ181, SWEST!AJ181, LPN!AJ181,SPN!AJ181,EPN!AJ181,SPD!AJ181,SPMW!AJ181,SSEH!AJ181,SSES!AJ181) -> 0 | AK181: =CHOOSE(m_identity,ENWL!AK181, NPgN!AK181, NPgY!AK181, WMID!AK181, EMID!AK181, SWALES!AK181, SWEST!AK181, LPN!AK181,SPN!AK181,EPN!AK181,SPD!AK181,SPMW!AK181,SSEH!AK181,SSES!AK181) -> 0 | AL181: =CHOOSE(m_identity,ENWL!AL181, NPgN!AL181, NPgY!AL181, WMID!AL181, EMID!AL181, SWALES!AL181, SWEST!AL181, LPN!AL181,SPN!AL181,EPN!AL181,SPD!AL181,SPMW!AL181,SSEH!AL181,SSES!AL181) -> 0 | AM181: =CHOOSE(m_identity,ENWL!AM181, NPgN!AM181, NPgY!AM181, WMID!AM181, EMID!AM181, SWALES!AM181, SWEST!AM181, LPN!AM181,SPN!AM181,EPN!AM181,SPD!AM181,SPMW!AM181,SSEH!AM181,SSES!AM181) -> 0 | AN181: =CHOOSE(m_identity,ENWL!AN181, NPgN!AN181, NPgY!AN181, WMID!AN181, EMID!AN181, SWALES!AN181, SWEST!AN181, LPN!AN181,SPN!AN181,EPN!AN181,SPD!AN181,SPMW!AN181,SSEH!AN181,SSES!AN181) -> 0 | AO181: =CHOOSE(m_identity,ENWL!AO181, NPgN!AO181, NPgY!AO181, WMID!AO181, EMID!AO181, SWALES!AO181, SWEST!AO181, LPN!AO181,SPN!AO181,EPN!AO181,SPD!AO181,SPMW!AO181,SSEH!AO181,SSES!AO181) -> 0 | AP181: =CHOOSE(m_identity,ENWL!AP181, NPgN!AP181, NPgY!AP181, WMID!AP181, EMID!AP181, SWALES!AP181, SWEST!AP181, LPN!AP181,SPN!AP181,EPN!AP181,SPD!AP181,SPMW!AP181,SSEH!AP181,SSES!AP181) -> 0 | AQ181: =CHOOSE(m_identity,ENWL!AQ181, NPgN!AQ181, NPgY!AQ181, WMID!AQ181, EMID!AQ181, SWALES!AQ181, SWEST!AQ181, LPN!AQ181,SPN!AQ181,EPN!AQ181,SPD!AQ181,SPMW!AQ181,SSEH!AQ181,SSES!AQ181) -> 0
E182: Allocation to tree cutting | G182: % | AJ182: =CHOOSE(m_identity,ENWL!AJ182, NPgN!AJ182, NPgY!AJ182, WMID!AJ182, EMID!AJ182, SWALES!AJ182, SWEST!AJ182, LPN!AJ182,SPN!AJ182,EPN!AJ182,SPD!AJ182,SPMW!AJ182,SSEH!AJ182,SSES!AJ182) -> 0 | AK182: =CHOOSE(m_identity,ENWL!AK182, NPgN!AK182, NPgY!AK182, WMID!AK182, EMID!AK182, SWALES!AK182, SWEST!AK182, LPN!AK182,SPN!AK182,EPN!AK182,SPD!AK182,SPMW!AK182,SSEH!AK182,SSES!AK182) -> 0 | AL182: =CHOOSE(m_identity,ENWL!AL182, NPgN!AL182, NPgY!AL182, WMID!AL182, EMID!AL182, SWALES!AL182, SWEST!AL182, LPN!AL182,SPN!AL182,EPN!AL182,SPD!AL182,SPMW!AL182,SSEH!AL182,SSES!AL182) -> 0 | AM182: =CHOOSE(m_identity,ENWL!AM182, NPgN!AM182, NPgY!AM182, WMID!AM182, EMID!AM182, SWALES!AM182, SWEST!AM182, LPN!AM182,SPN!AM182,EPN!AM182,SPD!AM182,SPMW!AM182,SSEH!AM182,SSES!AM182) -> 0 | AN182: =CHOOSE(m_identity,ENWL!AN182, NPgN!AN182, NPgY!AN182, WMID!AN182, EMID!AN182, SWALES!AN182, SWEST!AN182, LPN!AN182,SPN!AN182,EPN!AN182,SPD!AN182,SPMW!AN182,SSEH!AN182,SSES!AN182) -> 0 | AO182: =CHOOSE(m_identity,ENWL!AO182, NPgN!AO182, NPgY!AO182, WMID!AO182, EMID!AO182, SWALES!AO182, SWEST!AO182, LPN!AO182,SPN!AO182,EPN!AO182,SPD!AO182,SPMW!AO182,SSEH!AO182,SSES!AO182) -> 0 | AP182: =CHOOSE(m_identity,ENWL!AP182, NPgN!AP182, NPgY!AP182, WMID!AP182, EMID!AP182, SWALES!AP182, SWEST!AP182, LPN!AP182,SPN!AP182,EPN!AP182,SPD!AP182,SPMW!AP182,SSEH!AP182,SSES!AP182) -> 0 | AQ182: =CHOOSE(m_identity,ENWL!AQ182, NPgN!AQ182, NPgY!AQ182, WMID!AQ182, EMID!AQ182, SWALES!AQ182, SWEST!AQ182, LPN!AQ182,SPN!AQ182,EPN!AQ182,SPD!AQ182,SPMW!AQ182,SSEH!AQ182,SSES!AQ182) -> 0
E183: Allocation to 100% ‘revenue pool’ expenditure | G183: % | AJ183: =CHOOSE(m_identity,ENWL!AJ183, NPgN!AJ183, NPgY!AJ183, WMID!AJ183, EMID!AJ183, SWALES!AJ183, SWEST!AJ183, LPN!AJ183,SPN!AJ183,EPN!AJ183,SPD!AJ183,SPMW!AJ183,SSEH!AJ183,SSES!AJ183) -> 0 | AK183: =CHOOSE(m_identity,ENWL!AK183, NPgN!AK183, NPgY!AK183, WMID!AK183, EMID!AK183, SWALES!AK183, SWEST!AK183, LPN!AK183,SPN!AK183,EPN!AK183,SPD!AK183,SPMW!AK183,SSEH!AK183,SSES!AK183) -> 0 | AL183: =CHOOSE(m_identity,ENWL!AL183, NPgN!AL183, NPgY!AL183, WMID!AL183, EMID!AL183, SWALES!AL183, SWEST!AL183, LPN!AL183,SPN!AL183,EPN!AL183,SPD!AL183,SPMW!AL183,SSEH!AL183,SSES!AL183) -> 0 | AM183: =CHOOSE(m_identity,ENWL!AM183, NPgN!AM183, NPgY!AM183, WMID!AM183, EMID!AM183, SWALES!AM183, SWEST!AM183, LPN!AM183,SPN!AM183,EPN!AM183,SPD!AM183,SPMW!AM183,SSEH!AM183,SSES!AM183) -> 0 | AN183: =CHOOSE(m_identity,ENWL!AN183, NPgN!AN183, NPgY!AN183, WMID!AN183, EMID!AN183, SWALES!AN183, SWEST!AN183, LPN!AN183,SPN!AN183,EPN!AN183,SPD!AN183,SPMW!AN183,SSEH!AN183,SSES!AN183) -> 0 | AO183: =CHOOSE(m_identity,ENWL!AO183, NPgN!AO183, NPgY!AO183, WMID!AO183, EMID!AO183, SWALES!AO183, SWEST!AO183, LPN!AO183,SPN!AO183,EPN!AO183,SPD!AO183,SPMW!AO183,SSEH!AO183,SSES!AO183) -> 0 | AP183: =CHOOSE(m_identity,ENWL!AP183, NPgN!AP183, NPgY!AP183, WMID!AP183, EMID!AP183, SWALES!AP183, SWEST!AP183, LPN!AP183,SPN!AP183,EPN!AP183,SPD!AP183,SPMW!AP183,SSEH!AP183,SSES!AP183) -> 0 | AQ183: =CHOOSE(m_identity,ENWL!AQ183, NPgN!AQ183, NPgY!AQ183, WMID!AQ183, EMID!AQ183, SWALES!AQ183, SWEST!AQ183, LPN!AQ183,SPN!AQ183,EPN!AQ183,SPD!AQ183,SPMW!AQ183,SSEH!AQ183,SSES!AQ183) -> 0
E184: Allocation to controllable opex | G184: % | AJ184: =CHOOSE(m_identity,ENWL!AJ184, NPgN!AJ184, NPgY!AJ184, WMID!AJ184, EMID!AJ184, SWALES!AJ184, SWEST!AJ184, LPN!AJ184,SPN!AJ184,EPN!AJ184,SPD!AJ184,SPMW!AJ184,SSEH!AJ184,SSES!AJ184) -> 0 | AK184: =CHOOSE(m_identity,ENWL!AK184, NPgN!AK184, NPgY!AK184, WMID!AK184, EMID!AK184, SWALES!AK184, SWEST!AK184, LPN!AK184,SPN!AK184,EPN!AK184,SPD!AK184,SPMW!AK184,SSEH!AK184,SSES!AK184) -> 0 | AL184: =CHOOSE(m_identity,ENWL!AL184, NPgN!AL184, NPgY!AL184, WMID!AL184, EMID!AL184, SWALES!AL184, SWEST!AL184, LPN!AL184,SPN!AL184,EPN!AL184,SPD!AL184,SPMW!AL184,SSEH!AL184,SSES!AL184) -> 0 | AM184: =CHOOSE(m_identity,ENWL!AM184, NPgN!AM184, NPgY!AM184, WMID!AM184, EMID!AM184, SWALES!AM184, SWEST!AM184, LPN!AM184,SPN!AM184,EPN!AM184,SPD!AM184,SPMW!AM184,SSEH!AM184,SSES!AM184) -> 0 | AN184: =CHOOSE(m_identity,ENWL!AN184, NPgN!AN184, NPgY!AN184, WMID!AN184, EMID!AN184, SWALES!AN184, SWEST!AN184, LPN!AN184,SPN!AN184,EPN!AN184,SPD!AN184,SPMW!AN184,SSEH!AN184,SSES!AN184) -> 0 | AO184: =CHOOSE(m_identity,ENWL!AO184, NPgN!AO184, NPgY!AO184, WMID!AO184, EMID!AO184, SWALES!AO184, SWEST!AO184, LPN!AO184,SPN!AO184,EPN!AO184,SPD!AO184,SPMW!AO184,SSEH!AO184,SSES!AO184) -> 0 | AP184: =CHOOSE(m_identity,ENWL!AP184, NPgN!AP184, NPgY!AP184, WMID!AP184, EMID!AP184, SWALES!AP184, SWEST!AP184, LPN!AP184,SPN!AP184,EPN!AP184,SPD!AP184,SPMW!AP184,SSEH!AP184,SSES!AP184) -> 0 | AQ184: =CHOOSE(m_identity,ENWL!AQ184, NPgN!AQ184, NPgY!AQ184, WMID!AQ184, EMID!AQ184, SWALES!AQ184, SWEST!AQ184, LPN!AQ184,SPN!AQ184,EPN!AQ184,SPD!AQ184,SPMW!AQ184,SSEH!AQ184,SSES!AQ184) -> 0
E186: =E28 -> Spare 2 | G186: £m 12/13 prices | AJ186: =AJ28 -> 0 | AK186: 0 | AL186: 0 | AM186: 0 | AN186: 0 | AO186: 0 | AP186: 0 | AQ186: 0
E187: Allocation to load related capex | G187: % | AJ187: =CHOOSE(m_identity,ENWL!AJ187, NPgN!AJ187, NPgY!AJ187, WMID!AJ187, EMID!AJ187, SWALES!AJ187, SWEST!AJ187, LPN!AJ187,SPN!AJ187,EPN!AJ187,SPD!AJ187,SPMW!AJ187,SSEH!AJ187,SSES!AJ187) -> 0 | AK187: =CHOOSE(m_identity,ENWL!AK187, NPgN!AK187, NPgY!AK187, WMID!AK187, EMID!AK187, SWALES!AK187, SWEST!AK187, LPN!AK187,SPN!AK187,EPN!AK187,SPD!AK187,SPMW!AK187,SSEH!AK187,SSES!AK187) -> 0 | AL187: =CHOOSE(m_identity,ENWL!AL187, NPgN!AL187, NPgY!AL187, WMID!AL187, EMID!AL187, SWALES!AL187, SWEST!AL187, LPN!AL187,SPN!AL187,EPN!AL187,SPD!AL187,SPMW!AL187,SSEH!AL187,SSES!AL187) -> 0 | AM187: =CHOOSE(m_identity,ENWL!AM187, NPgN!AM187, NPgY!AM187, WMID!AM187, EMID!AM187, SWALES!AM187, SWEST!AM187, LPN!AM187,SPN!AM187,EPN!AM187,SPD!AM187,SPMW!AM187,SSEH!AM187,SSES!AM187) -> 0 | AN187: =CHOOSE(m_identity,ENWL!AN187, NPgN!AN187, NPgY!AN187, WMID!AN187, EMID!AN187, SWALES!AN187, SWEST!AN187, LPN!AN187,SPN!AN187,EPN!AN187,SPD!AN187,SPMW!AN187,SSEH!AN187,SSES!AN187) -> 0 | AO187: =CHOOSE(m_identity,ENWL!AO187, NPgN!AO187, NPgY!AO187, WMID!AO187, EMID!AO187, SWALES!AO187, SWEST!AO187, LPN!AO187,SPN!AO187,EPN!AO187,SPD!AO187,SPMW!AO187,SSEH!AO187,SSES!AO187) -> 0 | AP187: =CHOOSE(m_identity,ENWL!AP187, NPgN!AP187, NPgY!AP187, WMID!AP187, EMID!AP187, SWALES!AP187, SWEST!AP187, LPN!AP187,SPN!AP187,EPN!AP187,SPD!AP187,SPMW!AP187,SSEH!AP187,SSES!AP187) -> 0 | AQ187: =CHOOSE(m_identity,ENWL!AQ187, NPgN!AQ187, NPgY!AQ187, WMID!AQ187, EMID!AQ187, SWALES!AQ187, SWEST!AQ187, LPN!AQ187,SPN!AQ187,EPN!AQ187,SPD!AQ187,SPMW!AQ187,SSEH!AQ187,SSES!AQ187) -> 0
E188: Allocation to non-load related capex - asset replacement | G188: % | AJ188: =CHOOSE(m_identity,ENWL!AJ188, NPgN!AJ188, NPgY!AJ188, WMID!AJ188, EMID!AJ188, SWALES!AJ188, SWEST!AJ188, LPN!AJ188,SPN!AJ188,EPN!AJ188,SPD!AJ188,SPMW!AJ188,SSEH!AJ188,SSES!AJ188) -> 0 | AK188: =CHOOSE(m_identity,ENWL!AK188, NPgN!AK188, NPgY!AK188, WMID!AK188, EMID!AK188, SWALES!AK188, SWEST!AK188, LPN!AK188,SPN!AK188,EPN!AK188,SPD!AK188,SPMW!AK188,SSEH!AK188,SSES!AK188) -> 0 | AL188: =CHOOSE(m_identity,ENWL!AL188, NPgN!AL188, NPgY!AL188, WMID!AL188, EMID!AL188, SWALES!AL188, SWEST!AL188, LPN!AL188,SPN!AL188,EPN!AL188,SPD!AL188,SPMW!AL188,SSEH!AL188,SSES!AL188) -> 0 | AM188: =CHOOSE(m_identity,ENWL!AM188, NPgN!AM188, NPgY!AM188, WMID!AM188, EMID!AM188, SWALES!AM188, SWEST!AM188, LPN!AM188,SPN!AM188,EPN!AM188,SPD!AM188,SPMW!AM188,SSEH!AM188,SSES!AM188) -> 0 | AN188: =CHOOSE(m_identity,ENWL!AN188, NPgN!AN188, NPgY!AN188, WMID!AN188, EMID!AN188, SWALES!AN188, SWEST!AN188, LPN!AN188,SPN!AN188,EPN!AN188,SPD!AN188,SPMW!AN188,SSEH!AN188,SSES!AN188) -> 0 | AO188: =CHOOSE(m_identity,ENWL!AO188, NPgN!AO188, NPgY!AO188, WMID!AO188, EMID!AO188, SWALES!AO188, SWEST!AO188, LPN!AO188,SPN!AO188,EPN!AO188,SPD!AO188,SPMW!AO188,SSEH!AO188,SSES!AO188) -> 0 | AP188: =CHOOSE(m_identity,ENWL!AP188, NPgN!AP188, NPgY!AP188, WMID!AP188, EMID!AP188, SWALES!AP188, SWEST!AP188, LPN!AP188,SPN!AP188,EPN!AP188,SPD!AP188,SPMW!AP188,SSEH!AP188,SSES!AP188) -> 0 | AQ188: =CHOOSE(m_identity,ENWL!AQ188, NPgN!AQ188, NPgY!AQ188, WMID!AQ188, EMID!AQ188, SWALES!AQ188, SWEST!AQ188, LPN!AQ188,SPN!AQ188,EPN!AQ188,SPD!AQ188,SPMW!AQ188,SSEH!AQ188,SSES!AQ188) -> 0
E189: Allocation to non-load related capex - other | G189: % | AJ189: =CHOOSE(m_identity,ENWL!AJ189, NPgN!AJ189, NPgY!AJ189, WMID!AJ189, EMID!AJ189, SWALES!AJ189, SWEST!AJ189, LPN!AJ189,SPN!AJ189,EPN!AJ189,SPD!AJ189,SPMW!AJ189,SSEH!AJ189,SSES!AJ189) -> 0 | AK189: =CHOOSE(m_identity,ENWL!AK189, NPgN!AK189, NPgY!AK189, WMID!AK189, EMID!AK189, SWALES!AK189, SWEST!AK189, LPN!AK189,SPN!AK189,EPN!AK189,SPD!AK189,SPMW!AK189,SSEH!AK189,SSES!AK189) -> 0 | AL189: =CHOOSE(m_identity,ENWL!AL189, NPgN!AL189, NPgY!AL189, WMID!AL189, EMID!AL189, SWALES!AL189, SWEST!AL189, LPN!AL189,SPN!AL189,EPN!AL189,SPD!AL189,SPMW!AL189,SSEH!AL189,SSES!AL189) -> 0 | AM189: =CHOOSE(m_identity,ENWL!AM189, NPgN!AM189, NPgY!AM189, WMID!AM189, EMID!AM189, SWALES!AM189, SWEST!AM189, LPN!AM189,SPN!AM189,EPN!AM189,SPD!AM189,SPMW!AM189,SSEH!AM189,SSES!AM189) -> 0 | AN189: =CHOOSE(m_identity,ENWL!AN189, NPgN!AN189, NPgY!AN189, WMID!AN189, EMID!AN189, SWALES!AN189, SWEST!AN189, LPN!AN189,SPN!AN189,EPN!AN189,SPD!AN189,SPMW!AN189,SSEH!AN189,SSES!AN189) -> 0 | AO189: =CHOOSE(m_identity,ENWL!AO189, NPgN!AO189, NPgY!AO189, WMID!AO189, EMID!AO189, SWALES!AO189, SWEST!AO189, LPN!AO189,SPN!AO189,EPN!AO189,SPD!AO189,SPMW!AO189,SSEH!AO189,SSES!AO189) -> 0 | AP189: =CHOOSE(m_identity,ENWL!AP189, NPgN!AP189, NPgY!AP189, WMID!AP189, EMID!AP189, SWALES!AP189, SWEST!AP189, LPN!AP189,SPN!AP189,EPN!AP189,SPD!AP189,SPMW!AP189,SSEH!AP189,SSES!AP189) -> 0 | AQ189: =CHOOSE(m_identity,ENWL!AQ189, NPgN!AQ189, NPgY!AQ189, WMID!AQ189, EMID!AQ189, SWALES!AQ189, SWEST!AQ189, LPN!AQ189,SPN!AQ189,EPN!AQ189,SPD!AQ189,SPMW!AQ189,SSEH!AQ189,SSES!AQ189) -> 0
E190: Allocation to faults | G190: % | AJ190: =CHOOSE(m_identity,ENWL!AJ190, NPgN!AJ190, NPgY!AJ190, WMID!AJ190, EMID!AJ190, SWALES!AJ190, SWEST!AJ190, LPN!AJ190,SPN!AJ190,EPN!AJ190,SPD!AJ190,SPMW!AJ190,SSEH!AJ190,SSES!AJ190) -> 0 | AK190: =CHOOSE(m_identity,ENWL!AK190, NPgN!AK190, NPgY!AK190, WMID!AK190, EMID!AK190, SWALES!AK190, SWEST!AK190, LPN!AK190,SPN!AK190,EPN!AK190,SPD!AK190,SPMW!AK190,SSEH!AK190,SSES!AK190) -> 0 | AL190: =CHOOSE(m_identity,ENWL!AL190, NPgN!AL190, NPgY!AL190, WMID!AL190, EMID!AL190, SWALES!AL190, SWEST!AL190, LPN!AL190,SPN!AL190,EPN!AL190,SPD!AL190,SPMW!AL190,SSEH!AL190,SSES!AL190) -> 0 | AM190: =CHOOSE(m_identity,ENWL!AM190, NPgN!AM190, NPgY!AM190, WMID!AM190, EMID!AM190, SWALES!AM190, SWEST!AM190, LPN!AM190,SPN!AM190,EPN!AM190,SPD!AM190,SPMW!AM190,SSEH!AM190,SSES!AM190) -> 0 | AN190: =CHOOSE(m_identity,ENWL!AN190, NPgN!AN190, NPgY!AN190, WMID!AN190, EMID!AN190, SWALES!AN190, SWEST!AN190, LPN!AN190,SPN!AN190,EPN!AN190,SPD!AN190,SPMW!AN190,SSEH!AN190,SSES!AN190) -> 0 | AO190: =CHOOSE(m_identity,ENWL!AO190, NPgN!AO190, NPgY!AO190, WMID!AO190, EMID!AO190, SWALES!AO190, SWEST!AO190, LPN!AO190,SPN!AO190,EPN!AO190,SPD!AO190,SPMW!AO190,SSEH!AO190,SSES!AO190) -> 0 | AP190: =CHOOSE(m_identity,ENWL!AP190, NPgN!AP190, NPgY!AP190, WMID!AP190, EMID!AP190, SWALES!AP190, SWEST!AP190, LPN!AP190,SPN!AP190,EPN!AP190,SPD!AP190,SPMW!AP190,SSEH!AP190,SSES!AP190) -> 0 | AQ190: =CHOOSE(m_identity,ENWL!AQ190, NPgN!AQ190, NPgY!AQ190, WMID!AQ190, EMID!AQ190, SWALES!AQ190, SWEST!AQ190, LPN!AQ190,SPN!AQ190,EPN!AQ190,SPD!AQ190,SPMW!AQ190,SSEH!AQ190,SSES!AQ190) -> 0
E191: Allocation to tree cutting | G191: % | AJ191: =CHOOSE(m_identity,ENWL!AJ191, NPgN!AJ191, NPgY!AJ191, WMID!AJ191, EMID!AJ191, SWALES!AJ191, SWEST!AJ191, LPN!AJ191,SPN!AJ191,EPN!AJ191,SPD!AJ191,SPMW!AJ191,SSEH!AJ191,SSES!AJ191) -> 0 | AK191: =CHOOSE(m_identity,ENWL!AK191, NPgN!AK191, NPgY!AK191, WMID!AK191, EMID!AK191, SWALES!AK191, SWEST!AK191, LPN!AK191,SPN!AK191,EPN!AK191,SPD!AK191,SPMW!AK191,SSEH!AK191,SSES!AK191) -> 0 | AL191: =CHOOSE(m_identity,ENWL!AL191, NPgN!AL191, NPgY!AL191, WMID!AL191, EMID!AL191, SWALES!AL191, SWEST!AL191, LPN!AL191,SPN!AL191,EPN!AL191,SPD!AL191,SPMW!AL191,SSEH!AL191,SSES!AL191) -> 0 | AM191: =CHOOSE(m_identity,ENWL!AM191, NPgN!AM191, NPgY!AM191, WMID!AM191, EMID!AM191, SWALES!AM191, SWEST!AM191, LPN!AM191,SPN!AM191,EPN!AM191,SPD!AM191,SPMW!AM191,SSEH!AM191,SSES!AM191) -> 0 | AN191: =CHOOSE(m_identity,ENWL!AN191, NPgN!AN191, NPgY!AN191, WMID!AN191, EMID!AN191, SWALES!AN191, SWEST!AN191, LPN!AN191,SPN!AN191,EPN!AN191,SPD!AN191,SPMW!AN191,SSEH!AN191,SSES!AN191) -> 0 | AO191: =CHOOSE(m_identity,ENWL!AO191, NPgN!AO191, NPgY!AO191, WMID!AO191, EMID!AO191, SWALES!AO191, SWEST!AO191, LPN!AO191,SPN!AO191,EPN!AO191,SPD!AO191,SPMW!AO191,SSEH!AO191,SSES!AO191) -> 0 | AP191: =CHOOSE(m_identity,ENWL!AP191, NPgN!AP191, NPgY!AP191, WMID!AP191, EMID!AP191, SWALES!AP191, SWEST!AP191, LPN!AP191,SPN!AP191,EPN!AP191,SPD!AP191,SPMW!AP191,SSEH!AP191,SSES!AP191) -> 0 | AQ191: =CHOOSE(m_identity,ENWL!AQ191, NPgN!AQ191, NPgY!AQ191, WMID!AQ191, EMID!AQ191, SWALES!AQ191, SWEST!AQ191, LPN!AQ191,SPN!AQ191,EPN!AQ191,SPD!AQ191,SPMW!AQ191,SSEH!AQ191,SSES!AQ191) -> 0
E192: Allocation to 100% ‘revenue pool’ expenditure | G192: % | AJ192: =CHOOSE(m_identity,ENWL!AJ192, NPgN!AJ192, NPgY!AJ192, WMID!AJ192, EMID!AJ192, SWALES!AJ192, SWEST!AJ192, LPN!AJ192,SPN!AJ192,EPN!AJ192,SPD!AJ192,SPMW!AJ192,SSEH!AJ192,SSES!AJ192) -> 0 | AK192: =CHOOSE(m_identity,ENWL!AK192, NPgN!AK192, NPgY!AK192, WMID!AK192, EMID!AK192, SWALES!AK192, SWEST!AK192, LPN!AK192,SPN!AK192,EPN!AK192,SPD!AK192,SPMW!AK192,SSEH!AK192,SSES!AK192) -> 0 | AL192: =CHOOSE(m_identity,ENWL!AL192, NPgN!AL192, NPgY!AL192, WMID!AL192, EMID!AL192, SWALES!AL192, SWEST!AL192, LPN!AL192,SPN!AL192,EPN!AL192,SPD!AL192,SPMW!AL192,SSEH!AL192,SSES!AL192) -> 0 | AM192: =CHOOSE(m_identity,ENWL!AM192, NPgN!AM192, NPgY!AM192, WMID!AM192, EMID!AM192, SWALES!AM192, SWEST!AM192, LPN!AM192,SPN!AM192,EPN!AM192,SPD!AM192,SPMW!AM192,SSEH!AM192,SSES!AM192) -> 0 | AN192: =CHOOSE(m_identity,ENWL!AN192, NPgN!AN192, NPgY!AN192, WMID!AN192, EMID!AN192, SWALES!AN192, SWEST!AN192, LPN!AN192,SPN!AN192,EPN!AN192,SPD!AN192,SPMW!AN192,SSEH!AN192,SSES!AN192) -> 0 | AO192: =CHOOSE(m_identity,ENWL!AO192, NPgN!AO192, NPgY!AO192, WMID!AO192, EMID!AO192, SWALES!AO192, SWEST!AO192, LPN!AO192,SPN!AO192,EPN!AO192,SPD!AO192,SPMW!AO192,SSEH!AO192,SSES!AO192) -> 0 | AP192: =CHOOSE(m_identity,ENWL!AP192, NPgN!AP192, NPgY!AP192, WMID!AP192, EMID!AP192, SWALES!AP192, SWEST!AP192, LPN!AP192,SPN!AP192,EPN!AP192,SPD!AP192,SPMW!AP192,SSEH!AP192,SSES!AP192) -> 0 | AQ192: =CHOOSE(m_identity,ENWL!AQ192, NPgN!AQ192, NPgY!AQ192, WMID!AQ192, EMID!AQ192, SWALES!AQ192, SWEST!AQ192, LPN!AQ192,SPN!AQ192,EPN!AQ192,SPD!AQ192,SPMW!AQ192,SSEH!AQ192,SSES!AQ192) -> 0
E193: Allocation to controllable opex | G193: % | AJ193: =CHOOSE(m_identity,ENWL!AJ193, NPgN!AJ193, NPgY!AJ193, WMID!AJ193, EMID!AJ193, SWALES!AJ193, SWEST!AJ193, LPN!AJ193,SPN!AJ193,EPN!AJ193,SPD!AJ193,SPMW!AJ193,SSEH!AJ193,SSES!AJ193) -> 0 | AK193: =CHOOSE(m_identity,ENWL!AK193, NPgN!AK193, NPgY!AK193, WMID!AK193, EMID!AK193, SWALES!AK193, SWEST!AK193, LPN!AK193,SPN!AK193,EPN!AK193,SPD!AK193,SPMW!AK193,SSEH!AK193,SSES!AK193) -> 0 | AL193: =CHOOSE(m_identity,ENWL!AL193, NPgN!AL193, NPgY!AL193, WMID!AL193, EMID!AL193, SWALES!AL193, SWEST!AL193, LPN!AL193,SPN!AL193,EPN!AL193,SPD!AL193,SPMW!AL193,SSEH!AL193,SSES!AL193) -> 0 | AM193: =CHOOSE(m_identity,ENWL!AM193, NPgN!AM193, NPgY!AM193, WMID!AM193, EMID!AM193, SWALES!AM193, SWEST!AM193, LPN!AM193,SPN!AM193,EPN!AM193,SPD!AM193,SPMW!AM193,SSEH!AM193,SSES!AM193) -> 0 | AN193: =CHOOSE(m_identity,ENWL!AN193, NPgN!AN193, NPgY!AN193, WMID!AN193, EMID!AN193, SWALES!AN193, SWEST!AN193, LPN!AN193,SPN!AN193,EPN!AN193,SPD!AN193,SPMW!AN193,SSEH!AN193,SSES!AN193) -> 0 | AO193: =CHOOSE(m_identity,ENWL!AO193, NPgN!AO193, NPgY!AO193, WMID!AO193, EMID!AO193, SWALES!AO193, SWEST!AO193, LPN!AO193,SPN!AO193,EPN!AO193,SPD!AO193,SPMW!AO193,SSEH!AO193,SSES!AO193) -> 0 | AP193: =CHOOSE(m_identity,ENWL!AP193, NPgN!AP193, NPgY!AP193, WMID!AP193, EMID!AP193, SWALES!AP193, SWEST!AP193, LPN!AP193,SPN!AP193,EPN!AP193,SPD!AP193,SPMW!AP193,SSEH!AP193,SSES!AP193) -> 0 | AQ193: =CHOOSE(m_identity,ENWL!AQ193, NPgN!AQ193, NPgY!AQ193, WMID!AQ193, EMID!AQ193, SWALES!AQ193, SWEST!AQ193, LPN!AQ193,SPN!AQ193,EPN!AQ193,SPD!AQ193,SPMW!AQ193,SSEH!AQ193,SSES!AQ193) -> 0
E195: =E29 -> Spare 3 | G195: £m 12/13 prices | AJ195: =AJ29 -> 0 | AK195: 0 | AL195: 0 | AM195: 0 | AN195: 0 | AO195: 0 | AP195: 0 | AQ195: 0
E196: Allocation to load related capex | G196: % | AJ196: =CHOOSE(m_identity,ENWL!AJ196, NPgN!AJ196, NPgY!AJ196, WMID!AJ196, EMID!AJ196, SWALES!AJ196, SWEST!AJ196, LPN!AJ196,SPN!AJ196,EPN!AJ196,SPD!AJ196,SPMW!AJ196,SSEH!AJ196,SSES!AJ196) -> 0 | AK196: =CHOOSE(m_identity,ENWL!AK196, NPgN!AK196, NPgY!AK196, WMID!AK196, EMID!AK196, SWALES!AK196, SWEST!AK196, LPN!AK196,SPN!AK196,EPN!AK196,SPD!AK196,SPMW!AK196,SSEH!AK196,SSES!AK196) -> 0 | AL196: =CHOOSE(m_identity,ENWL!AL196, NPgN!AL196, NPgY!AL196, WMID!AL196, EMID!AL196, SWALES!AL196, SWEST!AL196, LPN!AL196,SPN!AL196,EPN!AL196,SPD!AL196,SPMW!AL196,SSEH!AL196,SSES!AL196) -> 0 | AM196: =CHOOSE(m_identity,ENWL!AM196, NPgN!AM196, NPgY!AM196, WMID!AM196, EMID!AM196, SWALES!AM196, SWEST!AM196, LPN!AM196,SPN!AM196,EPN!AM196,SPD!AM196,SPMW!AM196,SSEH!AM196,SSES!AM196) -> 0 | AN196: =CHOOSE(m_identity,ENWL!AN196, NPgN!AN196, NPgY!AN196, WMID!AN196, EMID!AN196, SWALES!AN196, SWEST!AN196, LPN!AN196,SPN!AN196,EPN!AN196,SPD!AN196,SPMW!AN196,SSEH!AN196,SSES!AN196) -> 0 | AO196: =CHOOSE(m_identity,ENWL!AO196, NPgN!AO196, NPgY!AO196, WMID!AO196, EMID!AO196, SWALES!AO196, SWEST!AO196, LPN!AO196,SPN!AO196,EPN!AO196,SPD!AO196,SPMW!AO196,SSEH!AO196,SSES!AO196) -> 0 | AP196: =CHOOSE(m_identity,ENWL!AP196, NPgN!AP196, NPgY!AP196, WMID!AP196, EMID!AP196, SWALES!AP196, SWEST!AP196, LPN!AP196,SPN!AP196,EPN!AP196,SPD!AP196,SPMW!AP196,SSEH!AP196,SSES!AP196) -> 0 | AQ196: =CHOOSE(m_identity,ENWL!AQ196, NPgN!AQ196, NPgY!AQ196, WMID!AQ196, EMID!AQ196, SWALES!AQ196, SWEST!AQ196, LPN!AQ196,SPN!AQ196,EPN!AQ196,SPD!AQ196,SPMW!AQ196,SSEH!AQ196,SSES!AQ196) -> 0
E197: Allocation to non-load related capex - asset replacement | G197: % | AJ197: =CHOOSE(m_identity,ENWL!AJ197, NPgN!AJ197, NPgY!AJ197, WMID!AJ197, EMID!AJ197, SWALES!AJ197, SWEST!AJ197, LPN!AJ197,SPN!AJ197,EPN!AJ197,SPD!AJ197,SPMW!AJ197,SSEH!AJ197,SSES!AJ197) -> 0 | AK197: =CHOOSE(m_identity,ENWL!AK197, NPgN!AK197, NPgY!AK197, WMID!AK197, EMID!AK197, SWALES!AK197, SWEST!AK197, LPN!AK197,SPN!AK197,EPN!AK197,SPD!AK197,SPMW!AK197,SSEH!AK197,SSES!AK197) -> 0 | AL197: =CHOOSE(m_identity,ENWL!AL197, NPgN!AL197, NPgY!AL197, WMID!AL197, EMID!AL197, SWALES!AL197, SWEST!AL197, LPN!AL197,SPN!AL197,EPN!AL197,SPD!AL197,SPMW!AL197,SSEH!AL197,SSES!AL197) -> 0 | AM197: =CHOOSE(m_identity,ENWL!AM197, NPgN!AM197, NPgY!AM197, WMID!AM197, EMID!AM197, SWALES!AM197, SWEST!AM197, LPN!AM197,SPN!AM197,EPN!AM197,SPD!AM197,SPMW!AM197,SSEH!AM197,SSES!AM197) -> 0 | AN197: =CHOOSE(m_identity,ENWL!AN197, NPgN!AN197, NPgY!AN197, WMID!AN197, EMID!AN197, SWALES!AN197, SWEST!AN197, LPN!AN197,SPN!AN197,EPN!AN197,SPD!AN197,SPMW!AN197,SSEH!AN197,SSES!AN197) -> 0 | AO197: =CHOOSE(m_identity,ENWL!AO197, NPgN!AO197, NPgY!AO197, WMID!AO197, EMID!AO197, SWALES!AO197, SWEST!AO197, LPN!AO197,SPN!AO197,EPN!AO197,SPD!AO197,SPMW!AO197,SSEH!AO197,SSES!AO197) -> 0 | AP197: =CHOOSE(m_identity,ENWL!AP197, NPgN!AP197, NPgY!AP197, WMID!AP197, EMID!AP197, SWALES!AP197, SWEST!AP197, LPN!AP197,SPN!AP197,EPN!AP197,SPD!AP197,SPMW!AP197,SSEH!AP197,SSES!AP197) -> 0 | AQ197: =CHOOSE(m_identity,ENWL!AQ197, NPgN!AQ197, NPgY!AQ197, WMID!AQ197, EMID!AQ197, SWALES!AQ197, SWEST!AQ197, LPN!AQ197,SPN!AQ197,EPN!AQ197,SPD!AQ197,SPMW!AQ197,SSEH!AQ197,SSES!AQ197) -> 0
E198: Allocation to non-load related capex - other | G198: % | AJ198: =CHOOSE(m_identity,ENWL!AJ198, NPgN!AJ198, NPgY!AJ198, WMID!AJ198, EMID!AJ198, SWALES!AJ198, SWEST!AJ198, LPN!AJ198,SPN!AJ198,EPN!AJ198,SPD!AJ198,SPMW!AJ198,SSEH!AJ198,SSES!AJ198) -> 0 | AK198: =CHOOSE(m_identity,ENWL!AK198, NPgN!AK198, NPgY!AK198, WMID!AK198, EMID!AK198, SWALES!AK198, SWEST!AK198, LPN!AK198,SPN!AK198,EPN!AK198,SPD!AK198,SPMW!AK198,SSEH!AK198,SSES!AK198) -> 0 | AL198: =CHOOSE(m_identity,ENWL!AL198, NPgN!AL198, NPgY!AL198, WMID!AL198, EMID!AL198, SWALES!AL198, SWEST!AL198, LPN!AL198,SPN!AL198,EPN!AL198,SPD!AL198,SPMW!AL198,SSEH!AL198,SSES!AL198) -> 0 | AM198: =CHOOSE(m_identity,ENWL!AM198, NPgN!AM198, NPgY!AM198, WMID!AM198, EMID!AM198, SWALES!AM198, SWEST!AM198, LPN!AM198,SPN!AM198,EPN!AM198,SPD!AM198,SPMW!AM198,SSEH!AM198,SSES!AM198) -> 0 | AN198: =CHOOSE(m_identity,ENWL!AN198, NPgN!AN198, NPgY!AN198, WMID!AN198, EMID!AN198, SWALES!AN198, SWEST!AN198, LPN!AN198,SPN!AN198,EPN!AN198,SPD!AN198,SPMW!AN198,SSEH!AN198,SSES!AN198) -> 0 | AO198: =CHOOSE(m_identity,ENWL!AO198, NPgN!AO198, NPgY!AO198, WMID!AO198, EMID!AO198, SWALES!AO198, SWEST!AO198, LPN!AO198,SPN!AO198,EPN!AO198,SPD!AO198,SPMW!AO198,SSEH!AO198,SSES!AO198) -> 0 | AP198: =CHOOSE(m_identity,ENWL!AP198, NPgN!AP198, NPgY!AP198, WMID!AP198, EMID!AP198, SWALES!AP198, SWEST!AP198, LPN!AP198,SPN!AP198,EPN!AP198,SPD!AP198,SPMW!AP198,SSEH!AP198,SSES!AP198) -> 0 | AQ198: =CHOOSE(m_identity,ENWL!AQ198, NPgN!AQ198, NPgY!AQ198, WMID!AQ198, EMID!AQ198, SWALES!AQ198, SWEST!AQ198, LPN!AQ198,SPN!AQ198,EPN!AQ198,SPD!AQ198,SPMW!AQ198,SSEH!AQ198,SSES!AQ198) -> 0
E199: Allocation to faults | G199: % | AJ199: =CHOOSE(m_identity,ENWL!AJ199, NPgN!AJ199, NPgY!AJ199, WMID!AJ199, EMID!AJ199, SWALES!AJ199, SWEST!AJ199, LPN!AJ199,SPN!AJ199,EPN!AJ199,SPD!AJ199,SPMW!AJ199,SSEH!AJ199,SSES!AJ199) -> 0 | AK199: =CHOOSE(m_identity,ENWL!AK199, NPgN!AK199, NPgY!AK199, WMID!AK199, EMID!AK199, SWALES!AK199, SWEST!AK199, LPN!AK199,SPN!AK199,EPN!AK199,SPD!AK199,SPMW!AK199,SSEH!AK199,SSES!AK199) -> 0 | AL199: =CHOOSE(m_identity,ENWL!AL199, NPgN!AL199, NPgY!AL199, WMID!AL199, EMID!AL199, SWALES!AL199, SWEST!AL199, LPN!AL199,SPN!AL199,EPN!AL199,SPD!AL199,SPMW!AL199,SSEH!AL199,SSES!AL199) -> 0 | AM199: =CHOOSE(m_identity,ENWL!AM199, NPgN!AM199, NPgY!AM199, WMID!AM199, EMID!AM199, SWALES!AM199, SWEST!AM199, LPN!AM199,SPN!AM199,EPN!AM199,SPD!AM199,SPMW!AM199,SSEH!AM199,SSES!AM199) -> 0 | AN199: =CHOOSE(m_identity,ENWL!AN199, NPgN!AN199, NPgY!AN199, WMID!AN199, EMID!AN199, SWALES!AN199, SWEST!AN199, LPN!AN199,SPN!AN199,EPN!AN199,SPD!AN199,SPMW!AN199,SSEH!AN199,SSES!AN199) -> 0 | AO199: =CHOOSE(m_identity,ENWL!AO199, NPgN!AO199, NPgY!AO199, WMID!AO199, EMID!AO199, SWALES!AO199, SWEST!AO199, LPN!AO199,SPN!AO199,EPN!AO199,SPD!AO199,SPMW!AO199,SSEH!AO199,SSES!AO199) -> 0 | AP199: =CHOOSE(m_identity,ENWL!AP199, NPgN!AP199, NPgY!AP199, WMID!AP199, EMID!AP199, SWALES!AP199, SWEST!AP199, LPN!AP199,SPN!AP199,EPN!AP199,SPD!AP199,SPMW!AP199,SSEH!AP199,SSES!AP199) -> 0 | AQ199: =CHOOSE(m_identity,ENWL!AQ199, NPgN!AQ199, NPgY!AQ199, WMID!AQ199, EMID!AQ199, SWALES!AQ199, SWEST!AQ199, LPN!AQ199,SPN!AQ199,EPN!AQ199,SPD!AQ199,SPMW!AQ199,SSEH!AQ199,SSES!AQ199) -> 0
E200: Allocation to tree cutting | G200: % | AJ200: =CHOOSE(m_identity,ENWL!AJ200, NPgN!AJ200, NPgY!AJ200, WMID!AJ200, EMID!AJ200, SWALES!AJ200, SWEST!AJ200, LPN!AJ200,SPN!AJ200,EPN!AJ200,SPD!AJ200,SPMW!AJ200,SSEH!AJ200,SSES!AJ200) -> 0 | AK200: =CHOOSE(m_identity,ENWL!AK200, NPgN!AK200, NPgY!AK200, WMID!AK200, EMID!AK200, SWALES!AK200, SWEST!AK200, LPN!AK200,SPN!AK200,EPN!AK200,SPD!AK200,SPMW!AK200,SSEH!AK200,SSES!AK200) -> 0 | AL200: =CHOOSE(m_identity,ENWL!AL200, NPgN!AL200, NPgY!AL200, WMID!AL200, EMID!AL200, SWALES!AL200, SWEST!AL200, LPN!AL200,SPN!AL200,EPN!AL200,SPD!AL200,SPMW!AL200,SSEH!AL200,SSES!AL200) -> 0 | AM200: =CHOOSE(m_identity,ENWL!AM200, NPgN!AM200, NPgY!AM200, WMID!AM200, EMID!AM200, SWALES!AM200, SWEST!AM200, LPN!AM200,SPN!AM200,EPN!AM200,SPD!AM200,SPMW!AM200,SSEH!AM200,SSES!AM200) -> 0 | AN200: =CHOOSE(m_identity,ENWL!AN200, NPgN!AN200, NPgY!AN200, WMID!AN200, EMID!AN200, SWALES!AN200, SWEST!AN200, LPN!AN200,SPN!AN200,EPN!AN200,SPD!AN200,SPMW!AN200,SSEH!AN200,SSES!AN200) -> 0 | AO200: =CHOOSE(m_identity,ENWL!AO200, NPgN!AO200, NPgY!AO200, WMID!AO200, EMID!AO200, SWALES!AO200, SWEST!AO200, LPN!AO200,SPN!AO200,EPN!AO200,SPD!AO200,SPMW!AO200,SSEH!AO200,SSES!AO200) -> 0 | AP200: =CHOOSE(m_identity,ENWL!AP200, NPgN!AP200, NPgY!AP200, WMID!AP200, EMID!AP200, SWALES!AP200, SWEST!AP200, LPN!AP200,SPN!AP200,EPN!AP200,SPD!AP200,SPMW!AP200,SSEH!AP200,SSES!AP200) -> 0 | AQ200: =CHOOSE(m_identity,ENWL!AQ200, NPgN!AQ200, NPgY!AQ200, WMID!AQ200, EMID!AQ200, SWALES!AQ200, SWEST!AQ200, LPN!AQ200,SPN!AQ200,EPN!AQ200,SPD!AQ200,SPMW!AQ200,SSEH!AQ200,SSES!AQ200) -> 0
E201: Allocation to 100% ‘revenue pool’ expenditure | G201: % | AJ201: =CHOOSE(m_identity,ENWL!AJ201, NPgN!AJ201, NPgY!AJ201, WMID!AJ201, EMID!AJ201, SWALES!AJ201, SWEST!AJ201, LPN!AJ201,SPN!AJ201,EPN!AJ201,SPD!AJ201,SPMW!AJ201,SSEH!AJ201,SSES!AJ201) -> 0 | AK201: =CHOOSE(m_identity,ENWL!AK201, NPgN!AK201, NPgY!AK201, WMID!AK201, EMID!AK201, SWALES!AK201, SWEST!AK201, LPN!AK201,SPN!AK201,EPN!AK201,SPD!AK201,SPMW!AK201,SSEH!AK201,SSES!AK201) -> 0 | AL201: =CHOOSE(m_identity,ENWL!AL201, NPgN!AL201, NPgY!AL201, WMID!AL201, EMID!AL201, SWALES!AL201, SWEST!AL201, LPN!AL201,SPN!AL201,EPN!AL201,SPD!AL201,SPMW!AL201,SSEH!AL201,SSES!AL201) -> 0 | AM201: =CHOOSE(m_identity,ENWL!AM201, NPgN!AM201, NPgY!AM201, WMID!AM201, EMID!AM201, SWALES!AM201, SWEST!AM201, LPN!AM201,SPN!AM201,EPN!AM201,SPD!AM201,SPMW!AM201,SSEH!AM201,SSES!AM201) -> 0 | AN201: =CHOOSE(m_identity,ENWL!AN201, NPgN!AN201, NPgY!AN201, WMID!AN201, EMID!AN201, SWALES!AN201, SWEST!AN201, LPN!AN201,SPN!AN201,EPN!AN201,SPD!AN201,SPMW!AN201,SSEH!AN201,SSES!AN201) -> 0 | AO201: =CHOOSE(m_identity,ENWL!AO201, NPgN!AO201, NPgY!AO201, WMID!AO201, EMID!AO201, SWALES!AO201, SWEST!AO201, LPN!AO201,SPN!AO201,EPN!AO201,SPD!AO201,SPMW!AO201,SSEH!AO201,SSES!AO201) -> 0 | AP201: =CHOOSE(m_identity,ENWL!AP201, NPgN!AP201, NPgY!AP201, WMID!AP201, EMID!AP201, SWALES!AP201, SWEST!AP201, LPN!AP201,SPN!AP201,EPN!AP201,SPD!AP201,SPMW!AP201,SSEH!AP201,SSES!AP201) -> 0 | AQ201: =CHOOSE(m_identity,ENWL!AQ201, NPgN!AQ201, NPgY!AQ201, WMID!AQ201, EMID!AQ201, SWALES!AQ201, SWEST!AQ201, LPN!AQ201,SPN!AQ201,EPN!AQ201,SPD!AQ201,SPMW!AQ201,SSEH!AQ201,SSES!AQ201) -> 0
E202: Allocation to controllable opex | G202: % | AJ202: =CHOOSE(m_identity,ENWL!AJ202, NPgN!AJ202, NPgY!AJ202, WMID!AJ202, EMID!AJ202, SWALES!AJ202, SWEST!AJ202, LPN!AJ202,SPN!AJ202,EPN!AJ202,SPD!AJ202,SPMW!AJ202,SSEH!AJ202,SSES!AJ202) -> 0 | AK202: =CHOOSE(m_identity,ENWL!AK202, NPgN!AK202, NPgY!AK202, WMID!AK202, EMID!AK202, SWALES!AK202, SWEST!AK202, LPN!AK202,SPN!AK202,EPN!AK202,SPD!AK202,SPMW!AK202,SSEH!AK202,SSES!AK202) -> 0 | AL202: =CHOOSE(m_identity,ENWL!AL202, NPgN!AL202, NPgY!AL202, WMID!AL202, EMID!AL202, SWALES!AL202, SWEST!AL202, LPN!AL202,SPN!AL202,EPN!AL202,SPD!AL202,SPMW!AL202,SSEH!AL202,SSES!AL202) -> 0 | AM202: =CHOOSE(m_identity,ENWL!AM202, NPgN!AM202, NPgY!AM202, WMID!AM202, EMID!AM202, SWALES!AM202, SWEST!AM202, LPN!AM202,SPN!AM202,EPN!AM202,SPD!AM202,SPMW!AM202,SSEH!AM202,SSES!AM202) -> 0 | AN202: =CHOOSE(m_identity,ENWL!AN202, NPgN!AN202, NPgY!AN202, WMID!AN202, EMID!AN202, SWALES!AN202, SWEST!AN202, LPN!AN202,SPN!AN202,EPN!AN202,SPD!AN202,SPMW!AN202,SSEH!AN202,SSES!AN202) -> 0 | AO202: =CHOOSE(m_identity,ENWL!AO202, NPgN!AO202, NPgY!AO202, WMID!AO202, EMID!AO202, SWALES!AO202, SWEST!AO202, LPN!AO202,SPN!AO202,EPN!AO202,SPD!AO202,SPMW!AO202,SSEH!AO202,SSES!AO202) -> 0 | AP202: =CHOOSE(m_identity,ENWL!AP202, NPgN!AP202, NPgY!AP202, WMID!AP202, EMID!AP202, SWALES!AP202, SWEST!AP202, LPN!AP202,SPN!AP202,EPN!AP202,SPD!AP202,SPMW!AP202,SSEH!AP202,SSES!AP202) -> 0 | AQ202: =CHOOSE(m_identity,ENWL!AQ202, NPgN!AQ202, NPgY!AQ202, WMID!AQ202, EMID!AQ202, SWALES!AQ202, SWEST!AQ202, LPN!AQ202,SPN!AQ202,EPN!AQ202,SPD!AQ202,SPMW!AQ202,SSEH!AQ202,SSES!AQ202) -> 0
E204: =E30 -> Allowed Expenditure - Innovation Roll-out | G204: £m 12/13 prices | AJ204: =AJ30 -> 0 | AK204: =AK30 -> 0 | AL204: 0 | AM204: 0 | AN204: 0 | AO204: 0 | AP204: 0 | AQ204: 0
E205: Allocation to load related capex | G205: % | AJ205: =CHOOSE(m_identity,ENWL!AJ205, NPgN!AJ205, NPgY!AJ205, WMID!AJ205, EMID!AJ205, SWALES!AJ205, SWEST!AJ205, LPN!AJ205,SPN!AJ205,EPN!AJ205,SPD!AJ205,SPMW!AJ205,SSEH!AJ205,SSES!AJ205) -> 0.25 | AK205: =CHOOSE(m_identity,ENWL!AK205, NPgN!AK205, NPgY!AK205, WMID!AK205, EMID!AK205, SWALES!AK205, SWEST!AK205, LPN!AK205,SPN!AK205,EPN!AK205,SPD!AK205,SPMW!AK205,SSEH!AK205,SSES!AK205) -> 0.25 | AL205: =CHOOSE(m_identity,ENWL!AL205, NPgN!AL205, NPgY!AL205, WMID!AL205, EMID!AL205, SWALES!AL205, SWEST!AL205, LPN!AL205,SPN!AL205,EPN!AL205,SPD!AL205,SPMW!AL205,SSEH!AL205,SSES!AL205) -> 0.25 | AM205: =CHOOSE(m_identity,ENWL!AM205, NPgN!AM205, NPgY!AM205, WMID!AM205, EMID!AM205, SWALES!AM205, SWEST!AM205, LPN!AM205,SPN!AM205,EPN!AM205,SPD!AM205,SPMW!AM205,SSEH!AM205,SSES!AM205) -> 0.25 | AN205: =CHOOSE(m_identity,ENWL!AN205, NPgN!AN205, NPgY!AN205, WMID!AN205, EMID!AN205, SWALES!AN205, SWEST!AN205, LPN!AN205,SPN!AN205,EPN!AN205,SPD!AN205,SPMW!AN205,SSEH!AN205,SSES!AN205) -> 0.25 | AO205: =CHOOSE(m_identity,ENWL!AO205, NPgN!AO205, NPgY!AO205, WMID!AO205, EMID!AO205, SWALES!AO205, SWEST!AO205, LPN!AO205,SPN!AO205,EPN!AO205,SPD!AO205,SPMW!AO205,SSEH!AO205,SSES!AO205) -> 0.25 | AP205: =CHOOSE(m_identity,ENWL!AP205, NPgN!AP205, NPgY!AP205, WMID!AP205, EMID!AP205, SWALES!AP205, SWEST!AP205, LPN!AP205,SPN!AP205,EPN!AP205,SPD!AP205,SPMW!AP205,SSEH!AP205,SSES!AP205) -> 0.25 | AQ205: =CHOOSE(m_identity,ENWL!AQ205, NPgN!AQ205, NPgY!AQ205, WMID!AQ205, EMID!AQ205, SWALES!AQ205, SWEST!AQ205, LPN!AQ205,SPN!AQ205,EPN!AQ205,SPD!AQ205,SPMW!AQ205,SSEH!AQ205,SSES!AQ205) -> 0.25
E206: Allocation to non-load related capex - asset replacement | G206: % | AJ206: =CHOOSE(m_identity,ENWL!AJ206, NPgN!AJ206, NPgY!AJ206, WMID!AJ206, EMID!AJ206, SWALES!AJ206, SWEST!AJ206, LPN!AJ206,SPN!AJ206,EPN!AJ206,SPD!AJ206,SPMW!AJ206,SSEH!AJ206,SSES!AJ206) -> 0 | AK206: =CHOOSE(m_identity,ENWL!AK206, NPgN!AK206, NPgY!AK206, WMID!AK206, EMID!AK206, SWALES!AK206, SWEST!AK206, LPN!AK206,SPN!AK206,EPN!AK206,SPD!AK206,SPMW!AK206,SSEH!AK206,SSES!AK206) -> 0 | AL206: =CHOOSE(m_identity,ENWL!AL206, NPgN!AL206, NPgY!AL206, WMID!AL206, EMID!AL206, SWALES!AL206, SWEST!AL206, LPN!AL206,SPN!AL206,EPN!AL206,SPD!AL206,SPMW!AL206,SSEH!AL206,SSES!AL206) -> 0 | AM206: =CHOOSE(m_identity,ENWL!AM206, NPgN!AM206, NPgY!AM206, WMID!AM206, EMID!AM206, SWALES!AM206, SWEST!AM206, LPN!AM206,SPN!AM206,EPN!AM206,SPD!AM206,SPMW!AM206,SSEH!AM206,SSES!AM206) -> 0 | AN206: =CHOOSE(m_identity,ENWL!AN206, NPgN!AN206, NPgY!AN206, WMID!AN206, EMID!AN206, SWALES!AN206, SWEST!AN206, LPN!AN206,SPN!AN206,EPN!AN206,SPD!AN206,SPMW!AN206,SSEH!AN206,SSES!AN206) -> 0 | AO206: =CHOOSE(m_identity,ENWL!AO206, NPgN!AO206, NPgY!AO206, WMID!AO206, EMID!AO206, SWALES!AO206, SWEST!AO206, LPN!AO206,SPN!AO206,EPN!AO206,SPD!AO206,SPMW!AO206,SSEH!AO206,SSES!AO206) -> 0 | AP206: =CHOOSE(m_identity,ENWL!AP206, NPgN!AP206, NPgY!AP206, WMID!AP206, EMID!AP206, SWALES!AP206, SWEST!AP206, LPN!AP206,SPN!AP206,EPN!AP206,SPD!AP206,SPMW!AP206,SSEH!AP206,SSES!AP206) -> 0 | AQ206: =CHOOSE(m_identity,ENWL!AQ206, NPgN!AQ206, NPgY!AQ206, WMID!AQ206, EMID!AQ206, SWALES!AQ206, SWEST!AQ206, LPN!AQ206,SPN!AQ206,EPN!AQ206,SPD!AQ206,SPMW!AQ206,SSEH!AQ206,SSES!AQ206) -> 0
E207: Allocation to non-load related capex - other | G207: % | AJ207: =CHOOSE(m_identity,ENWL!AJ207, NPgN!AJ207, NPgY!AJ207, WMID!AJ207, EMID!AJ207, SWALES!AJ207, SWEST!AJ207, LPN!AJ207,SPN!AJ207,EPN!AJ207,SPD!AJ207,SPMW!AJ207,SSEH!AJ207,SSES!AJ207) -> 0.75 | AK207: =CHOOSE(m_identity,ENWL!AK207, NPgN!AK207, NPgY!AK207, WMID!AK207, EMID!AK207, SWALES!AK207, SWEST!AK207, LPN!AK207,SPN!AK207,EPN!AK207,SPD!AK207,SPMW!AK207,SSEH!AK207,SSES!AK207) -> 0.75 | AL207: =CHOOSE(m_identity,ENWL!AL207, NPgN!AL207, NPgY!AL207, WMID!AL207, EMID!AL207, SWALES!AL207, SWEST!AL207, LPN!AL207,SPN!AL207,EPN!AL207,SPD!AL207,SPMW!AL207,SSEH!AL207,SSES!AL207) -> 0.75 | AM207: =CHOOSE(m_identity,ENWL!AM207, NPgN!AM207, NPgY!AM207, WMID!AM207, EMID!AM207, SWALES!AM207, SWEST!AM207, LPN!AM207,SPN!AM207,EPN!AM207,SPD!AM207,SPMW!AM207,SSEH!AM207,SSES!AM207) -> 0.75 | AN207: =CHOOSE(m_identity,ENWL!AN207, NPgN!AN207, NPgY!AN207, WMID!AN207, EMID!AN207, SWALES!AN207, SWEST!AN207, LPN!AN207,SPN!AN207,EPN!AN207,SPD!AN207,SPMW!AN207,SSEH!AN207,SSES!AN207) -> 0.75 | AO207: =CHOOSE(m_identity,ENWL!AO207, NPgN!AO207, NPgY!AO207, WMID!AO207, EMID!AO207, SWALES!AO207, SWEST!AO207, LPN!AO207,SPN!AO207,EPN!AO207,SPD!AO207,SPMW!AO207,SSEH!AO207,SSES!AO207) -> 0.75 | AP207: =CHOOSE(m_identity,ENWL!AP207, NPgN!AP207, NPgY!AP207, WMID!AP207, EMID!AP207, SWALES!AP207, SWEST!AP207, LPN!AP207,SPN!AP207,EPN!AP207,SPD!AP207,SPMW!AP207,SSEH!AP207,SSES!AP207) -> 0.75 | AQ207: =CHOOSE(m_identity,ENWL!AQ207, NPgN!AQ207, NPgY!AQ207, WMID!AQ207, EMID!AQ207, SWALES!AQ207, SWEST!AQ207, LPN!AQ207,SPN!AQ207,EPN!AQ207,SPD!AQ207,SPMW!AQ207,SSEH!AQ207,SSES!AQ207) -> 0.75
E208: Allocation to faults | G208: % | AJ208: =CHOOSE(m_identity,ENWL!AJ208, NPgN!AJ208, NPgY!AJ208, WMID!AJ208, EMID!AJ208, SWALES!AJ208, SWEST!AJ208, LPN!AJ208,SPN!AJ208,EPN!AJ208,SPD!AJ208,SPMW!AJ208,SSEH!AJ208,SSES!AJ208) -> 0 | AK208: =CHOOSE(m_identity,ENWL!AK208, NPgN!AK208, NPgY!AK208, WMID!AK208, EMID!AK208, SWALES!AK208, SWEST!AK208, LPN!AK208,SPN!AK208,EPN!AK208,SPD!AK208,SPMW!AK208,SSEH!AK208,SSES!AK208) -> 0 | AL208: =CHOOSE(m_identity,ENWL!AL208, NPgN!AL208, NPgY!AL208, WMID!AL208, EMID!AL208, SWALES!AL208, SWEST!AL208, LPN!AL208,SPN!AL208,EPN!AL208,SPD!AL208,SPMW!AL208,SSEH!AL208,SSES!AL208) -> 0 | AM208: =CHOOSE(m_identity,ENWL!AM208, NPgN!AM208, NPgY!AM208, WMID!AM208, EMID!AM208, SWALES!AM208, SWEST!AM208, LPN!AM208,SPN!AM208,EPN!AM208,SPD!AM208,SPMW!AM208,SSEH!AM208,SSES!AM208) -> 0 | AN208: =CHOOSE(m_identity,ENWL!AN208, NPgN!AN208, NPgY!AN208, WMID!AN208, EMID!AN208, SWALES!AN208, SWEST!AN208, LPN!AN208,SPN!AN208,EPN!AN208,SPD!AN208,SPMW!AN208,SSEH!AN208,SSES!AN208) -> 0 | AO208: =CHOOSE(m_identity,ENWL!AO208, NPgN!AO208, NPgY!AO208, WMID!AO208, EMID!AO208, SWALES!AO208, SWEST!AO208, LPN!AO208,SPN!AO208,EPN!AO208,SPD!AO208,SPMW!AO208,SSEH!AO208,SSES!AO208) -> 0 | AP208: =CHOOSE(m_identity,ENWL!AP208, NPgN!AP208, NPgY!AP208, WMID!AP208, EMID!AP208, SWALES!AP208, SWEST!AP208, LPN!AP208,SPN!AP208,EPN!AP208,SPD!AP208,SPMW!AP208,SSEH!AP208,SSES!AP208) -> 0 | AQ208: =CHOOSE(m_identity,ENWL!AQ208, NPgN!AQ208, NPgY!AQ208, WMID!AQ208, EMID!AQ208, SWALES!AQ208, SWEST!AQ208, LPN!AQ208,SPN!AQ208,EPN!AQ208,SPD!AQ208,SPMW!AQ208,SSEH!AQ208,SSES!AQ208) -> 0
E209: Allocation to tree cutting | G209: % | AJ209: =CHOOSE(m_identity,ENWL!AJ209, NPgN!AJ209, NPgY!AJ209, WMID!AJ209, EMID!AJ209, SWALES!AJ209, SWEST!AJ209, LPN!AJ209,SPN!AJ209,EPN!AJ209,SPD!AJ209,SPMW!AJ209,SSEH!AJ209,SSES!AJ209) -> 0 | AK209: =CHOOSE(m_identity,ENWL!AK209, NPgN!AK209, NPgY!AK209, WMID!AK209, EMID!AK209, SWALES!AK209, SWEST!AK209, LPN!AK209,SPN!AK209,EPN!AK209,SPD!AK209,SPMW!AK209,SSEH!AK209,SSES!AK209) -> 0 | AL209: =CHOOSE(m_identity,ENWL!AL209, NPgN!AL209, NPgY!AL209, WMID!AL209, EMID!AL209, SWALES!AL209, SWEST!AL209, LPN!AL209,SPN!AL209,EPN!AL209,SPD!AL209,SPMW!AL209,SSEH!AL209,SSES!AL209) -> 0 | AM209: =CHOOSE(m_identity,ENWL!AM209, NPgN!AM209, NPgY!AM209, WMID!AM209, EMID!AM209, SWALES!AM209, SWEST!AM209, LPN!AM209,SPN!AM209,EPN!AM209,SPD!AM209,SPMW!AM209,SSEH!AM209,SSES!AM209) -> 0 | AN209: =CHOOSE(m_identity,ENWL!AN209, NPgN!AN209, NPgY!AN209, WMID!AN209, EMID!AN209, SWALES!AN209, SWEST!AN209, LPN!AN209,SPN!AN209,EPN!AN209,SPD!AN209,SPMW!AN209,SSEH!AN209,SSES!AN209) -> 0 | AO209: =CHOOSE(m_identity,ENWL!AO209, NPgN!AO209, NPgY!AO209, WMID!AO209, EMID!AO209, SWALES!AO209, SWEST!AO209, LPN!AO209,SPN!AO209,EPN!AO209,SPD!AO209,SPMW!AO209,SSEH!AO209,SSES!AO209) -> 0 | AP209: =CHOOSE(m_identity,ENWL!AP209, NPgN!AP209, NPgY!AP209, WMID!AP209, EMID!AP209, SWALES!AP209, SWEST!AP209, LPN!AP209,SPN!AP209,EPN!AP209,SPD!AP209,SPMW!AP209,SSEH!AP209,SSES!AP209) -> 0 | AQ209: =CHOOSE(m_identity,ENWL!AQ209, NPgN!AQ209, NPgY!AQ209, WMID!AQ209, EMID!AQ209, SWALES!AQ209, SWEST!AQ209, LPN!AQ209,SPN!AQ209,EPN!AQ209,SPD!AQ209,SPMW!AQ209,SSEH!AQ209,SSES!AQ209) -> 0
E210: Allocation to 100% ‘revenue pool’ expenditure | G210: % | AJ210: =CHOOSE(m_identity,ENWL!AJ210, NPgN!AJ210, NPgY!AJ210, WMID!AJ210, EMID!AJ210, SWALES!AJ210, SWEST!AJ210, LPN!AJ210,SPN!AJ210,EPN!AJ210,SPD!AJ210,SPMW!AJ210,SSEH!AJ210,SSES!AJ210) -> 0 | AK210: =CHOOSE(m_identity,ENWL!AK210, NPgN!AK210, NPgY!AK210, WMID!AK210, EMID!AK210, SWALES!AK210, SWEST!AK210, LPN!AK210,SPN!AK210,EPN!AK210,SPD!AK210,SPMW!AK210,SSEH!AK210,SSES!AK210) -> 0 | AL210: =CHOOSE(m_identity,ENWL!AL210, NPgN!AL210, NPgY!AL210, WMID!AL210, EMID!AL210, SWALES!AL210, SWEST!AL210, LPN!AL210,SPN!AL210,EPN!AL210,SPD!AL210,SPMW!AL210,SSEH!AL210,SSES!AL210) -> 0 | AM210: =CHOOSE(m_identity,ENWL!AM210, NPgN!AM210, NPgY!AM210, WMID!AM210, EMID!AM210, SWALES!AM210, SWEST!AM210, LPN!AM210,SPN!AM210,EPN!AM210,SPD!AM210,SPMW!AM210,SSEH!AM210,SSES!AM210) -> 0 | AN210: =CHOOSE(m_identity,ENWL!AN210, NPgN!AN210, NPgY!AN210, WMID!AN210, EMID!AN210, SWALES!AN210, SWEST!AN210, LPN!AN210,SPN!AN210,EPN!AN210,SPD!AN210,SPMW!AN210,SSEH!AN210,SSES!AN210) -> 0 | AO210: =CHOOSE(m_identity,ENWL!AO210, NPgN!AO210, NPgY!AO210, WMID!AO210, EMID!AO210, SWALES!AO210, SWEST!AO210, LPN!AO210,SPN!AO210,EPN!AO210,SPD!AO210,SPMW!AO210,SSEH!AO210,SSES!AO210) -> 0 | AP210: =CHOOSE(m_identity,ENWL!AP210, NPgN!AP210, NPgY!AP210, WMID!AP210, EMID!AP210, SWALES!AP210, SWEST!AP210, LPN!AP210,SPN!AP210,EPN!AP210,SPD!AP210,SPMW!AP210,SSEH!AP210,SSES!AP210) -> 0 | AQ210: =CHOOSE(m_identity,ENWL!AQ210, NPgN!AQ210, NPgY!AQ210, WMID!AQ210, EMID!AQ210, SWALES!AQ210, SWEST!AQ210, LPN!AQ210,SPN!AQ210,EPN!AQ210,SPD!AQ210,SPMW!AQ210,SSEH!AQ210,SSES!AQ210) -> 0
E211: Allocation to controllable opex | G211: % | AJ211: =CHOOSE(m_identity,ENWL!AJ211, NPgN!AJ211, NPgY!AJ211, WMID!AJ211, EMID!AJ211, SWALES!AJ211, SWEST!AJ211, LPN!AJ211,SPN!AJ211,EPN!AJ211,SPD!AJ211,SPMW!AJ211,SSEH!AJ211,SSES!AJ211) -> 0 | AK211: =CHOOSE(m_identity,ENWL!AK211, NPgN!AK211, NPgY!AK211, WMID!AK211, EMID!AK211, SWALES!AK211, SWEST!AK211, LPN!AK211,SPN!AK211,EPN!AK211,SPD!AK211,SPMW!AK211,SSEH!AK211,SSES!AK211) -> 0 | AL211: =CHOOSE(m_identity,ENWL!AL211, NPgN!AL211, NPgY!AL211, WMID!AL211, EMID!AL211, SWALES!AL211, SWEST!AL211, LPN!AL211,SPN!AL211,EPN!AL211,SPD!AL211,SPMW!AL211,SSEH!AL211,SSES!AL211) -> 0 | AM211: =CHOOSE(m_identity,ENWL!AM211, NPgN!AM211, NPgY!AM211, WMID!AM211, EMID!AM211, SWALES!AM211, SWEST!AM211, LPN!AM211,SPN!AM211,EPN!AM211,SPD!AM211,SPMW!AM211,SSEH!AM211,SSES!AM211) -> 0 | AN211: =CHOOSE(m_identity,ENWL!AN211, NPgN!AN211, NPgY!AN211, WMID!AN211, EMID!AN211, SWALES!AN211, SWEST!AN211, LPN!AN211,SPN!AN211,EPN!AN211,SPD!AN211,SPMW!AN211,SSEH!AN211,SSES!AN211) -> 0 | AO211: =CHOOSE(m_identity,ENWL!AO211, NPgN!AO211, NPgY!AO211, WMID!AO211, EMID!AO211, SWALES!AO211, SWEST!AO211, LPN!AO211,SPN!AO211,EPN!AO211,SPD!AO211,SPMW!AO211,SSEH!AO211,SSES!AO211) -> 0 | AP211: =CHOOSE(m_identity,ENWL!AP211, NPgN!AP211, NPgY!AP211, WMID!AP211, EMID!AP211, SWALES!AP211, SWEST!AP211, LPN!AP211,SPN!AP211,EPN!AP211,SPD!AP211,SPMW!AP211,SSEH!AP211,SSES!AP211) -> 0 | AQ211: =CHOOSE(m_identity,ENWL!AQ211, NPgN!AQ211, NPgY!AQ211, WMID!AQ211, EMID!AQ211, SWALES!AQ211, SWEST!AQ211, LPN!AQ211,SPN!AQ211,EPN!AQ211,SPD!AQ211,SPMW!AQ211,SSEH!AQ211,SSES!AQ211) -> 0
E213: Variant allowed load related capex | G213: £m 12/13 prices | AJ213: =(AJ$105*AJ106)+(AJ$114*AJ115)+(AJ$123*AJ124)+(AJ$132*AJ133)+(AJ$141*AJ142)+(AJ$150*AJ151)+(AJ$159*AJ160)+(AJ$168*AJ169)+(AJ$177*AJ178)+(AJ$186*AJ187)+(AJ$195*AJ196)+(AJ$204*AJ205) -> 15.23453875 | AK213: =(AK$105*AK106)+(AK$114*AK115)+(AK$123*AK124)+(AK$132*AK133)+(AK$141*AK142)+(AK$150*AK151)+(AK$159*AK160)+(AK$168*AK169)+(AK$177*AK178)+(AK$186*AK187)+(AK$195*AK196)+(AK$204*AK205) -> 19.28339997 | AL213: 13.26227097 | AM213: 17.35698251 | AN213: 16.7340232 | AO213: 18.5085961 | AP213: 24.93470717 | AQ213: 22.28742468
E214: Variant allowed non-load related capex - asset replacement | G214: £m 12/13 prices | AJ214: =(AJ$105*AJ107)+(AJ$114*AJ116)+(AJ$123*AJ125)+(AJ$132*AJ134)+(AJ$141*AJ143)+(AJ$150*AJ152)+(AJ$159*AJ161)+(AJ$168*AJ170)+(AJ$177*AJ179)+(AJ$186*AJ188)+(AJ$195*AJ197)+(AJ$204*AJ206) -> 2.619407623 | AK214: 0 | AL214: 0 | AM214: 0 | AN214: 0 | AO214: 0 | AP214: 0 | AQ214: 0
E215: Variant allowed non-load related capex - other | G215: £m 12/13 prices | AJ215: =(AJ$105*AJ108)+(AJ$114*AJ117)+(AJ$123*AJ126)+(AJ$132*AJ135)+(AJ$141*AJ144)+(AJ$150*AJ153)+(AJ$159*AJ162)+(AJ$168*AJ171)+(AJ$177*AJ180)+(AJ$186*AJ189)+(AJ$195*AJ198)+(AJ$204*AJ207) -> 0 | AK215: 0 | AL215: 0 | AM215: 0 | AN215: 0 | AO215: 0 | AP215: 0 | AQ215: 0
E216: Variant allowed faults | G216: £m 12/13 prices | AJ216: =(AJ$105*AJ109)+(AJ$114*AJ118)+(AJ$123*AJ127)+(AJ$132*AJ136)+(AJ$141*AJ145)+(AJ$150*AJ154)+(AJ$159*AJ163)+(AJ$168*AJ172)+(AJ$177*AJ181)+(AJ$186*AJ190)+(AJ$195*AJ199)+(AJ$204*AJ208) -> 0 | AK216: 0 | AL216: 0 | AM216: 0 | AN216: 0 | AO216: 0 | AP216: 0 | AQ216: 0
E217: Variant allowed tree cutting | G217: £m 12/13 prices | AJ217: =(AJ$105*AJ110)+(AJ$114*AJ119)+(AJ$123*AJ128)+(AJ$132*AJ137)+(AJ$141*AJ146)+(AJ$150*AJ155)+(AJ$159*AJ164)+(AJ$168*AJ173)+(AJ$177*AJ182)+(AJ$186*AJ191)+(AJ$195*AJ200)+(AJ$204*AJ209) -> 0 | AK217: 0 | AL217: 0 | AM217: 0 | AN217: 0 | AO217: 0 | AP217: 0 | AQ217: 0
E218: Variant allowed 100% ‘revenue pool’ expenditure | G218: £m 12/13 prices | AJ218: =(AJ$105*AJ111)+(AJ$114*AJ120)+(AJ$123*AJ129)+(AJ$132*AJ138)+(AJ$141*AJ147)+(AJ$150*AJ156)+(AJ$159*AJ165)+(AJ$168*AJ174)+(AJ$177*AJ183)+(AJ$186*AJ192)+(AJ$195*AJ201)+(AJ$204*AJ210) -> 0.2013228863 | AK218: 0.2652980099 | AL218: 0.1870849771 | AM218: 0.2201185057 | AN218: 0.236192018 | AO218: 0.2067485377 | AP218: 0.2614261347 | AQ218: 0.2375941583
E219: Variant allowed controllable opex | G219: £m 12/13 prices | AJ219: =(AJ$105*AJ112)+(AJ$114*AJ121)+(AJ$123*AJ130)+(AJ$132*AJ139)+(AJ$141*AJ148)+(AJ$150*AJ157)+(AJ$159*AJ166)+(AJ$168*AJ175)+(AJ$177*AJ184)+(AJ$186*AJ193)+(AJ$195*AJ202)+(AJ$204*AJ211) -> 1.792743309 | AK219: 2.472221198 | AL219: 2.993117542 | AM219: 2.727491161 | AN219: 2.6017271 | AO219: 0 | AP219: 0 | AQ219: 0
D221: Actual
E223: Actual load related capex | G223: £m 12/13 prices | AJ223: =AJ12 -> 0 | AK223: 0 | AL223: 0 | AM223: 0 | AN223: 0 | AO223: 0 | AP223: 0 | AQ223: 0
E224: Actual non-load related capex - asset replacement | G224: £m 12/13 prices | AJ224: 0 | AK224: 0 | AL224: 0 | AM224: 0 | AN224: 0 | AO224: 0 | AP224: 0 | AQ224: 0
E225: Actual non-load related capex - other | G225: £m 12/13 prices | AJ225: =AJ14 -> 0 | AK225: 0 | AL225: 0 | AM225: 0 | AN225: 0 | AO225: 0 | AP225: 0 | AQ225: 0
E226: Actual faults | G226: £m 12/13 prices | AJ226: =AJ15 -> 0 | AK226: 0 | AL226: 0 | AM226: 0 | AN226: 0 | AO226: 0 | AP226: 0 | AQ226: 0
E227: Actual tree cutting | G227: £m 12/13 prices | AJ227: =AJ16 -> 0 | AK227: =AK16 -> 0 | AL227: 0 | AM227: 0 | AN227: 0 | AO227: 0 | AP227: 0 | AQ227: 0
E228: Actual 100% ‘revenue pool’ expenditure | G228: £m 12/13 prices | AJ228: =AJ17 -> 0 | AK228: 0 | AL228: 0 | AM228: 0 | AN228: 0 | AO228: 0 | AP228: 0 | AQ228: 0
E229: Actual controllable opex | G229: £m 12/13 prices | AJ229: =AJ18 -> 0 | AK229: 0 | AL229: 0 | AM229: 0 | AN229: 0 | AO229: 0 | AP229: 0 | AQ229: 0
C231: Non-totex (all catergorised as 'opex' for tax purposes)
E233: Non-controllable opex (excluding Exit Charges) | G233: £m 12/13 prices | AJ233: =CHOOSE(m_identity,ENWL!AJ233, NPgN!AJ233, NPgY!AJ233, WMID!AJ233, EMID!AJ233, SWALES!AJ233, SWEST!AJ233, LPN!AJ233,SPN!AJ233,EPN!AJ233,SPD!AJ233,SPMW!AJ233,SSEH!AJ233,SSES!AJ233) -> 31.23573793 | AK233: =CHOOSE(m_identity,ENWL!AK233, NPgN!AK233, NPgY!AK233, WMID!AK233, EMID!AK233, SWALES!AK233, SWEST!AK233, LPN!AK233,SPN!AK233,EPN!AK233,SPD!AK233,SPMW!AK233,SSEH!AK233,SSES!AK233) -> 31.74990862 | AL233: =CHOOSE(m_identity,ENWL!AL233, NPgN!AL233, NPgY!AL233, WMID!AL233, EMID!AL233, SWALES!AL233, SWEST!AL233, LPN!AL233,SPN!AL233,EPN!AL233,SPD!AL233,SPMW!AL233,SSEH!AL233,SSES!AL233) -> 31.76021628 | AM233: =CHOOSE(m_identity,ENWL!AM233, NPgN!AM233, NPgY!AM233, WMID!AM233, EMID!AM233, SWALES!AM233, SWEST!AM233, LPN!AM233,SPN!AM233,EPN!AM233,SPD!AM233,SPMW!AM233,SSEH!AM233,SSES!AM233) -> 31.44061177 | AN233: =CHOOSE(m_identity,ENWL!AN233, NPgN!AN233, NPgY!AN233, WMID!AN233, EMID!AN233, SWALES!AN233, SWEST!AN233, LPN!AN233,SPN!AN233,EPN!AN233,SPD!AN233,SPMW!AN233,SSEH!AN233,SSES!AN233) -> 30.81195953 | AO233: =CHOOSE(m_identity,ENWL!AO233, NPgN!AO233, NPgY!AO233, WMID!AO233, EMID!AO233, SWALES!AO233, SWEST!AO233, LPN!AO233,SPN!AO233,EPN!AO233,SPD!AO233,SPMW!AO233,SSEH!AO233,SSES!AO233) -> 30.87280062 | AP233: =CHOOSE(m_identity,ENWL!AP233, NPgN!AP233, NPgY!AP233, WMID!AP233, EMID!AP233, SWALES!AP233, SWEST!AP233, LPN!AP233,SPN!AP233,EPN!AP233,SPD!AP233,SPMW!AP233,SSEH!AP233,SSES!AP233) -> 29.40408561 | AQ233: =CHOOSE(m_identity,ENWL!AQ233, NPgN!AQ233, NPgY!AQ233, WMID!AQ233, EMID!AQ233, SWALES!AQ233, SWEST!AQ233, LPN!AQ233,SPN!AQ233,EPN!AQ233,SPD!AQ233,SPMW!AQ233,SSEH!AQ233,SSES!AQ233) -> 29.73406351
E234: Non-controllable opex (Exit Charges) | G234: £m 12/13 prices | AJ234: =CHOOSE(m_identity,ENWL!AJ234, NPgN!AJ234, NPgY!AJ234, WMID!AJ234, EMID!AJ234, SWALES!AJ234, SWEST!AJ234, LPN!AJ234,SPN!AJ234,EPN!AJ234,SPD!AJ234,SPMW!AJ234,SSEH!AJ234,SSES!AJ234) -> 13.5845802 | AK234: =CHOOSE(m_identity,ENWL!AK234, NPgN!AK234, NPgY!AK234, WMID!AK234, EMID!AK234, SWALES!AK234, SWEST!AK234, LPN!AK234,SPN!AK234,EPN!AK234,SPD!AK234,SPMW!AK234,SSEH!AK234,SSES!AK234) -> 14.87766358 | AL234: =CHOOSE(m_identity,ENWL!AL234, NPgN!AL234, NPgY!AL234, WMID!AL234, EMID!AL234, SWALES!AL234, SWEST!AL234, LPN!AL234,SPN!AL234,EPN!AL234,SPD!AL234,SPMW!AL234,SSEH!AL234,SSES!AL234) -> 14.63473171 | AM234: =CHOOSE(m_identity,ENWL!AM234, NPgN!AM234, NPgY!AM234, WMID!AM234, EMID!AM234, SWALES!AM234, SWEST!AM234, LPN!AM234,SPN!AM234,EPN!AM234,SPD!AM234,SPMW!AM234,SSEH!AM234,SSES!AM234) -> 14.38910615 | AN234: =CHOOSE(m_identity,ENWL!AN234, NPgN!AN234, NPgY!AN234, WMID!AN234, EMID!AN234, SWALES!AN234, SWEST!AN234, LPN!AN234,SPN!AN234,EPN!AN234,SPD!AN234,SPMW!AN234,SSEH!AN234,SSES!AN234) -> 15.0608527 | AO234: =CHOOSE(m_identity,ENWL!AO234, NPgN!AO234, NPgY!AO234, WMID!AO234, EMID!AO234, SWALES!AO234, SWEST!AO234, LPN!AO234,SPN!AO234,EPN!AO234,SPD!AO234,SPMW!AO234,SSEH!AO234,SSES!AO234) -> 14.81075369 | AP234: =CHOOSE(m_identity,ENWL!AP234, NPgN!AP234, NPgY!AP234, WMID!AP234, EMID!AP234, SWALES!AP234, SWEST!AP234, LPN!AP234,SPN!AP234,EPN!AP234,SPD!AP234,SPMW!AP234,SSEH!AP234,SSES!AP234) -> 17.64398982 | AQ234: =CHOOSE(m_identity,ENWL!AQ234, NPgN!AQ234, NPgY!AQ234, WMID!AQ234, EMID!AQ234, SWALES!AQ234, SWEST!AQ234, LPN!AQ234,SPN!AQ234,EPN!AQ234,SPD!AQ234,SPMW!AQ234,SSEH!AQ234,SSES!AQ234) -> 21.03212131
E235: Non-controllable opex | G235: £m 12/13 prices | AJ235: =SUM(AJ233:AJ234) -> 44.82031813 | AK235: =SUM(AK233:AK234) -> 46.6275722 | AL235: 46.39494799 | AM235: 45.82971792 | AN235: 45.87281223 | AO235: 45.68355431 | AP235: 47.04807543 | AQ235: 50.76618482
B237: Direct allowed revenue terms (DARTs)
E239: =E31 -> Pension Scheme Established Deficit revenue allowances | G239: £m 12/13 prices | AJ239: =AJ31 -> 11.08181712 | AK239: 11.08181712 | AL239: 11.08181712 | AM239: 11.08181712 | AN239: 11.08181712 | AO239: 11.08181712 | AP239: 11.08181712 | AQ239: 11.08181712
E241: Pension true-up from previous price controls | G241: £m 12/13 prices | AJ241: =CHOOSE(m_identity,ENWL!AJ241, NPgN!AJ241, NPgY!AJ241, WMID!AJ241, EMID!AJ241, SWALES!AJ241, SWEST!AJ241, LPN!AJ241,SPN!AJ241,EPN!AJ241,SPD!AJ241,SPMW!AJ241,SSEH!AJ241,SSES!AJ241) -> 0 | AK241: =CHOOSE(m_identity,ENWL!AK241, NPgN!AK241, NPgY!AK241, WMID!AK241, EMID!AK241, SWALES!AK241, SWEST!AK241, LPN!AK241,SPN!AK241,EPN!AK241,SPD!AK241,SPMW!AK241,SSEH!AK241,SSES!AK241) -> 0 | AL241: =CHOOSE(m_identity,ENWL!AL241, NPgN!AL241, NPgY!AL241, WMID!AL241, EMID!AL241, SWALES!AL241, SWEST!AL241, LPN!AL241,SPN!AL241,EPN!AL241,SPD!AL241,SPMW!AL241,SSEH!AL241,SSES!AL241) -> 0 | AM241: =CHOOSE(m_identity,ENWL!AM241, NPgN!AM241, NPgY!AM241, WMID!AM241, EMID!AM241, SWALES!AM241, SWEST!AM241, LPN!AM241,SPN!AM241,EPN!AM241,SPD!AM241,SPMW!AM241,SSEH!AM241,SSES!AM241) -> 0 | AN241: =CHOOSE(m_identity,ENWL!AN241, NPgN!AN241, NPgY!AN241, WMID!AN241, EMID!AN241, SWALES!AN241, SWEST!AN241, LPN!AN241,SPN!AN241,EPN!AN241,SPD!AN241,SPMW!AN241,SSEH!AN241,SSES!AN241) -> 0 | AO241: =CHOOSE(m_identity,ENWL!AO241, NPgN!AO241, NPgY!AO241, WMID!AO241, EMID!AO241, SWALES!AO241, SWEST!AO241, LPN!AO241,SPN!AO241,EPN!AO241,SPD!AO241,SPMW!AO241,SSEH!AO241,SSES!AO241) -> 0 | AP241: =CHOOSE(m_identity,ENWL!AP241, NPgN!AP241, NPgY!AP241, WMID!AP241, EMID!AP241, SWALES!AP241, SWEST!AP241, LPN!AP241,SPN!AP241,EPN!AP241,SPD!AP241,SPMW!AP241,SSEH!AP241,SSES!AP241) -> 0 | AQ241: =CHOOSE(m_identity,ENWL!AQ241, NPgN!AQ241, NPgY!AQ241, WMID!AQ241, EMID!AQ241, SWALES!AQ241, SWEST!AQ241, LPN!AQ241,SPN!AQ241,EPN!AQ241,SPD!AQ241,SPMW!AQ241,SSEH!AQ241,SSES!AQ241) -> 0
E243: Other legacy adjustments' Revenue adjustment from previous controls (Base) | G243: £m 12/13 prices | AJ243: =CHOOSE(m_identity,ENWL!AJ243, NPgN!AJ243, NPgY!AJ243, WMID!AJ243, EMID!AJ243, SWALES!AJ243, SWEST!AJ243, LPN!AJ243,SPN!AJ243,EPN!AJ243,SPD!AJ243,SPMW!AJ243,SSEH!AJ243,SSES!AJ243) -> 14.53603879 | AK243: =CHOOSE(m_identity,ENWL!AK243, NPgN!AK243, NPgY!AK243, WMID!AK243, EMID!AK243, SWALES!AK243, SWEST!AK243, LPN!AK243,SPN!AK243,EPN!AK243,SPD!AK243,SPMW!AK243,SSEH!AK243,SSES!AK243) -> 3.471395202 | AL243: =CHOOSE(m_identity,ENWL!AL243, NPgN!AL243, NPgY!AL243, WMID!AL243, EMID!AL243, SWALES!AL243, SWEST!AL243, LPN!AL243,SPN!AL243,EPN!AL243,SPD!AL243,SPMW!AL243,SSEH!AL243,SSES!AL243) -> 3.634030067 | AM243: =CHOOSE(m_identity,ENWL!AM243, NPgN!AM243, NPgY!AM243, WMID!AM243, EMID!AM243, SWALES!AM243, SWEST!AM243, LPN!AM243,SPN!AM243,EPN!AM243,SPD!AM243,SPMW!AM243,SSEH!AM243,SSES!AM243) -> 3.804284376 | AN243: =CHOOSE(m_identity,ENWL!AN243, NPgN!AN243, NPgY!AN243, WMID!AN243, EMID!AN243, SWALES!AN243, SWEST!AN243, LPN!AN243,SPN!AN243,EPN!AN243,SPD!AN243,SPMW!AN243,SSEH!AN243,SSES!AN243) -> 3.982515099 | AO243: =CHOOSE(m_identity,ENWL!AO243, NPgN!AO243, NPgY!AO243, WMID!AO243, EMID!AO243, SWALES!AO243, SWEST!AO243, LPN!AO243,SPN!AO243,EPN!AO243,SPD!AO243,SPMW!AO243,SSEH!AO243,SSES!AO243) -> 4.169095931 | AP243: =CHOOSE(m_identity,ENWL!AP243, NPgN!AP243, NPgY!AP243, WMID!AP243, EMID!AP243, SWALES!AP243, SWEST!AP243, LPN!AP243,SPN!AP243,EPN!AP243,SPD!AP243,SPMW!AP243,SSEH!AP243,SSES!AP243) -> 4.364418076 | AQ243: =CHOOSE(m_identity,ENWL!AQ243, NPgN!AQ243, NPgY!AQ243, WMID!AQ243, EMID!AQ243, SWALES!AQ243, SWEST!AQ243, LPN!AQ243,SPN!AQ243,EPN!AQ243,SPD!AQ243,SPMW!AQ243,SSEH!AQ243,SSES!AQ243) -> 4.568891063
E244: =E32 -> Other legacy adjustments' price control allowed revenue adjustment | G244: £m 12/13 prices | AJ244: =$AJ$32/8*(1+AJ51)^ROUND((AJ7-$AJ7)/365,1) -> 0 | AK244: 0 | AL244: 0 | AM244: 0 | AN244: 0 | AO244: 0 | AP244: 0 | AQ244: 0
E245: Other legacy adjustments' Revenue from previous controls | G245: £m 12/13 prices | AJ245: =AJ243+AJ244 -> 14.53603879 | AK245: =AK243+AK244 -> 3.471395202 | AL245: 3.634030067 | AM245: 3.804284376 | AN245: 3.982515099 | AO245: 4.169095931 | AP245: 4.364418076 | AQ245: 4.568891063
E247: RAV Rolling Incentive legacy adjustments' price control allowed revenue (Base) | G247: £m 12/13 prices | AJ247: =CHOOSE(m_identity,ENWL!AJ247, NPgN!AJ247, NPgY!AJ247, WMID!AJ247, EMID!AJ247, SWALES!AJ247, SWEST!AJ247, LPN!AJ247,SPN!AJ247,EPN!AJ247,SPD!AJ247,SPMW!AJ247,SSEH!AJ247,SSES!AJ247) -> 1.265031576 | AK247: =CHOOSE(m_identity,ENWL!AK247, NPgN!AK247, NPgY!AK247, WMID!AK247, EMID!AK247, SWALES!AK247, SWEST!AK247, LPN!AK247,SPN!AK247,EPN!AK247,SPD!AK247,SPMW!AK247,SSEH!AK247,SSES!AK247) -> 1.324298306 | AL247: =CHOOSE(m_identity,ENWL!AL247, NPgN!AL247, NPgY!AL247, WMID!AL247, EMID!AL247, SWALES!AL247, SWEST!AL247, LPN!AL247,SPN!AL247,EPN!AL247,SPD!AL247,SPMW!AL247,SSEH!AL247,SSES!AL247) -> 1.386341681 | AM247: =CHOOSE(m_identity,ENWL!AM247, NPgN!AM247, NPgY!AM247, WMID!AM247, EMID!AM247, SWALES!AM247, SWEST!AM247, LPN!AM247,SPN!AM247,EPN!AM247,SPD!AM247,SPMW!AM247,SSEH!AM247,SSES!AM247) -> 1.451291789 | AN247: =CHOOSE(m_identity,ENWL!AN247, NPgN!AN247, NPgY!AN247, WMID!AN247, EMID!AN247, SWALES!AN247, SWEST!AN247, LPN!AN247,SPN!AN247,EPN!AN247,SPD!AN247,SPMW!AN247,SSEH!AN247,SSES!AN247) -> 1.51928481 | AO247: =CHOOSE(m_identity,ENWL!AO247, NPgN!AO247, NPgY!AO247, WMID!AO247, EMID!AO247, SWALES!AO247, SWEST!AO247, LPN!AO247,SPN!AO247,EPN!AO247,SPD!AO247,SPMW!AO247,SSEH!AO247,SSES!AO247) -> 1.590463303 | AP247: =CHOOSE(m_identity,ENWL!AP247, NPgN!AP247, NPgY!AP247, WMID!AP247, EMID!AP247, SWALES!AP247, SWEST!AP247, LPN!AP247,SPN!AP247,EPN!AP247,SPD!AP247,SPMW!AP247,SSEH!AP247,SSES!AP247) -> 1.664976509 | AQ247: =CHOOSE(m_identity,ENWL!AQ247, NPgN!AQ247, NPgY!AQ247, WMID!AQ247, EMID!AQ247, SWALES!AQ247, SWEST!AQ247, LPN!AQ247,SPN!AQ247,EPN!AQ247,SPD!AQ247,SPMW!AQ247,SSEH!AQ247,SSES!AQ247) -> 1.742980658
E248: =E34 -> RAV Rolling Incentive legacy adjustments' price control allowed revenue adjustment | G248: £m 12/13 prices | AJ248: =$AJ$34/8*(1+AJ51)^ROUND((AJ7-$AJ7)/365,1) -> 0 | AK248: 0 | AL248: 0 | AM248: 0 | AN248: 0 | AO248: 0 | AP248: 0 | AQ248: 0
E249: RAV Rolling Incentive legacy adjustments' price control allowed revenue | G249: £m 12/13 prices | AJ249: =AJ247+AJ248 -> 1.265031576 | AK249: =AK247+AK248 -> 1.324298306 | AL249: 1.386341681 | AM249: 1.451291789 | AN249: 1.51928481 | AO249: 1.590463303 | AP249: 1.664976509 | AQ249: 1.742980658
E251: Legacy Losses Incentive | G251: £m 12/13 prices | H251: CODING HAS BEEN REMOVED SO INPUTS DO NOT FEED INTO THIS ROW
E253: ES7 (Miscellaneous) revenue | G253: £m 12/13 prices | AE253: =CHOOSE(m_identity,ENWL!AE253, NPgN!AE253, NPgY!AE253, WMID!AE253, EMID!AE253, SWALES!AE253, SWEST!AE253, LPN!AE253,SPN!AE253,EPN!AE253,SPD!AE253,SPMW!AE253,SSEH!AE253,SSES!AE253) -> 1.265802979 | AF253: =CHOOSE(m_identity,ENWL!AF253, NPgN!AF253, NPgY!AF253, WMID!AF253, EMID!AF253, SWALES!AF253, SWEST!AF253, LPN!AF253,SPN!AF253,EPN!AF253,SPD!AF253,SPMW!AF253,SSEH!AF253,SSES!AF253) -> 1.08892237 | AG253: =CHOOSE(m_identity,ENWL!AG253, NPgN!AG253, NPgY!AG253, WMID!AG253, EMID!AG253, SWALES!AG253, SWEST!AG253, LPN!AG253,SPN!AG253,EPN!AG253,SPD!AG253,SPMW!AG253,SSEH!AG253,SSES!AG253) -> 0.96372165 | AH253: =CHOOSE(m_identity,ENWL!AH253, NPgN!AH253, NPgY!AH253, WMID!AH253, EMID!AH253, SWALES!AH253, SWEST!AH253, LPN!AH253,SPN!AH253,EPN!AH253,SPD!AH253,SPMW!AH253,SSEH!AH253,SSES!AH253) -> 1 | AI253: =CHOOSE(m_identity,ENWL!AI253, NPgN!AI253, NPgY!AI253, WMID!AI253, EMID!AI253, SWALES!AI253, SWEST!AI253, LPN!AI253,SPN!AI253,EPN!AI253,SPD!AI253,SPMW!AI253,SSEH!AI253,SSES!AI253) -> 1 | AJ253: =CHOOSE(m_identity,ENWL!AJ253, NPgN!AJ253, NPgY!AJ253, WMID!AJ253, EMID!AJ253, SWALES!AJ253, SWEST!AJ253, LPN!AJ253,SPN!AJ253,EPN!AJ253,SPD!AJ253,SPMW!AJ253,SSEH!AJ253,SSES!AJ253) -> 0.99 | AK253: =CHOOSE(m_identity,ENWL!AK253, NPgN!AK253, NPgY!AK253, WMID!AK253, EMID!AK253, SWALES!AK253, SWEST!AK253, LPN!AK253,SPN!AK253,EPN!AK253,SPD!AK253,SPMW!AK253,SSEH!AK253,SSES!AK253) -> 0.9799 | AL253: =CHOOSE(m_identity,ENWL!AL253, NPgN!AL253, NPgY!AL253, WMID!AL253, EMID!AL253, SWALES!AL253, SWEST!AL253, LPN!AL253,SPN!AL253,EPN!AL253,SPD!AL253,SPMW!AL253,SSEH!AL253,SSES!AL253) -> 0.969699 | AM253: =CHOOSE(m_identity,ENWL!AM253, NPgN!AM253, NPgY!AM253, WMID!AM253, EMID!AM253, SWALES!AM253, SWEST!AM253, LPN!AM253,SPN!AM253,EPN!AM253,SPD!AM253,SPMW!AM253,SSEH!AM253,SSES!AM253) -> 0.95939599 | AN253: =CHOOSE(m_identity,ENWL!AN253, NPgN!AN253, NPgY!AN253, WMID!AN253, EMID!AN253, SWALES!AN253, SWEST!AN253, LPN!AN253,SPN!AN253,EPN!AN253,SPD!AN253,SPMW!AN253,SSEH!AN253,SSES!AN253) -> 0.9489899499 | AO253: =CHOOSE(m_identity,ENWL!AO253, NPgN!AO253, NPgY!AO253, WMID!AO253, EMID!AO253, SWALES!AO253, SWEST!AO253, LPN!AO253,SPN!AO253,EPN!AO253,SPD!AO253,SPMW!AO253,SSEH!AO253,SSES!AO253) -> 0.9384798494 | AP253: =CHOOSE(m_identity,ENWL!AP253, NPgN!AP253, NPgY!AP253, WMID!AP253, EMID!AP253, SWALES!AP253, SWEST!AP253, LPN!AP253,SPN!AP253,EPN!AP253,SPD!AP253,SPMW!AP253,SSEH!AP253,SSES!AP253) -> 0.9278646479 | AQ253: =CHOOSE(m_identity,ENWL!AQ253, NPgN!AQ253, NPgY!AQ253, WMID!AQ253, EMID!AQ253, SWALES!AQ253, SWEST!AQ253, LPN!AQ253,SPN!AQ253,EPN!AQ253,SPD!AQ253,SPMW!AQ253,SSEH!AQ253,SSES!AQ253) -> 0.9171432944
E254: ES7 (Miscellaneous) assumed costs | G254: £m 12/13 prices | AE254: =CHOOSE(m_identity,ENWL!AE254, NPgN!AE254, NPgY!AE254, WMID!AE254, EMID!AE254, SWALES!AE254, SWEST!AE254, LPN!AE254,SPN!AE254,EPN!AE254,SPD!AE254,SPMW!AE254,SSEH!AE254,SSES!AE254) -> -1.265802979 | AF254: =CHOOSE(m_identity,ENWL!AF254, NPgN!AF254, NPgY!AF254, WMID!AF254, EMID!AF254, SWALES!AF254, SWEST!AF254, LPN!AF254,SPN!AF254,EPN!AF254,SPD!AF254,SPMW!AF254,SSEH!AF254,SSES!AF254) -> -1.08892237 | AG254: =CHOOSE(m_identity,ENWL!AG254, NPgN!AG254, NPgY!AG254, WMID!AG254, EMID!AG254, SWALES!AG254, SWEST!AG254, LPN!AG254,SPN!AG254,EPN!AG254,SPD!AG254,SPMW!AG254,SSEH!AG254,SSES!AG254) -> -0.96372165 | AH254: =CHOOSE(m_identity,ENWL!AH254, NPgN!AH254, NPgY!AH254, WMID!AH254, EMID!AH254, SWALES!AH254, SWEST!AH254, LPN!AH254,SPN!AH254,EPN!AH254,SPD!AH254,SPMW!AH254,SSEH!AH254,SSES!AH254) -> -1 | AI254: =CHOOSE(m_identity,ENWL!AI254, NPgN!AI254, NPgY!AI254, WMID!AI254, EMID!AI254, SWALES!AI254, SWEST!AI254, LPN!AI254,SPN!AI254,EPN!AI254,SPD!AI254,SPMW!AI254,SSEH!AI254,SSES!AI254) -> -1 | AJ254: =CHOOSE(m_identity,ENWL!AJ254, NPgN!AJ254, NPgY!AJ254, WMID!AJ254, EMID!AJ254, SWALES!AJ254, SWEST!AJ254, LPN!AJ254,SPN!AJ254,EPN!AJ254,SPD!AJ254,SPMW!AJ254,SSEH!AJ254,SSES!AJ254) -> -0.99 | AK254: =CHOOSE(m_identity,ENWL!AK254, NPgN!AK254, NPgY!AK254, WMID!AK254, EMID!AK254, SWALES!AK254, SWEST!AK254, LPN!AK254,SPN!AK254,EPN!AK254,SPD!AK254,SPMW!AK254,SSEH!AK254,SSES!AK254) -> -0.9799 | AL254: =CHOOSE(m_identity,ENWL!AL254, NPgN!AL254, NPgY!AL254, WMID!AL254, EMID!AL254, SWALES!AL254, SWEST!AL254, LPN!AL254,SPN!AL254,EPN!AL254,SPD!AL254,SPMW!AL254,SSEH!AL254,SSES!AL254) -> -0.969699 | AM254: =CHOOSE(m_identity,ENWL!AM254, NPgN!AM254, NPgY!AM254, WMID!AM254, EMID!AM254, SWALES!AM254, SWEST!AM254, LPN!AM254,SPN!AM254,EPN!AM254,SPD!AM254,SPMW!AM254,SSEH!AM254,SSES!AM254) -> -0.95939599 | AN254: =CHOOSE(m_identity,ENWL!AN254, NPgN!AN254, NPgY!AN254, WMID!AN254, EMID!AN254, SWALES!AN254, SWEST!AN254, LPN!AN254,SPN!AN254,EPN!AN254,SPD!AN254,SPMW!AN254,SSEH!AN254,SSES!AN254) -> -0.9489899499 | AO254: =CHOOSE(m_identity,ENWL!AO254, NPgN!AO254, NPgY!AO254, WMID!AO254, EMID!AO254, SWALES!AO254, SWEST!AO254, LPN!AO254,SPN!AO254,EPN!AO254,SPD!AO254,SPMW!AO254,SSEH!AO254,SSES!AO254) -> -0.9384798494 | AP254: =CHOOSE(m_identity,ENWL!AP254, NPgN!AP254, NPgY!AP254, WMID!AP254, EMID!AP254, SWALES!AP254, SWEST!AP254, LPN!AP254,SPN!AP254,EPN!AP254,SPD!AP254,SPMW!AP254,SSEH!AP254,SSES!AP254) -> -0.9278646479 | AQ254: =CHOOSE(m_identity,ENWL!AQ254, NPgN!AQ254, NPgY!AQ254, WMID!AQ254, EMID!AQ254, SWALES!AQ254, SWEST!AQ254, LPN!AQ254,SPN!AQ254,EPN!AQ254,SPD!AQ254,SPMW!AQ254,SSEH!AQ254,SSES!AQ254) -> -0.9171432944
... 151 more rows

Sheet Totex
A1: Totex
B2: =UserInterface!G24 -> ENWL | AJ2: Done
E6: Parameter | G6: Units | I6: Constant | AJ6: Annual values
E7: PCFM year ending | I7: =UserInterface!$G$17 -> 2016-03-31 | K7: 1991-03-31 | L7: 1992-03-31 | M7: 1993-03-31 | N7: 1994-03-31 | O7: 1995-03-31 | P7: 1996-03-31 | Q7: 1997-03-31 | R7: 1998-03-31 | S7: 1999-03-31 | T7: 2000-03-31 | U7: 2001-03-31 | V7: 2002-03-31 | W7: 2003-03-31 | X7: 2004-03-31 | Y7: 2005-03-31 | Z7: 2006-03-31 | AA7: 2007-03-31 | AB7: 2008-03-31 | AC7: 2009-03-31 | AD7: 2010-03-31 | AE7: 2011-03-31 | AF7: 2012-03-31 | AG7: 2013-03-31 | AH7: 2014-03-31 | AI7: 2015-03-31 | AJ7: 2016-03-31 | AK7: 2017-03-31 | AL7: 2018-03-31 | AM7: 2019-03-31 | AN7: 2020-03-31 | AO7: 2021-03-31 | AP7: 2022-03-31 | AQ7: 2023-03-31
B9: Totex
C11: Allowed totex aggregated by sub-category
C12: Note: Totex is the sum of a number of cost categories, with all totex allowances falling under one (or more) of them. They have significance in the model as each sub-category can have its own set of tax pool allocation rules.
D14: Non-variant allowances
D15: Note: These values are set at final proposals and are not updated during the price control
E17: Non-variant allowed load related capex | G17: £m 12/13 prices | AJ17: =Input!AJ95 -> 0 | AK17: =Input!AK95 -> 0 | AL17: =Input!AL95 -> 0 | AM17: =Input!AM95 -> 0 | AN17: =Input!AN95 -> 0 | AO17: =Input!AO95 -> 0 | AP17: =Input!AP95 -> 0 | AQ17: =Input!AQ95 -> 0
E18: Non-variant allowed non-load related capex - asset replacement | G18: £m 12/13 prices | AJ18: =Input!AJ96 -> 89.04110204 | AK18: =Input!AK96 -> 78.83948168 | AL18: =Input!AL96 -> 85.834165 | AM18: =Input!AM96 -> 82.00782699 | AN18: =Input!AN96 -> 85.87468425 | AO18: =Input!AO96 -> 86.92106044 | AP18: =Input!AP96 -> 86.36967257 | AQ18: =Input!AQ96 -> 83.94801394
E19: Non-variant allowed non-load related capex - other | G19: £m 12/13 prices | AJ19: =Input!AJ97 -> 12.9949592 | AK19: =Input!AK97 -> 10.40763249 | AL19: =Input!AL97 -> 11.0327098 | AM19: =Input!AM97 -> 13.35621216 | AN19: =Input!AN97 -> 12.96602318 | AO19: =Input!AO97 -> 12.41106172 | AP19: =Input!AP97 -> 17.64775404 | AQ19: =Input!AQ97 -> 17.76591483
E20: Non-variant allowed faults | G20: £m 12/13 prices | AJ20: =Input!AJ98 -> 23.32954518 | AK20: =Input!AK98 -> 23.56042404 | AL20: =Input!AL98 -> 23.47693717 | AM20: =Input!AM98 -> 23.51491919 | AN20: =Input!AN98 -> 23.54357202 | AO20: =Input!AO98 -> 23.75815577 | AP20: =Input!AP98 -> 23.82748381 | AQ20: =Input!AQ98 -> 23.89414501
E21: Non-variant tree cutting | AJ21: =Input!AJ99 -> 3.339354549 | AK21: =Input!AK99 -> 3.36255162 | AL21: =Input!AL99 -> 3.365365438 | AM21: =Input!AM99 -> 3.368519596 | AN21: =Input!AN99 -> 3.371004093 | AO21: =Input!AO99 -> 3.377325578 | AP21: =Input!AP99 -> 3.380046575 | AQ21: =Input!AQ99 -> 3.383449286
E22: Non-variant allowed 100% ‘revenue pool’ expenditure | G22: £m 12/13 prices | AJ22: =Input!AJ100 -> 16.1550384 | AK22: =Input!AK100 -> 16.03899862 | AL22: =Input!AL100 -> 15.76702932 | AM22: =Input!AM100 -> 15.24185171 | AN22: =Input!AN100 -> 15.38665162 | AO22: =Input!AO100 -> 15.09141681 | AP22: =Input!AP100 -> 14.40758262 | AQ22: =Input!AQ100 -> 14.1742158
E23: Non-variant allowed controllable opex | G23: £m 12/13 prices | AJ23: =Input!AJ101 -> 76.68922155 | AK23: =Input!AK101 -> 73.86119988 | AL23: =Input!AL101 -> 73.12137146 | AM23: =Input!AM101 -> 73.69172699 | AN23: =Input!AN101 -> 72.69076413 | AO23: =Input!AO101 -> 74.4048048 | AP23: =Input!AP101 -> 74.22158542 | AQ23: =Input!AQ101 -> 73.00856478
D25: Variant
D26: Note: Licence conditions may allow for non-baseline allowances to be granted. These are added to the baseline to generate the allowed sub-categories and thereby the overall allowed totex.
E28: Variant allowed load related capex | G28: =Input!G213 -> £m 12/13 prices | AJ28: =Input!AJ213 -> 15.23453875 | AK28: =Input!AK213 -> 19.28339997 | AL28: =Input!AL213 -> 13.26227097 | AM28: =Input!AM213 -> 17.35698251 | AN28: =Input!AN213 -> 16.7340232 | AO28: =Input!AO213 -> 18.5085961 | AP28: =Input!AP213 -> 24.93470717 | AQ28: =Input!AQ213 -> 22.28742468
E29: Variant allowed non-load related capex - asset replacement | G29: =Input!G214 -> £m 12/13 prices | AJ29: =Input!AJ214 -> 2.619407623 | AK29: =Input!AK214 -> 0 | AL29: =Input!AL214 -> 0 | AM29: =Input!AM214 -> 0 | AN29: =Input!AN214 -> 0 | AO29: =Input!AO214 -> 0 | AP29: =Input!AP214 -> 0 | AQ29: =Input!AQ214 -> 0
E30: Variant allowed non-load related capex - other | G30: =Input!G215 -> £m 12/13 prices | AJ30: =Input!AJ215 -> 0 | AK30: =Input!AK215 -> 0 | AL30: =Input!AL215 -> 0 | AM30: =Input!AM215 -> 0 | AN30: =Input!AN215 -> 0 | AO30: =Input!AO215 -> 0 | AP30: =Input!AP215 -> 0 | AQ30: =Input!AQ215 -> 0
E31: Variant allowed faults | G31: =Input!G216 -> £m 12/13 prices | AJ31: =Input!AJ216 -> 0 | AK31: =Input!AK216 -> 0 | AL31: =Input!AL216 -> 0 | AM31: =Input!AM216 -> 0 | AN31: =Input!AN216 -> 0 | AO31: =Input!AO216 -> 0 | AP31: =Input!AP216 -> 0 | AQ31: =Input!AQ216 -> 0
E32: Variant allowed tree cutting | AJ32: =Input!AJ217 -> 0 | AK32: =Input!AK217 -> 0 | AL32: =Input!AL217 -> 0 | AM32: =Input!AM217 -> 0 | AN32: =Input!AN217 -> 0 | AO32: =Input!AO217 -> 0 | AP32: =Input!AP217 -> 0 | AQ32: =Input!AQ217 -> 0
E33: Variant allowed 100% ‘revenue pool’ expenditure | G33: =Input!G218 -> £m 12/13 prices | AJ33: =Input!AJ218 -> 0.2013228863 | AK33: =Input!AK218 -> 0.2652980099 | AL33: =Input!AL218 -> 0.1870849771 | AM33: =Input!AM218 -> 0.2201185057 | AN33: =Input!AN218 -> 0.236192018 | AO33: =Input!AO218 -> 0.2067485377 | AP33: =Input!AP218 -> 0.2614261347 | AQ33: =Input!AQ218 -> 0.2375941583
E34: Variant allowed controllable opex | G34: =Input!G219 -> £m 12/13 prices | AJ34: =Input!AJ219 -> 1.792743309 | AK34: =Input!AK219 -> 2.472221198 | AL34: =Input!AL219 -> 2.993117542 | AM34: =Input!AM219 -> 2.727491161 | AN34: =Input!AN219 -> 2.6017271 | AO34: =Input!AO219 -> 0 | AP34: =Input!AP219 -> 0 | AQ34: =Input!AQ219 -> 0
D36: Allowance
D37: Note: "Allowed totex" is exported to be used in the TIM calculation. The allowed totex sub-categories are used below to create forecast actuals for the tax calculation and the TIM calculation when actuals are not yet available.
E39: Allowed load related capex | G39: £m 12/13 prices | AJ39: =AJ17 + AJ28 -> 15.23453875 | AK39: 19.28339997 | AL39: 13.26227097 | AM39: 17.35698251 | AN39: 16.7340232 | AO39: 18.5085961 | AP39: 24.93470717 | AQ39: 22.28742468
E40: Allowed non-load related capex - asset replacement | G40: £m 12/13 prices | AJ40: 91.66050967 | AK40: 78.83948168 | AL40: 85.834165 | AM40: 82.00782699 | AN40: 85.87468425 | AO40: 86.92106044 | AP40: 86.36967257 | AQ40: 83.94801394
E41: Allowed non-load related capex - other | G41: £m 12/13 prices | AJ41: 12.9949592 | AK41: 10.40763249 | AL41: 11.0327098 | AM41: 13.35621216 | AN41: 12.96602318 | AO41: 12.41106172 | AP41: 17.64775404 | AQ41: 17.76591483
E42: Allowed faults | G42: £m 12/13 prices | AJ42: 23.32954518 | AK42: 23.56042404 | AL42: 23.47693717 | AM42: 23.51491919 | AN42: 23.54357202 | AO42: 23.75815577 | AP42: 23.82748381 | AQ42: 23.89414501
E43: Allowed tree cutting | AJ43: 3.339354549 | AK43: 3.36255162 | AL43: 3.365365438 | AM43: 3.368519596 | AN43: 3.371004093 | AO43: 3.377325578 | AP43: 3.380046575 | AQ43: 3.383449286
E44: Allowed 100% ‘revenue pool’ expenditure | G44: £m 12/13 prices | AJ44: 16.35636129 | AK44: 16.30429663 | AL44: 15.9541143 | AM44: 15.46197022 | AN44: 15.62284364 | AO44: 15.29816535 | AP44: 14.66900876 | AQ44: 14.41180996
E45: Allowed controllable opex | G45: £m 12/13 prices | AJ45: 78.48196486 | AK45: 76.33342107 | AL45: 76.114489 | AM45: 76.41921815 | AN45: 75.29249123 | AO45: 74.4048048 | AP45: 74.22158542 | AQ45: 73.00856478
E46: Allowed totex | G46: £m 12/13 prices | AJ46: =SUM(AJ39:AJ45) -> 241.3972335 | AK46: 228.0912075 | AL46: 229.0400517 | AM46: 231.4856488 | AN46: 233.4046416 | AO46: 234.6791698 | AP46: 245.0502583 | AQ46: 238.6993225
C48: Actual totex
D50: Source of actuals
D51: Note: The model assumes that there is a time lag from year t until actual expenditure data becomes available for the model. After the lag, actual expenditure inputs are used. Up to that point the model generates a forecast actual expenditure.
D52: When required in the model, forecasts assume that actuals are equal to their corresponding allowance.
D53: In a year where actual totex is assumed to be available, values must be inputted to the model as it will not generate a forecast and the empty input cell will be read as an actual spend of zero.
E55: Years from t until normal reporting of actual costs | G55: years | I55: =Input!I62 -> 2
E56: Input actuals used | G56: text | AJ56: =YEAR($I$7) >= YEAR(AJ$7) + $I55 -> FALSE | AK56: FALSE | AL56: FALSE | AM56: FALSE | AN56: FALSE | AO56: FALSE | AP56: FALSE | AQ56: FALSE
E57: Forecast actuals generated from allowances | G57: text | AJ57: =YEAR($I$7) < YEAR(AJ$7) + $I55 -> TRUE | AK57: TRUE | AL57: TRUE | AM57: TRUE | AN57: TRUE | AO57: TRUE | AP57: TRUE | AQ57: TRUE
D59: Actual totex from cost reporting processes and final proposals
E61: Actual load related capex | G61: £m 12/13 prices | AJ61: =IF(AJ$56, Input!AJ223, 0) -> 0 | AK61: =IF(AK$56, Input!AK223, 0) -> 0 | AL61: =IF(AL$56, Input!AL223, 0) -> 0 | AM61: =IF(AM$56, Input!AM223, 0) -> 0 | AN61: =IF(AN$56, Input!AN223, 0) -> 0 | AO61: =IF(AO$56, Input!AO223, 0) -> 0 | AP61: =IF(AP$56, Input!AP223, 0) -> 0 | AQ61: =IF(AQ$56, Input!AQ223, 0) -> 0
E62: Actual non-load related capex - asset replacement | G62: £m 12/13 prices | AJ62: =IF(AJ$56, Input!AJ224, 0) -> 0 | AK62: =IF(AK$56, Input!AK224, 0) -> 0 | AL62: =IF(AL$56, Input!AL224, 0) -> 0 | AM62: =IF(AM$56, Input!AM224, 0) -> 0 | AN62: =IF(AN$56, Input!AN224, 0) -> 0 | AO62: =IF(AO$56, Input!AO224, 0) -> 0 | AP62: =IF(AP$56, Input!AP224, 0) -> 0 | AQ62: =IF(AQ$56, Input!AQ224, 0) -> 0
E63: Actual non-load related capex - other | G63: £m 12/13 prices | AJ63: =IF(AJ$56, Input!AJ225, 0) -> 0 | AK63: =IF(AK$56, Input!AK225, 0) -> 0 | AL63: =IF(AL$56, Input!AL225, 0) -> 0 | AM63: =IF(AM$56, Input!AM225, 0) -> 0 | AN63: =IF(AN$56, Input!AN225, 0) -> 0 | AO63: =IF(AO$56, Input!AO225, 0) -> 0 | AP63: =IF(AP$56, Input!AP225, 0) -> 0 | AQ63: =IF(AQ$56, Input!AQ225, 0) -> 0
E64: Actual faults | G64: £m 12/13 prices | AJ64: =IF(AJ$56, Input!AJ226, 0) -> 0 | AK64: =IF(AK$56, Input!AK226, 0) -> 0 | AL64: =IF(AL$56, Input!AL226, 0) -> 0 | AM64: =IF(AM$56, Input!AM226, 0) -> 0 | AN64: =IF(AN$56, Input!AN226, 0) -> 0 | AO64: =IF(AO$56, Input!AO226, 0) -> 0 | AP64: =IF(AP$56, Input!AP226, 0) -> 0 | AQ64: =IF(AQ$56, Input!AQ226, 0) -> 0
E65: Actual tree cutting | AJ65: =IF(AJ$56, Input!AJ227, 0) -> 0 | AK65: =IF(AK$56, Input!AK227, 0) -> 0 | AL65: =IF(AL$56, Input!AL227, 0) -> 0 | AM65: =IF(AM$56, Input!AM227, 0) -> 0 | AN65: =IF(AN$56, Input!AN227, 0) -> 0 | AO65: =IF(AO$56, Input!AO227, 0) -> 0 | AP65: =IF(AP$56, Input!AP227, 0) -> 0 | AQ65: =IF(AQ$56, Input!AQ227, 0) -> 0
E66: Actual 100% ‘revenue pool’ expenditure | G66: £m 12/13 prices | AJ66: =IF(AJ$56, Input!AJ228, 0) -> 0 | AK66: =IF(AK$56, Input!AK228, 0) -> 0 | AL66: =IF(AL$56, Input!AL228, 0) -> 0 | AM66: =IF(AM$56, Input!AM228, 0) -> 0 | AN66: =IF(AN$56, Input!AN228, 0) -> 0 | AO66: =IF(AO$56, Input!AO228, 0) -> 0 | AP66: =IF(AP$56, Input!AP228, 0) -> 0 | AQ66: =IF(AQ$56, Input!AQ228, 0) -> 0
E67: Actual controllable opex | G67: £m 12/13 prices | AJ67: =IF(AJ$56, Input!AJ229, 0) -> 0 | AK67: =IF(AK$56, Input!AK229, 0) -> 0 | AL67: =IF(AL$56, Input!AL229, 0) -> 0 | AM67: =IF(AM$56, Input!AM229, 0) -> 0 | AN67: =IF(AN$56, Input!AN229, 0) -> 0 | AO67: =IF(AO$56, Input!AO229, 0) -> 0 | AP67: =IF(AP$56, Input!AP229, 0) -> 0 | AQ67: =IF(AQ$56, Input!AQ229, 0) -> 0
D70: Forecast totex from new allowances
E72: Forecast actual load related capex | G72: £m 12/13 prices | AJ72: =IF(AJ$57, AJ39, 0) -> 15.23453875 | AK72: 19.28339997 | AL72: 13.26227097 | AM72: 17.35698251 | AN72: 16.7340232 | AO72: 18.5085961 | AP72: 24.93470717 | AQ72: 22.28742468
E73: Forecast actual non-load related capex - asset replacement | G73: £m 12/13 prices | AJ73: 91.66050967 | AK73: 78.83948168 | AL73: 85.834165 | AM73: 82.00782699 | AN73: 85.87468425 | AO73: 86.92106044 | AP73: 86.36967257 | AQ73: 83.94801394
E74: Forecast actual non-load related capex - other | G74: £m 12/13 prices | AJ74: 12.9949592 | AK74: 10.40763249 | AL74: 11.0327098 | AM74: 13.35621216 | AN74: 12.96602318 | AO74: 12.41106172 | AP74: 17.64775404 | AQ74: 17.76591483
E75: Forecast actual faults | G75: £m 12/13 prices | AJ75: 23.32954518 | AK75: 23.56042404 | AL75: 23.47693717 | AM75: 23.51491919 | AN75: 23.54357202 | AO75: 23.75815577 | AP75: 23.82748381 | AQ75: 23.89414501
E76: Forecast actual tree cutting | AJ76: =IF(AJ$57, AJ43, 0) -> 3.339354549 | AK76: =IF(AK$57, AK43, 0) -> 3.36255162 | AL76: 3.365365438 | AM76: 3.368519596 | AN76: 3.371004093 | AO76: 3.377325578 | AP76: 3.380046575 | AQ76: 3.383449286
E77: Forecast actual 100% ‘revenue pool’ expenditure | G77: £m 12/13 prices | AJ77: =IF(AJ$57, AJ44, 0) -> 16.35636129 | AK77: =IF(AK$57, AK44, 0) -> 16.30429663 | AL77: 15.9541143 | AM77: 15.46197022 | AN77: 15.62284364 | AO77: 15.29816535 | AP77: 14.66900876 | AQ77: 14.41180996
E78: Forecast actual controllable opex | G78: £m 12/13 prices | AJ78: =IF(AJ$57, AJ45, 0) -> 78.48196486 | AK78: 76.33342107 | AL78: 76.114489 | AM78: 76.41921815 | AN78: 75.29249123 | AO78: 74.4048048 | AP78: 74.22158542 | AQ78: 73.00856478
D80: Totex applied
D81: Note: Actuals are exported both to identify performance against the allowance and to generate writing down allowances used in the tax calculation.
E83: Actual load related capex | G83: £m 12/13 prices | AJ83: =AJ61 + AJ72 -> 15.23453875 | AK83: 19.28339997 | AL83: 13.26227097 | AM83: 17.35698251 | AN83: 16.7340232 | AO83: 18.5085961 | AP83: 24.93470717 | AQ83: 22.28742468
E84: Actual non-load related capex - asset replacement | G84: £m 12/13 prices | AJ84: 91.66050967 | AK84: 78.83948168 | AL84: 85.834165 | AM84: 82.00782699 | AN84: 85.87468425 | AO84: 86.92106044 | AP84: 86.36967257 | AQ84: 83.94801394
E85: Actual non-load related capex - other | G85: £m 12/13 prices | AJ85: 12.9949592 | AK85: 10.40763249 | AL85: 11.0327098 | AM85: 13.35621216 | AN85: 12.96602318 | AO85: 12.41106172 | AP85: 17.64775404 | AQ85: 17.76591483
E86: Actual faults | G86: £m 12/13 prices | AJ86: 23.32954518 | AK86: 23.56042404 | AL86: 23.47693717 | AM86: 23.51491919 | AN86: 23.54357202 | AO86: 23.75815577 | AP86: 23.82748381 | AQ86: 23.89414501
E87: Actual tree cutting | AJ87: 3.339354549 | AK87: 3.36255162 | AL87: 3.365365438 | AM87: 3.368519596 | AN87: 3.371004093 | AO87: 3.377325578 | AP87: 3.380046575 | AQ87: 3.383449286
E88: Actual 100% ‘revenue pool’ expenditure | G88: £m 12/13 prices | AJ88: 16.35636129 | AK88: 16.30429663 | AL88: 15.9541143 | AM88: 15.46197022 | AN88: 15.62284364 | AO88: 15.29816535 | AP88: 14.66900876 | AQ88: 14.41180996
E89: Actual controllable opex | G89: £m 12/13 prices | AJ89: 78.48196486 | AK89: 76.33342107 | AL89: 76.114489 | AM89: 76.41921815 | AN89: 75.29249123 | AO89: 74.4048048 | AP89: 74.22158542 | AQ89: 73.00856478
E90: Actual totex | G90: £m 12/13 prices | AJ90: =SUM(AJ83:AJ89) -> 241.3972335 | AK90: 228.0912075 | AL90: 229.0400517 | AM90: 231.4856488 | AN90: 233.4046416 | AO90: 234.6791698 | AP90: 245.0502583 | AQ90: 238.6993225
B92: End of sheet
AJ94: =(Totex!AJ90 - Totex!AJ89 - Totex!AJ85) -> 149.9203094

Sheet TIM
A1: Totex Incentive Mechanism (TIM)
B2: =UserInterface!G24 -> ENWL | AJ2: Done
E6: Parameter | G6: Units | I6: Constant | AJ6: Annual values
E7: PCFM year ending | I7: =UserInterface!$G$17 -> 2016-03-31 | K7: 1991-03-31 | L7: 1992-03-31 | M7: 1993-03-31 | N7: 1994-03-31 | O7: 1995-03-31 | P7: 1996-03-31 | Q7: 1997-03-31 | R7: 1998-03-31 | S7: 1999-03-31 | T7: 2000-03-31 | U7: 2001-03-31 | V7: 2002-03-31 | W7: 2003-03-31 | X7: 2004-03-31 | Y7: 2005-03-31 | Z7: 2006-03-31 | AA7: 2007-03-31 | AB7: 2008-03-31 | AC7: 2009-03-31 | AD7: 2010-03-31 | AE7: 2011-03-31 | AF7: 2012-03-31 | AG7: 2013-03-31 | AH7: 2014-03-31 | AI7: 2015-03-31 | AJ7: 2016-03-31 | AK7: 2017-03-31 | AL7: 2018-03-31 | AM7: 2019-03-31 | AN7: 2020-03-31 | AO7: 2021-03-31 | AP7: 2022-03-31 | AQ7: 2023-03-31
B9: Efficiency incentive
C11: Incentive strength
E13: Incentive strength | G13: % | I13: =Input!I68 -> 0.6
C15: Additional income
E17: Ofgem view | G17: % | I17: =Input!I70 -> 0.75
E18: Operator view | G18: % | I18: =Input!I71 -> 0.25
E20: Ofgem view of group price control totex | G20: £m 12/13 prices | I20: =Input!I76 -> 1881.847534
E22: Additional income % | G22: % | I22: =Input!I66 -> 0
E24: Additional income at group level | G24: £m 12/13 prices | I24: =I20*I22 -> 0
E26: Forecast licensee totex | G26: £m 12/13 prices | I26: =Input!I73*Input!$I$70+Input!I74*Input!$I$71 -> 1881.847534
E27: Forecast group totex | G27: £m 12/13 prices | I27: =Input!I76*I17 + Input!I77*I18 -> 1881.847534
E28: Percentage of group totex at licensee level | G28: % | I28: =I26 / I27 -> 1
B30: Efficiency incentive
C32: Post-TIM overspend (underspend)
C33: Note: Totex overspend (underspend) is identified and subject to the "efficiency incentive rate."
D35: Totex
E37: Actual totex | G37: £m 12/13 prices | AJ37: =Totex!AJ90 -> 241.3972335 | AK37: =Totex!AK90 -> 228.0912075 | AL37: =Totex!AL90 -> 229.0400517 | AM37: =Totex!AM90 -> 231.4856488 | AN37: =Totex!AN90 -> 233.4046416 | AO37: =Totex!AO90 -> 234.6791698 | AP37: =Totex!AP90 -> 245.0502583 | AQ37: =Totex!AQ90 -> 238.6993225
E38: Less allowed totex | G38: £m 12/13 prices | AJ38: =-Totex!AJ46 -> -241.3972335 | AK38: =-Totex!AK46 -> -228.0912075 | AL38: =-Totex!AL46 -> -229.0400517 | AM38: =-Totex!AM46 -> -231.4856488 | AN38: =-Totex!AN46 -> -233.4046416 | AO38: =-Totex!AO46 -> -234.6791698 | AP38: =-Totex!AP46 -> -245.0502583 | AQ38: =-Totex!AQ46 -> -238.6993225
E39: Pre-TIM totex overspend (underspend) | G39: £m 12/13 prices | AJ39: =SUM(AJ37:AJ38) -> 0 | AK39: 0 | AL39: 0 | AM39: 0 | AN39: 0 | AO39: 0 | AP39: 0 | AQ39: 0
E41: Funding Adjustment Rate (often referred to as 'sharing factor') | G41: % | AJ41: =(1 - $I$13) -> 0.4 | AK41: =(1 - $I$13) -> 0.4 | AL41: 0.4 | AM41: 0.4 | AN41: 0.4 | AO41: 0.4 | AP41: 0.4 | AQ41: 0.4
E43: Post-TIM totex overspend (underspend) | G43: £m 12/13 prices | AJ43: =AJ$41 * AJ39 -> 0 | AK43: =AK$41 * AK39 -> 0 | AL43: =AL$41 * AL39 -> 0 | AM43: 0 | AN43: 0 | AO43: 0 | AP43: 0 | AQ43: 0
C45: Post-TIM totex
C46: Note: "Post-TIM overspend (underspend)" is added to the allowed totex value to give the Post-TIM totex allowance to be split into fast and slow money.
D48: Totex excluding 'non-load related capex - other'
E50: Allowed totex | G50: £m 12/13 prices | AJ50: =-AJ38 -> 241.3972335 | AK50: =-AK38 -> 228.0912075 | AL50: 229.0400517 | AM50: 231.4856488 | AN50: 233.4046416 | AO50: 234.6791698 | AP50: 245.0502583 | AQ50: 238.6993225
E51: Post-TIM totex overspend (underspend) | G51: £m 12/13 prices | AJ51: =AJ43 -> 0 | AK51: 0 | AL51: 0 | AM51: 0 | AN51: 0 | AO51: 0 | AP51: 0 | AQ51: 0
E52: Post-TIM totex | G52: £m 12/13 prices | AJ52: =SUM(AJ50:AJ51) -> 241.3972335 | AK52: 228.0912075 | AL52: 229.0400517 | AM52: 231.4856488 | AN52: 233.4046416 | AO52: 234.6791698 | AP52: 245.0502583 | AQ52: 238.6993225
B54: Capitalisation
B55: Note: Post-TIM totex are allocated into "fast" and "slow" elements based on a pre-set percentage split:
B56: - "fast money " is exported to the "Revenue" sheet where it is included as an element of "recalculated base revenue;" and
B57: - "slow money " is exported to the "Depn" sheet where it is added to RAV. Slow money is recovered over the life of the RAV through regulatory depreciation and return allowances.
C59: Separate capitalisation
D61: Totex excluding 'non-load related capex - other'
E63: Post-TIM totex | G63: £m 12/13 prices | AJ63: =AJ52 -> 241.3972335 | AK63: 228.0912075 | AL63: 229.0400517 | AM63: 231.4856488 | AN63: 233.4046416 | AO63: 234.6791698 | AP63: 245.0502583 | AQ63: 238.6993225
E64: Capitalised share of totex | G64: % | AJ64: =Input!AJ64 -> 0.72 | AK64: =Input!AK64 -> 0.72 | AL64: =Input!AL64 -> 0.72 | AM64: =Input!AM64 -> 0.72 | AN64: =Input!AN64 -> 0.72 | AO64: =Input!AO64 -> 0.72 | AP64: =Input!AP64 -> 0.72 | AQ64: =Input!AQ64 -> 0.72
E65: Totex fast pot expenditure | G65: £m 12/13 prices | AJ65: =AJ63-AJ66 -> 67.59122538 | AK65: 63.8655381 | AL65: 64.13121447 | AM65: 64.81598167 | AN65: 65.35329965 | AO65: 65.71016753 | AP65: 68.61407234 | AQ65: 66.8358103
E66: Totex slow pot expenditure | G66: £m 12/13 prices | AJ66: =AJ63 * AJ64 -> 173.8060081 | AK66: =AK63 * AK64 -> 164.2256694 | AL66: 164.9088372 | AM66: 166.6696671 | AN66: 168.051342 | AO66: 168.9690022 | AP66: 176.436186 | AQ66: 171.8635122
C68: Totex
E70: Fast pot expenditure | G70: £m 12/13 prices | AJ70: =AJ65 -> 67.59122538 | AK70: =AK65 -> 63.8655381 | AL70: 64.13121447 | AM70: 64.81598167 | AN70: 65.35329965 | AO70: 65.71016753 | AP70: 68.61407234 | AQ70: 66.8358103
E72: Slow pot expenditure | G72: £m 12/13 prices | AJ72: =AJ66 -> 173.8060081 | AK72: =AK66 -> 164.2256694 | AL72: 164.9088372 | AM72: 166.6696671 | AN72: 168.051342 | AO72: 168.9690022 | AP72: 176.436186 | AQ72: 171.8635122
B74: Additional income
B75: Note: The additional income lump sum is recovered across the price control and is matched to the profile of allowed totex set at final proposals.
E77: Additional income | G77: £m 12/13 prices | I77: =I24*I28 -> 0
E79: Original allowed totex (set at final proposals) | G79: £m 12/13 prices | AJ79: =Input!AJ464 -> 241.3972335 | AK79: =Input!AK464 -> 228.0912075 | AL79: =Input!AL464 -> 229.0400517 | AM79: =Input!AM464 -> 231.4856488 | AN79: =Input!AN464 -> 233.4046416 | AO79: =Input!AO464 -> 234.6791698 | AP79: =Input!AP464 -> 245.0502583 | AQ79: =Input!AQ464 -> 238.6993225
E80: Total allowed totex in price control (set at final proposals) | G80: £m 12/13 prices | I80: =SUM($AJ79:$AQ79) -> 1881.847534
E82: Share of additional income allowed in year | G82: % | AJ82: =AJ79 / $I80 -> 0.1282767223 | AK82: 0.1212059975 | AL82: 0.1217102064 | AM82: 0.1230097788 | AN82: 0.1240295175 | AO82: 0.1247067924 | AP82: 0.130217913 | AQ82: 0.1268430722
E84: Additional income | G84: £m 12/13 prices | AJ84: =($I77 * AJ82) -> 0 | AK84: =($I77 * AK82) -> 0 | AL84: 0 | AM84: 0 | AN84: 0 | AO84: 0 | AP84: 0 | AQ84: 0
B86: End of sheet

Sheet DARTs
A1: Direct Allowed Revenue Terms (DARTs)
B2: =UserInterface!G24 -> ENWL | AJ2: Done
E6: Parameter | G6: Units | I6: Constant | AJ6: Annual values
E7: PCFM year ending | I7: =UserInterface!$G$17 -> 2016-03-31 | K7: 1991-03-31 | L7: 1992-03-31 | M7: 1993-03-31 | N7: 1994-03-31 | O7: 1995-03-31 | P7: 1996-03-31 | Q7: 1997-03-31 | R7: 1998-03-31 | S7: 1999-03-31 | T7: 2000-03-31 | U7: 2001-03-31 | V7: 2002-03-31 | W7: 2003-03-31 | X7: 2004-03-31 | Y7: 2005-03-31 | Z7: 2006-03-31 | AA7: 2007-03-31 | AB7: 2008-03-31 | AC7: 2009-03-31 | AD7: 2010-03-31 | AE7: 2011-03-31 | AF7: 2012-03-31 | AG7: 2013-03-31 | AH7: 2014-03-31 | AI7: 2015-03-31 | AJ7: 2016-03-31 | AK7: 2017-03-31 | AL7: 2018-03-31 | AM7: 2019-03-31 | AN7: 2020-03-31 | AO7: 2021-03-31 | AP7: 2022-03-31 | AQ7: 2023-03-31
B9: Direct Allowed Revenue Terms (DARTs)
B10: Note: DARTs are allowances with minimal processing required in the model as they flow directly from input to revenue.
B11: They do however have different indirect impacts on equity issuance and tax. They are grouped here by their treatment type to aid common treatment of DARTs through the rest of the model.
B12: "Post-tax" allowances can be included in the tax calculation but "Pre-tax" allowances cannot.
B13: "Passthrough-style" allowances are treated as an equal revenue and cost. Therefore they have no net cash flow impact. "Revenue" allowances are just set as a revenue amount with any costs relating to them are dealt with elsewhere.
C15: Base Revenue
D17: No impact on net debt, No Tax Allowance given, no tax paid (as underlying assumption is costs equal income)
E19: Established pension deficit repair | G19: £m 12/13 prices | AJ19: =Input!AJ239 -> 11.08181712 | AK19: =Input!AK239 -> 11.08181712 | AL19: =Input!AL239 -> 11.08181712 | AM19: =Input!AM239 -> 11.08181712 | AN19: =Input!AN239 -> 11.08181712 | AO19: =Input!AO239 -> 11.08181712 | AP19: =Input!AP239 -> 11.08181712 | AQ19: =Input!AQ239 -> 11.08181712
E20: Base Revenue DARTs with no impact on net debt or tax | G20: £m 12/13 prices | AJ20: =SUM(AJ19:AJ19) -> 11.08181712 | AK20: 11.08181712 | AL20: 11.08181712 | AM20: 11.08181712 | AN20: 11.08181712 | AO20: 11.08181712 | AP20: 11.08181712 | AQ20: 11.08181712
D22: Impact net debt, Tax Allowance given (and so tax paid on income)
E24: Pension true-up from previous price controls | G24: £m 12/13 prices | AJ24: =Input!AJ241 -> 0 | AK24: =Input!AK241 -> 0 | AL24: =Input!AL241 -> 0 | AM24: =Input!AM241 -> 0 | AN24: =Input!AN241 -> 0 | AO24: =Input!AO241 -> 0 | AP24: =Input!AP241 -> 0 | AQ24: =Input!AQ241 -> 0
E25: Base Revenue DARTs impacting both net debt and tax | G25: £m 12/13 prices | AJ25: =SUM(AJ24:AJ24) -> 0 | AK25: 0 | AL25: 0 | AM25: 0 | AN25: 0 | AO25: 0 | AP25: 0 | AQ25: 0
D27: Impact net debt, No Tax Allowance given, Tax Paid on net income
E29: Revenue from previous controls | G29: £m 12/13 prices | AJ29: =Input!AJ245+Input!AJ249 -> 15.80107036 | AK29: =Input!AK245+Input!AK249 -> 4.795693508 | AL29: =Input!AL245+Input!AL249 -> 5.020371749 | AM29: =Input!AM245+Input!AM249 -> 5.255576165 | AN29: =Input!AN245+Input!AN249 -> 5.501799908 | AO29: =Input!AO245+Input!AO249 -> 5.759559234 | AP29: =Input!AP245+Input!AP249 -> 6.029394584 | AQ29: =Input!AQ245+Input!AQ249 -> 6.311871721
E30: Base Revenue DARTs impacting net debt but not tax | G30: £m 12/13 prices | AJ30: =SUM(AJ29:AJ29) -> 15.80107036 | AK30: =SUM(AK29:AK29) -> 4.795693508 | AL30: 5.020371749 | AM30: 5.255576165 | AN30: 5.501799908 | AO30: 5.759559234 | AP30: 6.029394584 | AQ30: 6.311871721
D32: Impact net debt, Tax Allowance given (and so tax paid on income)
E34: Initial Profile Adjustment | G34: £m 12/13 prices | AJ34: =Input!AJ446 -> 0 | AK34: =Input!AK446 -> 0 | AL34: =Input!AL446 -> 0 | AM34: =Input!AM446 -> 0 | AN34: =Input!AN446 -> 0 | AO34: =Input!AO446 -> 0 | AP34: =Input!AP446 -> 0 | AQ34: =Input!AQ446 -> 0
E35: Time Value of Money Profile Adjustment | G35: £m 12/13 prices | AJ35: =Input!AJ447 -> 0 | AK35: =Input!AK447 -> 0 | AL35: =Input!AL447 -> 0 | AM35: =Input!AM447 -> 0 | AN35: =Input!AN447 -> 0 | AO35: =Input!AO447 -> 0 | AP35: =Input!AP447 -> 0 | AQ35: =Input!AQ447 -> 0
E36: Time Value of Money Profile Increment | G36: £m 12/13 prices | AJ36: =Input!AJ448 -> 0 | AK36: =Input!AK448 -> 0 | AL36: =Input!AL448 -> 0 | AM36: =Input!AM448 -> 0 | AN36: =Input!AN448 -> 0 | AO36: =Input!AO448 -> 0 | AP36: =Input!AP448 -> 0 | AQ36: =Input!AQ448 -> 0
E37: Base Revenue DARTs impacting both net debt and tax | G37: £m 12/13 prices | AJ37: =SUM(AJ34:AJ36) -> 0 | AK37: =SUM(AK34:AK36) -> 0 | AL37: 0 | AM37: 0 | AN37: 0 | AO37: 0 | AP37: 0 | AQ37: 0
C39: ES7 (Miscellaneous)
D41: No impact on debt, No Tax Allowance given, Tax Paid on net income
E43: =Input!E253 -> ES7 (Miscellaneous) revenue | G43: £m 12/13 prices | AJ43: =Input!AJ253 -> 0.99 | AK43: =Input!AK253 -> 0.9799 | AL43: =Input!AL253 -> 0.969699 | AM43: =Input!AM253 -> 0.95939599 | AN43: =Input!AN253 -> 0.9489899499 | AO43: =Input!AO253 -> 0.9384798494 | AP43: =Input!AP253 -> 0.9278646479 | AQ43: =Input!AQ253 -> 0.9171432944
E44: =Input!E254 -> ES7 (Miscellaneous) assumed costs | G44: £m 12/13 prices | AJ44: =Input!AJ254 -> -0.99 | AK44: =Input!AK254 -> -0.9799 | AL44: =Input!AL254 -> -0.969699 | AM44: =Input!AM254 -> -0.95939599 | AN44: =Input!AN254 -> -0.9489899499 | AO44: =Input!AO254 -> -0.9384798494 | AP44: =Input!AP254 -> -0.9278646479 | AQ44: =Input!AQ254 -> -0.9171432944
E45: =Input!E255 -> ES7 (Miscellaneous) net position | G45: £m 12/13 prices | AJ45: =Input!AJ255 -> 0 | AK45: =Input!AK255 -> 0 | AL45: =Input!AL255 -> 0 | AM45: =Input!AM255 -> 0 | AN45: =Input!AN255 -> 0 | AO45: =Input!AO255 -> 0 | AP45: =Input!AP255 -> 0 | AQ45: =Input!AQ255 -> 0
C47: =Input!E257 -> Directly Remunerated Services
D49: Impact net debt, No Tax Allowance given, Tax Paid on net income
E51: =Input!E311 -> Overall net income of Directly Remunerated Services | G51: £m 12/13 prices | AJ51: =Input!AJ311 -> 8.769501635 | AK51: =Input!AK311 -> 8.078919882 | AL51: =Input!AL311 -> 7.734165659 | AM51: =Input!AM311 -> 7.135896068 | AN51: =Input!AN311 -> 6.25491372 | AO51: =Input!AO311 -> 5.901586545 | AP51: =Input!AP311 -> 5.904006791 | AQ51: =Input!AQ311 -> 5.842657034
C53: Legacy losses incentive
D55: Impact net debt, No Tax Allowance given, Tax Paid on net income
E57: Legacy losses incentive | G57: £m 12/13 prices | AJ57: =Input!AJ251 -> 0 | AK57: =Input!AK251 -> 0 | AL57: =Input!AL251 -> 0 | AM57: =Input!AM251 -> 0 | AN57: =Input!AN251 -> 0 | AO57: =Input!AO251 -> 0 | AP57: =Input!AP251 -> 0 | AQ57: =Input!AQ251 -> 0
C59: DART groups
C60: MG TO UPDATE NOTES for this section
E65: Base revenue DARTs | G65: £m 12/13 prices | AJ65: =AJ20 + AJ25 + AJ30 +AJ37 + AJ44 -> 25.89288748 | AK65: =AK20 + AK25 + AK30 +AK37 + AK44 -> 14.89761063 | AL65: 15.13248987 | AM65: 15.3779973 | AN65: 15.63462708 | AO65: 15.9028965 | AP65: 16.18334706 | AQ65: =AQ20 + AQ25 + AQ30 +AQ37 + AQ44 -> 16.47654555
E67: Non Base Revenue DARTs | G67: £m 12/13 prices | AJ67: =AJ43+AJ51+AJ57 -> 9.759501635 | AK67: =AK43+AK51+AK57 -> 9.058819882 | AL67: 8.703864659 | AM67: 8.095292058 | AN67: 7.20390367 | AO67: 6.840066395 | AP67: 6.831871439 | AQ67: 6.759800328
E69: Net impact of DARTs on core net debt | G69: £m 12/13 prices | AJ69: =-AJ20-AJ44+AJ45+AJ51+AJ57 -> -1.322315485 | AK69: =-AK20-AK44+AK45+AK51+AK57 -> -2.022997238 | AL69: =-AL20-AL44+AL45+AL51+AL57 -> -2.377952461 | AM69: -2.986525061 | AN69: -3.87791345 | AO69: -4.241750725 | AP69: -4.24994568 | AQ69: -4.322016792
E71: Net DART impact on core tax calculation | G71: £m 12/13 prices | AJ71: =- AJ20 - AJ30 - AJ44 -> -25.89288748 | AK71: =- AK20 - AK30 - AK44 -> -14.89761063 | AL71: =- AL20 - AL30 - AL44 -> -15.13248987 | AM71: -15.3779973 | AN71: -15.63462708 | AO71: -15.9028965 | AP71: -16.18334706 | AQ71: -16.47654555
B73: End of sheet

Sheet Depn
A1: Regulatory Depreciation
B2: =UserInterface!G24 -> ENWL | AJ2: Done
E6: Parameter | G6: Units | I6: Constant | AJ6: Annual values
E7: PCFM year ending | I7: =UserInterface!$G$17 -> 2016-03-31 | K7: 1991-03-31 | L7: 1992-03-31 | M7: 1993-03-31 | N7: 1994-03-31 | O7: 1995-03-31 | P7: 1996-03-31 | Q7: 1997-03-31 | R7: 1998-03-31 | S7: 1999-03-31 | T7: 2000-03-31 | U7: 2001-03-31 | V7: 2002-03-31 | W7: 2003-03-31 | X7: 2004-03-31 | Y7: 2005-03-31 | Z7: 2006-03-31 | AA7: 2007-03-31 | AB7: 2008-03-31 | AC7: 2009-03-31 | AD7: 2010-03-31 | AE7: 2011-03-31 | AF7: 2012-03-31 | AG7: 2013-03-31 | AH7: 2014-03-31 | AI7: 2015-03-31 | AJ7: 2016-03-31 | AK7: 2017-03-31 | AL7: 2018-03-31 | AM7: 2019-03-31 | AN7: 2020-03-31 | AO7: 2021-03-31 | AP7: 2022-03-31 | AQ7: 2023-03-31
B9: Regulatory depreciation
C11: Net RAV additions (after disposals)
C12: Note: Additions to RAV are combined before feeding into the depreciation calculations. Disposals are treated as negative additions. Pre-RIIO values are used to build up the post-vesting RAV from vesting.
C13: Logged-up and security costs are retrospectively added to RAV to provide the updated opening RAV and align depreciation with expenditure.
E15: Slow money | G15: £m 12/13 prices | AJ15: =TIM!AJ72 -> 173.8060081 | AK15: =TIM!AK72 -> 164.2256694 | AL15: =TIM!AL72 -> 164.9088372 | AM15: =TIM!AM72 -> 166.6696671 | AN15: =TIM!AN72 -> 168.051342 | AO15: =TIM!AO72 -> 168.9690022 | AP15: =TIM!AP72 -> 176.436186 | AQ15: =TIM!AQ72 -> 171.8635122
E16: Net adjustments | G16: £m 12/13 prices | AJ16: =SUM(Input!AJ332:AJ333) -> -0.8 | AK16: =SUM(Input!AK332:AK333) -> -0.8 | AL16: =SUM(Input!AL332:AL333) -> -0.8 | AM16: =SUM(Input!AM332:AM333) -> -0.8 | AN16: =SUM(Input!AN332:AN333) -> -0.8 | AO16: =SUM(Input!AO332:AO333) -> -0.8 | AP16: =SUM(Input!AP332:AP333) -> -0.8 | AQ16: =SUM(Input!AQ332:AQ333) -> -0.8
E17: Pre-RIIO net RAV additions (after disposals) | G17: £m 12/13 prices | J17: > | K17: =SUM(Input!K329:K331) -> 23.72668311 | L17: =SUM(Input!L329:L331) -> 58.0841528 | M17: =SUM(Input!M329:M331) -> 120.1741093 | N17: =SUM(Input!N329:N331) -> 108.3107677 | O17: =SUM(Input!O329:O331) -> 107.3863515 | P17: =SUM(Input!P329:P331) -> 110.0055308 | Q17: =SUM(Input!Q329:Q331) -> 114.9357506 | R17: =SUM(Input!R329:R331) -> 140.0490581 | S17: =SUM(Input!S329:S331) -> 149.9610742 | T17: =SUM(Input!T329:T331) -> 137.8318696 | U17: =SUM(Input!U329:U331) -> 119.6834225 | V17: =SUM(Input!V329:V331) -> 109.4793098 | W17: =SUM(Input!W329:W331) -> 126.526943 | X17: =SUM(Input!X329:X331) -> 149.3727634 | Y17: =SUM(Input!Y329:Y331) -> 144.1600664 | Z17: =SUM(Input!Z329:Z331) -> 169.1491899 | AA17: =SUM(Input!AA329:AA331) -> 106.509642 | AB17: =SUM(Input!AB329:AB331) -> 131.2570562 | AC17: =SUM(Input!AC329:AC331) -> 144.2190812 | AD17: =SUM(Input!AD329:AD331) -> 131.7590759 | AE17: =SUM(Input!AE329:AE331) -> 131.7308659 | AF17: =SUM(Input!AF329:AF331) -> 161.7338202 | AG17: =SUM(Input!AG329:AG331) -> 170.7776358 | AH17: =SUM(Input!AH329:AH331) -> 174.9238651 | AI17: =SUM(Input!AI329:AI331) -> 194.3217009
E18: Net RAV additions (after disposals) | G18: £m 12/13 prices | J18: > | K18: =SUM(K15:K17) -> 23.72668311 | L18: =SUM(L15:L17) -> 58.0841528 | M18: 120.1741093 | N18: 108.3107677 | O18: 107.3863515 | P18: 110.0055308 | Q18: 114.9357506 | R18: 140.0490581 | S18: 149.9610742 | T18: 137.8318696 | U18: 119.6834225 | V18: 109.4793098 | W18: 126.526943 | X18: 149.3727634 | Y18: 144.1600664 | Z18: 169.1491899 | AA18: 106.509642 | AB18: 131.2570562 | AC18: 144.2190812 | AD18: 131.7590759 | AE18: 131.7308659 | AF18: 161.7338202 | AG18: 170.7776358 | AH18: 174.9238651 | AI18: 194.3217009 | AJ18: 173.0060081 | AK18: 163.4256694 | AL18: 164.1088372 | AM18: 165.8696671 | AN18: 167.251342 | AO18: 168.1690022 | AP18: 175.636186 | AQ18: 171.0635122
C20: Net depreciation additions (after disposals)
C21: Note:
E23: Pre-RIIO transfers to depreciation | G23: £m 12/13 prices | J23: > | K23: =Input!K334 -> 0 | L23: =Input!L334 -> 0 | M23: =Input!M334 -> 0 | N23: =Input!N334 -> 0 | O23: =Input!O334 -> 0 | P23: =Input!P334 -> 0 | Q23: =Input!Q334 -> 0 | R23: =Input!R334 -> 0 | S23: =Input!S334 -> 0 | T23: =Input!T334 -> 0 | U23: =Input!U334 -> 0 | V23: =Input!V334 -> 0 | W23: =Input!W334 -> 0 | X23: =Input!X334 -> 0 | Y23: =Input!Y334 -> 0 | Z23: =Input!Z334 -> 0 | AA23: =Input!AA334 -> 0 | AB23: =Input!AB334 -> 0 | AC23: =Input!AC334 -> 0 | AD23: =Input!AD334 -> 0 | AE23: =Input!AE334 -> 0 | AF23: =Input!AF334 -> 0 | AG23: =Input!AG334 -> 0 | AH23: =Input!AH334 -> 0 | AI23: =Input!AI334 -> 0
C25: Pre-vesting depreciation
C26: Note: The following depreciation factor is used to depreciate the pre-vesting balance on the "Return&RAV" sheet.
E28: Vesting year | G28: year ending | I28: =Input!I328 -> 1991-03-31
E29: Pre-vesting asset life | G29: years | I29: =Input!I317 -> 11
E30: Pre vesting asset depn in first year (mths) | G30: months | I30: =Input!I318 -> 3.5
C32: Accelerated post-vesting depreciation
C33: Note: Accelerated depreciation calculations provide the allowed depreciation after full depreciation of pre-vesting assets, but are also used to establish the "RAV differential" generated before that point.
D35: Depreciation parameters
E37: Post-vesting asset life | G37: years | J37: > | K37: =Input!K326 -> 20 | L37: =Input!L326 -> 20 | M37: =Input!M326 -> 20 | N37: =Input!N326 -> 20 | O37: =Input!O326 -> 20 | P37: =Input!P326 -> 20 | Q37: =Input!Q326 -> 20 | R37: =Input!R326 -> 20 | S37: =Input!S326 -> 20 | T37: =Input!T326 -> 20 | U37: =Input!U326 -> 20 | V37: =Input!V326 -> 20 | W37: =Input!W326 -> 20 | X37: =Input!X326 -> 20 | Y37: =Input!Y326 -> 20 | Z37: =Input!Z326 -> 20 | AA37: =Input!AA326 -> 20 | AB37: =Input!AB326 -> 20 | AC37: =Input!AC326 -> 20 | AD37: =Input!AD326 -> 20 | AE37: =Input!AE326 -> 20 | AF37: =Input!AF326 -> 20 | AG37: =Input!AG326 -> 20 | AH37: =Input!AH326 -> 20 | AI37: =Input!AI326 -> 20 | AJ37: =Input!AJ326 -> 23.125 | AK37: =Input!AK326 -> 26.25 | AL37: =Input!AL326 -> 29.375 | AM37: =Input!AM326 -> 32.5 | AN37: =Input!AN326 -> 35.625 | AO37: =Input!AO326 -> 38.75 | AP37: =Input!AP326 -> 41.875 | AQ37: =Input!AQ326 -> 45
E38: Accelerated post-vesting depreciation applied | G38: text | J38: > | L38: =YEAR(L$7) >= YEAR($I$28) + IF($I$30=12,$I$29,$I$29+1) -> FALSE | M38: FALSE | N38: FALSE | O38: FALSE | P38: FALSE | Q38: FALSE | R38: FALSE | S38: FALSE | T38: FALSE | U38: FALSE | V38: FALSE | W38: TRUE | X38: TRUE | Y38: =YEAR(Y$7) >= YEAR($I$28) + IF($I$30=12,$I$29,$I$29+1) -> TRUE | Z38: =YEAR(Z$7) >= YEAR($I$28) + IF($I$30=12,$I$29,$I$29+1) -> TRUE | AA38: =YEAR(AA$7) >= YEAR($I$28) + IF($I$30=12,$I$29,$I$29+1) -> TRUE | AB38: =YEAR(AB$7) >= YEAR($I$28) + IF($I$30=12,$I$29,$I$29+1) -> TRUE | AC38: TRUE | AD38: TRUE | AE38: TRUE | AF38: TRUE | AG38: TRUE | AH38: TRUE | AI38: TRUE | AJ38: TRUE | AK38: TRUE | AL38: TRUE | AM38: TRUE | AN38: TRUE | AO38: TRUE | AP38: TRUE | AQ38: TRUE
D40: Depreciation schedule
E42: Accelerated depreciation of additions from year ending | I42: Net additions
E43: 1991-03-31 | G43: £m 12/13 prices | I43: =I88 -> 23.72668311 | J43: > | L43: =$I43/$K$37 -> 1.186334155 | M43: =IF($I43 >0, MIN(L43,$I43-SUM($L43:L43)), MAX(L43,$I43-SUM($L43:L43))) -> 1.186334155 | N43: =IF($I43 >0, MIN(M43,$I43-SUM($L43:M43)), MAX(M43,$I43-SUM($L43:M43))) -> 1.186334155 | O43: =IF($I43 >0, MIN(N43,$I43-SUM($L43:N43)), MAX(N43,$I43-SUM($L43:N43))) -> 1.186334155 | P43: =IF($I43 >0, MIN(O43,$I43-SUM($L43:O43)), MAX(O43,$I43-SUM($L43:O43))) -> 1.186334155 | Q43: =IF($I43 >0, MIN(P43,$I43-SUM($L43:P43)), MAX(P43,$I43-SUM($L43:P43))) -> 1.186334155 | R43: =IF($I43 >0, MIN(Q43,$I43-SUM($L43:Q43)), MAX(Q43,$I43-SUM($L43:Q43))) -> 1.186334155 | S43: =IF($I43 >0, MIN(R43,$I43-SUM($L43:R43)), MAX(R43,$I43-SUM($L43:R43))) -> 1.186334155 | T43: =IF($I43 >0, MIN(S43,$I43-SUM($L43:S43)), MAX(S43,$I43-SUM($L43:S43))) -> 1.186334155 | U43: =IF($I43 >0, MIN(T43,$I43-SUM($L43:T43)), MAX(T43,$I43-SUM($L43:T43))) -> 1.186334155 | V43: =IF($I43 >0, MIN(U43,$I43-SUM($L43:U43)), MAX(U43,$I43-SUM($L43:U43))) -> 1.186334155 | W43: =IF($I43 >0, MIN(V43,$I43-SUM($L43:V43)), MAX(V43,$I43-SUM($L43:V43))) -> 1.186334155 | X43: =IF($I43 >0, MIN(W43,$I43-SUM($L43:W43)), MAX(W43,$I43-SUM($L43:W43))) -> 1.186334155 | Y43: =IF($I43 >0, MIN(X43,$I43-SUM($L43:X43)), MAX(X43,$I43-SUM($L43:X43))) -> 1.186334155 | Z43: =IF($I43 >0, MIN(Y43,$I43-SUM($L43:Y43)), MAX(Y43,$I43-SUM($L43:Y43))) -> 1.186334155 | AA43: =IF($I43 >0, MIN(Z43,$I43-SUM($L43:Z43)), MAX(Z43,$I43-SUM($L43:Z43))) -> 1.186334155 | AB43: =IF($I43 >0, MIN(AA43,$I43-SUM($L43:AA43)), MAX(AA43,$I43-SUM($L43:AA43))) -> 1.186334155 | AC43: =IF($I43 >0, MIN(AB43,$I43-SUM($L43:AB43)), MAX(AB43,$I43-SUM($L43:AB43))) -> 1.186334155 | AD43: =IF($I43 >0, MIN(AC43,$I43-SUM($L43:AC43)), MAX(AC43,$I43-SUM($L43:AC43))) -> 1.186334155 | AE43: =IF($I43 >0, MIN(AD43,$I43-SUM($L43:AD43)), MAX(AD43,$I43-SUM($L43:AD43))) -> 1.186334155 | AF43: =IF($I43 >0, MIN(AE43,$I43-SUM($L43:AE43)), MAX(AE43,$I43-SUM($L43:AE43))) -> 3.552713679e-15 | AG43: =IF($I43 >0, MIN(AF43,$I43-SUM($L43:AF43)), MAX(AF43,$I43-SUM($L43:AF43))) -> 0 | AH43: =IF($I43 >0, MIN(AG43,$I43-SUM($L43:AG43)), MAX(AG43,$I43-SUM($L43:AG43))) -> 0 | AI43: =IF($I43 >0, MIN(AH43,$I43-SUM($L43:AH43)), MAX(AH43,$I43-SUM($L43:AH43))) -> 0 | AJ43: =IF($I43 >0, MIN(AI43,$I43-SUM($L43:AI43)), MAX(AI43,$I43-SUM($L43:AI43))) -> 0 | AK43: =IF($I43 >0, MIN(AJ43,$I43-SUM($L43:AJ43)), MAX(AJ43,$I43-SUM($L43:AJ43))) -> 0 | AL43: =IF($I43 >0, MIN(AK43,$I43-SUM($L43:AK43)), MAX(AK43,$I43-SUM($L43:AK43))) -> 0 | AM43: =IF($I43 >0, MIN(AL43,$I43-SUM($L43:AL43)), MAX(AL43,$I43-SUM($L43:AL43))) -> 0 | AN43: =IF($I43 >0, MIN(AM43,$I43-SUM($L43:AM43)), MAX(AM43,$I43-SUM($L43:AM43))) -> 0 | AO43: =IF($I43 >0, MIN(AN43,$I43-SUM($L43:AN43)), MAX(AN43,$I43-SUM($L43:AN43))) -> 0 | AP43: =IF($I43 >0, MIN(AO43,$I43-SUM($L43:AO43)), MAX(AO43,$I43-SUM($L43:AO43))) -> 0 | AQ43: =IF($I43 >0, MIN(AP43,$I43-SUM($L43:AP43)), MAX(AP43,$I43-SUM($L43:AP43))) -> 0
E44: 1992-03-31 | G44: £m 12/13 prices | I44: =I89 -> 58.0841528 | J44: > | M44: =$I44/L$37 -> 2.90420764 | N44: =IF($I44 >0, MIN(M44,$I44-SUM($L44:M44)), MAX(M44,$I44-SUM($L44:M44))) -> 2.90420764 | O44: =IF($I44 >0, MIN(N44,$I44-SUM($L44:N44)), MAX(N44,$I44-SUM($L44:N44))) -> 2.90420764 | P44: =IF($I44 >0, MIN(O44,$I44-SUM($L44:O44)), MAX(O44,$I44-SUM($L44:O44))) -> 2.90420764 | Q44: =IF($I44 >0, MIN(P44,$I44-SUM($L44:P44)), MAX(P44,$I44-SUM($L44:P44))) -> 2.90420764 | R44: =IF($I44 >0, MIN(Q44,$I44-SUM($L44:Q44)), MAX(Q44,$I44-SUM($L44:Q44))) -> 2.90420764 | S44: =IF($I44 >0, MIN(R44,$I44-SUM($L44:R44)), MAX(R44,$I44-SUM($L44:R44))) -> 2.90420764 | T44: =IF($I44 >0, MIN(S44,$I44-SUM($L44:S44)), MAX(S44,$I44-SUM($L44:S44))) -> 2.90420764 | U44: =IF($I44 >0, MIN(T44,$I44-SUM($L44:T44)), MAX(T44,$I44-SUM($L44:T44))) -> 2.90420764 | V44: =IF($I44 >0, MIN(U44,$I44-SUM($L44:U44)), MAX(U44,$I44-SUM($L44:U44))) -> 2.90420764 | W44: =IF($I44 >0, MIN(V44,$I44-SUM($L44:V44)), MAX(V44,$I44-SUM($L44:V44))) -> 2.90420764 | X44: =IF($I44 >0, MIN(W44,$I44-SUM($L44:W44)), MAX(W44,$I44-SUM($L44:W44))) -> 2.90420764 | Y44: =IF($I44 >0, MIN(X44,$I44-SUM($L44:X44)), MAX(X44,$I44-SUM($L44:X44))) -> 2.90420764 | Z44: =IF($I44 >0, MIN(Y44,$I44-SUM($L44:Y44)), MAX(Y44,$I44-SUM($L44:Y44))) -> 2.90420764 | AA44: =IF($I44 >0, MIN(Z44,$I44-SUM($L44:Z44)), MAX(Z44,$I44-SUM($L44:Z44))) -> 2.90420764 | AB44: =IF($I44 >0, MIN(AA44,$I44-SUM($L44:AA44)), MAX(AA44,$I44-SUM($L44:AA44))) -> 2.90420764 | AC44: =IF($I44 >0, MIN(AB44,$I44-SUM($L44:AB44)), MAX(AB44,$I44-SUM($L44:AB44))) -> 2.90420764 | AD44: =IF($I44 >0, MIN(AC44,$I44-SUM($L44:AC44)), MAX(AC44,$I44-SUM($L44:AC44))) -> 2.90420764 | AE44: =IF($I44 >0, MIN(AD44,$I44-SUM($L44:AD44)), MAX(AD44,$I44-SUM($L44:AD44))) -> 2.90420764 | AF44: =IF($I44 >0, MIN(AE44,$I44-SUM($L44:AE44)), MAX(AE44,$I44-SUM($L44:AE44))) -> 2.90420764 | AG44: =IF($I44 >0, MIN(AF44,$I44-SUM($L44:AF44)), MAX(AF44,$I44-SUM($L44:AF44))) -> 2.131628207e-14 | AH44: =IF($I44 >0, MIN(AG44,$I44-SUM($L44:AG44)), MAX(AG44,$I44-SUM($L44:AG44))) -> 0 | AI44: =IF($I44 >0, MIN(AH44,$I44-SUM($L44:AH44)), MAX(AH44,$I44-SUM($L44:AH44))) -> 0 | AJ44: =IF($I44 >0, MIN(AI44,$I44-SUM($L44:AI44)), MAX(AI44,$I44-SUM($L44:AI44))) -> 0 | AK44: =IF($I44 >0, MIN(AJ44,$I44-SUM($L44:AJ44)), MAX(AJ44,$I44-SUM($L44:AJ44))) -> 0 | AL44: =IF($I44 >0, MIN(AK44,$I44-SUM($L44:AK44)), MAX(AK44,$I44-SUM($L44:AK44))) -> 0 | AM44: =IF($I44 >0, MIN(AL44,$I44-SUM($L44:AL44)), MAX(AL44,$I44-SUM($L44:AL44))) -> 0 | AN44: =IF($I44 >0, MIN(AM44,$I44-SUM($L44:AM44)), MAX(AM44,$I44-SUM($L44:AM44))) -> 0 | AO44: =IF($I44 >0, MIN(AN44,$I44-SUM($L44:AN44)), MAX(AN44,$I44-SUM($L44:AN44))) -> 0 | AP44: =IF($I44 >0, MIN(AO44,$I44-SUM($L44:AO44)), MAX(AO44,$I44-SUM($L44:AO44))) -> 0 | AQ44: =IF($I44 >0, MIN(AP44,$I44-SUM($L44:AP44)), MAX(AP44,$I44-SUM($L44:AP44))) -> 0
E45: 1993-03-31 | G45: £m 12/13 prices | I45: 120.1741093 | J45: > | N45: =$I45/M$37 -> 6.008705463 | O45: =IF($I45 >0, MIN(N45,$I45-SUM($L45:N45)), MAX(N45,$I45-SUM($L45:N45))) -> 6.008705463 | P45: =IF($I45 >0, MIN(O45,$I45-SUM($L45:O45)), MAX(O45,$I45-SUM($L45:O45))) -> 6.008705463 | Q45: =IF($I45 >0, MIN(P45,$I45-SUM($L45:P45)), MAX(P45,$I45-SUM($L45:P45))) -> 6.008705463 | R45: =IF($I45 >0, MIN(Q45,$I45-SUM($L45:Q45)), MAX(Q45,$I45-SUM($L45:Q45))) -> 6.008705463 | S45: =IF($I45 >0, MIN(R45,$I45-SUM($L45:R45)), MAX(R45,$I45-SUM($L45:R45))) -> 6.008705463 | T45: =IF($I45 >0, MIN(S45,$I45-SUM($L45:S45)), MAX(S45,$I45-SUM($L45:S45))) -> 6.008705463 | U45: =IF($I45 >0, MIN(T45,$I45-SUM($L45:T45)), MAX(T45,$I45-SUM($L45:T45))) -> 6.008705463 | V45: =IF($I45 >0, MIN(U45,$I45-SUM($L45:U45)), MAX(U45,$I45-SUM($L45:U45))) -> 6.008705463 | W45: =IF($I45 >0, MIN(V45,$I45-SUM($L45:V45)), MAX(V45,$I45-SUM($L45:V45))) -> 6.008705463 | X45: =IF($I45 >0, MIN(W45,$I45-SUM($L45:W45)), MAX(W45,$I45-SUM($L45:W45))) -> 6.008705463 | Y45: =IF($I45 >0, MIN(X45,$I45-SUM($L45:X45)), MAX(X45,$I45-SUM($L45:X45))) -> 6.008705463 | Z45: =IF($I45 >0, MIN(Y45,$I45-SUM($L45:Y45)), MAX(Y45,$I45-SUM($L45:Y45))) -> 6.008705463 | AA45: =IF($I45 >0, MIN(Z45,$I45-SUM($L45:Z45)), MAX(Z45,$I45-SUM($L45:Z45))) -> 6.008705463 | AB45: =IF($I45 >0, MIN(AA45,$I45-SUM($L45:AA45)), MAX(AA45,$I45-SUM($L45:AA45))) -> 6.008705463 | AC45: =IF($I45 >0, MIN(AB45,$I45-SUM($L45:AB45)), MAX(AB45,$I45-SUM($L45:AB45))) -> 6.008705463 | AD45: =IF($I45 >0, MIN(AC45,$I45-SUM($L45:AC45)), MAX(AC45,$I45-SUM($L45:AC45))) -> 6.008705463 | AE45: =IF($I45 >0, MIN(AD45,$I45-SUM($L45:AD45)), MAX(AD45,$I45-SUM($L45:AD45))) -> 6.008705463 | AF45: =IF($I45 >0, MIN(AE45,$I45-SUM($L45:AE45)), MAX(AE45,$I45-SUM($L45:AE45))) -> 6.008705463 | AG45: =IF($I45 >0, MIN(AF45,$I45-SUM($L45:AF45)), MAX(AF45,$I45-SUM($L45:AF45))) -> 6.008705463 | AH45: =IF($I45 >0, MIN(AG45,$I45-SUM($L45:AG45)), MAX(AG45,$I45-SUM($L45:AG45))) -> 0 | AI45: =IF($I45 >0, MIN(AH45,$I45-SUM($L45:AH45)), MAX(AH45,$I45-SUM($L45:AH45))) -> 0 | AJ45: =IF($I45 >0, MIN(AI45,$I45-SUM($L45:AI45)), MAX(AI45,$I45-SUM($L45:AI45))) -> 0 | AK45: =IF($I45 >0, MIN(AJ45,$I45-SUM($L45:AJ45)), MAX(AJ45,$I45-SUM($L45:AJ45))) -> 0 | AL45: =IF($I45 >0, MIN(AK45,$I45-SUM($L45:AK45)), MAX(AK45,$I45-SUM($L45:AK45))) -> 0 | AM45: =IF($I45 >0, MIN(AL45,$I45-SUM($L45:AL45)), MAX(AL45,$I45-SUM($L45:AL45))) -> 0 | AN45: =IF($I45 >0, MIN(AM45,$I45-SUM($L45:AM45)), MAX(AM45,$I45-SUM($L45:AM45))) -> 0 | AO45: =IF($I45 >0, MIN(AN45,$I45-SUM($L45:AN45)), MAX(AN45,$I45-SUM($L45:AN45))) -> 0 | AP45: =IF($I45 >0, MIN(AO45,$I45-SUM($L45:AO45)), MAX(AO45,$I45-SUM($L45:AO45))) -> 0 | AQ45: =IF($I45 >0, MIN(AP45,$I45-SUM($L45:AP45)), MAX(AP45,$I45-SUM($L45:AP45))) -> 0 | AR45: =IF($I45 >0, MIN(AQ45,$I45-SUM($L45:AQ45)), MAX(AQ45,$I45-SUM($L45:AQ45))) -> 0
E46: 1994-03-31 | G46: £m 12/13 prices | I46: 108.3107677 | J46: > | O46: =$I46/N$37 -> 5.415538385 | P46: =IF($I46 >0, MIN(O46,$I46-SUM($L46:O46)), MAX(O46,$I46-SUM($L46:O46))) -> 5.415538385 | Q46: =IF($I46 >0, MIN(P46,$I46-SUM($L46:P46)), MAX(P46,$I46-SUM($L46:P46))) -> 5.415538385 | R46: =IF($I46 >0, MIN(Q46,$I46-SUM($L46:Q46)), MAX(Q46,$I46-SUM($L46:Q46))) -> 5.415538385 | S46: =IF($I46 >0, MIN(R46,$I46-SUM($L46:R46)), MAX(R46,$I46-SUM($L46:R46))) -> 5.415538385 | T46: =IF($I46 >0, MIN(S46,$I46-SUM($L46:S46)), MAX(S46,$I46-SUM($L46:S46))) -> 5.415538385 | U46: =IF($I46 >0, MIN(T46,$I46-SUM($L46:T46)), MAX(T46,$I46-SUM($L46:T46))) -> 5.415538385 | V46: =IF($I46 >0, MIN(U46,$I46-SUM($L46:U46)), MAX(U46,$I46-SUM($L46:U46))) -> 5.415538385 | W46: =IF($I46 >0, MIN(V46,$I46-SUM($L46:V46)), MAX(V46,$I46-SUM($L46:V46))) -> 5.415538385 | X46: =IF($I46 >0, MIN(W46,$I46-SUM($L46:W46)), MAX(W46,$I46-SUM($L46:W46))) -> 5.415538385 | Y46: =IF($I46 >0, MIN(X46,$I46-SUM($L46:X46)), MAX(X46,$I46-SUM($L46:X46))) -> 5.415538385 | Z46: =IF($I46 >0, MIN(Y46,$I46-SUM($L46:Y46)), MAX(Y46,$I46-SUM($L46:Y46))) -> 5.415538385 | AA46: =IF($I46 >0, MIN(Z46,$I46-SUM($L46:Z46)), MAX(Z46,$I46-SUM($L46:Z46))) -> 5.415538385 | AB46: =IF($I46 >0, MIN(AA46,$I46-SUM($L46:AA46)), MAX(AA46,$I46-SUM($L46:AA46))) -> 5.415538385 | AC46: =IF($I46 >0, MIN(AB46,$I46-SUM($L46:AB46)), MAX(AB46,$I46-SUM($L46:AB46))) -> 5.415538385 | AD46: =IF($I46 >0, MIN(AC46,$I46-SUM($L46:AC46)), MAX(AC46,$I46-SUM($L46:AC46))) -> 5.415538385 | AE46: =IF($I46 >0, MIN(AD46,$I46-SUM($L46:AD46)), MAX(AD46,$I46-SUM($L46:AD46))) -> 5.415538385 | AF46: =IF($I46 >0, MIN(AE46,$I46-SUM($L46:AE46)), MAX(AE46,$I46-SUM($L46:AE46))) -> 5.415538385 | AG46: =IF($I46 >0, MIN(AF46,$I46-SUM($L46:AF46)), MAX(AF46,$I46-SUM($L46:AF46))) -> 5.415538385 | AH46: =IF($I46 >0, MIN(AG46,$I46-SUM($L46:AG46)), MAX(AG46,$I46-SUM($L46:AG46))) -> 5.415538385 | AI46: =IF($I46 >0, MIN(AH46,$I46-SUM($L46:AH46)), MAX(AH46,$I46-SUM($L46:AH46))) -> 1.421085472e-14 | AJ46: =IF($I46 >0, MIN(AI46,$I46-SUM($L46:AI46)), MAX(AI46,$I46-SUM($L46:AI46))) -> 0 | AK46: =IF($I46 >0, MIN(AJ46,$I46-SUM($L46:AJ46)), MAX(AJ46,$I46-SUM($L46:AJ46))) -> 0 | AL46: =IF($I46 >0, MIN(AK46,$I46-SUM($L46:AK46)), MAX(AK46,$I46-SUM($L46:AK46))) -> 0 | AM46: =IF($I46 >0, MIN(AL46,$I46-SUM($L46:AL46)), MAX(AL46,$I46-SUM($L46:AL46))) -> 0 | AN46: =IF($I46 >0, MIN(AM46,$I46-SUM($L46:AM46)), MAX(AM46,$I46-SUM($L46:AM46))) -> 0 | AO46: =IF($I46 >0, MIN(AN46,$I46-SUM($L46:AN46)), MAX(AN46,$I46-SUM($L46:AN46))) -> 0 | AP46: =IF($I46 >0, MIN(AO46,$I46-SUM($L46:AO46)), MAX(AO46,$I46-SUM($L46:AO46))) -> 0 | AQ46: =IF($I46 >0, MIN(AP46,$I46-SUM($L46:AP46)), MAX(AP46,$I46-SUM($L46:AP46))) -> 0 | AR46: =IF($I46 >0, MIN(AQ46,$I46-SUM($L46:AQ46)), MAX(AQ46,$I46-SUM($L46:AQ46))) -> 0
E47: 1995-03-31 | G47: £m 12/13 prices | I47: 107.3863515 | J47: > | P47: =$I47/O$37 -> 5.369317574 | Q47: =IF($I47 >0, MIN(P47,$I47-SUM($L47:P47)), MAX(P47,$I47-SUM($L47:P47))) -> 5.369317574 | R47: =IF($I47 >0, MIN(Q47,$I47-SUM($L47:Q47)), MAX(Q47,$I47-SUM($L47:Q47))) -> 5.369317574 | S47: =IF($I47 >0, MIN(R47,$I47-SUM($L47:R47)), MAX(R47,$I47-SUM($L47:R47))) -> 5.369317574 | T47: =IF($I47 >0, MIN(S47,$I47-SUM($L47:S47)), MAX(S47,$I47-SUM($L47:S47))) -> 5.369317574 | U47: =IF($I47 >0, MIN(T47,$I47-SUM($L47:T47)), MAX(T47,$I47-SUM($L47:T47))) -> 5.369317574 | V47: =IF($I47 >0, MIN(U47,$I47-SUM($L47:U47)), MAX(U47,$I47-SUM($L47:U47))) -> 5.369317574 | W47: =IF($I47 >0, MIN(V47,$I47-SUM($L47:V47)), MAX(V47,$I47-SUM($L47:V47))) -> 5.369317574 | X47: =IF($I47 >0, MIN(W47,$I47-SUM($L47:W47)), MAX(W47,$I47-SUM($L47:W47))) -> 5.369317574 | Y47: =IF($I47 >0, MIN(X47,$I47-SUM($L47:X47)), MAX(X47,$I47-SUM($L47:X47))) -> 5.369317574 | Z47: =IF($I47 >0, MIN(Y47,$I47-SUM($L47:Y47)), MAX(Y47,$I47-SUM($L47:Y47))) -> 5.369317574 | AA47: =IF($I47 >0, MIN(Z47,$I47-SUM($L47:Z47)), MAX(Z47,$I47-SUM($L47:Z47))) -> 5.369317574 | AB47: =IF($I47 >0, MIN(AA47,$I47-SUM($L47:AA47)), MAX(AA47,$I47-SUM($L47:AA47))) -> 5.369317574 | AC47: =IF($I47 >0, MIN(AB47,$I47-SUM($L47:AB47)), MAX(AB47,$I47-SUM($L47:AB47))) -> 5.369317574 | AD47: =IF($I47 >0, MIN(AC47,$I47-SUM($L47:AC47)), MAX(AC47,$I47-SUM($L47:AC47))) -> 5.369317574 | AE47: =IF($I47 >0, MIN(AD47,$I47-SUM($L47:AD47)), MAX(AD47,$I47-SUM($L47:AD47))) -> 5.369317574 | AF47: =IF($I47 >0, MIN(AE47,$I47-SUM($L47:AE47)), MAX(AE47,$I47-SUM($L47:AE47))) -> 5.369317574 | AG47: =IF($I47 >0, MIN(AF47,$I47-SUM($L47:AF47)), MAX(AF47,$I47-SUM($L47:AF47))) -> 5.369317574 | AH47: =IF($I47 >0, MIN(AG47,$I47-SUM($L47:AG47)), MAX(AG47,$I47-SUM($L47:AG47))) -> 5.369317574 | AI47: =IF($I47 >0, MIN(AH47,$I47-SUM($L47:AH47)), MAX(AH47,$I47-SUM($L47:AH47))) -> 5.369317574 | AJ47: =IF($I47 >0, MIN(AI47,$I47-SUM($L47:AI47)), MAX(AI47,$I47-SUM($L47:AI47))) -> 5.684341886e-14 | AK47: =IF($I47 >0, MIN(AJ47,$I47-SUM($L47:AJ47)), MAX(AJ47,$I47-SUM($L47:AJ47))) -> 0 | AL47: =IF($I47 >0, MIN(AK47,$I47-SUM($L47:AK47)), MAX(AK47,$I47-SUM($L47:AK47))) -> 0 | AM47: =IF($I47 >0, MIN(AL47,$I47-SUM($L47:AL47)), MAX(AL47,$I47-SUM($L47:AL47))) -> 0 | AN47: =IF($I47 >0, MIN(AM47,$I47-SUM($L47:AM47)), MAX(AM47,$I47-SUM($L47:AM47))) -> 0 | AO47: =IF($I47 >0, MIN(AN47,$I47-SUM($L47:AN47)), MAX(AN47,$I47-SUM($L47:AN47))) -> 0 | AP47: =IF($I47 >0, MIN(AO47,$I47-SUM($L47:AO47)), MAX(AO47,$I47-SUM($L47:AO47))) -> 0 | AQ47: =IF($I47 >0, MIN(AP47,$I47-SUM($L47:AP47)), MAX(AP47,$I47-SUM($L47:AP47))) -> 0 | AR47: =IF($I47 >0, MIN(AQ47,$I47-SUM($L47:AQ47)), MAX(AQ47,$I47-SUM($L47:AQ47))) -> 0
